Workbook

Sheet Oversigt Ændringer
B1: Selskabsnavn | C1: Biofos Lynettefællesskabet
B2: Selskabs ID | C2: S008
B3: Afskrivning referenceår | C3: 2026
B6: Denne fane viser, hvilke ændringer der er foretaget i henholdsvis Produktionsanlæg, Distributionsanlæg og Fællesfunktionsanlæg. Kolonne G viser værdien før ændringen, og kolonne H viser værdien efter ændringen. Det er vigtigt, at I skriver en begrundelse i kolonne I (”Begrundelse”), hvis I har foretaget en ændring. I begrundelsen skal der tydeligt fremgå, hvilken dokumentation I har vedlagt i Vanddata for den givne ændring. Når I er færdige med at ændre i POLKA og har skrevet begrundelser for alle ændringerne, skal I klikke på knappen ”Gem revisorversion”, som skaber et nyt dokument, som jeres revisor skal godkende. Det er vigtigt, at I både uploader den fil, hvor I har foretaget ændringer samt den nye fil til revisor. Hvis I fortryder en ændring, skal I blot nulstille til den oprindelige værdi ved at bruge nulstil-knappen, der vises, når I står i kolonne H.
F8: ="Afskrivning i alt ("&Afskrivning_Referenceår&") →" -> Afskrivning i alt (2026) → | G8: 32993059.86
G9: ↓ Værdi ↓
A11: Nøgle | B11: Anlægstype | C11: Navn anlæg | D11: Anlæg | E11: Komponent | F11: År | G11: Før | H11: Efter | I11: Begrundelse | J11: OK | K11: Celle | L11: Række

Sheet Produktionsanlæg
A1: Produktionsanlæg | B1: Enhed | C1: Standard-levetid | D1: Mængde | E1: Mængde | F1: Mængde | G1: Mængde | H1: Mængde | I1: Mængde | J1: Mængde | K1: Mængde | L1: Mængde | M1: Mængde | N1: Mængde | O1: Mængde | P1: Mængde | Q1: Mængde | R1: Mængde | S1: Mængde | T1: Mængde | U1: Mængde | V1: Mængde | W1: Mængde | X1: Mængde | Y1: Mængde | Z1: Beregnet enhedspris | AA1: Nedskrevet genanskaffelsesværdi pr. år | AW1: Nedskrevet genanskaffelsesværdi i alt | AX1: Nedskrevet anskaffelsesværdi pr. år | BT1: Nedskrevet anskaffelsesværdi i alt | BU1: Standardværdi pr. år | CQ1: Nedskrevet standardværdi i alt
D2: Før 1910 | E2: 1910-1919 | F2: 1920-1929 | G2: 1930-1939 | H2: 1940-1949 | I2: 1950-1959 | J2: 1960-1969 | K2: 1970-1979 | L2: 1980-1984 | M2: 1985-1989 | N2: 1990-1994 | O2: 1995-1999 | P2: 2000 | Q2: =+P2+1 -> 2001 | R2: =+Q2+1 -> 2002 | S2: 2003 | T2: 2004 | U2: 2005 | V2: 2006 | W2: 2007 | X2: 2008 | Y2: 2009 | AA2: Før 1910 | AB2: 1910-1919 | AC2: 1920-1929 | AD2: 1930-1939 | AE2: 1940-1949 | AF2: 1950-1959 | AG2: 1960-1969 | AH2: 1970-1979 | AI2: 1980-1984 | AJ2: 1985-1989 | AK2: 1990-1994 | AL2: 1995-1999 | AM2: 2000 | AN2: =+AM2+1 -> 2001 | AO2: =+AN2+1 -> 2002 | AP2: 2003 | AQ2: 2004 | AR2: 2005 | AS2: 2006 | AT2: 2007 | AU2: 2008 | AV2: 2009 | AX2: Før 1910 | AY2: 1910-1919 | AZ2: 1920-1929 | BA2: 1930-1939 | BB2: 1940-1949 | BC2: 1950-1959 | BD2: 1960-1969 | BE2: 1970-1979 | BF2: 1980-1984 | BG2: 1985-1989 | BH2: 1990-1994 | BI2: 1995-1999 | BJ2: 2000 | BK2: =+BJ2+1 -> 2001 | BL2: =+BK2+1 -> 2002 | BM2: 2003 | BN2: 2004 | BO2: 2005 | BP2: 2006 | BQ2: 2007 | BR2: 2008 | BS2: 2009 | BU2: Før 1910 | BV2: 1910-1919 | BW2: 1920-1929 | BX2: 1930-1939 | BY2: 1940-1949 | BZ2: 1950-1959 | CA2: 1960-1969 | CB2: 1970-1979 | CC2: 1980-1984 | CD2: 1985-1989 | CE2: 1990-1994 | CF2: 1995-1999 | CG2: 2000 | CH2: =+CG2+1 -> 2001 | CI2: =+CH2+1 -> 2002 | CJ2: 2003 | CK2: 2004 | CL2: 2005 | CM2: 2006 | CN2: 2007 | CO2: 2008 | CP2: 2009 | CR2: Mængde
D3: 1905 | E3: =+D3+10 -> 1915 | F3: =+E3+10 -> 1925 | G3: 1935 | H3: 1945 | I3: 1955 | J3: 1965 | K3: 1975 | L3: 1982 | M3: 1987 | N3: =+L3+10 -> 1992 | O3: 1997 | P3: =+P2 -> 2000 | Q3: 2001 | R3: 2002 | S3: 2003 | T3: 2004 | U3: 2005 | V3: 2006 | W3: 2007 | X3: 2008 | Y3: 2009 | AA3: 1905 | AB3: =+AA3+10 -> 1915 | AC3: =+AB3+10 -> 1925 | AD3: 1935 | AE3: 1945 | AF3: 1955 | AG3: 1965 | AH3: 1975 | AI3: 1982 | AJ3: 1987 | AK3: =+AI3+10 -> 1992 | AL3: 1997 | AM3: =+AM2 -> 2000 | AN3: 2001 | AO3: 2002 | AP3: 2003 | AQ3: 2004 | AR3: 2005 | AS3: 2006 | AT3: 2007 | AU3: 2008 | AV3: 2009 | AX3: 1905 | AY3: =+AX3+10 -> 1915 | AZ3: =+AY3+10 -> 1925 | BA3: 1935 | BB3: 1945 | BC3: 1955 | BD3: 1965 | BE3: 1975 | BF3: 1982 | BG3: 1987 | BH3: =+BF3+10 -> 1992 | BI3: 1997 | BJ3: =+BJ2 -> 2000 | BK3: 2001 | BL3: 2002 | BM3: 2003 | BN3: 2004 | BO3: 2005 | BP3: 2006 | BQ3: 2007 | BR3: 2008 | BS3: 2009 | BU3: 1905 | BV3: =+BU3+10 -> 1915 | BW3: =+BV3+10 -> 1925 | BX3: 1935 | BY3: 1945 | BZ3: 1955 | CA3: 1965 | CB3: 1975 | CC3: 1982 | CD3: 1987 | CE3: =+CC3+10 -> 1992 | CF3: 1997 | CG3: =+CG2 -> 2000 | CH3: 2001 | CI3: 2002 | CJ3: 2003 | CK3: 2004 | CL3: 2005 | CM3: 2006 | CN3: 2007 | CO3: 2008 | CP3: 2009
A4: Renseanlæg 1 | AW4: =+SUM(AW5,AW8,AW33,AW58) -> 1429620217 | BT4: =+SUM(BT5,BT8,BT33,BT58) -> 937077331.6 | CQ4: =+SUM(CQ5,CQ8,CQ33,CQ58) -> 1183348774
A5: Mindre renseanlæg | AW5: =SUM(AW6:AW7) -> 0 | BT5: =SUM(BT6:BT7) -> 0 | CQ5: =SUM(CQ6:CQ7) -> 0
A6: =+Genanskaffelsespriser!$B$5 -> Mindre renseanlæg < 5.000 PE uden mulighed for opdeling | B6: PE | C6: =Genanskaffelsespriser!$E$5 -> 40 | D6: 0 | E6: 0 | F6: 0 | G6: 0 | H6: 0 | I6: 0 | J6: 0 | K6: 0 | L6: 0 | M6: 0 | N6: 0 | O6: 0 | P6: 0 | Q6: 0 | R6: 0 | S6: 0 | T6: 0 | U6: 0 | V6: 0 | W6: 0 | X6: 0 | Y6: 0 | Z6: =IF(COUNTIF(D6:Y6,"<>0")<=1,IF(SUM(D6:Y6)=0,0,(IF(SUM(D6:Y6)>0,IF(SUM(D6:Y6)<400,(1.2675*45967*SUM(D6:Y6)^(-0.4664)),(IF(SUM(D6:Y6)<2000,(39128*SUM(D6:Y6)^(-0.37661)),IF(SUM(D6:Y6)<5000,18893*SUM(D6:Y6)^(-0.28083),IF(SUM(D6:Y6)<100000,29680*SUM(D6:Y6)^(-0.24475),1773.1))))*100/115)*SUM(D6:Y6)*1,0)*1.15*1.06)*(1+Genanskaffelsespriser!$D$389)/SUM(D6:Y6)),$A$73) -> 0 | AA6: =IF((D6*$Z6-(2009-D$3)/($C6+D7)*$Z6*D6)<0,0,(D6*$Z6-(2009-D$3)/($C6+D7)*$Z6*D6)) -> 0 | AB6: =IF((E6*$Z6-(2009-E$3)/($C6+E7)*$Z6*E6)<0,0,(E6*$Z6-(2009-E$3)/($C6+E7)*$Z6*E6)) -> 0 | AC6: =IF((F6*$Z6-(2009-F$3)/($C6+F7)*$Z6*F6)<0,0,(F6*$Z6-(2009-F$3)/($C6+F7)*$Z6*F6)) -> 0 | AD6: 0 | AE6: 0 | AF6: 0 | AG6: 0 | AH6: 0 | AI6: 0 | AJ6: 0 | AK6: 0 | AL6: 0 | AM6: 0 | AN6: 0 | AO6: 0 | AP6: 0 | AQ6: 0 | AR6: 0 | AS6: 0 | AT6: 0 | AU6: 0 | AV6: 0 | AW6: =+SUM(AA6:AV6) -> 0 | AX6: =VLOOKUP(D$3,Prisindeks!$A$1:$B$111,2,FALSE)/100*AA6 -> 0 | AY6: =VLOOKUP(E$3,Prisindeks!$A$1:$B$111,2,FALSE)/100*AB6 -> 0 | AZ6: =VLOOKUP(F$3,Prisindeks!$A$1:$B$111,2,FALSE)/100*AC6 -> 0 | BA6: =VLOOKUP(G$3,Prisindeks!$A$1:$B$111,2,FALSE)/100*AD6 -> 0 | BB6: =VLOOKUP(H$3,Prisindeks!$A$1:$B$111,2,FALSE)/100*AE6 -> 0 | BC6: =VLOOKUP(I$3,Prisindeks!$A$1:$B$111,2,FALSE)/100*AF6 -> 0 | BD6: =VLOOKUP(J$3,Prisindeks!$A$1:$B$111,2,FALSE)/100*AG6 -> 0 | BE6: =VLOOKUP(K$3,Prisindeks!$A$1:$B$111,2,FALSE)/100*AH6 -> 0 | BF6: =VLOOKUP(L$3,Prisindeks!$A$1:$B$111,2,FALSE)/100*AI6 -> 0 | BG6: =VLOOKUP(M$3,Prisindeks!$A$1:$B$111,2,FALSE)/100*AJ6 -> 0 | BH6: =VLOOKUP(N$3,Prisindeks!$A$1:$B$111,2,FALSE)/100*AK6 -> 0 | BI6: =VLOOKUP(O$3,Prisindeks!$A$1:$B$111,2,FALSE)/100*AL6 -> 0 | BJ6: =VLOOKUP(P$3,Prisindeks!$A$1:$B$111,2,FALSE)/100*AM6 -> 0 | BK6: =VLOOKUP(Q$3,Prisindeks!$A$1:$B$111,2,FALSE)/100*AN6 -> 0 | BL6: =VLOOKUP(R$3,Prisindeks!$A$1:$B$111,2,FALSE)/100*AO6 -> 0 | BM6: =VLOOKUP(S$3,Prisindeks!$A$1:$B$111,2,FALSE)/100*AP6 -> 0 | BN6: =VLOOKUP(T$3,Prisindeks!$A$1:$B$111,2,FALSE)/100*AQ6 -> 0 | BO6: =VLOOKUP(U$3,Prisindeks!$A$1:$B$111,2,FALSE)/100*AR6 -> 0 | BP6: =VLOOKUP(V$3,Prisindeks!$A$1:$B$111,2,FALSE)/100*AS6 -> 0 | BQ6: =VLOOKUP(W$3,Prisindeks!$A$1:$B$111,2,FALSE)/100*AT6 -> 0 | BR6: =VLOOKUP(X$3,Prisindeks!$A$1:$B$111,2,FALSE)/100*AU6 -> 0 | BS6: =VLOOKUP(Y$3,Prisindeks!$A$1:$B$111,2,FALSE)/100*AV6 -> 0 | BT6: =+SUM(AX6:BS6) -> 0 | BU6: =(AA6+AX6)/2 -> 0 | BV6: =(AB6+AY6)/2 -> 0 | BW6: 0 | BX6: 0 | BY6: 0 | BZ6: 0 | CA6: 0 | CB6: 0 | CC6: 0 | CD6: 0 | CE6: 0 | CF6: 0 | CG6: 0 | CH6: 0 | CI6: 0 | CJ6: 0 | CK6: 0 | CL6: 0 | CM6: 0 | CN6: 0 | CO6: 0 | CP6: 0 | CQ6: =+SUM(BU6:CP6) -> 0 | CR6: =SUM(D6:Y6) -> 0
A7: Levetidsforlængelse | B7: år | C7: - | D7: 0 | E7: 0 | F7: 0 | G7: 0 | H7: 0 | I7: 0 | J7: 0 | K7: 0 | L7: 0 | M7: 0 | N7: 0 | O7: 0 | P7: 0 | Q7: 0 | R7: 0 | S7: 0 | T7: 0 | U7: 0 | V7: 0 | W7: 0 | X7: 0 | Y7: 0
A8: Renseanlæg >= 5.000 PE, Vandbehandling | AW8: =SUM(AW9:AW32) -> 498031060 | BT8: =SUM(BT9:BT32) -> 336865770.7 | CQ8: =SUM(CQ9:CQ32) -> 417448415.4 | CR8: =SUM(D8:Y8) -> 0
A9: =+Genanskaffelsespriser!$B$7 -> Indløb med riste, Konstruktioner | B9: PE | C9: =Genanskaffelsespriser!$E$7 -> 60 | D9: 0 | E9: 0 | F9: 0 | G9: 0 | H9: 0 | I9: 0 | J9: 0 | K9: 0 | L9: 1200000 | M9: 0 | N9: 0 | O9: 0 | P9: 0 | Q9: 0 | R9: 0 | S9: 0 | T9: 0 | U9: 0 | V9: 0 | W9: 0 | X9: 0 | Y9: 0 | Z9: =IF(COUNTIF(D9:Y9,"<>0")<=1,IF(SUM(D9:Y9)=0,0,(IF(SUM(D9:Y9)>0,IF(SUM(D9:Y9)<400,(1.2675*45967*SUM(D9:Y9)^(-0.4664)),(IF(SUM(D9:Y9)<2000,(39128*SUM(D9:Y9)^(-0.37661)),IF(SUM(D9:Y9)<5000,18893*SUM(D9:Y9)^(-0.28083),IF(SUM(D9:Y9)<100000,29680*SUM(D9:Y9)^(-0.24475),1773.1))))*100/115)*SUM(D9:Y9)*0.061,0)*1.15*1.06*0.55)*(1+Genanskaffelsespriser!$D$389)/SUM(D9:Y9)),$A$73) -> 65.38985525 | AA9: =IF((D9*$Z9-(2009-D$3)/($C9+D10)*$Z9*D9)<0,0,(D9*$Z9-(2009-D$3)/($C9+D10)*$Z9*D9)) -> 0 | AB9: =IF((E9*$Z9-(2009-E$3)/($C9+E10)*$Z9*E9)<0,0,(E9*$Z9-(2009-E$3)/($C9+E10)*$Z9*E9)) -> 0 | AC9: =IF((F9*$Z9-(2009-F$3)/($C9+F10)*$Z9*F9)<0,0,(F9*$Z9-(2009-F$3)/($C9+F10)*$Z9*F9)) -> 0 | AD9: 0 | AE9: 0 | AF9: 0 | AG9: 0 | AH9: 0 | AI9: 43157304.46 | AJ9: 0 | AK9: 0 | AL9: 0 | AM9: 0 | AN9: 0 | AO9: 0 | AP9: 0 | AQ9: 0 | AR9: 0 | AS9: 0 | AT9: 0 | AU9: 0 | AV9: 0 | AW9: =+SUM(AA9:AV9) -> 43157304.46 | AX9: =VLOOKUP(D$3,Prisindeks!$A$1:$B$111,2,FALSE)/100*AA9 -> 0 | AY9: =VLOOKUP(E$3,Prisindeks!$A$1:$B$111,2,FALSE)/100*AB9 -> 0 | AZ9: =VLOOKUP(F$3,Prisindeks!$A$1:$B$111,2,FALSE)/100*AC9 -> 0 | BA9: =VLOOKUP(G$3,Prisindeks!$A$1:$B$111,2,FALSE)/100*AD9 -> 0 | BB9: =VLOOKUP(H$3,Prisindeks!$A$1:$B$111,2,FALSE)/100*AE9 -> 0 | BC9: =VLOOKUP(I$3,Prisindeks!$A$1:$B$111,2,FALSE)/100*AF9 -> 0 | BD9: =VLOOKUP(J$3,Prisindeks!$A$1:$B$111,2,FALSE)/100*AG9 -> 0 | BE9: =VLOOKUP(K$3,Prisindeks!$A$1:$B$111,2,FALSE)/100*AH9 -> 0 | BF9: =VLOOKUP(L$3,Prisindeks!$A$1:$B$111,2,FALSE)/100*AI9 -> 20338766.04 | BG9: =VLOOKUP(M$3,Prisindeks!$A$1:$B$111,2,FALSE)/100*AJ9 -> 0 | BH9: =VLOOKUP(N$3,Prisindeks!$A$1:$B$111,2,FALSE)/100*AK9 -> 0 | BI9: =VLOOKUP(O$3,Prisindeks!$A$1:$B$111,2,FALSE)/100*AL9 -> 0 | BJ9: =VLOOKUP(P$3,Prisindeks!$A$1:$B$111,2,FALSE)/100*AM9 -> 0 | BK9: =VLOOKUP(Q$3,Prisindeks!$A$1:$B$111,2,FALSE)/100*AN9 -> 0 | BL9: =VLOOKUP(R$3,Prisindeks!$A$1:$B$111,2,FALSE)/100*AO9 -> 0 | BM9: =VLOOKUP(S$3,Prisindeks!$A$1:$B$111,2,FALSE)/100*AP9 -> 0 | BN9: =VLOOKUP(T$3,Prisindeks!$A$1:$B$111,2,FALSE)/100*AQ9 -> 0 | BO9: =VLOOKUP(U$3,Prisindeks!$A$1:$B$111,2,FALSE)/100*AR9 -> 0 | BP9: =VLOOKUP(V$3,Prisindeks!$A$1:$B$111,2,FALSE)/100*AS9 -> 0 | BQ9: =VLOOKUP(W$3,Prisindeks!$A$1:$B$111,2,FALSE)/100*AT9 -> 0 | BR9: =VLOOKUP(X$3,Prisindeks!$A$1:$B$111,2,FALSE)/100*AU9 -> 0 | BS9: =VLOOKUP(Y$3,Prisindeks!$A$1:$B$111,2,FALSE)/100*AV9 -> 0 | BT9: =+SUM(AX9:BS9) -> 20338766.04 | BU9: =(AA9+AX9)/2 -> 0 | BV9: 0 | BW9: 0 | BX9: 0 | BY9: 0 | BZ9: 0 | CA9: 0 | CB9: 0 | CC9: 31748035.25 | CD9: 0 | CE9: =(AK9+BH9)/2 -> 0 | CF9: 0 | CG9: 0 | CH9: 0 | CI9: 0 | CJ9: 0 | CK9: 0 | CL9: 0 | CM9: 0 | CN9: 0 | CO9: =(AU9+BR9)/2 -> 0 | CP9: 0 | CQ9: =+SUM(BU9:CP9) -> 31748035.25 | CR9: 1200000
A10: Levetidsforlængelse | B10: år | C10: - | D10: 0 | E10: 0 | F10: 0 | G10: 0 | H10: 0 | I10: 0 | J10: 0 | K10: 0 | L10: 0 | M10: 0 | N10: 0 | O10: 0 | P10: 0 | Q10: 0 | R10: 0 | S10: 0 | T10: 0 | U10: 0 | V10: 0 | W10: 0 | X10: 0 | Y10: 0
A11: =+Genanskaffelsespriser!$B$8 -> Indløb med riste, Mek/EL | B11: PE | C11: =Genanskaffelsespriser!$E$8 -> 20 | D11: 0 | E11: 0 | F11: 0 | G11: 0 | H11: 0 | I11: 0 | J11: 0 | K11: 0 | L11: 1200000 | M11: 0 | N11: 0 | O11: 0 | P11: 0 | Q11: 0 | R11: 0 | S11: 0 | T11: 0 | U11: 0 | V11: 0 | W11: 0 | X11: 0 | Y11: 0 | Z11: =IF(COUNTIF(D11:Y11,"<>0")<=1,IF(SUM(D11:Y11)=0,0,(IF(SUM(D11:Y11)>0,IF(SUM(D11:Y11)<400,(1.2675*45967*SUM(D11:Y11)^(-0.4664)),(IF(SUM(D11:Y11)<2000,(39128*SUM(D11:Y11)^(-0.37661)),IF(SUM(D11:Y11)<5000,18893*SUM(D11:Y11)^(-0.28083),IF(SUM(D11:Y11)<100000,29680*SUM(D11:Y11)^(-0.24475),1773.1))))*100/115)*SUM(D11:Y11)*0.061,0)*1.15*1.06*0.43)/SUM(D11:Y11)),$A$73) -> 49.29891778 | AA11: =IF((D11*$Z11-(2009-D$3)/$C11*$Z11*D11)<0,0,(D11*$Z11-(2009-D$3)/$C11*$Z11*D11)) -> 0 | AB11: =IF((E11*$Z11-(2009-E$3)/$C11*$Z11*E11)<0,0,(E11*$Z11-(2009-E$3)/$C11*$Z11*E11)) -> 0 | AC11: =IF((F11*$Z11-(2009-F$3)/$C11*$Z11*F11)<0,0,(F11*$Z11-(2009-F$3)/$C11*$Z11*F11)) -> 0 | AD11: =IF((G11*$Z11-(2009-G$3)/$C11*$Z11*G11)<0,0,(G11*$Z11-(2009-G$3)/$C11*$Z11*G11)) -> 0 | AE11: =IF((H11*$Z11-(2009-H$3)/$C11*$Z11*H11)<0,0,(H11*$Z11-(2009-H$3)/$C11*$Z11*H11)) -> 0 | AF11: =IF((I11*$Z11-(2009-I$3)/$C11*$Z11*I11)<0,0,(I11*$Z11-(2009-I$3)/$C11*$Z11*I11)) -> 0 | AG11: =IF((J11*$Z11-(2009-J$3)/$C11*$Z11*J11)<0,0,(J11*$Z11-(2009-J$3)/$C11*$Z11*J11)) -> 0 | AH11: =IF((K11*$Z11-(2009-K$3)/$C11*$Z11*K11)<0,0,(K11*$Z11-(2009-K$3)/$C11*$Z11*K11)) -> 0 | AI11: =IF((L11*$Z11-(2009-L$3)/$C11*$Z11*L11)<0,0,(L11*$Z11-(2009-L$3)/$C11*$Z11*L11)) -> 0 | AJ11: =IF((M11*$Z11-(2009-M$3)/$C11*$Z11*M11)<0,0,(M11*$Z11-(2009-M$3)/$C11*$Z11*M11)) -> 0 | AK11: =IF((N11*$Z11-(2009-N$3)/$C11*$Z11*N11)<0,0,(N11*$Z11-(2009-N$3)/$C11*$Z11*N11)) -> 0 | AL11: =IF((O11*$Z11-(2009-O$3)/$C11*$Z11*O11)<0,0,(O11*$Z11-(2009-O$3)/$C11*$Z11*O11)) -> 0 | AM11: =IF((P11*$Z11-(2009-P$3)/$C11*$Z11*P11)<0,0,(P11*$Z11-(2009-P$3)/$C11*$Z11*P11)) -> 0 | AN11: =IF((Q11*$Z11-(2009-Q$3)/$C11*$Z11*Q11)<0,0,(Q11*$Z11-(2009-Q$3)/$C11*$Z11*Q11)) -> 0 | AO11: =IF((R11*$Z11-(2009-R$3)/$C11*$Z11*R11)<0,0,(R11*$Z11-(2009-R$3)/$C11*$Z11*R11)) -> 0 | AP11: =IF((S11*$Z11-(2009-S$3)/$C11*$Z11*S11)<0,0,(S11*$Z11-(2009-S$3)/$C11*$Z11*S11)) -> 0 | AQ11: =IF((T11*$Z11-(2009-T$3)/$C11*$Z11*T11)<0,0,(T11*$Z11-(2009-T$3)/$C11*$Z11*T11)) -> 0 | AR11: =IF((U11*$Z11-(2009-U$3)/$C11*$Z11*U11)<0,0,(U11*$Z11-(2009-U$3)/$C11*$Z11*U11)) -> 0 | AS11: =IF((V11*$Z11-(2009-V$3)/$C11*$Z11*V11)<0,0,(V11*$Z11-(2009-V$3)/$C11*$Z11*V11)) -> 0 | AT11: =IF((W11*$Z11-(2009-W$3)/$C11*$Z11*W11)<0,0,(W11*$Z11-(2009-W$3)/$C11*$Z11*W11)) -> 0 | AU11: =IF((X11*$Z11-(2009-X$3)/$C11*$Z11*X11)<0,0,(X11*$Z11-(2009-X$3)/$C11*$Z11*X11)) -> 0 | AV11: =IF((Y11*$Z11-(2009-Y$3)/$C11*$Z11*Y11)<0,0,(Y11*$Z11-(2009-Y$3)/$C11*$Z11*Y11)) -> 0 | AW11: =+SUM(AA11:AV11) -> 0 | AX11: =VLOOKUP(D$3,Prisindeks!$A$1:$B$111,2,FALSE)/100*AA11 -> 0 | AY11: =VLOOKUP(E$3,Prisindeks!$A$1:$B$111,2,FALSE)/100*AB11 -> 0 | AZ11: =VLOOKUP(F$3,Prisindeks!$A$1:$B$111,2,FALSE)/100*AC11 -> 0 | BA11: =VLOOKUP(G$3,Prisindeks!$A$1:$B$111,2,FALSE)/100*AD11 -> 0 | BB11: =VLOOKUP(H$3,Prisindeks!$A$1:$B$111,2,FALSE)/100*AE11 -> 0 | BC11: =VLOOKUP(I$3,Prisindeks!$A$1:$B$111,2,FALSE)/100*AF11 -> 0 | BD11: =VLOOKUP(J$3,Prisindeks!$A$1:$B$111,2,FALSE)/100*AG11 -> 0 | BE11: =VLOOKUP(K$3,Prisindeks!$A$1:$B$111,2,FALSE)/100*AH11 -> 0 | BF11: =VLOOKUP(L$3,Prisindeks!$A$1:$B$111,2,FALSE)/100*AI11 -> 0 | BG11: =VLOOKUP(M$3,Prisindeks!$A$1:$B$111,2,FALSE)/100*AJ11 -> 0 | BH11: =VLOOKUP(N$3,Prisindeks!$A$1:$B$111,2,FALSE)/100*AK11 -> 0 | BI11: =VLOOKUP(O$3,Prisindeks!$A$1:$B$111,2,FALSE)/100*AL11 -> 0 | BJ11: =VLOOKUP(P$3,Prisindeks!$A$1:$B$111,2,FALSE)/100*AM11 -> 0 | BK11: =VLOOKUP(Q$3,Prisindeks!$A$1:$B$111,2,FALSE)/100*AN11 -> 0 | BL11: =VLOOKUP(R$3,Prisindeks!$A$1:$B$111,2,FALSE)/100*AO11 -> 0 | BM11: =VLOOKUP(S$3,Prisindeks!$A$1:$B$111,2,FALSE)/100*AP11 -> 0 | BN11: =VLOOKUP(T$3,Prisindeks!$A$1:$B$111,2,FALSE)/100*AQ11 -> 0 | BO11: =VLOOKUP(U$3,Prisindeks!$A$1:$B$111,2,FALSE)/100*AR11 -> 0 | BP11: =VLOOKUP(V$3,Prisindeks!$A$1:$B$111,2,FALSE)/100*AS11 -> 0 | BQ11: =VLOOKUP(W$3,Prisindeks!$A$1:$B$111,2,FALSE)/100*AT11 -> 0 | BR11: =VLOOKUP(X$3,Prisindeks!$A$1:$B$111,2,FALSE)/100*AU11 -> 0 | BS11: =VLOOKUP(Y$3,Prisindeks!$A$1:$B$111,2,FALSE)/100*AV11 -> 0 | BT11: =+SUM(AX11:BS11) -> 0 | BU11: 0 | BV11: 0 | BW11: 0 | BX11: 0 | BY11: 0 | BZ11: 0 | CA11: 0 | CB11: 0 | CC11: 0 | CD11: 0 | CE11: 0 | CF11: 0 | CG11: 0 | CH11: 0 | CI11: 0 | CJ11: 0 | CK11: 0 | CL11: 0 | CM11: 0 | CN11: 0 | CO11: 0 | CP11: 0 | CQ11: =+SUM(BU11:CP11) -> 0 | CR11: 1200000
A12: =+Genanskaffelsespriser!$B$9 -> Indløb med riste, SRO | B12: PE | C12: =Genanskaffelsespriser!$E$9 -> 10 | D12: 0 | E12: 0 | F12: 0 | G12: 0 | H12: 0 | I12: 0 | J12: 0 | K12: 0 | L12: 1200000 | M12: 0 | N12: 0 | O12: 0 | P12: 0 | Q12: 0 | R12: 0 | S12: 0 | T12: 0 | U12: 0 | V12: 0 | W12: 0 | X12: 0 | Y12: 0 | Z12: =IF(COUNTIF(D12:Y12,"<>0")<=1,IF(SUM(D12:Y12)=0,0,(IF(SUM(D12:Y12)>0,IF(SUM(D12:Y12)<400,(1.2675*45967*SUM(D12:Y12)^(-0.4664)),(IF(SUM(D12:Y12)<2000,(39128*SUM(D12:Y12)^(-0.37661)),IF(SUM(D12:Y12)<5000,18893*SUM(D12:Y12)^(-0.28083),IF(SUM(D12:Y12)<100000,29680*SUM(D12:Y12)^(-0.24475),1773.1))))*100/115)*SUM(D12:Y12)*0.061,0)*1.15*1.06*0.02)/SUM(D12:Y12)),$A$73) -> 2.29297292 | AA12: 0 | AB12: 0 | AC12: 0 | AD12: 0 | AE12: 0 | AF12: 0 | AG12: 0 | AH12: 0 | AI12: 0 | AJ12: 0 | AK12: 0 | AL12: 0 | AM12: 0 | AN12: 0 | AO12: 0 | AP12: 0 | AQ12: 0 | AR12: 0 | AS12: 0 | AT12: 0 | AU12: 0 | AV12: 0 | AW12: =+SUM(AA12:AV12) -> 0 | AX12: =VLOOKUP(D$3,Prisindeks!$A$1:$B$111,2,FALSE)/100*AA12 -> 0 | AY12: =VLOOKUP(E$3,Prisindeks!$A$1:$B$111,2,FALSE)/100*AB12 -> 0 | AZ12: =VLOOKUP(F$3,Prisindeks!$A$1:$B$111,2,FALSE)/100*AC12 -> 0 | BA12: =VLOOKUP(G$3,Prisindeks!$A$1:$B$111,2,FALSE)/100*AD12 -> 0 | BB12: =VLOOKUP(H$3,Prisindeks!$A$1:$B$111,2,FALSE)/100*AE12 -> 0 | BC12: =VLOOKUP(I$3,Prisindeks!$A$1:$B$111,2,FALSE)/100*AF12 -> 0 | BD12: =VLOOKUP(J$3,Prisindeks!$A$1:$B$111,2,FALSE)/100*AG12 -> 0 | BE12: =VLOOKUP(K$3,Prisindeks!$A$1:$B$111,2,FALSE)/100*AH12 -> 0 | BF12: =VLOOKUP(L$3,Prisindeks!$A$1:$B$111,2,FALSE)/100*AI12 -> 0 | BG12: =VLOOKUP(M$3,Prisindeks!$A$1:$B$111,2,FALSE)/100*AJ12 -> 0 | BH12: =VLOOKUP(N$3,Prisindeks!$A$1:$B$111,2,FALSE)/100*AK12 -> 0 | BI12: =VLOOKUP(O$3,Prisindeks!$A$1:$B$111,2,FALSE)/100*AL12 -> 0 | BJ12: =VLOOKUP(P$3,Prisindeks!$A$1:$B$111,2,FALSE)/100*AM12 -> 0 | BK12: =VLOOKUP(Q$3,Prisindeks!$A$1:$B$111,2,FALSE)/100*AN12 -> 0 | BL12: =VLOOKUP(R$3,Prisindeks!$A$1:$B$111,2,FALSE)/100*AO12 -> 0 | BM12: =VLOOKUP(S$3,Prisindeks!$A$1:$B$111,2,FALSE)/100*AP12 -> 0 | BN12: =VLOOKUP(T$3,Prisindeks!$A$1:$B$111,2,FALSE)/100*AQ12 -> 0 | BO12: =VLOOKUP(U$3,Prisindeks!$A$1:$B$111,2,FALSE)/100*AR12 -> 0 | BP12: =VLOOKUP(V$3,Prisindeks!$A$1:$B$111,2,FALSE)/100*AS12 -> 0 | BQ12: =VLOOKUP(W$3,Prisindeks!$A$1:$B$111,2,FALSE)/100*AT12 -> 0 | BR12: =VLOOKUP(X$3,Prisindeks!$A$1:$B$111,2,FALSE)/100*AU12 -> 0 | BS12: =VLOOKUP(Y$3,Prisindeks!$A$1:$B$111,2,FALSE)/100*AV12 -> 0 | BT12: =+SUM(AX12:BS12) -> 0 | BU12: 0 | BV12: 0 | BW12: 0 | BX12: 0 | BY12: 0 | BZ12: 0 | CA12: 0 | CB12: 0 | CC12: 0 | CD12: 0 | CE12: 0 | CF12: 0 | CG12: 0 | CH12: 0 | CI12: 0 | CJ12: 0 | CK12: 0 | CL12: 0 | CM12: 0 | CN12: 0 | CO12: 0 | CP12: 0 | CQ12: =+SUM(BU12:CP12) -> 0 | CR12: 1200000
A13: =+Genanskaffelsespriser!$B$10 -> Sand- og fedtfang, Kontruktioner | B13: PE | C13: =Genanskaffelsespriser!$E$10 -> 60 | D13: 0 | E13: 0 | F13: 0 | G13: 0 | H13: 0 | I13: 0 | J13: 0 | K13: 0 | L13: 1200000 | M13: 0 | N13: 0 | O13: 0 | P13: 0 | Q13: 0 | R13: 0 | S13: 0 | T13: 0 | U13: 0 | V13: 0 | W13: 0 | X13: 0 | Y13: 0 | Z13: =IF(COUNTIF(D13:Y13,"<>0")<=1,IF(SUM(D13:Y13)=0,0,(IF(SUM(D13:Y13)>0,IF(SUM(D13:Y13)<400,(1.2675*45967*SUM(D13:Y13)^(-0.4664)),(IF(SUM(D13:Y13)<2000,(39128*SUM(D13:Y13)^(-0.37661)),IF(SUM(D13:Y13)<5000,18893*SUM(D13:Y13)^(-0.28083),IF(SUM(D13:Y13)<100000,29680*SUM(D13:Y13)^(-0.24475),1773.1))))*100/115)*SUM(D13:Y13)*0.0173,0)*1.15*1.06*0.55)*(1+Genanskaffelsespriser!$D$389)/SUM(D13:Y13)),$A$73) -> 18.54499173 | AA13: =IF((D13*$Z13-(2009-D$3)/($C13+D14)*$Z13*D13)<0,0,(D13*$Z13-(2009-D$3)/($C13+D14)*$Z13*D13)) -> 0 | AB13: =IF((E13*$Z13-(2009-E$3)/($C13+E14)*$Z13*E13)<0,0,(E13*$Z13-(2009-E$3)/($C13+E14)*$Z13*E13)) -> 0 | AC13: =IF((F13*$Z13-(2009-F$3)/($C13+F14)*$Z13*F13)<0,0,(F13*$Z13-(2009-F$3)/($C13+F14)*$Z13*F13)) -> 0 | AD13: 0 | AE13: 0 | AF13: 0 | AG13: 0 | AH13: 0 | AI13: 12239694.54 | AJ13: 0 | AK13: 0 | AL13: 0 | AM13: 0 | AN13: 0 | AO13: 0 | AP13: 0 | AQ13: 0 | AR13: 0 | AS13: 0 | AT13: 0 | AU13: 0 | AV13: 0 | AW13: =+SUM(AA13:AV13) -> 12239694.54 | AX13: =VLOOKUP(D$3,Prisindeks!$A$1:$B$111,2,FALSE)/100*AA13 -> 0 | AY13: =VLOOKUP(E$3,Prisindeks!$A$1:$B$111,2,FALSE)/100*AB13 -> 0 | AZ13: =VLOOKUP(F$3,Prisindeks!$A$1:$B$111,2,FALSE)/100*AC13 -> 0 | BA13: =VLOOKUP(G$3,Prisindeks!$A$1:$B$111,2,FALSE)/100*AD13 -> 0 | BB13: =VLOOKUP(H$3,Prisindeks!$A$1:$B$111,2,FALSE)/100*AE13 -> 0 | BC13: =VLOOKUP(I$3,Prisindeks!$A$1:$B$111,2,FALSE)/100*AF13 -> 0 | BD13: =VLOOKUP(J$3,Prisindeks!$A$1:$B$111,2,FALSE)/100*AG13 -> 0 | BE13: =VLOOKUP(K$3,Prisindeks!$A$1:$B$111,2,FALSE)/100*AH13 -> 0 | BF13: =VLOOKUP(L$3,Prisindeks!$A$1:$B$111,2,FALSE)/100*AI13 -> 5768207.418 | BG13: =VLOOKUP(M$3,Prisindeks!$A$1:$B$111,2,FALSE)/100*AJ13 -> 0 | BH13: =VLOOKUP(N$3,Prisindeks!$A$1:$B$111,2,FALSE)/100*AK13 -> 0 | BI13: =VLOOKUP(O$3,Prisindeks!$A$1:$B$111,2,FALSE)/100*AL13 -> 0 | BJ13: =VLOOKUP(P$3,Prisindeks!$A$1:$B$111,2,FALSE)/100*AM13 -> 0 | BK13: =VLOOKUP(Q$3,Prisindeks!$A$1:$B$111,2,FALSE)/100*AN13 -> 0 | BL13: =VLOOKUP(R$3,Prisindeks!$A$1:$B$111,2,FALSE)/100*AO13 -> 0 | BM13: =VLOOKUP(S$3,Prisindeks!$A$1:$B$111,2,FALSE)/100*AP13 -> 0 | BN13: =VLOOKUP(T$3,Prisindeks!$A$1:$B$111,2,FALSE)/100*AQ13 -> 0 | BO13: =VLOOKUP(U$3,Prisindeks!$A$1:$B$111,2,FALSE)/100*AR13 -> 0 | BP13: =VLOOKUP(V$3,Prisindeks!$A$1:$B$111,2,FALSE)/100*AS13 -> 0 | BQ13: =VLOOKUP(W$3,Prisindeks!$A$1:$B$111,2,FALSE)/100*AT13 -> 0 | BR13: =VLOOKUP(X$3,Prisindeks!$A$1:$B$111,2,FALSE)/100*AU13 -> 0 | BS13: =VLOOKUP(Y$3,Prisindeks!$A$1:$B$111,2,FALSE)/100*AV13 -> 0 | BT13: =+SUM(AX13:BS13) -> 5768207.418 | BU13: =(AA13+AX13)/2 -> 0 | BV13: 0 | BW13: 0 | BX13: 0 | BY13: 0 | BZ13: 0 | CA13: 0 | CB13: 0 | CC13: 9003950.981 | CD13: 0 | CE13: 0 | CF13: 0 | CG13: 0 | CH13: 0 | CI13: 0 | CJ13: 0 | CK13: =(AQ13+BN13)/2 -> 0 | CL13: 0 | CM13: 0 | CN13: 0 | CO13: 0 | CP13: 0 | CQ13: =+SUM(BU13:CP13) -> 9003950.981 | CR13: 1200000
A14: Levetidsforlængelse | B14: år | C14: - | D14: 0 | E14: 0 | F14: 0 | G14: 0 | H14: 0 | I14: 0 | J14: 0 | K14: 0 | L14: 0 | M14: 0 | N14: 0 | O14: 0 | P14: 0 | Q14: 0 | R14: 0 | S14: 0 | T14: 0 | U14: 0 | V14: 0 | W14: 0 | X14: 0 | Y14: 0
A15: =+Genanskaffelsespriser!$B$11 -> Sand- og fedtfang, Mek/EL | B15: PE | C15: =Genanskaffelsespriser!$E$11 -> 20 | D15: 0 | E15: 0 | F15: 0 | G15: 0 | H15: 0 | I15: 0 | J15: 0 | K15: 0 | L15: 1200000 | M15: 0 | N15: 0 | O15: 0 | P15: 0 | Q15: 0 | R15: 0 | S15: 0 | T15: 0 | U15: 0 | V15: 0 | W15: 0 | X15: 0 | Y15: 0 | Z15: =IF(COUNTIF(D15:Y15,"<>0")<=1,IF(SUM(D15:Y15)=0,0,(IF(SUM(D15:Y15)>0,IF(SUM(D15:Y15)<400,(1.2675*45967*SUM(D15:Y15)^(-0.4664)),(IF(SUM(D15:Y15)<2000,(39128*SUM(D15:Y15)^(-0.37661)),IF(SUM(D15:Y15)<5000,18893*SUM(D15:Y15)^(-0.28083),IF(SUM(D15:Y15)<100000,29680*SUM(D15:Y15)^(-0.24475),1773.1))))*100/115)*SUM(D15:Y15)*0.0173,0)*1.15*1.06*0.43)/SUM(D15:Y15)),$A$73) -> 13.98149635 | AA15: 0 | AB15: 0 | AC15: 0 | AD15: 0 | AE15: 0 | AF15: 0 | AG15: 0 | AH15: 0 | AI15: 0 | AJ15: 0 | AK15: 0 | AL15: 0 | AM15: 0 | AN15: 0 | AO15: 0 | AP15: 0 | AQ15: 0 | AR15: 0 | AS15: 0 | AT15: 0 | AU15: 0 | AV15: 0 | AW15: =+SUM(AA15:AV15) -> 0 | AX15: =VLOOKUP(D$3,Prisindeks!$A$1:$B$111,2,FALSE)/100*AA15 -> 0 | AY15: =VLOOKUP(E$3,Prisindeks!$A$1:$B$111,2,FALSE)/100*AB15 -> 0 | AZ15: =VLOOKUP(F$3,Prisindeks!$A$1:$B$111,2,FALSE)/100*AC15 -> 0 | BA15: =VLOOKUP(G$3,Prisindeks!$A$1:$B$111,2,FALSE)/100*AD15 -> 0 | BB15: =VLOOKUP(H$3,Prisindeks!$A$1:$B$111,2,FALSE)/100*AE15 -> 0 | BC15: =VLOOKUP(I$3,Prisindeks!$A$1:$B$111,2,FALSE)/100*AF15 -> 0 | BD15: =VLOOKUP(J$3,Prisindeks!$A$1:$B$111,2,FALSE)/100*AG15 -> 0 | BE15: =VLOOKUP(K$3,Prisindeks!$A$1:$B$111,2,FALSE)/100*AH15 -> 0 | BF15: =VLOOKUP(L$3,Prisindeks!$A$1:$B$111,2,FALSE)/100*AI15 -> 0 | BG15: =VLOOKUP(M$3,Prisindeks!$A$1:$B$111,2,FALSE)/100*AJ15 -> 0 | BH15: =VLOOKUP(N$3,Prisindeks!$A$1:$B$111,2,FALSE)/100*AK15 -> 0 | BI15: =VLOOKUP(O$3,Prisindeks!$A$1:$B$111,2,FALSE)/100*AL15 -> 0 | BJ15: =VLOOKUP(P$3,Prisindeks!$A$1:$B$111,2,FALSE)/100*AM15 -> 0 | BK15: =VLOOKUP(Q$3,Prisindeks!$A$1:$B$111,2,FALSE)/100*AN15 -> 0 | BL15: =VLOOKUP(R$3,Prisindeks!$A$1:$B$111,2,FALSE)/100*AO15 -> 0 | BM15: =VLOOKUP(S$3,Prisindeks!$A$1:$B$111,2,FALSE)/100*AP15 -> 0 | BN15: =VLOOKUP(T$3,Prisindeks!$A$1:$B$111,2,FALSE)/100*AQ15 -> 0 | BO15: =VLOOKUP(U$3,Prisindeks!$A$1:$B$111,2,FALSE)/100*AR15 -> 0 | BP15: =VLOOKUP(V$3,Prisindeks!$A$1:$B$111,2,FALSE)/100*AS15 -> 0 | BQ15: =VLOOKUP(W$3,Prisindeks!$A$1:$B$111,2,FALSE)/100*AT15 -> 0 | BR15: =VLOOKUP(X$3,Prisindeks!$A$1:$B$111,2,FALSE)/100*AU15 -> 0 | BS15: =VLOOKUP(Y$3,Prisindeks!$A$1:$B$111,2,FALSE)/100*AV15 -> 0 | BT15: =+SUM(AX15:BS15) -> 0 | BU15: =(AA15+AX15)/2 -> 0 | BV15: =(AB15+AY15)/2 -> 0 | BW15: =(AC15+AZ15)/2 -> 0 | BX15: =(AD15+BA15)/2 -> 0 | BY15: =(AE15+BB15)/2 -> 0 | BZ15: =(AF15+BC15)/2 -> 0 | CA15: =(AG15+BD15)/2 -> 0 | CB15: =(AH15+BE15)/2 -> 0 | CC15: =(AI15+BF15)/2 -> 0 | CD15: =(AJ15+BG15)/2 -> 0 | CE15: =(AK15+BH15)/2 -> 0 | CF15: =(AL15+BI15)/2 -> 0 | CG15: =(AM15+BJ15)/2 -> 0 | CH15: =(AN15+BK15)/2 -> 0 | CI15: =(AO15+BL15)/2 -> 0 | CJ15: =(AP15+BM15)/2 -> 0 | CK15: =(AQ15+BN15)/2 -> 0 | CL15: =(AR15+BO15)/2 -> 0 | CM15: =(AS15+BP15)/2 -> 0 | CN15: =(AT15+BQ15)/2 -> 0 | CO15: =(AU15+BR15)/2 -> 0 | CP15: =(AV15+BS15)/2 -> 0 | CQ15: =+SUM(BU15:CP15) -> 0 | CR15: 1200000
A16: =+Genanskaffelsespriser!$B$12 -> Sand- og fedtfang, SRO | B16: PE | C16: =Genanskaffelsespriser!$E$12 -> 10 | D16: 0 | E16: 0 | F16: 0 | G16: 0 | H16: 0 | I16: 0 | J16: 0 | K16: 0 | L16: 1200000 | M16: 0 | N16: 0 | O16: 0 | P16: 0 | Q16: 0 | R16: 0 | S16: 0 | T16: 0 | U16: 0 | V16: 0 | W16: 0 | X16: 0 | Y16: 0 | Z16: =IF(COUNTIF(D16:Y16,"<>0")<=1,IF(SUM(D16:Y16)=0,0,(IF(SUM(D16:Y16)>0,IF(SUM(D16:Y16)<400,(1.2675*45967*SUM(D16:Y16)^(-0.4664)),(IF(SUM(D16:Y16)<2000,(39128*SUM(D16:Y16)^(-0.37661)),IF(SUM(D16:Y16)<5000,18893*SUM(D16:Y16)^(-0.28083),IF(SUM(D16:Y16)<100000,29680*SUM(D16:Y16)^(-0.24475),1773.1))))*100/115)*SUM(D16:Y16)*0.0173,0)*1.15*1.06*0.02)/SUM(D16:Y16)),$A$73) -> 0.650302156 | AA16: 0 | AB16: 0 | AC16: 0 | AD16: 0 | AE16: 0 | AF16: 0 | AG16: 0 | AH16: 0 | AI16: 0 | AJ16: 0 | AK16: 0 | AL16: 0 | AM16: 0 | AN16: 0 | AO16: 0 | AP16: 0 | AQ16: 0 | AR16: 0 | AS16: 0 | AT16: 0 | AU16: 0 | AV16: 0 | AW16: 0 | AX16: =VLOOKUP(D$3,Prisindeks!$A$1:$B$111,2,FALSE)/100*AA16 -> 0 | AY16: =VLOOKUP(E$3,Prisindeks!$A$1:$B$111,2,FALSE)/100*AB16 -> 0 | AZ16: =VLOOKUP(F$3,Prisindeks!$A$1:$B$111,2,FALSE)/100*AC16 -> 0 | BA16: =VLOOKUP(G$3,Prisindeks!$A$1:$B$111,2,FALSE)/100*AD16 -> 0 | BB16: =VLOOKUP(H$3,Prisindeks!$A$1:$B$111,2,FALSE)/100*AE16 -> 0 | BC16: =VLOOKUP(I$3,Prisindeks!$A$1:$B$111,2,FALSE)/100*AF16 -> 0 | BD16: =VLOOKUP(J$3,Prisindeks!$A$1:$B$111,2,FALSE)/100*AG16 -> 0 | BE16: =VLOOKUP(K$3,Prisindeks!$A$1:$B$111,2,FALSE)/100*AH16 -> 0 | BF16: =VLOOKUP(L$3,Prisindeks!$A$1:$B$111,2,FALSE)/100*AI16 -> 0 | BG16: =VLOOKUP(M$3,Prisindeks!$A$1:$B$111,2,FALSE)/100*AJ16 -> 0 | BH16: =VLOOKUP(N$3,Prisindeks!$A$1:$B$111,2,FALSE)/100*AK16 -> 0 | BI16: =VLOOKUP(O$3,Prisindeks!$A$1:$B$111,2,FALSE)/100*AL16 -> 0 | BJ16: =VLOOKUP(P$3,Prisindeks!$A$1:$B$111,2,FALSE)/100*AM16 -> 0 | BK16: =VLOOKUP(Q$3,Prisindeks!$A$1:$B$111,2,FALSE)/100*AN16 -> 0 | BL16: =VLOOKUP(R$3,Prisindeks!$A$1:$B$111,2,FALSE)/100*AO16 -> 0 | BM16: =VLOOKUP(S$3,Prisindeks!$A$1:$B$111,2,FALSE)/100*AP16 -> 0 | BN16: =VLOOKUP(T$3,Prisindeks!$A$1:$B$111,2,FALSE)/100*AQ16 -> 0 | BO16: =VLOOKUP(U$3,Prisindeks!$A$1:$B$111,2,FALSE)/100*AR16 -> 0 | BP16: =VLOOKUP(V$3,Prisindeks!$A$1:$B$111,2,FALSE)/100*AS16 -> 0 | BQ16: =VLOOKUP(W$3,Prisindeks!$A$1:$B$111,2,FALSE)/100*AT16 -> 0 | BR16: =VLOOKUP(X$3,Prisindeks!$A$1:$B$111,2,FALSE)/100*AU16 -> 0 | BS16: =VLOOKUP(Y$3,Prisindeks!$A$1:$B$111,2,FALSE)/100*AV16 -> 0 | BT16: 0 | BU16: 0 | BV16: 0 | BW16: 0 | BX16: 0 | BY16: 0 | BZ16: 0 | CA16: 0 | CB16: 0 | CC16: 0 | CD16: 0 | CE16: 0 | CF16: 0 | CG16: 0 | CH16: 0 | CI16: 0 | CJ16: 0 | CK16: 0 | CL16: 0 | CM16: 0 | CN16: 0 | CO16: 0 | CP16: 0 | CQ16: 0 | CR16: 1200000
A17: =+Genanskaffelsespriser!$B$13 -> Forklaring, Konstruktioner | B17: PE | C17: =Genanskaffelsespriser!$E$13 -> 60 | D17: 0 | E17: 0 | F17: 0 | G17: 0 | H17: 0 | I17: 0 | J17: 0 | K17: 0 | L17: 1200000 | M17: 0 | N17: 0 | O17: 0 | P17: 0 | Q17: 0 | R17: 0 | S17: 0 | T17: 0 | U17: 0 | V17: 0 | W17: 0 | X17: 0 | Y17: 0 | Z17: =IF(COUNTIF(D17:Y17,"<>0")<=1,IF(SUM(D17:Y17)=0,0,(IF(SUM(D17:Y17)>0,IF(SUM(D17:Y17)<400,(1.2675*45967*SUM(D17:Y17)^(-0.4664)),(IF(SUM(D17:Y17)<2000,(39128*SUM(D17:Y17)^(-0.37661)),IF(SUM(D17:Y17)<5000,18893*SUM(D17:Y17)^(-0.28083),IF(SUM(D17:Y17)<100000,29680*SUM(D17:Y17)^(-0.24475),1773.1))))*100/115)*SUM(D17:Y17)*(IF(SUM(D17:Y17)>0,0.0538,0)),0)*1.15*1.06*0.6)*(1+Genanskaffelsespriser!$D$389)/SUM(D17:Y17)),$A$73) -> 62.91459098 | AA17: =IF((D17*$Z17-(2009-D$3)/($C17+D18)*$Z17*D17)<0,0,(D17*$Z17-(2009-D$3)/($C17+D18)*$Z17*D17)) -> 0 | AB17: =IF((E17*$Z17-(2009-E$3)/($C17+E18)*$Z17*E17)<0,0,(E17*$Z17-(2009-E$3)/($C17+E18)*$Z17*E17)) -> 0 | AC17: =IF((F17*$Z17-(2009-F$3)/($C17+F18)*$Z17*F17)<0,0,(F17*$Z17-(2009-F$3)/($C17+F18)*$Z17*F17)) -> 0 | AD17: 0 | AE17: 0 | AF17: 0 | AG17: 0 | AH17: 0 | AI17: 41523630.05 | AJ17: 0 | AK17: 0 | AL17: 0 | AM17: 0 | AN17: 0 | AO17: 0 | AP17: 0 | AQ17: 0 | AR17: 0 | AS17: 0 | AT17: 0 | AU17: 0 | AV17: 0 | AW17: 41523630.05 | AX17: =VLOOKUP(D$3,Prisindeks!$A$1:$B$111,2,FALSE)/100*AA17 -> 0 | AY17: =VLOOKUP(E$3,Prisindeks!$A$1:$B$111,2,FALSE)/100*AB17 -> 0 | AZ17: =VLOOKUP(F$3,Prisindeks!$A$1:$B$111,2,FALSE)/100*AC17 -> 0 | BA17: =VLOOKUP(G$3,Prisindeks!$A$1:$B$111,2,FALSE)/100*AD17 -> 0 | BB17: =VLOOKUP(H$3,Prisindeks!$A$1:$B$111,2,FALSE)/100*AE17 -> 0 | BC17: =VLOOKUP(I$3,Prisindeks!$A$1:$B$111,2,FALSE)/100*AF17 -> 0 | BD17: =VLOOKUP(J$3,Prisindeks!$A$1:$B$111,2,FALSE)/100*AG17 -> 0 | BE17: =VLOOKUP(K$3,Prisindeks!$A$1:$B$111,2,FALSE)/100*AH17 -> 0 | BF17: =VLOOKUP(L$3,Prisindeks!$A$1:$B$111,2,FALSE)/100*AI17 -> 19568863.42 | BG17: =VLOOKUP(M$3,Prisindeks!$A$1:$B$111,2,FALSE)/100*AJ17 -> 0 | BH17: =VLOOKUP(N$3,Prisindeks!$A$1:$B$111,2,FALSE)/100*AK17 -> 0 | BI17: =VLOOKUP(O$3,Prisindeks!$A$1:$B$111,2,FALSE)/100*AL17 -> 0 | BJ17: =VLOOKUP(P$3,Prisindeks!$A$1:$B$111,2,FALSE)/100*AM17 -> 0 | BK17: =VLOOKUP(Q$3,Prisindeks!$A$1:$B$111,2,FALSE)/100*AN17 -> 0 | BL17: =VLOOKUP(R$3,Prisindeks!$A$1:$B$111,2,FALSE)/100*AO17 -> 0 | BM17: =VLOOKUP(S$3,Prisindeks!$A$1:$B$111,2,FALSE)/100*AP17 -> 0 | BN17: =VLOOKUP(T$3,Prisindeks!$A$1:$B$111,2,FALSE)/100*AQ17 -> 0 | BO17: =VLOOKUP(U$3,Prisindeks!$A$1:$B$111,2,FALSE)/100*AR17 -> 0 | BP17: =VLOOKUP(V$3,Prisindeks!$A$1:$B$111,2,FALSE)/100*AS17 -> 0 | BQ17: =VLOOKUP(W$3,Prisindeks!$A$1:$B$111,2,FALSE)/100*AT17 -> 0 | BR17: =VLOOKUP(X$3,Prisindeks!$A$1:$B$111,2,FALSE)/100*AU17 -> 0 | BS17: =VLOOKUP(Y$3,Prisindeks!$A$1:$B$111,2,FALSE)/100*AV17 -> 0 | BT17: 19568863.42 | BU17: 0 | BV17: 0 | BW17: 0 | BX17: 0 | BY17: 0 | BZ17: 0 | CA17: 0 | CB17: 0 | CC17: 30546246.73 | CD17: 0 | CE17: 0 | CF17: 0 | CG17: 0 | CH17: 0 | CI17: 0 | CJ17: 0 | CK17: 0 | CL17: 0 | CM17: 0 | CN17: 0 | CO17: 0 | CP17: 0 | CQ17: 30546246.73 | CR17: 1200000
A18: Levetidsforlængelse | B18: år | C18: - | D18: 0 | E18: 0 | F18: 0 | G18: 0 | H18: 0 | I18: 0 | J18: 0 | K18: 0 | L18: 0 | M18: 0 | N18: 0 | O18: 0 | P18: 0 | Q18: 0 | R18: 0 | S18: 0 | T18: 0 | U18: 0 | V18: 0 | W18: 0 | X18: 0 | Y18: 0
A19: =+Genanskaffelsespriser!$B$14 -> Forklaring, Mek/EL | B19: PE | C19: =Genanskaffelsespriser!$E$14 -> 20 | D19: 0 | E19: 0 | F19: 0 | G19: 0 | H19: 0 | I19: 0 | J19: 0 | K19: 0 | L19: 1200000 | M19: 0 | N19: 0 | O19: 0 | P19: 0 | Q19: 0 | R19: 0 | S19: 0 | T19: 0 | U19: 0 | V19: 0 | W19: 0 | X19: 0 | Y19: 0 | Z19: =IF(COUNTIF(D19:Y19,"<>0")<=1,IF(SUM(D19:Y19)=0,0,(IF(SUM(D19:Y19)>0,IF(SUM(D19:Y19)<400,(1.2675*45967*SUM(D19:Y19)^(-0.4664)),(IF(SUM(D19:Y19)<2000,(39128*SUM(D19:Y19)^(-0.37661)),IF(SUM(D19:Y19)<5000,18893*SUM(D19:Y19)^(-0.28083),IF(SUM(D19:Y19)<100000,29680*SUM(D19:Y19)^(-0.24475),1773.1))))*100/115)*SUM(D19:Y19)*(IF(SUM(D19:Y19)>0,0.0538,0)),0)*1.15*1.06*0.39)/SUM(D19:Y19)),$A$73) -> 39.43537525 | AA19: 0 | AB19: 0 | AC19: 0 | AD19: 0 | AE19: 0 | AF19: 0 | AG19: 0 | AH19: 0 | AI19: 0 | AJ19: 0 | AK19: 0 | AL19: 0 | AM19: 0 | AN19: 0 | AO19: 0 | AP19: 0 | AQ19: 0 | AR19: 0 | AS19: 0 | AT19: 0 | AU19: 0 | AV19: 0 | AW19: 0 | AX19: =VLOOKUP(D$3,Prisindeks!$A$1:$B$111,2,FALSE)/100*AA19 -> 0 | AY19: =VLOOKUP(E$3,Prisindeks!$A$1:$B$111,2,FALSE)/100*AB19 -> 0 | AZ19: =VLOOKUP(F$3,Prisindeks!$A$1:$B$111,2,FALSE)/100*AC19 -> 0 | BA19: =VLOOKUP(G$3,Prisindeks!$A$1:$B$111,2,FALSE)/100*AD19 -> 0 | BB19: =VLOOKUP(H$3,Prisindeks!$A$1:$B$111,2,FALSE)/100*AE19 -> 0 | BC19: =VLOOKUP(I$3,Prisindeks!$A$1:$B$111,2,FALSE)/100*AF19 -> 0 | BD19: =VLOOKUP(J$3,Prisindeks!$A$1:$B$111,2,FALSE)/100*AG19 -> 0 | BE19: =VLOOKUP(K$3,Prisindeks!$A$1:$B$111,2,FALSE)/100*AH19 -> 0 | BF19: =VLOOKUP(L$3,Prisindeks!$A$1:$B$111,2,FALSE)/100*AI19 -> 0 | BG19: =VLOOKUP(M$3,Prisindeks!$A$1:$B$111,2,FALSE)/100*AJ19 -> 0 | BH19: =VLOOKUP(N$3,Prisindeks!$A$1:$B$111,2,FALSE)/100*AK19 -> 0 | BI19: =VLOOKUP(O$3,Prisindeks!$A$1:$B$111,2,FALSE)/100*AL19 -> 0 | BJ19: =VLOOKUP(P$3,Prisindeks!$A$1:$B$111,2,FALSE)/100*AM19 -> 0 | BK19: =VLOOKUP(Q$3,Prisindeks!$A$1:$B$111,2,FALSE)/100*AN19 -> 0 | BL19: =VLOOKUP(R$3,Prisindeks!$A$1:$B$111,2,FALSE)/100*AO19 -> 0 | BM19: =VLOOKUP(S$3,Prisindeks!$A$1:$B$111,2,FALSE)/100*AP19 -> 0 | BN19: =VLOOKUP(T$3,Prisindeks!$A$1:$B$111,2,FALSE)/100*AQ19 -> 0 | BO19: =VLOOKUP(U$3,Prisindeks!$A$1:$B$111,2,FALSE)/100*AR19 -> 0 | BP19: =VLOOKUP(V$3,Prisindeks!$A$1:$B$111,2,FALSE)/100*AS19 -> 0 | BQ19: =VLOOKUP(W$3,Prisindeks!$A$1:$B$111,2,FALSE)/100*AT19 -> 0 | BR19: =VLOOKUP(X$3,Prisindeks!$A$1:$B$111,2,FALSE)/100*AU19 -> 0 | BS19: =VLOOKUP(Y$3,Prisindeks!$A$1:$B$111,2,FALSE)/100*AV19 -> 0 | BT19: 0 | BU19: 0 | BV19: 0 | BW19: 0 | BX19: 0 | BY19: 0 | BZ19: 0 | CA19: 0 | CB19: 0 | CC19: 0 | CD19: 0 | CE19: 0 | CF19: 0 | CG19: 0 | CH19: 0 | CI19: 0 | CJ19: 0 | CK19: 0 | CL19: 0 | CM19: 0 | CN19: 0 | CO19: 0 | CP19: 0 | CQ19: 0 | CR19: 1200000
A20: =+Genanskaffelsespriser!$B$15 -> Forklaring, SRO | B20: PE | C20: =Genanskaffelsespriser!$E$15 -> 10 | D20: 0 | E20: 0 | F20: 0 | G20: 0 | H20: 0 | I20: 0 | J20: 0 | K20: 0 | L20: 1200000 | M20: 0 | N20: 0 | O20: 0 | P20: 0 | Q20: 0 | R20: 0 | S20: 0 | T20: 0 | U20: 0 | V20: 0 | W20: 0 | X20: 0 | Y20: 0 | Z20: =IF(COUNTIF(D20:Y20,"<>0")<=1,IF(SUM(D20:Y20)=0,0,(IF(SUM(D20:Y20)>0,IF(SUM(D20:Y20)<400,(1.2675*45967*SUM(D20:Y20)^(-0.4664)),(IF(SUM(D20:Y20)<2000,(39128*SUM(D20:Y20)^(-0.37661)),IF(SUM(D20:Y20)<5000,18893*SUM(D20:Y20)^(-0.28083),IF(SUM(D20:Y20)<100000,29680*SUM(D20:Y20)^(-0.24475),1773.1))))*100/115)*SUM(D20:Y20)*(IF(SUM(D20:Y20)>0,0.0538,0)),0)*1.15*1.06*0.01)/SUM(D20:Y20)),$A$73) -> 1.011163468 | AA20: 0 | AB20: 0 | AC20: 0 | AD20: 0 | AE20: 0 | AF20: 0 | AG20: 0 | AH20: 0 | AI20: 0 | AJ20: 0 | AK20: 0 | AL20: 0 | AM20: 0 | AN20: 0 | AO20: 0 | AP20: 0 | AQ20: 0 | AR20: 0 | AS20: 0 | AT20: 0 | AU20: 0 | AV20: 0 | AW20: 0 | AX20: =VLOOKUP(D$3,Prisindeks!$A$1:$B$111,2,FALSE)/100*AA20 -> 0 | AY20: =VLOOKUP(E$3,Prisindeks!$A$1:$B$111,2,FALSE)/100*AB20 -> 0 | AZ20: =VLOOKUP(F$3,Prisindeks!$A$1:$B$111,2,FALSE)/100*AC20 -> 0 | BA20: =VLOOKUP(G$3,Prisindeks!$A$1:$B$111,2,FALSE)/100*AD20 -> 0 | BB20: =VLOOKUP(H$3,Prisindeks!$A$1:$B$111,2,FALSE)/100*AE20 -> 0 | BC20: =VLOOKUP(I$3,Prisindeks!$A$1:$B$111,2,FALSE)/100*AF20 -> 0 | BD20: =VLOOKUP(J$3,Prisindeks!$A$1:$B$111,2,FALSE)/100*AG20 -> 0 | BE20: =VLOOKUP(K$3,Prisindeks!$A$1:$B$111,2,FALSE)/100*AH20 -> 0 | BF20: =VLOOKUP(L$3,Prisindeks!$A$1:$B$111,2,FALSE)/100*AI20 -> 0 | BG20: =VLOOKUP(M$3,Prisindeks!$A$1:$B$111,2,FALSE)/100*AJ20 -> 0 | BH20: =VLOOKUP(N$3,Prisindeks!$A$1:$B$111,2,FALSE)/100*AK20 -> 0 | BI20: =VLOOKUP(O$3,Prisindeks!$A$1:$B$111,2,FALSE)/100*AL20 -> 0 | BJ20: =VLOOKUP(P$3,Prisindeks!$A$1:$B$111,2,FALSE)/100*AM20 -> 0 | BK20: =VLOOKUP(Q$3,Prisindeks!$A$1:$B$111,2,FALSE)/100*AN20 -> 0 | BL20: =VLOOKUP(R$3,Prisindeks!$A$1:$B$111,2,FALSE)/100*AO20 -> 0 | BM20: =VLOOKUP(S$3,Prisindeks!$A$1:$B$111,2,FALSE)/100*AP20 -> 0 | BN20: =VLOOKUP(T$3,Prisindeks!$A$1:$B$111,2,FALSE)/100*AQ20 -> 0 | BO20: =VLOOKUP(U$3,Prisindeks!$A$1:$B$111,2,FALSE)/100*AR20 -> 0 | BP20: =VLOOKUP(V$3,Prisindeks!$A$1:$B$111,2,FALSE)/100*AS20 -> 0 | BQ20: =VLOOKUP(W$3,Prisindeks!$A$1:$B$111,2,FALSE)/100*AT20 -> 0 | BR20: =VLOOKUP(X$3,Prisindeks!$A$1:$B$111,2,FALSE)/100*AU20 -> 0 | BS20: =VLOOKUP(Y$3,Prisindeks!$A$1:$B$111,2,FALSE)/100*AV20 -> 0 | BT20: 0 | BU20: 0 | BV20: 0 | BW20: 0 | BX20: 0 | BY20: 0 | BZ20: 0 | CA20: 0 | CB20: 0 | CC20: 0 | CD20: 0 | CE20: 0 | CF20: 0 | CG20: 0 | CH20: 0 | CI20: 0 | CJ20: 0 | CK20: 0 | CL20: 0 | CM20: 0 | CN20: 0 | CO20: 0 | CP20: 0 | CQ20: 0 | CR20: 1200000
A21: =+Genanskaffelsespriser!$B$16 -> Beluftningstanke, Konstruktioner | B21: PE | C21: =Genanskaffelsespriser!$E$16 -> 60 | D21: 0 | E21: 0 | F21: 0 | G21: 0 | H21: 0 | I21: 0 | J21: 0 | K21: 0 | L21: 0 | M21: 0 | N21: 0 | O21: 750000 | P21: 0 | Q21: 0 | R21: 0 | S21: 0 | T21: 0 | U21: 0 | V21: 0 | W21: 0 | X21: 0 | Y21: 0 | Z21: =IF(COUNTIF(D21:Y21,"<>0")<=1,IF(SUM(D21:Y21)=0,0,(IF(SUM(D21:Y21)>0,IF(SUM(D21:Y21)<400,(1.2675*45967*SUM(D21:Y21)^(-0.4664)),(IF(SUM(D21:Y21)<2000,(39128*SUM(D21:Y21)^(-0.37661)),IF(SUM(D21:Y21)<5000,18893*SUM(D21:Y21)^(-0.28083),IF(SUM(D21:Y21)<100000,29680*SUM(D21:Y21)^(-0.24475),1773.1))))*100/115)*SUM(D21:Y21)*(IF(SUM(D17:Y17)>0,0.3551,0.5283)),0)*1.15*1.06*0.54)*(1+Genanskaffelsespriser!$D$389)/SUM(D21:Y21)),$A$73) -> 373.7337199 | AA21: =IF((D21*$Z21-(2009-D$3)/($C21+D22)*$Z21*D21)<0,0,(D21*$Z21-(2009-D$3)/($C21+D22)*$Z21*D21)) -> 0 | AB21: =IF((E21*$Z21-(2009-E$3)/($C21+E22)*$Z21*E21)<0,0,(E21*$Z21-(2009-E$3)/($C21+E22)*$Z21*E21)) -> 0 | AC21: =IF((F21*$Z21-(2009-F$3)/($C21+F22)*$Z21*F21)<0,0,(F21*$Z21-(2009-F$3)/($C21+F22)*$Z21*F21)) -> 0 | AD21: 0 | AE21: 0 | AF21: 0 | AG21: 0 | AH21: 0 | AI21: 0 | AJ21: 0 | AK21: 0 | AL21: 224240231.9 | AM21: 0 | AN21: 0 | AO21: 0 | AP21: 0 | AQ21: 0 | AR21: 0 | AS21: 0 | AT21: 0 | AU21: 0 | AV21: 0 | AW21: 224240231.9 | AX21: =VLOOKUP(D$3,Prisindeks!$A$1:$B$111,2,FALSE)/100*AA21 -> 0 | AY21: =VLOOKUP(E$3,Prisindeks!$A$1:$B$111,2,FALSE)/100*AB21 -> 0 | AZ21: =VLOOKUP(F$3,Prisindeks!$A$1:$B$111,2,FALSE)/100*AC21 -> 0 | BA21: =VLOOKUP(G$3,Prisindeks!$A$1:$B$111,2,FALSE)/100*AD21 -> 0 | BB21: =VLOOKUP(H$3,Prisindeks!$A$1:$B$111,2,FALSE)/100*AE21 -> 0 | BC21: =VLOOKUP(I$3,Prisindeks!$A$1:$B$111,2,FALSE)/100*AF21 -> 0 | BD21: =VLOOKUP(J$3,Prisindeks!$A$1:$B$111,2,FALSE)/100*AG21 -> 0 | BE21: =VLOOKUP(K$3,Prisindeks!$A$1:$B$111,2,FALSE)/100*AH21 -> 0 | BF21: =VLOOKUP(L$3,Prisindeks!$A$1:$B$111,2,FALSE)/100*AI21 -> 0 | BG21: =VLOOKUP(M$3,Prisindeks!$A$1:$B$111,2,FALSE)/100*AJ21 -> 0 | BH21: =VLOOKUP(N$3,Prisindeks!$A$1:$B$111,2,FALSE)/100*AK21 -> 0 | BI21: =VLOOKUP(O$3,Prisindeks!$A$1:$B$111,2,FALSE)/100*AL21 -> 180951721.7 | BJ21: =VLOOKUP(P$3,Prisindeks!$A$1:$B$111,2,FALSE)/100*AM21 -> 0 | BK21: =VLOOKUP(Q$3,Prisindeks!$A$1:$B$111,2,FALSE)/100*AN21 -> 0 | BL21: =VLOOKUP(R$3,Prisindeks!$A$1:$B$111,2,FALSE)/100*AO21 -> 0 | BM21: =VLOOKUP(S$3,Prisindeks!$A$1:$B$111,2,FALSE)/100*AP21 -> 0 | BN21: =VLOOKUP(T$3,Prisindeks!$A$1:$B$111,2,FALSE)/100*AQ21 -> 0 | BO21: =VLOOKUP(U$3,Prisindeks!$A$1:$B$111,2,FALSE)/100*AR21 -> 0 | BP21: =VLOOKUP(V$3,Prisindeks!$A$1:$B$111,2,FALSE)/100*AS21 -> 0 | BQ21: =VLOOKUP(W$3,Prisindeks!$A$1:$B$111,2,FALSE)/100*AT21 -> 0 | BR21: =VLOOKUP(X$3,Prisindeks!$A$1:$B$111,2,FALSE)/100*AU21 -> 0 | BS21: =VLOOKUP(Y$3,Prisindeks!$A$1:$B$111,2,FALSE)/100*AV21 -> 0 | BT21: 180951721.7 | BU21: 0 | BV21: 0 | BW21: 0 | BX21: 0 | BY21: 0 | BZ21: 0 | CA21: 0 | CB21: 0 | CC21: 0 | CD21: 0 | CE21: 0 | CF21: 202595976.8 | CG21: 0 | CH21: 0 | CI21: 0 | CJ21: 0 | CK21: 0 | CL21: 0 | CM21: 0 | CN21: 0 | CO21: 0 | CP21: 0 | CQ21: 202595976.8 | CR21: 750000
A22: Levetidsforlængelse | B22: år | C22: - | D22: 0 | E22: 0 | F22: 0 | G22: 0 | H22: 0 | I22: 0 | J22: 0 | K22: 0 | L22: 0 | M22: 0 | N22: 0 | O22: 0 | P22: 0 | Q22: 0 | R22: 0 | S22: 0 | T22: 0 | U22: 0 | V22: 0 | W22: 0 | X22: 0 | Y22: 0
A23: =+Genanskaffelsespriser!$B$17 -> Beluftningstanke, Mek/EL | B23: PE | C23: =Genanskaffelsespriser!$E$17 -> 20 | D23: 0 | E23: 0 | F23: 0 | G23: 0 | H23: 0 | I23: 0 | J23: 0 | K23: 0 | L23: 0 | M23: 0 | N23: 0 | O23: 750000 | P23: 0 | Q23: 0 | R23: 0 | S23: 0 | T23: 0 | U23: 0 | V23: 0 | W23: 0 | X23: 0 | Y23: 0 | Z23: =IF(COUNTIF(D23:Y23,"<>0")<=1,IF(SUM(D23:Y23)=0,0,(IF(SUM(D23:Y23)>0,IF(SUM(D23:Y23)<400,(1.2675*45967*SUM(D23:Y23)^(-0.4664)),(IF(SUM(D23:Y23)<2000,(39128*SUM(D23:Y23)^(-0.37661)),IF(SUM(D23:Y23)<5000,18893*SUM(D23:Y23)^(-0.28083),IF(SUM(D23:Y23)<100000,29680*SUM(D23:Y23)^(-0.24475),1773.1))))*100/115)*SUM(D23:Y23)*(IF(SUM(D19:Y19)>0,0.3551,0.5283)),0)*1.15*1.06*0.4)/SUM(D23:Y23)),$A$73) -> 266.9621914 | AA23: 0 | AB23: 0 | AC23: 0 | AD23: 0 | AE23: 0 | AF23: 0 | AG23: 0 | AH23: 0 | AI23: 0 | AJ23: 0 | AK23: 0 | AL23: 80088657.43 | AM23: 0 | AN23: 0 | AO23: 0 | AP23: 0 | AQ23: 0 | AR23: 0 | AS23: 0 | AT23: 0 | AU23: 0 | AV23: 0 | AW23: 80088657.43 | AX23: =VLOOKUP(D$3,Prisindeks!$A$1:$B$111,2,FALSE)/100*AA23 -> 0 | AY23: =VLOOKUP(E$3,Prisindeks!$A$1:$B$111,2,FALSE)/100*AB23 -> 0 | AZ23: =VLOOKUP(F$3,Prisindeks!$A$1:$B$111,2,FALSE)/100*AC23 -> 0 | BA23: =VLOOKUP(G$3,Prisindeks!$A$1:$B$111,2,FALSE)/100*AD23 -> 0 | BB23: =VLOOKUP(H$3,Prisindeks!$A$1:$B$111,2,FALSE)/100*AE23 -> 0 | BC23: =VLOOKUP(I$3,Prisindeks!$A$1:$B$111,2,FALSE)/100*AF23 -> 0 | BD23: =VLOOKUP(J$3,Prisindeks!$A$1:$B$111,2,FALSE)/100*AG23 -> 0 | BE23: =VLOOKUP(K$3,Prisindeks!$A$1:$B$111,2,FALSE)/100*AH23 -> 0 | BF23: =VLOOKUP(L$3,Prisindeks!$A$1:$B$111,2,FALSE)/100*AI23 -> 0 | BG23: =VLOOKUP(M$3,Prisindeks!$A$1:$B$111,2,FALSE)/100*AJ23 -> 0 | BH23: =VLOOKUP(N$3,Prisindeks!$A$1:$B$111,2,FALSE)/100*AK23 -> 0 | BI23: =VLOOKUP(O$3,Prisindeks!$A$1:$B$111,2,FALSE)/100*AL23 -> 64627923.04 | BJ23: =VLOOKUP(P$3,Prisindeks!$A$1:$B$111,2,FALSE)/100*AM23 -> 0 | BK23: =VLOOKUP(Q$3,Prisindeks!$A$1:$B$111,2,FALSE)/100*AN23 -> 0 | BL23: =VLOOKUP(R$3,Prisindeks!$A$1:$B$111,2,FALSE)/100*AO23 -> 0 | BM23: =VLOOKUP(S$3,Prisindeks!$A$1:$B$111,2,FALSE)/100*AP23 -> 0 | BN23: =VLOOKUP(T$3,Prisindeks!$A$1:$B$111,2,FALSE)/100*AQ23 -> 0 | BO23: =VLOOKUP(U$3,Prisindeks!$A$1:$B$111,2,FALSE)/100*AR23 -> 0 | BP23: =VLOOKUP(V$3,Prisindeks!$A$1:$B$111,2,FALSE)/100*AS23 -> 0 | BQ23: =VLOOKUP(W$3,Prisindeks!$A$1:$B$111,2,FALSE)/100*AT23 -> 0 | BR23: =VLOOKUP(X$3,Prisindeks!$A$1:$B$111,2,FALSE)/100*AU23 -> 0 | BS23: =VLOOKUP(Y$3,Prisindeks!$A$1:$B$111,2,FALSE)/100*AV23 -> 0 | BT23: 64627923.04 | BU23: 0 | BV23: 0 | BW23: 0 | BX23: 0 | BY23: 0 | BZ23: 0 | CA23: 0 | CB23: 0 | CC23: 0 | CD23: 0 | CE23: 0 | CF23: 72358290.23 | CG23: 0 | CH23: 0 | CI23: 0 | CJ23: 0 | CK23: 0 | CL23: 0 | CM23: 0 | CN23: 0 | CO23: 0 | CP23: 0 | CQ23: 72358290.23 | CR23: 750000
A24: =+Genanskaffelsespriser!$B$18 -> Beluftningstanke, SRO | B24: PE | C24: =Genanskaffelsespriser!$E$18 -> 10 | D24: 0 | E24: 0 | F24: 0 | G24: 0 | H24: 0 | I24: 0 | J24: 0 | K24: 0 | L24: 0 | M24: 0 | N24: 0 | O24: 750000 | P24: 0 | Q24: 0 | R24: 0 | S24: 0 | T24: 0 | U24: 0 | V24: 0 | W24: 0 | X24: 0 | Y24: 0 | Z24: =IF(COUNTIF(D24:Y24,"<>0")<=1,IF(SUM(D24:Y24)=0,0,(IF(SUM(D24:Y24)>0,IF(SUM(D24:Y24)<400,(1.2675*45967*SUM(D24:Y24)^(-0.4664)),(IF(SUM(D24:Y24)<2000,(39128*SUM(D24:Y24)^(-0.37661)),IF(SUM(D24:Y24)<5000,18893*SUM(D24:Y24)^(-0.28083),IF(SUM(D24:Y24)<100000,29680*SUM(D24:Y24)^(-0.24475),1773.1))))*100/115)*SUM(D24:Y24)*(IF(SUM(D20:Y20)>0,0.3551,0.5283)),0)*1.15*1.06*0.06)/SUM(D24:Y24)),$A$73) -> 40.04432872 | AA24: 0 | AB24: 0 | AC24: 0 | AD24: 0 | AE24: 0 | AF24: 0 | AG24: 0 | AH24: 0 | AI24: 0 | AJ24: 0 | AK24: 0 | AL24: 0 | AM24: 0 | AN24: 0 | AO24: 0 | AP24: 0 | AQ24: 0 | AR24: 0 | AS24: 0 | AT24: 0 | AU24: 0 | AV24: 0 | AW24: 0 | AX24: =VLOOKUP(D$3,Prisindeks!$A$1:$B$111,2,FALSE)/100*AA24 -> 0 | AY24: =VLOOKUP(E$3,Prisindeks!$A$1:$B$111,2,FALSE)/100*AB24 -> 0 | AZ24: =VLOOKUP(F$3,Prisindeks!$A$1:$B$111,2,FALSE)/100*AC24 -> 0 | BA24: =VLOOKUP(G$3,Prisindeks!$A$1:$B$111,2,FALSE)/100*AD24 -> 0 | BB24: =VLOOKUP(H$3,Prisindeks!$A$1:$B$111,2,FALSE)/100*AE24 -> 0 | BC24: =VLOOKUP(I$3,Prisindeks!$A$1:$B$111,2,FALSE)/100*AF24 -> 0 | BD24: =VLOOKUP(J$3,Prisindeks!$A$1:$B$111,2,FALSE)/100*AG24 -> 0 | BE24: =VLOOKUP(K$3,Prisindeks!$A$1:$B$111,2,FALSE)/100*AH24 -> 0 | BF24: =VLOOKUP(L$3,Prisindeks!$A$1:$B$111,2,FALSE)/100*AI24 -> 0 | BG24: =VLOOKUP(M$3,Prisindeks!$A$1:$B$111,2,FALSE)/100*AJ24 -> 0 | BH24: =VLOOKUP(N$3,Prisindeks!$A$1:$B$111,2,FALSE)/100*AK24 -> 0 | BI24: =VLOOKUP(O$3,Prisindeks!$A$1:$B$111,2,FALSE)/100*AL24 -> 0 | BJ24: =VLOOKUP(P$3,Prisindeks!$A$1:$B$111,2,FALSE)/100*AM24 -> 0 | BK24: =VLOOKUP(Q$3,Prisindeks!$A$1:$B$111,2,FALSE)/100*AN24 -> 0 | BL24: =VLOOKUP(R$3,Prisindeks!$A$1:$B$111,2,FALSE)/100*AO24 -> 0 | BM24: =VLOOKUP(S$3,Prisindeks!$A$1:$B$111,2,FALSE)/100*AP24 -> 0 | BN24: =VLOOKUP(T$3,Prisindeks!$A$1:$B$111,2,FALSE)/100*AQ24 -> 0 | BO24: =VLOOKUP(U$3,Prisindeks!$A$1:$B$111,2,FALSE)/100*AR24 -> 0 | BP24: =VLOOKUP(V$3,Prisindeks!$A$1:$B$111,2,FALSE)/100*AS24 -> 0 | BQ24: =VLOOKUP(W$3,Prisindeks!$A$1:$B$111,2,FALSE)/100*AT24 -> 0 | BR24: =VLOOKUP(X$3,Prisindeks!$A$1:$B$111,2,FALSE)/100*AU24 -> 0 | BS24: =VLOOKUP(Y$3,Prisindeks!$A$1:$B$111,2,FALSE)/100*AV24 -> 0 | BT24: 0 | BU24: 0 | BV24: 0 | BW24: 0 | BX24: 0 | BY24: 0 | BZ24: 0 | CA24: 0 | CB24: 0 | CC24: 0 | CD24: 0 | CE24: 0 | CF24: 0 | CG24: 0 | CH24: 0 | CI24: 0 | CJ24: 0 | CK24: 0 | CL24: 0 | CM24: 0 | CN24: 0 | CO24: 0 | CP24: 0 | CQ24: 0 | CR24: 750000
A25: =+Genanskaffelsespriser!$B$19 -> Efterklaringstanke, Konstruktioner | B25: PE | C25: =Genanskaffelsespriser!$E$19 -> 60 | D25: 0 | E25: 0 | F25: 0 | G25: 0 | H25: 0 | I25: 0 | J25: 0 | K25: 0 | L25: 525000 | M25: 0 | N25: 0 | O25: 0 | P25: 0 | Q25: 0 | R25: 0 | S25: 0 | T25: 0 | U25: 0 | V25: 0 | W25: 0 | X25: 0 | Y25: 0 | Z25: =IF(COUNTIF(D25:Y25,"<>0")<=1,IF(SUM(D25:Y25)=0,0,(IF(SUM(D25:Y25)>0,IF(SUM(D25:Y25)<400,(1.2675*45967*SUM(D25:Y25)^(-0.4664)),(IF(SUM(D25:Y25)<2000,(39128*SUM(D25:Y25)^(-0.37661)),IF(SUM(D25:Y25)<5000,18893*SUM(D25:Y25)^(-0.28083),IF(SUM(D25:Y25)<100000,29680*SUM(D25:Y25)^(-0.24475),1773.1))))*100/115)*SUM(D25:Y25)*(IF(SUM(D17:Y17)>0,0.2965,0.2971)),0)*1.15*1.06*0.58)*(1+Genanskaffelsespriser!$D$389)/SUM(D25:Y25)),$A$73) -> 335.1741701 | AA25: =IF((D25*$Z25-(2009-D$3)/($C25+D26)*$Z25*D25)<0,0,(D25*$Z25-(2009-D$3)/($C25+D26)*$Z25*D25)) -> 0 | AB25: =IF((E25*$Z25-(2009-E$3)/($C25+E26)*$Z25*E25)<0,0,(E25*$Z25-(2009-E$3)/($C25+E26)*$Z25*E25)) -> 0 | AC25: =IF((F25*$Z25-(2009-F$3)/($C25+F26)*$Z25*F25)<0,0,(F25*$Z25-(2009-F$3)/($C25+F26)*$Z25*F25)) -> 0 | AD25: 0 | AE25: 0 | AF25: 0 | AG25: 0 | AH25: 0 | AI25: 96781541.61 | AJ25: 0 | AK25: 0 | AL25: 0 | AM25: 0 | AN25: 0 | AO25: 0 | AP25: 0 | AQ25: 0 | AR25: 0 | AS25: 0 | AT25: 0 | AU25: 0 | AV25: 0 | AW25: 96781541.61 | AX25: =VLOOKUP(D$3,Prisindeks!$A$1:$B$111,2,FALSE)/100*AA25 -> 0 | AY25: =VLOOKUP(E$3,Prisindeks!$A$1:$B$111,2,FALSE)/100*AB25 -> 0 | AZ25: =VLOOKUP(F$3,Prisindeks!$A$1:$B$111,2,FALSE)/100*AC25 -> 0 | BA25: =VLOOKUP(G$3,Prisindeks!$A$1:$B$111,2,FALSE)/100*AD25 -> 0 | BB25: =VLOOKUP(H$3,Prisindeks!$A$1:$B$111,2,FALSE)/100*AE25 -> 0 | BC25: =VLOOKUP(I$3,Prisindeks!$A$1:$B$111,2,FALSE)/100*AF25 -> 0 | BD25: =VLOOKUP(J$3,Prisindeks!$A$1:$B$111,2,FALSE)/100*AG25 -> 0 | BE25: =VLOOKUP(K$3,Prisindeks!$A$1:$B$111,2,FALSE)/100*AH25 -> 0 | BF25: =VLOOKUP(L$3,Prisindeks!$A$1:$B$111,2,FALSE)/100*AI25 -> 45610289.07 | BG25: =VLOOKUP(M$3,Prisindeks!$A$1:$B$111,2,FALSE)/100*AJ25 -> 0 | BH25: =VLOOKUP(N$3,Prisindeks!$A$1:$B$111,2,FALSE)/100*AK25 -> 0 | BI25: =VLOOKUP(O$3,Prisindeks!$A$1:$B$111,2,FALSE)/100*AL25 -> 0 | BJ25: =VLOOKUP(P$3,Prisindeks!$A$1:$B$111,2,FALSE)/100*AM25 -> 0 | BK25: =VLOOKUP(Q$3,Prisindeks!$A$1:$B$111,2,FALSE)/100*AN25 -> 0 | BL25: =VLOOKUP(R$3,Prisindeks!$A$1:$B$111,2,FALSE)/100*AO25 -> 0 | BM25: =VLOOKUP(S$3,Prisindeks!$A$1:$B$111,2,FALSE)/100*AP25 -> 0 | BN25: =VLOOKUP(T$3,Prisindeks!$A$1:$B$111,2,FALSE)/100*AQ25 -> 0 | BO25: =VLOOKUP(U$3,Prisindeks!$A$1:$B$111,2,FALSE)/100*AR25 -> 0 | BP25: =VLOOKUP(V$3,Prisindeks!$A$1:$B$111,2,FALSE)/100*AS25 -> 0 | BQ25: =VLOOKUP(W$3,Prisindeks!$A$1:$B$111,2,FALSE)/100*AT25 -> 0 | BR25: =VLOOKUP(X$3,Prisindeks!$A$1:$B$111,2,FALSE)/100*AU25 -> 0 | BS25: =VLOOKUP(Y$3,Prisindeks!$A$1:$B$111,2,FALSE)/100*AV25 -> 0 | BT25: 45610289.07 | BU25: 0 | BV25: 0 | BW25: 0 | BX25: 0 | BY25: 0 | BZ25: 0 | CA25: 0 | CB25: 0 | CC25: 71195915.34 | CD25: 0 | CE25: 0 | CF25: 0 | CG25: 0 | CH25: 0 | CI25: 0 | CJ25: 0 | CK25: 0 | CL25: 0 | CM25: 0 | CN25: 0 | CO25: 0 | CP25: 0 | CQ25: 71195915.34 | CR25: 525000
A26: Levetidsforlængelse | B26: år | C26: - | D26: 0 | E26: 0 | F26: 0 | G26: 0 | H26: 0 | I26: 0 | J26: 0 | K26: 0 | L26: 0 | M26: 0 | N26: 0 | O26: 0 | P26: 0 | Q26: 0 | R26: 0 | S26: 0 | T26: 0 | U26: 0 | V26: 0 | W26: 0 | X26: 0 | Y26: 0
A27: =+Genanskaffelsespriser!$B$20 -> Efterklaringstanke, Mek/El | B27: PE | C27: =Genanskaffelsespriser!$E$20 -> 20 | D27: 0 | E27: 0 | F27: 0 | G27: 0 | H27: 0 | I27: 0 | J27: 0 | K27: 0 | L27: 525000 | M27: 0 | N27: 0 | O27: 0 | P27: 0 | Q27: 0 | R27: 0 | S27: 0 | T27: 0 | U27: 0 | V27: 0 | W27: 0 | X27: 0 | Y27: 0 | Z27: =IF(COUNTIF(D27:Y27,"<>0")<=1,IF(SUM(D27:Y27)=0,0,(IF(SUM(D27:Y27)>0,IF(SUM(D27:Y27)<400,(1.2675*45967*SUM(D27:Y27)^(-0.4664)),(IF(SUM(D27:Y27)<2000,(39128*SUM(D27:Y27)^(-0.37661)),IF(SUM(D27:Y27)<5000,18893*SUM(D27:Y27)^(-0.28083),IF(SUM(D27:Y27)<100000,29680*SUM(D27:Y27)^(-0.24475),1773.1))))*100/115)*SUM(D27:Y27)*(IF(SUM(D19:Y19)>0,0.2965,0.2971)),0)*1.15*1.06*0.37)/SUM(D27:Y27)),$A$73) -> 206.1890116 | AA27: 0 | AB27: 0 | AC27: 0 | AD27: 0 | AE27: 0 | AF27: 0 | AG27: 0 | AH27: 0 | AI27: 0 | AJ27: 0 | AK27: 0 | AL27: 0 | AM27: 0 | AN27: 0 | AO27: 0 | AP27: 0 | AQ27: 0 | AR27: 0 | AS27: 0 | AT27: 0 | AU27: 0 | AV27: 0 | AW27: 0 | AX27: =VLOOKUP(D$3,Prisindeks!$A$1:$B$111,2,FALSE)/100*AA27 -> 0 | AY27: =VLOOKUP(E$3,Prisindeks!$A$1:$B$111,2,FALSE)/100*AB27 -> 0 | AZ27: =VLOOKUP(F$3,Prisindeks!$A$1:$B$111,2,FALSE)/100*AC27 -> 0 | BA27: =VLOOKUP(G$3,Prisindeks!$A$1:$B$111,2,FALSE)/100*AD27 -> 0 | BB27: =VLOOKUP(H$3,Prisindeks!$A$1:$B$111,2,FALSE)/100*AE27 -> 0 | BC27: =VLOOKUP(I$3,Prisindeks!$A$1:$B$111,2,FALSE)/100*AF27 -> 0 | BD27: =VLOOKUP(J$3,Prisindeks!$A$1:$B$111,2,FALSE)/100*AG27 -> 0 | BE27: =VLOOKUP(K$3,Prisindeks!$A$1:$B$111,2,FALSE)/100*AH27 -> 0 | BF27: =VLOOKUP(L$3,Prisindeks!$A$1:$B$111,2,FALSE)/100*AI27 -> 0 | BG27: =VLOOKUP(M$3,Prisindeks!$A$1:$B$111,2,FALSE)/100*AJ27 -> 0 | BH27: =VLOOKUP(N$3,Prisindeks!$A$1:$B$111,2,FALSE)/100*AK27 -> 0 | BI27: =VLOOKUP(O$3,Prisindeks!$A$1:$B$111,2,FALSE)/100*AL27 -> 0 | BJ27: =VLOOKUP(P$3,Prisindeks!$A$1:$B$111,2,FALSE)/100*AM27 -> 0 | BK27: =VLOOKUP(Q$3,Prisindeks!$A$1:$B$111,2,FALSE)/100*AN27 -> 0 | BL27: =VLOOKUP(R$3,Prisindeks!$A$1:$B$111,2,FALSE)/100*AO27 -> 0 | BM27: =VLOOKUP(S$3,Prisindeks!$A$1:$B$111,2,FALSE)/100*AP27 -> 0 | BN27: =VLOOKUP(T$3,Prisindeks!$A$1:$B$111,2,FALSE)/100*AQ27 -> 0 | BO27: =VLOOKUP(U$3,Prisindeks!$A$1:$B$111,2,FALSE)/100*AR27 -> 0 | BP27: =VLOOKUP(V$3,Prisindeks!$A$1:$B$111,2,FALSE)/100*AS27 -> 0 | BQ27: =VLOOKUP(W$3,Prisindeks!$A$1:$B$111,2,FALSE)/100*AT27 -> 0 | BR27: =VLOOKUP(X$3,Prisindeks!$A$1:$B$111,2,FALSE)/100*AU27 -> 0 | BS27: =VLOOKUP(Y$3,Prisindeks!$A$1:$B$111,2,FALSE)/100*AV27 -> 0 | BT27: 0 | BU27: 0 | BV27: 0 | BW27: 0 | BX27: 0 | BY27: 0 | BZ27: 0 | CA27: 0 | CB27: 0 | CC27: 0 | CD27: 0 | CE27: 0 | CF27: 0 | CG27: 0 | CH27: 0 | CI27: 0 | CJ27: 0 | CK27: 0 | CL27: 0 | CM27: 0 | CN27: 0 | CO27: 0 | CP27: 0 | CQ27: 0 | CR27: 525000
A28: =+Genanskaffelsespriser!$B$21 -> Efterklaringstanke, SRO | B28: PE | C28: =Genanskaffelsespriser!$E$21 -> 10 | D28: 0 | E28: 0 | F28: 0 | G28: 0 | H28: 0 | I28: 0 | J28: 0 | K28: 0 | L28: 525000 | M28: 0 | N28: 0 | O28: 0 | P28: 0 | Q28: 0 | R28: 0 | S28: 0 | T28: 0 | U28: 0 | V28: 0 | W28: 0 | X28: 0 | Y28: 0 | Z28: =IF(COUNTIF(D28:Y28,"<>0")<=1,IF(SUM(D28:Y28)=0,0,(IF(SUM(D28:Y28)>0,IF(SUM(D28:Y28)<400,(1.2675*45967*SUM(D28:Y28)^(-0.4664)),(IF(SUM(D28:Y28)<2000,(39128*SUM(D28:Y28)^(-0.37661)),IF(SUM(D28:Y28)<5000,18893*SUM(D28:Y28)^(-0.28083),IF(SUM(D28:Y28)<100000,29680*SUM(D28:Y28)^(-0.24475),1773.1))))*100/115)*SUM(D28:Y28)*(IF(SUM(D20:Y20)>0,0.2965,0.2971)),0)*1.15*1.06*0.05)/SUM(D28:Y28)),$A$73) -> 27.86337995 | AA28: 0 | AB28: 0 | AC28: 0 | AD28: 0 | AE28: 0 | AF28: 0 | AG28: 0 | AH28: 0 | AI28: 0 | AJ28: 0 | AK28: 0 | AL28: 0 | AM28: 0 | AN28: 0 | AO28: 0 | AP28: 0 | AQ28: 0 | AR28: 0 | AS28: 0 | AT28: 0 | AU28: 0 | AV28: 0 | AW28: 0 | AX28: =VLOOKUP(D$3,Prisindeks!$A$1:$B$111,2,FALSE)/100*AA28 -> 0 | AY28: =VLOOKUP(E$3,Prisindeks!$A$1:$B$111,2,FALSE)/100*AB28 -> 0 | AZ28: =VLOOKUP(F$3,Prisindeks!$A$1:$B$111,2,FALSE)/100*AC28 -> 0 | BA28: =VLOOKUP(G$3,Prisindeks!$A$1:$B$111,2,FALSE)/100*AD28 -> 0 | BB28: =VLOOKUP(H$3,Prisindeks!$A$1:$B$111,2,FALSE)/100*AE28 -> 0 | BC28: =VLOOKUP(I$3,Prisindeks!$A$1:$B$111,2,FALSE)/100*AF28 -> 0 | BD28: =VLOOKUP(J$3,Prisindeks!$A$1:$B$111,2,FALSE)/100*AG28 -> 0 | BE28: =VLOOKUP(K$3,Prisindeks!$A$1:$B$111,2,FALSE)/100*AH28 -> 0 | BF28: =VLOOKUP(L$3,Prisindeks!$A$1:$B$111,2,FALSE)/100*AI28 -> 0 | BG28: =VLOOKUP(M$3,Prisindeks!$A$1:$B$111,2,FALSE)/100*AJ28 -> 0 | BH28: =VLOOKUP(N$3,Prisindeks!$A$1:$B$111,2,FALSE)/100*AK28 -> 0 | BI28: =VLOOKUP(O$3,Prisindeks!$A$1:$B$111,2,FALSE)/100*AL28 -> 0 | BJ28: =VLOOKUP(P$3,Prisindeks!$A$1:$B$111,2,FALSE)/100*AM28 -> 0 | BK28: =VLOOKUP(Q$3,Prisindeks!$A$1:$B$111,2,FALSE)/100*AN28 -> 0 | BL28: =VLOOKUP(R$3,Prisindeks!$A$1:$B$111,2,FALSE)/100*AO28 -> 0 | BM28: =VLOOKUP(S$3,Prisindeks!$A$1:$B$111,2,FALSE)/100*AP28 -> 0 | BN28: =VLOOKUP(T$3,Prisindeks!$A$1:$B$111,2,FALSE)/100*AQ28 -> 0 | BO28: =VLOOKUP(U$3,Prisindeks!$A$1:$B$111,2,FALSE)/100*AR28 -> 0 | BP28: =VLOOKUP(V$3,Prisindeks!$A$1:$B$111,2,FALSE)/100*AS28 -> 0 | BQ28: =VLOOKUP(W$3,Prisindeks!$A$1:$B$111,2,FALSE)/100*AT28 -> 0 | BR28: =VLOOKUP(X$3,Prisindeks!$A$1:$B$111,2,FALSE)/100*AU28 -> 0 | BS28: =VLOOKUP(Y$3,Prisindeks!$A$1:$B$111,2,FALSE)/100*AV28 -> 0 | BT28: 0 | BU28: 0 | BV28: 0 | BW28: 0 | BX28: 0 | BY28: 0 | BZ28: 0 | CA28: 0 | CB28: 0 | CC28: 0 | CD28: 0 | CE28: 0 | CF28: 0 | CG28: 0 | CH28: 0 | CI28: 0 | CJ28: 0 | CK28: 0 | CL28: 0 | CM28: 0 | CN28: 0 | CO28: 0 | CP28: 0 | CQ28: 0 | CR28: 525000
A29: =+Genanskaffelsespriser!$B$22 -> Efterbehandlingsanlæg (sandfilter), Konstruktioner | B29: PE | C29: =Genanskaffelsespriser!$E$22 -> 60 | D29: 0 | E29: 0 | F29: 0 | G29: 0 | H29: 0 | I29: 0 | J29: 0 | K29: 0 | L29: 0 | M29: 0 | N29: 0 | O29: 0 | P29: 0 | Q29: 0 | R29: 0 | S29: 0 | T29: 0 | U29: 0 | V29: 0 | W29: 0 | X29: 0 | Y29: 0 | Z29: =IF(COUNTIF(D29:Y29,"<>0")<=1,IF(SUM(D29:Y29)=0,0,(IF(SUM(D29:Y29)>0,IF(SUM(D29:Y29)<400,(1.2675*45967*SUM(D29:Y29)^(-0.4664)),(IF(SUM(D29:Y29)<2000,(39128*SUM(D29:Y29)^(-0.37661)),IF(SUM(D29:Y29)<5000,18893*SUM(D29:Y29)^(-0.28083),IF(SUM(D29:Y29)<100000,29680*SUM(D29:Y29)^(-0.24475),1773.1))))*100/115)*SUM(D29:Y29)*(0.246),0)*1.15*1.06*0.55)*(1+Genanskaffelsespriser!$D$389)/SUM(D29:Y29)),$A$73) -> 0 | AA29: =IF((D29*$Z29-(2009-D$3)/($C29+D30)*$Z29*D29)<0,0,(D29*$Z29-(2009-D$3)/($C29+D30)*$Z29*D29)) -> 0 | AB29: =IF((E29*$Z29-(2009-E$3)/($C29+E30)*$Z29*E29)<0,0,(E29*$Z29-(2009-E$3)/($C29+E30)*$Z29*E29)) -> 0 | AC29: =IF((F29*$Z29-(2009-F$3)/($C29+F30)*$Z29*F29)<0,0,(F29*$Z29-(2009-F$3)/($C29+F30)*$Z29*F29)) -> 0 | AD29: 0 | AE29: 0 | AF29: 0 | AG29: 0 | AH29: 0 | AI29: 0 | AJ29: 0 | AK29: 0 | AL29: 0 | AM29: 0 | AN29: 0 | AO29: 0 | AP29: 0 | AQ29: 0 | AR29: 0 | AS29: 0 | AT29: 0 | AU29: 0 | AV29: 0 | AW29: 0 | AX29: =VLOOKUP(D$3,Prisindeks!$A$1:$B$111,2,FALSE)/100*AA29 -> 0 | AY29: =VLOOKUP(E$3,Prisindeks!$A$1:$B$111,2,FALSE)/100*AB29 -> 0 | AZ29: =VLOOKUP(F$3,Prisindeks!$A$1:$B$111,2,FALSE)/100*AC29 -> 0 | BA29: =VLOOKUP(G$3,Prisindeks!$A$1:$B$111,2,FALSE)/100*AD29 -> 0 | BB29: =VLOOKUP(H$3,Prisindeks!$A$1:$B$111,2,FALSE)/100*AE29 -> 0 | BC29: =VLOOKUP(I$3,Prisindeks!$A$1:$B$111,2,FALSE)/100*AF29 -> 0 | BD29: =VLOOKUP(J$3,Prisindeks!$A$1:$B$111,2,FALSE)/100*AG29 -> 0 | BE29: =VLOOKUP(K$3,Prisindeks!$A$1:$B$111,2,FALSE)/100*AH29 -> 0 | BF29: =VLOOKUP(L$3,Prisindeks!$A$1:$B$111,2,FALSE)/100*AI29 -> 0 | BG29: =VLOOKUP(M$3,Prisindeks!$A$1:$B$111,2,FALSE)/100*AJ29 -> 0 | BH29: =VLOOKUP(N$3,Prisindeks!$A$1:$B$111,2,FALSE)/100*AK29 -> 0 | BI29: =VLOOKUP(O$3,Prisindeks!$A$1:$B$111,2,FALSE)/100*AL29 -> 0 | BJ29: =VLOOKUP(P$3,Prisindeks!$A$1:$B$111,2,FALSE)/100*AM29 -> 0 | BK29: =VLOOKUP(Q$3,Prisindeks!$A$1:$B$111,2,FALSE)/100*AN29 -> 0 | BL29: =VLOOKUP(R$3,Prisindeks!$A$1:$B$111,2,FALSE)/100*AO29 -> 0 | BM29: =VLOOKUP(S$3,Prisindeks!$A$1:$B$111,2,FALSE)/100*AP29 -> 0 | BN29: =VLOOKUP(T$3,Prisindeks!$A$1:$B$111,2,FALSE)/100*AQ29 -> 0 | BO29: =VLOOKUP(U$3,Prisindeks!$A$1:$B$111,2,FALSE)/100*AR29 -> 0 | BP29: =VLOOKUP(V$3,Prisindeks!$A$1:$B$111,2,FALSE)/100*AS29 -> 0 | BQ29: =VLOOKUP(W$3,Prisindeks!$A$1:$B$111,2,FALSE)/100*AT29 -> 0 | BR29: =VLOOKUP(X$3,Prisindeks!$A$1:$B$111,2,FALSE)/100*AU29 -> 0 | BS29: =VLOOKUP(Y$3,Prisindeks!$A$1:$B$111,2,FALSE)/100*AV29 -> 0 | BT29: 0 | BU29: 0 | BV29: 0 | BW29: 0 | BX29: 0 | BY29: 0 | BZ29: 0 | CA29: 0 | CB29: 0 | CC29: 0 | CD29: 0 | CE29: 0 | CF29: 0 | CG29: 0 | CH29: 0 | CI29: 0 | CJ29: 0 | CK29: 0 | CL29: 0 | CM29: 0 | CN29: 0 | CO29: 0 | CP29: 0 | CQ29: 0 | CR29: 0
A30: Levetidsforlængelse | B30: år | C30: - | D30: 0 | E30: 0 | F30: 0 | G30: 0 | H30: 0 | I30: 0 | J30: 0 | K30: 0 | L30: 0 | M30: 0 | N30: 0 | O30: 0 | P30: 0 | Q30: 0 | R30: 0 | S30: 0 | T30: 0 | U30: 0 | V30: 0 | W30: 0 | X30: 0 | Y30: 0
A31: =+Genanskaffelsespriser!$B$23 -> Efterbehandlingsanlæg (sandfilter), Mek/EL | B31: PE | C31: =Genanskaffelsespriser!$E$23 -> 20 | D31: 0 | E31: 0 | F31: 0 | G31: 0 | H31: 0 | I31: 0 | J31: 0 | K31: 0 | L31: 0 | M31: 0 | N31: 0 | O31: 0 | P31: 0 | Q31: 0 | R31: 0 | S31: 0 | T31: 0 | U31: 0 | V31: 0 | W31: 0 | X31: 0 | Y31: 0 | Z31: =IF(COUNTIF(D31:Y31,"<>0")<=1,IF(SUM(D31:Y31)=0,0,(IF(SUM(D31:Y31)>0,IF(SUM(D31:Y31)<400,(1.2675*45967*SUM(D31:Y31)^(-0.4664)),(IF(SUM(D31:Y31)<2000,(39128*SUM(D31:Y31)^(-0.37661)),IF(SUM(D31:Y31)<5000,18893*SUM(D31:Y31)^(-0.28083),IF(SUM(D31:Y31)<100000,29680*SUM(D31:Y31)^(-0.24475),1773.1))))*100/115)*SUM(D31:Y31)*(0.246),0)*1.15*1.06*0.4)/SUM(D31:Y31)),$A$73) -> 0 | AA31: 0 | AB31: 0 | AC31: 0 | AD31: 0 | AE31: 0 | AF31: 0 | AG31: 0 | AH31: 0 | AI31: 0 | AJ31: 0 | AK31: 0 | AL31: 0 | AM31: 0 | AN31: 0 | AO31: 0 | AP31: 0 | AQ31: 0 | AR31: 0 | AS31: 0 | AT31: 0 | AU31: 0 | AV31: 0 | AW31: 0 | AX31: =VLOOKUP(D$3,Prisindeks!$A$1:$B$111,2,FALSE)/100*AA31 -> 0 | AY31: =VLOOKUP(E$3,Prisindeks!$A$1:$B$111,2,FALSE)/100*AB31 -> 0 | AZ31: =VLOOKUP(F$3,Prisindeks!$A$1:$B$111,2,FALSE)/100*AC31 -> 0 | BA31: =VLOOKUP(G$3,Prisindeks!$A$1:$B$111,2,FALSE)/100*AD31 -> 0 | BB31: =VLOOKUP(H$3,Prisindeks!$A$1:$B$111,2,FALSE)/100*AE31 -> 0 | BC31: =VLOOKUP(I$3,Prisindeks!$A$1:$B$111,2,FALSE)/100*AF31 -> 0 | BD31: =VLOOKUP(J$3,Prisindeks!$A$1:$B$111,2,FALSE)/100*AG31 -> 0 | BE31: =VLOOKUP(K$3,Prisindeks!$A$1:$B$111,2,FALSE)/100*AH31 -> 0 | BF31: =VLOOKUP(L$3,Prisindeks!$A$1:$B$111,2,FALSE)/100*AI31 -> 0 | BG31: =VLOOKUP(M$3,Prisindeks!$A$1:$B$111,2,FALSE)/100*AJ31 -> 0 | BH31: =VLOOKUP(N$3,Prisindeks!$A$1:$B$111,2,FALSE)/100*AK31 -> 0 | BI31: =VLOOKUP(O$3,Prisindeks!$A$1:$B$111,2,FALSE)/100*AL31 -> 0 | BJ31: =VLOOKUP(P$3,Prisindeks!$A$1:$B$111,2,FALSE)/100*AM31 -> 0 | BK31: =VLOOKUP(Q$3,Prisindeks!$A$1:$B$111,2,FALSE)/100*AN31 -> 0 | BL31: =VLOOKUP(R$3,Prisindeks!$A$1:$B$111,2,FALSE)/100*AO31 -> 0 | BM31: =VLOOKUP(S$3,Prisindeks!$A$1:$B$111,2,FALSE)/100*AP31 -> 0 | BN31: =VLOOKUP(T$3,Prisindeks!$A$1:$B$111,2,FALSE)/100*AQ31 -> 0 | BO31: =VLOOKUP(U$3,Prisindeks!$A$1:$B$111,2,FALSE)/100*AR31 -> 0 | BP31: =VLOOKUP(V$3,Prisindeks!$A$1:$B$111,2,FALSE)/100*AS31 -> 0 | BQ31: =VLOOKUP(W$3,Prisindeks!$A$1:$B$111,2,FALSE)/100*AT31 -> 0 | BR31: =VLOOKUP(X$3,Prisindeks!$A$1:$B$111,2,FALSE)/100*AU31 -> 0 | BS31: =VLOOKUP(Y$3,Prisindeks!$A$1:$B$111,2,FALSE)/100*AV31 -> 0 | BT31: 0 | BU31: 0 | BV31: 0 | BW31: 0 | BX31: 0 | BY31: 0 | BZ31: 0 | CA31: 0 | CB31: 0 | CC31: 0 | CD31: 0 | CE31: 0 | CF31: 0 | CG31: 0 | CH31: 0 | CI31: 0 | CJ31: 0 | CK31: 0 | CL31: 0 | CM31: 0 | CN31: 0 | CO31: 0 | CP31: 0 | CQ31: 0 | CR31: 0
A32: =+Genanskaffelsespriser!$B$24 -> Efterbehandlingsanlæg (sandfilter), SRO | B32: PE | C32: =Genanskaffelsespriser!$E$24 -> 10 | D32: 0 | E32: 0 | F32: 0 | G32: 0 | H32: 0 | I32: 0 | J32: 0 | K32: 0 | L32: 0 | M32: 0 | N32: 0 | O32: 0 | P32: 0 | Q32: 0 | R32: 0 | S32: 0 | T32: 0 | U32: 0 | V32: 0 | W32: 0 | X32: 0 | Y32: 0 | Z32: =IF(COUNTIF(D32:Y32,"<>0")<=1,IF(SUM(D32:Y32)=0,0,(IF(SUM(D32:Y32)>0,IF(SUM(D32:Y32)<400,(1.2675*45967*SUM(D32:Y32)^(-0.4664)),(IF(SUM(D32:Y32)<2000,(39128*SUM(D32:Y32)^(-0.37661)),IF(SUM(D32:Y32)<5000,18893*SUM(D32:Y32)^(-0.28083),IF(SUM(D32:Y32)<100000,29680*SUM(D32:Y32)^(-0.24475),1773.1))))*100/115)*SUM(D32:Y32)*(0.246),0)*1.15*1.06*0.05)/SUM(D32:Y32)),$A$73) -> 0 | AA32: 0 | AB32: 0 | AC32: 0 | AD32: 0 | AE32: 0 | AF32: 0 | AG32: 0 | AH32: 0 | AI32: 0 | AJ32: 0 | AK32: 0 | AL32: 0 | AM32: 0 | AN32: 0 | AO32: 0 | AP32: 0 | AQ32: 0 | AR32: 0 | AS32: 0 | AT32: 0 | AU32: 0 | AV32: 0 | AW32: 0 | AX32: =VLOOKUP(D$3,Prisindeks!$A$1:$B$111,2,FALSE)/100*AA32 -> 0 | AY32: =VLOOKUP(E$3,Prisindeks!$A$1:$B$111,2,FALSE)/100*AB32 -> 0 | AZ32: =VLOOKUP(F$3,Prisindeks!$A$1:$B$111,2,FALSE)/100*AC32 -> 0 | BA32: =VLOOKUP(G$3,Prisindeks!$A$1:$B$111,2,FALSE)/100*AD32 -> 0 | BB32: =VLOOKUP(H$3,Prisindeks!$A$1:$B$111,2,FALSE)/100*AE32 -> 0 | BC32: =VLOOKUP(I$3,Prisindeks!$A$1:$B$111,2,FALSE)/100*AF32 -> 0 | BD32: =VLOOKUP(J$3,Prisindeks!$A$1:$B$111,2,FALSE)/100*AG32 -> 0 | BE32: =VLOOKUP(K$3,Prisindeks!$A$1:$B$111,2,FALSE)/100*AH32 -> 0 | BF32: =VLOOKUP(L$3,Prisindeks!$A$1:$B$111,2,FALSE)/100*AI32 -> 0 | BG32: =VLOOKUP(M$3,Prisindeks!$A$1:$B$111,2,FALSE)/100*AJ32 -> 0 | BH32: =VLOOKUP(N$3,Prisindeks!$A$1:$B$111,2,FALSE)/100*AK32 -> 0 | BI32: =VLOOKUP(O$3,Prisindeks!$A$1:$B$111,2,FALSE)/100*AL32 -> 0 | BJ32: =VLOOKUP(P$3,Prisindeks!$A$1:$B$111,2,FALSE)/100*AM32 -> 0 | BK32: =VLOOKUP(Q$3,Prisindeks!$A$1:$B$111,2,FALSE)/100*AN32 -> 0 | BL32: =VLOOKUP(R$3,Prisindeks!$A$1:$B$111,2,FALSE)/100*AO32 -> 0 | BM32: =VLOOKUP(S$3,Prisindeks!$A$1:$B$111,2,FALSE)/100*AP32 -> 0 | BN32: =VLOOKUP(T$3,Prisindeks!$A$1:$B$111,2,FALSE)/100*AQ32 -> 0 | BO32: =VLOOKUP(U$3,Prisindeks!$A$1:$B$111,2,FALSE)/100*AR32 -> 0 | BP32: =VLOOKUP(V$3,Prisindeks!$A$1:$B$111,2,FALSE)/100*AS32 -> 0 | BQ32: =VLOOKUP(W$3,Prisindeks!$A$1:$B$111,2,FALSE)/100*AT32 -> 0 | BR32: =VLOOKUP(X$3,Prisindeks!$A$1:$B$111,2,FALSE)/100*AU32 -> 0 | BS32: =VLOOKUP(Y$3,Prisindeks!$A$1:$B$111,2,FALSE)/100*AV32 -> 0 | BT32: 0 | BU32: 0 | BV32: 0 | BW32: 0 | BX32: 0 | BY32: 0 | BZ32: 0 | CA32: 0 | CB32: 0 | CC32: 0 | CD32: 0 | CE32: 0 | CF32: 0 | CG32: 0 | CH32: 0 | CI32: 0 | CJ32: 0 | CK32: 0 | CL32: 0 | CM32: 0 | CN32: 0 | CO32: 0 | CP32: 0 | CQ32: 0 | CR32: 0
A33: Renseanlæg >= 5.000 PE, Slambehandling | AW33: =SUM(AW34:AW57) -> 234836468.1 | BT33: =SUM(BT34:BT57) -> 176614495.1 | CQ33: =SUM(CQ34:CQ57) -> 205725481.6 | CR33: 0
A34: =+Genanskaffelsespriser!$B$26 -> Forafvanding, slam, Konstruktion | B34: PE | C34: =Genanskaffelsespriser!$E$26 -> 60 | D34: 0 | E34: 0 | F34: 0 | G34: 0 | H34: 0 | I34: 0 | J34: 0 | K34: 0 | L34: 750000 | M34: 0 | N34: 0 | O34: 0 | P34: 0 | Q34: 0 | R34: 0 | S34: 0 | T34: 0 | U34: 0 | V34: 0 | W34: 0 | X34: 0 | Y34: 0 | Z34: =IF(COUNTIF(D34:Y34,"<>0")<=1,IF(SUM(D34:Y34)=0,0,(IF(SUM(D34:Y34)>0,IF(SUM(D34:Y34)<400,(1.2675*45967*SUM(D34:Y34)^(-0.4664)),(IF(SUM(D34:Y34)<2000,(39128*SUM(D34:Y34)^(-0.37661)),IF(SUM(D34:Y34)<5000,18893*SUM(D34:Y34)^(-0.28083),IF(SUM(D34:Y34)<100000,29680*SUM(D34:Y34)^(-0.24475),1773.1))))*100/115)*SUM(D34:Y34)*(IF(SUM(D17:Y17)>0,0.0238,0.0186)),0)*1.15*1.06*0.52)*(1+Genanskaffelsespriser!$D$389)/SUM(D34:Y34)),$A$73) -> 24.12115793 | AA34: =IF((D34*$Z34-(2009-D$3)/($C34+D35)*$Z34*D34)<0,0,(D34*$Z34-(2009-D$3)/($C34+D35)*$Z34*D34)) -> 0 | AB34: =IF((E34*$Z34-(2009-E$3)/($C34+E35)*$Z34*E34)<0,0,(E34*$Z34-(2009-E$3)/($C34+E35)*$Z34*E34)) -> 0 | AC34: =IF((F34*$Z34-(2009-F$3)/($C34+F35)*$Z34*F34)<0,0,(F34*$Z34-(2009-F$3)/($C34+F35)*$Z34*F34)) -> 0 | AD34: 0 | AE34: 0 | AF34: 0 | AG34: 0 | AH34: 0 | AI34: 9949977.646 | AJ34: 0 | AK34: 0 | AL34: 0 | AM34: 0 | AN34: 0 | AO34: 0 | AP34: 0 | AQ34: 0 | AR34: 0 | AS34: 0 | AT34: 0 | AU34: 0 | AV34: 0 | AW34: =+SUM(AA34:AV34) -> 9949977.646 | AX34: =VLOOKUP(D$3,Prisindeks!$A$1:$B$111,2,FALSE)/100*AA34 -> 0 | AY34: =VLOOKUP(E$3,Prisindeks!$A$1:$B$111,2,FALSE)/100*AB34 -> 0 | AZ34: =VLOOKUP(F$3,Prisindeks!$A$1:$B$111,2,FALSE)/100*AC34 -> 0 | BA34: =VLOOKUP(G$3,Prisindeks!$A$1:$B$111,2,FALSE)/100*AD34 -> 0 | BB34: =VLOOKUP(H$3,Prisindeks!$A$1:$B$111,2,FALSE)/100*AE34 -> 0 | BC34: =VLOOKUP(I$3,Prisindeks!$A$1:$B$111,2,FALSE)/100*AF34 -> 0 | BD34: =VLOOKUP(J$3,Prisindeks!$A$1:$B$111,2,FALSE)/100*AG34 -> 0 | BE34: =VLOOKUP(K$3,Prisindeks!$A$1:$B$111,2,FALSE)/100*AH34 -> 0 | BF34: =VLOOKUP(L$3,Prisindeks!$A$1:$B$111,2,FALSE)/100*AI34 -> 4689131.306 | BG34: =VLOOKUP(M$3,Prisindeks!$A$1:$B$111,2,FALSE)/100*AJ34 -> 0 | BH34: =VLOOKUP(N$3,Prisindeks!$A$1:$B$111,2,FALSE)/100*AK34 -> 0 | BI34: =VLOOKUP(O$3,Prisindeks!$A$1:$B$111,2,FALSE)/100*AL34 -> 0 | BJ34: =VLOOKUP(P$3,Prisindeks!$A$1:$B$111,2,FALSE)/100*AM34 -> 0 | BK34: =VLOOKUP(Q$3,Prisindeks!$A$1:$B$111,2,FALSE)/100*AN34 -> 0 | BL34: =VLOOKUP(R$3,Prisindeks!$A$1:$B$111,2,FALSE)/100*AO34 -> 0 | BM34: =VLOOKUP(S$3,Prisindeks!$A$1:$B$111,2,FALSE)/100*AP34 -> 0 | BN34: =VLOOKUP(T$3,Prisindeks!$A$1:$B$111,2,FALSE)/100*AQ34 -> 0 | BO34: =VLOOKUP(U$3,Prisindeks!$A$1:$B$111,2,FALSE)/100*AR34 -> 0 | BP34: =VLOOKUP(V$3,Prisindeks!$A$1:$B$111,2,FALSE)/100*AS34 -> 0 | BQ34: =VLOOKUP(W$3,Prisindeks!$A$1:$B$111,2,FALSE)/100*AT34 -> 0 | BR34: =VLOOKUP(X$3,Prisindeks!$A$1:$B$111,2,FALSE)/100*AU34 -> 0 | BS34: =VLOOKUP(Y$3,Prisindeks!$A$1:$B$111,2,FALSE)/100*AV34 -> 0 | BT34: =+SUM(AX34:BS34) -> 4689131.306 | BU34: =(AA34+AX34)/2 -> 0 | BV34: 0 | BW34: 0 | BX34: 0 | BY34: 0 | BZ34: 0 | CA34: 0 | CB34: 0 | CC34: 7319554.476 | CD34: 0 | CE34: 0 | CF34: 0 | CG34: 0 | CH34: 0 | CI34: 0 | CJ34: 0 | CK34: =(AQ34+BN34)/2 -> 0 | CL34: 0 | CM34: 0 | CN34: 0 | CO34: 0 | CP34: 0 | CQ34: =+SUM(BU34:CP34) -> 7319554.476 | CR34: 750000
A35: Levetidsforlængelse | B35: år | C35: - | D35: 0 | E35: 0 | F35: 0 | G35: 0 | H35: 0 | I35: 0 | J35: 0 | K35: 0 | L35: 0 | M35: 0 | N35: 0 | O35: 0 | P35: 0 | Q35: 0 | R35: 0 | S35: 0 | T35: 0 | U35: 0 | V35: 0 | W35: 0 | X35: 0 | Y35: 0
A36: =+Genanskaffelsespriser!$B$27 -> Forafvanding, slam, Mek/EL | B36: PE | C36: =Genanskaffelsespriser!$E$27 -> 20 | D36: 0 | E36: 0 | F36: 0 | G36: 0 | H36: 0 | I36: 0 | J36: 0 | K36: 0 | L36: 0 | M36: 0 | N36: 0 | O36: 750000 | P36: 0 | Q36: 0 | R36: 0 | S36: 0 | T36: 0 | U36: 0 | V36: 0 | W36: 0 | X36: 0 | Y36: 0 | Z36: =IF(COUNTIF(D36:Y36,"<>0")<=1,IF(SUM(D36:Y36)=0,0,(IF(SUM(D36:Y36)>0,IF(SUM(D36:Y36)<400,(1.2675*45967*SUM(D36:Y36)^(-0.4664)),(IF(SUM(D36:Y36)<2000,(39128*SUM(D36:Y36)^(-0.37661)),IF(SUM(D36:Y36)<5000,18893*SUM(D36:Y36)^(-0.28083),IF(SUM(D36:Y36)<100000,29680*SUM(D36:Y36)^(-0.24475),1773.1))))*100/115)*SUM(D36:Y36)*(IF(SUM(D19:Y19)>0,0.0238,0.0186)),0)*1.15*1.06*0.45)/SUM(D36:Y36)),$A$73) -> 20.12929506 | AA36: =IF((D36*$Z36-(2009-D$3)/$C36*$Z36*D36)<0,0,(D36*$Z36-(2009-D$3)/$C36*$Z36*D36)) -> 0 | AB36: =IF((E36*$Z36-(2009-E$3)/$C36*$Z36*E36)<0,0,(E36*$Z36-(2009-E$3)/$C36*$Z36*E36)) -> 0 | AC36: =IF((F36*$Z36-(2009-F$3)/$C36*$Z36*F36)<0,0,(F36*$Z36-(2009-F$3)/$C36*$Z36*F36)) -> 0 | AD36: =IF((G36*$Z36-(2009-G$3)/$C36*$Z36*G36)<0,0,(G36*$Z36-(2009-G$3)/$C36*$Z36*G36)) -> 0 | AE36: =IF((H36*$Z36-(2009-H$3)/$C36*$Z36*H36)<0,0,(H36*$Z36-(2009-H$3)/$C36*$Z36*H36)) -> 0 | AF36: =IF((I36*$Z36-(2009-I$3)/$C36*$Z36*I36)<0,0,(I36*$Z36-(2009-I$3)/$C36*$Z36*I36)) -> 0 | AG36: =IF((J36*$Z36-(2009-J$3)/$C36*$Z36*J36)<0,0,(J36*$Z36-(2009-J$3)/$C36*$Z36*J36)) -> 0 | AH36: =IF((K36*$Z36-(2009-K$3)/$C36*$Z36*K36)<0,0,(K36*$Z36-(2009-K$3)/$C36*$Z36*K36)) -> 0 | AI36: =IF((L36*$Z36-(2009-L$3)/$C36*$Z36*L36)<0,0,(L36*$Z36-(2009-L$3)/$C36*$Z36*L36)) -> 0 | AJ36: =IF((M36*$Z36-(2009-M$3)/$C36*$Z36*M36)<0,0,(M36*$Z36-(2009-M$3)/$C36*$Z36*M36)) -> 0 | AK36: =IF((N36*$Z36-(2009-N$3)/$C36*$Z36*N36)<0,0,(N36*$Z36-(2009-N$3)/$C36*$Z36*N36)) -> 0 | AL36: =IF((O36*$Z36-(2009-O$3)/$C36*$Z36*O36)<0,0,(O36*$Z36-(2009-O$3)/$C36*$Z36*O36)) -> 6038788.518 | AM36: =IF((P36*$Z36-(2009-P$3)/$C36*$Z36*P36)<0,0,(P36*$Z36-(2009-P$3)/$C36*$Z36*P36)) -> 0 | AN36: =IF((Q36*$Z36-(2009-Q$3)/$C36*$Z36*Q36)<0,0,(Q36*$Z36-(2009-Q$3)/$C36*$Z36*Q36)) -> 0 | AO36: =IF((R36*$Z36-(2009-R$3)/$C36*$Z36*R36)<0,0,(R36*$Z36-(2009-R$3)/$C36*$Z36*R36)) -> 0 | AP36: =IF((S36*$Z36-(2009-S$3)/$C36*$Z36*S36)<0,0,(S36*$Z36-(2009-S$3)/$C36*$Z36*S36)) -> 0 | AQ36: =IF((T36*$Z36-(2009-T$3)/$C36*$Z36*T36)<0,0,(T36*$Z36-(2009-T$3)/$C36*$Z36*T36)) -> 0 | AR36: =IF((U36*$Z36-(2009-U$3)/$C36*$Z36*U36)<0,0,(U36*$Z36-(2009-U$3)/$C36*$Z36*U36)) -> 0 | AS36: =IF((V36*$Z36-(2009-V$3)/$C36*$Z36*V36)<0,0,(V36*$Z36-(2009-V$3)/$C36*$Z36*V36)) -> 0 | AT36: =IF((W36*$Z36-(2009-W$3)/$C36*$Z36*W36)<0,0,(W36*$Z36-(2009-W$3)/$C36*$Z36*W36)) -> 0 | AU36: =IF((X36*$Z36-(2009-X$3)/$C36*$Z36*X36)<0,0,(X36*$Z36-(2009-X$3)/$C36*$Z36*X36)) -> 0 | AV36: =IF((Y36*$Z36-(2009-Y$3)/$C36*$Z36*Y36)<0,0,(Y36*$Z36-(2009-Y$3)/$C36*$Z36*Y36)) -> 0 | AW36: =+SUM(AA36:AV36) -> 6038788.518 | AX36: =VLOOKUP(D$3,Prisindeks!$A$1:$B$111,2,FALSE)/100*AA36 -> 0 | AY36: =VLOOKUP(E$3,Prisindeks!$A$1:$B$111,2,FALSE)/100*AB36 -> 0 | AZ36: =VLOOKUP(F$3,Prisindeks!$A$1:$B$111,2,FALSE)/100*AC36 -> 0 | BA36: =VLOOKUP(G$3,Prisindeks!$A$1:$B$111,2,FALSE)/100*AD36 -> 0 | BB36: =VLOOKUP(H$3,Prisindeks!$A$1:$B$111,2,FALSE)/100*AE36 -> 0 | BC36: =VLOOKUP(I$3,Prisindeks!$A$1:$B$111,2,FALSE)/100*AF36 -> 0 | BD36: =VLOOKUP(J$3,Prisindeks!$A$1:$B$111,2,FALSE)/100*AG36 -> 0 | BE36: =VLOOKUP(K$3,Prisindeks!$A$1:$B$111,2,FALSE)/100*AH36 -> 0 | BF36: =VLOOKUP(L$3,Prisindeks!$A$1:$B$111,2,FALSE)/100*AI36 -> 0 | BG36: =VLOOKUP(M$3,Prisindeks!$A$1:$B$111,2,FALSE)/100*AJ36 -> 0 | BH36: =VLOOKUP(N$3,Prisindeks!$A$1:$B$111,2,FALSE)/100*AK36 -> 0 | BI36: =VLOOKUP(O$3,Prisindeks!$A$1:$B$111,2,FALSE)/100*AL36 -> 4873029.117 | BJ36: =VLOOKUP(P$3,Prisindeks!$A$1:$B$111,2,FALSE)/100*AM36 -> 0 | BK36: =VLOOKUP(Q$3,Prisindeks!$A$1:$B$111,2,FALSE)/100*AN36 -> 0 | BL36: =VLOOKUP(R$3,Prisindeks!$A$1:$B$111,2,FALSE)/100*AO36 -> 0 | BM36: =VLOOKUP(S$3,Prisindeks!$A$1:$B$111,2,FALSE)/100*AP36 -> 0 | BN36: =VLOOKUP(T$3,Prisindeks!$A$1:$B$111,2,FALSE)/100*AQ36 -> 0 | BO36: =VLOOKUP(U$3,Prisindeks!$A$1:$B$111,2,FALSE)/100*AR36 -> 0 | BP36: =VLOOKUP(V$3,Prisindeks!$A$1:$B$111,2,FALSE)/100*AS36 -> 0 | BQ36: =VLOOKUP(W$3,Prisindeks!$A$1:$B$111,2,FALSE)/100*AT36 -> 0 | BR36: =VLOOKUP(X$3,Prisindeks!$A$1:$B$111,2,FALSE)/100*AU36 -> 0 | BS36: =VLOOKUP(Y$3,Prisindeks!$A$1:$B$111,2,FALSE)/100*AV36 -> 0 | BT36: =+SUM(AX36:BS36) -> 4873029.117 | BU36: =(AA36+AX36)/2 -> 0 | BV36: =(AB36+AY36)/2 -> 0 | BW36: =(AC36+AZ36)/2 -> 0 | BX36: =(AD36+BA36)/2 -> 0 | BY36: =(AE36+BB36)/2 -> 0 | BZ36: =(AF36+BC36)/2 -> 0 | CA36: =(AG36+BD36)/2 -> 0 | CB36: =(AH36+BE36)/2 -> 0 | CC36: =(AI36+BF36)/2 -> 0 | CD36: =(AJ36+BG36)/2 -> 0 | CE36: =(AK36+BH36)/2 -> 0 | CF36: =(AL36+BI36)/2 -> 5455908.817 | CG36: =(AM36+BJ36)/2 -> 0 | CH36: =(AN36+BK36)/2 -> 0 | CI36: =(AO36+BL36)/2 -> 0 | CJ36: =(AP36+BM36)/2 -> 0 | CK36: =(AQ36+BN36)/2 -> 0 | CL36: =(AR36+BO36)/2 -> 0 | CM36: =(AS36+BP36)/2 -> 0 | CN36: =(AT36+BQ36)/2 -> 0 | CO36: =(AU36+BR36)/2 -> 0 | CP36: =(AV36+BS36)/2 -> 0 | CQ36: =+SUM(BU36:CP36) -> 5455908.817 | CR36: 750000
A37: =+Genanskaffelsespriser!$B$28 -> Forafvanding, slam, SRO | B37: PE | C37: =Genanskaffelsespriser!$E$28 -> 10 | D37: 0 | E37: 0 | F37: 0 | G37: 0 | H37: 0 | I37: 0 | J37: 0 | K37: 0 | L37: 0 | M37: 0 | N37: 0 | O37: 750000 | P37: 0 | Q37: 0 | R37: 0 | S37: 0 | T37: 0 | U37: 0 | V37: 0 | W37: 0 | X37: 0 | Y37: 0 | Z37: =IF(COUNTIF(D37:Y37,"<>0")<=1,IF(SUM(D37:Y37)=0,0,(IF(SUM(D37:Y37)>0,IF(SUM(D37:Y37)<400,(1.2675*45967*SUM(D37:Y37)^(-0.4664)),(IF(SUM(D37:Y37)<2000,(39128*SUM(D37:Y37)^(-0.37661)),IF(SUM(D37:Y37)<5000,18893*SUM(D37:Y37)^(-0.28083),IF(SUM(D37:Y37)<100000,29680*SUM(D37:Y37)^(-0.24475),1773.1))))*100/115)*SUM(D37:Y37)*(IF(SUM(D20:Y20)>0,0.0238,0.0186)),0)*1.15*1.06*0.03)/SUM(D37:Y37)),$A$73) -> 1.341953004 | AA37: 0 | AB37: 0 | AC37: 0 | AD37: 0 | AE37: 0 | AF37: 0 | AG37: 0 | AH37: 0 | AI37: 0 | AJ37: 0 | AK37: 0 | AL37: 0 | AM37: 0 | AN37: 0 | AO37: 0 | AP37: 0 | AQ37: 0 | AR37: 0 | AS37: 0 | AT37: 0 | AU37: 0 | AV37: 0 | AW37: 0 | AX37: =VLOOKUP(D$3,Prisindeks!$A$1:$B$111,2,FALSE)/100*AA37 -> 0 | AY37: =VLOOKUP(E$3,Prisindeks!$A$1:$B$111,2,FALSE)/100*AB37 -> 0 | AZ37: =VLOOKUP(F$3,Prisindeks!$A$1:$B$111,2,FALSE)/100*AC37 -> 0 | BA37: =VLOOKUP(G$3,Prisindeks!$A$1:$B$111,2,FALSE)/100*AD37 -> 0 | BB37: =VLOOKUP(H$3,Prisindeks!$A$1:$B$111,2,FALSE)/100*AE37 -> 0 | BC37: =VLOOKUP(I$3,Prisindeks!$A$1:$B$111,2,FALSE)/100*AF37 -> 0 | BD37: =VLOOKUP(J$3,Prisindeks!$A$1:$B$111,2,FALSE)/100*AG37 -> 0 | BE37: =VLOOKUP(K$3,Prisindeks!$A$1:$B$111,2,FALSE)/100*AH37 -> 0 | BF37: =VLOOKUP(L$3,Prisindeks!$A$1:$B$111,2,FALSE)/100*AI37 -> 0 | BG37: =VLOOKUP(M$3,Prisindeks!$A$1:$B$111,2,FALSE)/100*AJ37 -> 0 | BH37: =VLOOKUP(N$3,Prisindeks!$A$1:$B$111,2,FALSE)/100*AK37 -> 0 | BI37: =VLOOKUP(O$3,Prisindeks!$A$1:$B$111,2,FALSE)/100*AL37 -> 0 | BJ37: =VLOOKUP(P$3,Prisindeks!$A$1:$B$111,2,FALSE)/100*AM37 -> 0 | BK37: =VLOOKUP(Q$3,Prisindeks!$A$1:$B$111,2,FALSE)/100*AN37 -> 0 | BL37: =VLOOKUP(R$3,Prisindeks!$A$1:$B$111,2,FALSE)/100*AO37 -> 0 | BM37: =VLOOKUP(S$3,Prisindeks!$A$1:$B$111,2,FALSE)/100*AP37 -> 0 | BN37: =VLOOKUP(T$3,Prisindeks!$A$1:$B$111,2,FALSE)/100*AQ37 -> 0 | BO37: =VLOOKUP(U$3,Prisindeks!$A$1:$B$111,2,FALSE)/100*AR37 -> 0 | BP37: =VLOOKUP(V$3,Prisindeks!$A$1:$B$111,2,FALSE)/100*AS37 -> 0 | BQ37: =VLOOKUP(W$3,Prisindeks!$A$1:$B$111,2,FALSE)/100*AT37 -> 0 | BR37: =VLOOKUP(X$3,Prisindeks!$A$1:$B$111,2,FALSE)/100*AU37 -> 0 | BS37: =VLOOKUP(Y$3,Prisindeks!$A$1:$B$111,2,FALSE)/100*AV37 -> 0 | BT37: 0 | BU37: 0 | BV37: 0 | BW37: 0 | BX37: 0 | BY37: 0 | BZ37: 0 | CA37: 0 | CB37: 0 | CC37: 0 | CD37: 0 | CE37: 0 | CF37: 0 | CG37: 0 | CH37: 0 | CI37: 0 | CJ37: 0 | CK37: 0 | CL37: 0 | CM37: 0 | CN37: 0 | CO37: 0 | CP37: 0 | CQ37: 0 | CR37: 750000
A38: =+Genanskaffelsespriser!$B$29 -> Rådnetanke, slam, Konstruktioner | B38: PE | C38: =Genanskaffelsespriser!$E$29 -> 60 | D38: 0 | E38: 0 | F38: 0 | G38: 0 | H38: 0 | I38: 0 | J38: 0 | K38: 0 | L38: 0 | M38: 0 | N38: 0 | O38: 750000 | P38: 0 | Q38: 0 | R38: 0 | S38: 0 | T38: 0 | U38: 0 | V38: 0 | W38: 0 | X38: 0 | Y38: 0 | Z38: =IF(COUNTIF(D38:Y38,"<>0")<=1,IF(SUM(D38:Y38)=0,0,(IF(SUM(D38:Y38)>0,IF(SUM(D38:Y38)<400,(1.2675*45967*SUM(D38:Y38)^(-0.4664)),(IF(SUM(D38:Y38)<2000,(39128*SUM(D38:Y38)^(-0.37661)),IF(SUM(D38:Y38)<5000,18893*SUM(D38:Y38)^(-0.28083),IF(SUM(D38:Y38)<100000,29680*SUM(D38:Y38)^(-0.24475),1773.1))))*100/115)*SUM(D38:Y38)*0.1638,0)*1.15*1.06*0.55)*(1+Genanskaffelsespriser!$D$389)/SUM(D38:Y38)),$A$73) -> 175.5878408 | AA38: =IF((D38*$Z38-(2009-D$3)/($C38+D39)*$Z38*D38)<0,0,(D38*$Z38-(2009-D$3)/($C38+D39)*$Z38*D38)) -> 0 | AB38: =IF((E38*$Z38-(2009-E$3)/($C38+E39)*$Z38*E38)<0,0,(E38*$Z38-(2009-E$3)/($C38+E39)*$Z38*E38)) -> 0 | AC38: =IF((F38*$Z38-(2009-F$3)/($C38+F39)*$Z38*F38)<0,0,(F38*$Z38-(2009-F$3)/($C38+F39)*$Z38*F38)) -> 0 | AD38: 0 | AE38: 0 | AF38: 0 | AG38: 0 | AH38: 0 | AI38: 0 | AJ38: 0 | AK38: 0 | AL38: 105352704.5 | AM38: 0 | AN38: 0 | AO38: 0 | AP38: 0 | AQ38: 0 | AR38: 0 | AS38: 0 | AT38: 0 | AU38: 0 | AV38: 0 | AW38: 105352704.5 | AX38: =VLOOKUP(D$3,Prisindeks!$A$1:$B$111,2,FALSE)/100*AA38 -> 0 | AY38: =VLOOKUP(E$3,Prisindeks!$A$1:$B$111,2,FALSE)/100*AB38 -> 0 | AZ38: =VLOOKUP(F$3,Prisindeks!$A$1:$B$111,2,FALSE)/100*AC38 -> 0 | BA38: =VLOOKUP(G$3,Prisindeks!$A$1:$B$111,2,FALSE)/100*AD38 -> 0 | BB38: =VLOOKUP(H$3,Prisindeks!$A$1:$B$111,2,FALSE)/100*AE38 -> 0 | BC38: =VLOOKUP(I$3,Prisindeks!$A$1:$B$111,2,FALSE)/100*AF38 -> 0 | BD38: =VLOOKUP(J$3,Prisindeks!$A$1:$B$111,2,FALSE)/100*AG38 -> 0 | BE38: =VLOOKUP(K$3,Prisindeks!$A$1:$B$111,2,FALSE)/100*AH38 -> 0 | BF38: =VLOOKUP(L$3,Prisindeks!$A$1:$B$111,2,FALSE)/100*AI38 -> 0 | BG38: =VLOOKUP(M$3,Prisindeks!$A$1:$B$111,2,FALSE)/100*AJ38 -> 0 | BH38: =VLOOKUP(N$3,Prisindeks!$A$1:$B$111,2,FALSE)/100*AK38 -> 0 | BI38: =VLOOKUP(O$3,Prisindeks!$A$1:$B$111,2,FALSE)/100*AL38 -> 85014865.97 | BJ38: =VLOOKUP(P$3,Prisindeks!$A$1:$B$111,2,FALSE)/100*AM38 -> 0 | BK38: =VLOOKUP(Q$3,Prisindeks!$A$1:$B$111,2,FALSE)/100*AN38 -> 0 | BL38: =VLOOKUP(R$3,Prisindeks!$A$1:$B$111,2,FALSE)/100*AO38 -> 0 | BM38: =VLOOKUP(S$3,Prisindeks!$A$1:$B$111,2,FALSE)/100*AP38 -> 0 | BN38: =VLOOKUP(T$3,Prisindeks!$A$1:$B$111,2,FALSE)/100*AQ38 -> 0 | BO38: =VLOOKUP(U$3,Prisindeks!$A$1:$B$111,2,FALSE)/100*AR38 -> 0 | BP38: =VLOOKUP(V$3,Prisindeks!$A$1:$B$111,2,FALSE)/100*AS38 -> 0 | BQ38: =VLOOKUP(W$3,Prisindeks!$A$1:$B$111,2,FALSE)/100*AT38 -> 0 | BR38: =VLOOKUP(X$3,Prisindeks!$A$1:$B$111,2,FALSE)/100*AU38 -> 0 | BS38: =VLOOKUP(Y$3,Prisindeks!$A$1:$B$111,2,FALSE)/100*AV38 -> 0 | BT38: 85014865.97 | BU38: 0 | BV38: 0 | BW38: 0 | BX38: 0 | BY38: 0 | BZ38: 0 | CA38: 0 | CB38: 0 | CC38: 0 | CD38: 0 | CE38: 0 | CF38: 95183785.23 | CG38: 0 | CH38: 0 | CI38: 0 | CJ38: 0 | CK38: 0 | CL38: 0 | CM38: 0 | CN38: 0 | CO38: 0 | CP38: 0 | CQ38: 95183785.23 | CR38: 750000
A39: Levetidsforlængelse | B39: år | C39: - | D39: 0 | E39: 0 | F39: 0 | G39: 0 | H39: 0 | I39: 0 | J39: 0 | K39: 0 | L39: 0 | M39: 0 | N39: 0 | O39: 0 | P39: 0 | Q39: 0 | R39: 0 | S39: 0 | T39: 0 | U39: 0 | V39: 0 | W39: 0 | X39: 0 | Y39: 0
A40: =+Genanskaffelsespriser!$B$30 -> Rådnetanke, slam, Mek/EL | B40: PE | C40: =Genanskaffelsespriser!$E$30 -> 20 | D40: 0 | E40: 0 | F40: 0 | G40: 0 | H40: 0 | I40: 0 | J40: 0 | K40: 0 | L40: 0 | M40: 0 | N40: 0 | O40: 750000 | P40: 0 | Q40: 0 | R40: 0 | S40: 0 | T40: 0 | U40: 0 | V40: 0 | W40: 0 | X40: 0 | Y40: 0 | Z40: =IF(COUNTIF(D40:Y40,"<>0")<=1,IF(SUM(D40:Y40)=0,0,(IF(SUM(D40:Y40)>0,IF(SUM(D40:Y40)<400,(1.2675*45967*SUM(D40:Y40)^(-0.4664)),(IF(SUM(D40:Y40)<2000,(39128*SUM(D40:Y40)^(-0.37661)),IF(SUM(D40:Y40)<5000,18893*SUM(D40:Y40)^(-0.28083),IF(SUM(D40:Y40)<100000,29680*SUM(D40:Y40)^(-0.24475),1773.1))))*100/115)*SUM(D40:Y40)*0.1638,0)*1.15*1.06*0.4)/SUM(D40:Y40)),$A$73) -> 123.1439227 | AA40: 0 | AB40: 0 | AC40: 0 | AD40: 0 | AE40: 0 | AF40: 0 | AG40: 0 | AH40: 0 | AI40: 0 | AJ40: 0 | AK40: 0 | AL40: 36943176.82 | AM40: 0 | AN40: 0 | AO40: 0 | AP40: 0 | AQ40: 0 | AR40: 0 | AS40: 0 | AT40: 0 | AU40: 0 | AV40: 0 | AW40: 36943176.82 | AX40: =VLOOKUP(D$3,Prisindeks!$A$1:$B$111,2,FALSE)/100*AA40 -> 0 | AY40: =VLOOKUP(E$3,Prisindeks!$A$1:$B$111,2,FALSE)/100*AB40 -> 0 | AZ40: =VLOOKUP(F$3,Prisindeks!$A$1:$B$111,2,FALSE)/100*AC40 -> 0 | BA40: =VLOOKUP(G$3,Prisindeks!$A$1:$B$111,2,FALSE)/100*AD40 -> 0 | BB40: =VLOOKUP(H$3,Prisindeks!$A$1:$B$111,2,FALSE)/100*AE40 -> 0 | BC40: =VLOOKUP(I$3,Prisindeks!$A$1:$B$111,2,FALSE)/100*AF40 -> 0 | BD40: =VLOOKUP(J$3,Prisindeks!$A$1:$B$111,2,FALSE)/100*AG40 -> 0 | BE40: =VLOOKUP(K$3,Prisindeks!$A$1:$B$111,2,FALSE)/100*AH40 -> 0 | BF40: =VLOOKUP(L$3,Prisindeks!$A$1:$B$111,2,FALSE)/100*AI40 -> 0 | BG40: =VLOOKUP(M$3,Prisindeks!$A$1:$B$111,2,FALSE)/100*AJ40 -> 0 | BH40: =VLOOKUP(N$3,Prisindeks!$A$1:$B$111,2,FALSE)/100*AK40 -> 0 | BI40: =VLOOKUP(O$3,Prisindeks!$A$1:$B$111,2,FALSE)/100*AL40 -> 29811472.24 | BJ40: =VLOOKUP(P$3,Prisindeks!$A$1:$B$111,2,FALSE)/100*AM40 -> 0 | BK40: =VLOOKUP(Q$3,Prisindeks!$A$1:$B$111,2,FALSE)/100*AN40 -> 0 | BL40: =VLOOKUP(R$3,Prisindeks!$A$1:$B$111,2,FALSE)/100*AO40 -> 0 | BM40: =VLOOKUP(S$3,Prisindeks!$A$1:$B$111,2,FALSE)/100*AP40 -> 0 | BN40: =VLOOKUP(T$3,Prisindeks!$A$1:$B$111,2,FALSE)/100*AQ40 -> 0 | BO40: =VLOOKUP(U$3,Prisindeks!$A$1:$B$111,2,FALSE)/100*AR40 -> 0 | BP40: =VLOOKUP(V$3,Prisindeks!$A$1:$B$111,2,FALSE)/100*AS40 -> 0 | BQ40: =VLOOKUP(W$3,Prisindeks!$A$1:$B$111,2,FALSE)/100*AT40 -> 0 | BR40: =VLOOKUP(X$3,Prisindeks!$A$1:$B$111,2,FALSE)/100*AU40 -> 0 | BS40: =VLOOKUP(Y$3,Prisindeks!$A$1:$B$111,2,FALSE)/100*AV40 -> 0 | BT40: 29811472.24 | BU40: 0 | BV40: 0 | BW40: 0 | BX40: 0 | BY40: 0 | BZ40: 0 | CA40: 0 | CB40: 0 | CC40: 0 | CD40: 0 | CE40: 0 | CF40: 33377324.53 | CG40: 0 | CH40: 0 | CI40: 0 | CJ40: 0 | CK40: 0 | CL40: 0 | CM40: 0 | CN40: 0 | CO40: 0 | CP40: 0 | CQ40: 33377324.53 | CR40: 750000
A41: =+Genanskaffelsespriser!$B$31 -> Rådnetanke, slam, SRO | B41: PE | C41: =Genanskaffelsespriser!$E$31 -> 10 | D41: 0 | E41: 0 | F41: 0 | G41: 0 | H41: 0 | I41: 0 | J41: 0 | K41: 0 | L41: 0 | M41: 0 | N41: 0 | O41: 750000 | P41: 0 | Q41: 0 | R41: 0 | S41: 0 | T41: 0 | U41: 0 | V41: 0 | W41: 0 | X41: 0 | Y41: 0 | Z41: =IF(COUNTIF(D41:Y41,"<>0")<=1,IF(SUM(D41:Y41)=0,0,(IF(SUM(D41:Y41)>0,IF(SUM(D41:Y41)<400,(1.2675*45967*SUM(D41:Y41)^(-0.4664)),(IF(SUM(D41:Y41)<2000,(39128*SUM(D41:Y41)^(-0.37661)),IF(SUM(D41:Y41)<5000,18893*SUM(D41:Y41)^(-0.28083),IF(SUM(D41:Y41)<100000,29680*SUM(D41:Y41)^(-0.24475),1773.1))))*100/115)*SUM(D41:Y41)*0.1638,0)*1.15*1.06*0.05)/SUM(D41:Y41)),$A$73) -> 15.39299034 | AA41: 0 | AB41: 0 | AC41: 0 | AD41: 0 | AE41: 0 | AF41: 0 | AG41: 0 | AH41: 0 | AI41: 0 | AJ41: 0 | AK41: 0 | AL41: 0 | AM41: 0 | AN41: 0 | AO41: 0 | AP41: 0 | AQ41: 0 | AR41: 0 | AS41: 0 | AT41: 0 | AU41: 0 | AV41: 0 | AW41: 0 | AX41: =VLOOKUP(D$3,Prisindeks!$A$1:$B$111,2,FALSE)/100*AA41 -> 0 | AY41: =VLOOKUP(E$3,Prisindeks!$A$1:$B$111,2,FALSE)/100*AB41 -> 0 | AZ41: =VLOOKUP(F$3,Prisindeks!$A$1:$B$111,2,FALSE)/100*AC41 -> 0 | BA41: =VLOOKUP(G$3,Prisindeks!$A$1:$B$111,2,FALSE)/100*AD41 -> 0 | BB41: =VLOOKUP(H$3,Prisindeks!$A$1:$B$111,2,FALSE)/100*AE41 -> 0 | BC41: =VLOOKUP(I$3,Prisindeks!$A$1:$B$111,2,FALSE)/100*AF41 -> 0 | BD41: =VLOOKUP(J$3,Prisindeks!$A$1:$B$111,2,FALSE)/100*AG41 -> 0 | BE41: =VLOOKUP(K$3,Prisindeks!$A$1:$B$111,2,FALSE)/100*AH41 -> 0 | BF41: =VLOOKUP(L$3,Prisindeks!$A$1:$B$111,2,FALSE)/100*AI41 -> 0 | BG41: =VLOOKUP(M$3,Prisindeks!$A$1:$B$111,2,FALSE)/100*AJ41 -> 0 | BH41: =VLOOKUP(N$3,Prisindeks!$A$1:$B$111,2,FALSE)/100*AK41 -> 0 | BI41: =VLOOKUP(O$3,Prisindeks!$A$1:$B$111,2,FALSE)/100*AL41 -> 0 | BJ41: =VLOOKUP(P$3,Prisindeks!$A$1:$B$111,2,FALSE)/100*AM41 -> 0 | BK41: =VLOOKUP(Q$3,Prisindeks!$A$1:$B$111,2,FALSE)/100*AN41 -> 0 | BL41: =VLOOKUP(R$3,Prisindeks!$A$1:$B$111,2,FALSE)/100*AO41 -> 0 | BM41: =VLOOKUP(S$3,Prisindeks!$A$1:$B$111,2,FALSE)/100*AP41 -> 0 | BN41: =VLOOKUP(T$3,Prisindeks!$A$1:$B$111,2,FALSE)/100*AQ41 -> 0 | BO41: =VLOOKUP(U$3,Prisindeks!$A$1:$B$111,2,FALSE)/100*AR41 -> 0 | BP41: =VLOOKUP(V$3,Prisindeks!$A$1:$B$111,2,FALSE)/100*AS41 -> 0 | BQ41: =VLOOKUP(W$3,Prisindeks!$A$1:$B$111,2,FALSE)/100*AT41 -> 0 | BR41: =VLOOKUP(X$3,Prisindeks!$A$1:$B$111,2,FALSE)/100*AU41 -> 0 | BS41: =VLOOKUP(Y$3,Prisindeks!$A$1:$B$111,2,FALSE)/100*AV41 -> 0 | BT41: 0 | BU41: 0 | BV41: 0 | BW41: 0 | BX41: 0 | BY41: 0 | BZ41: 0 | CA41: 0 | CB41: 0 | CC41: 0 | CD41: 0 | CE41: 0 | CF41: 0 | CG41: 0 | CH41: 0 | CI41: 0 | CJ41: 0 | CK41: 0 | CL41: 0 | CM41: 0 | CN41: 0 | CO41: 0 | CP41: 0 | CQ41: 0 | CR41: 750000
A42: =+Genanskaffelsespriser!$B$32 -> Gasdisponering, Konstruktioner | B42: PE | C42: =Genanskaffelsespriser!$E$32 -> 60 | D42: 0 | E42: 0 | F42: 0 | G42: 0 | H42: 0 | I42: 0 | J42: 0 | K42: 0 | L42: 0 | M42: 0 | N42: 0 | O42: 750000 | P42: 0 | Q42: 0 | R42: 0 | S42: 0 | T42: 0 | U42: 0 | V42: 0 | W42: 0 | X42: 0 | Y42: 0 | Z42: =IF(COUNTIF(D42:Y42,"<>0")<=1,IF(SUM(D42:Y42)=0,0,(IF(SUM(D42:Y42)>0,IF(SUM(D42:Y42)<400,(1.2675*45967*SUM(D42:Y42)^(-0.4664)),(IF(SUM(D42:Y42)<2000,(39128*SUM(D42:Y42)^(-0.37661)),IF(SUM(D42:Y42)<5000,18893*SUM(D42:Y42)^(-0.28083),IF(SUM(D42:Y42)<100000,29680*SUM(D42:Y42)^(-0.24475),1773.1))))*100/115)*SUM(D42:Y42)*(IF(SUM(D38:Y38)>0,0.0257,0)),0)*1.15*1.06*0.94)*(1+Genanskaffelsespriser!$D$389)/SUM(D42:Y42)),$A$73) -> 47.08459383 | AA42: =IF((D42*$Z42-(2009-D$3)/($C42+D43)*$Z42*D42)<0,0,(D42*$Z42-(2009-D$3)/($C42+D43)*$Z42*D42)) -> 0 | AB42: =IF((E42*$Z42-(2009-E$3)/($C42+E43)*$Z42*E42)<0,0,(E42*$Z42-(2009-E$3)/($C42+E43)*$Z42*E42)) -> 0 | AC42: =IF((F42*$Z42-(2009-F$3)/($C42+F43)*$Z42*F42)<0,0,(F42*$Z42-(2009-F$3)/($C42+F43)*$Z42*F42)) -> 0 | AD42: 0 | AE42: 0 | AF42: 0 | AG42: 0 | AH42: 0 | AI42: 0 | AJ42: 0 | AK42: 0 | AL42: 28250756.3 | AM42: 0 | AN42: 0 | AO42: 0 | AP42: 0 | AQ42: 0 | AR42: 0 | AS42: 0 | AT42: 0 | AU42: 0 | AV42: 0 | AW42: 28250756.3 | AX42: =VLOOKUP(D$3,Prisindeks!$A$1:$B$111,2,FALSE)/100*AA42 -> 0 | AY42: =VLOOKUP(E$3,Prisindeks!$A$1:$B$111,2,FALSE)/100*AB42 -> 0 | AZ42: =VLOOKUP(F$3,Prisindeks!$A$1:$B$111,2,FALSE)/100*AC42 -> 0 | BA42: =VLOOKUP(G$3,Prisindeks!$A$1:$B$111,2,FALSE)/100*AD42 -> 0 | BB42: =VLOOKUP(H$3,Prisindeks!$A$1:$B$111,2,FALSE)/100*AE42 -> 0 | BC42: =VLOOKUP(I$3,Prisindeks!$A$1:$B$111,2,FALSE)/100*AF42 -> 0 | BD42: =VLOOKUP(J$3,Prisindeks!$A$1:$B$111,2,FALSE)/100*AG42 -> 0 | BE42: =VLOOKUP(K$3,Prisindeks!$A$1:$B$111,2,FALSE)/100*AH42 -> 0 | BF42: =VLOOKUP(L$3,Prisindeks!$A$1:$B$111,2,FALSE)/100*AI42 -> 0 | BG42: =VLOOKUP(M$3,Prisindeks!$A$1:$B$111,2,FALSE)/100*AJ42 -> 0 | BH42: =VLOOKUP(N$3,Prisindeks!$A$1:$B$111,2,FALSE)/100*AK42 -> 0 | BI42: =VLOOKUP(O$3,Prisindeks!$A$1:$B$111,2,FALSE)/100*AL42 -> 22797082.16 | BJ42: =VLOOKUP(P$3,Prisindeks!$A$1:$B$111,2,FALSE)/100*AM42 -> 0 | BK42: =VLOOKUP(Q$3,Prisindeks!$A$1:$B$111,2,FALSE)/100*AN42 -> 0 | BL42: =VLOOKUP(R$3,Prisindeks!$A$1:$B$111,2,FALSE)/100*AO42 -> 0 | BM42: =VLOOKUP(S$3,Prisindeks!$A$1:$B$111,2,FALSE)/100*AP42 -> 0 | BN42: =VLOOKUP(T$3,Prisindeks!$A$1:$B$111,2,FALSE)/100*AQ42 -> 0 | BO42: =VLOOKUP(U$3,Prisindeks!$A$1:$B$111,2,FALSE)/100*AR42 -> 0 | BP42: =VLOOKUP(V$3,Prisindeks!$A$1:$B$111,2,FALSE)/100*AS42 -> 0 | BQ42: =VLOOKUP(W$3,Prisindeks!$A$1:$B$111,2,FALSE)/100*AT42 -> 0 | BR42: =VLOOKUP(X$3,Prisindeks!$A$1:$B$111,2,FALSE)/100*AU42 -> 0 | BS42: =VLOOKUP(Y$3,Prisindeks!$A$1:$B$111,2,FALSE)/100*AV42 -> 0 | BT42: 22797082.16 | BU42: 0 | BV42: 0 | BW42: 0 | BX42: 0 | BY42: 0 | BZ42: 0 | CA42: 0 | CB42: 0 | CC42: 0 | CD42: 0 | CE42: 0 | CF42: 25523919.23 | CG42: 0 | CH42: 0 | CI42: 0 | CJ42: 0 | CK42: 0 | CL42: 0 | CM42: 0 | CN42: 0 | CO42: 0 | CP42: 0 | CQ42: 25523919.23 | CR42: 750000
A43: Levetidsforlængelse | B43: år | C43: - | D43: 0 | E43: 0 | F43: 0 | G43: 0 | H43: 0 | I43: 0 | J43: 0 | K43: 0 | L43: 0 | M43: 0 | N43: 0 | O43: 0 | P43: 0 | Q43: 0 | R43: 0 | S43: 0 | T43: 0 | U43: 0 | V43: 0 | W43: 0 | X43: 0 | Y43: 0
A44: =+Genanskaffelsespriser!$B$33 -> Gasdisponering, Mek/EL | B44: PE | C44: =Genanskaffelsespriser!$E$33 -> 20 | D44: 0 | E44: 0 | F44: 0 | G44: 0 | H44: 0 | I44: 0 | J44: 0 | K44: 0 | L44: 0 | M44: 0 | N44: 0 | O44: 750000 | P44: 0 | Q44: 0 | R44: 0 | S44: 0 | T44: 0 | U44: 0 | V44: 0 | W44: 0 | X44: 0 | Y44: 0 | Z44: =IF(COUNTIF(D44:Y44,"<>0")<=1,IF(SUM(D44:Y44)=0,0,(IF(SUM(D44:Y44)>0,IF(SUM(D44:Y44)<400,(1.2675*45967*SUM(D44:Y44)^(-0.4664)),(IF(SUM(D44:Y44)<2000,(39128*SUM(D44:Y44)^(-0.37661)),IF(SUM(D44:Y44)<5000,18893*SUM(D44:Y44)^(-0.28083),IF(SUM(D44:Y44)<100000,29680*SUM(D44:Y44)^(-0.24475),1773.1))))*100/115)*SUM(D44:Y44)*(IF(SUM(D40:Y40)>0,0.0257,0)),0)*1.15*1.06*0.05)/SUM(D44:Y44)),$A$73) -> 2.41513951 | AA44: 0 | AB44: 0 | AC44: 0 | AD44: 0 | AE44: 0 | AF44: 0 | AG44: 0 | AH44: 0 | AI44: 0 | AJ44: 0 | AK44: 0 | AL44: 724541.853 | AM44: 0 | AN44: 0 | AO44: 0 | AP44: 0 | AQ44: 0 | AR44: 0 | AS44: 0 | AT44: 0 | AU44: 0 | AV44: 0 | AW44: 724541.853 | AX44: =VLOOKUP(D$3,Prisindeks!$A$1:$B$111,2,FALSE)/100*AA44 -> 0 | AY44: =VLOOKUP(E$3,Prisindeks!$A$1:$B$111,2,FALSE)/100*AB44 -> 0 | AZ44: =VLOOKUP(F$3,Prisindeks!$A$1:$B$111,2,FALSE)/100*AC44 -> 0 | BA44: =VLOOKUP(G$3,Prisindeks!$A$1:$B$111,2,FALSE)/100*AD44 -> 0 | BB44: =VLOOKUP(H$3,Prisindeks!$A$1:$B$111,2,FALSE)/100*AE44 -> 0 | BC44: =VLOOKUP(I$3,Prisindeks!$A$1:$B$111,2,FALSE)/100*AF44 -> 0 | BD44: =VLOOKUP(J$3,Prisindeks!$A$1:$B$111,2,FALSE)/100*AG44 -> 0 | BE44: =VLOOKUP(K$3,Prisindeks!$A$1:$B$111,2,FALSE)/100*AH44 -> 0 | BF44: =VLOOKUP(L$3,Prisindeks!$A$1:$B$111,2,FALSE)/100*AI44 -> 0 | BG44: =VLOOKUP(M$3,Prisindeks!$A$1:$B$111,2,FALSE)/100*AJ44 -> 0 | BH44: =VLOOKUP(N$3,Prisindeks!$A$1:$B$111,2,FALSE)/100*AK44 -> 0 | BI44: =VLOOKUP(O$3,Prisindeks!$A$1:$B$111,2,FALSE)/100*AL44 -> 584672.4944 | BJ44: =VLOOKUP(P$3,Prisindeks!$A$1:$B$111,2,FALSE)/100*AM44 -> 0 | BK44: =VLOOKUP(Q$3,Prisindeks!$A$1:$B$111,2,FALSE)/100*AN44 -> 0 | BL44: =VLOOKUP(R$3,Prisindeks!$A$1:$B$111,2,FALSE)/100*AO44 -> 0 | BM44: =VLOOKUP(S$3,Prisindeks!$A$1:$B$111,2,FALSE)/100*AP44 -> 0 | BN44: =VLOOKUP(T$3,Prisindeks!$A$1:$B$111,2,FALSE)/100*AQ44 -> 0 | BO44: =VLOOKUP(U$3,Prisindeks!$A$1:$B$111,2,FALSE)/100*AR44 -> 0 | BP44: =VLOOKUP(V$3,Prisindeks!$A$1:$B$111,2,FALSE)/100*AS44 -> 0 | BQ44: =VLOOKUP(W$3,Prisindeks!$A$1:$B$111,2,FALSE)/100*AT44 -> 0 | BR44: =VLOOKUP(X$3,Prisindeks!$A$1:$B$111,2,FALSE)/100*AU44 -> 0 | BS44: =VLOOKUP(Y$3,Prisindeks!$A$1:$B$111,2,FALSE)/100*AV44 -> 0 | BT44: 584672.4944 | BU44: 0 | BV44: 0 | BW44: 0 | BX44: 0 | BY44: 0 | BZ44: 0 | CA44: 0 | CB44: 0 | CC44: 0 | CD44: 0 | CE44: 0 | CF44: 654607.1737 | CG44: 0 | CH44: 0 | CI44: 0 | CJ44: 0 | CK44: 0 | CL44: 0 | CM44: 0 | CN44: 0 | CO44: 0 | CP44: 0 | CQ44: 654607.1737 | CR44: 750000
A45: =+Genanskaffelsespriser!$B$34 -> Gasdisponering, SRO | B45: PE | C45: =Genanskaffelsespriser!$E$34 -> 10 | D45: 0 | E45: 0 | F45: 0 | G45: 0 | H45: 0 | I45: 0 | J45: 0 | K45: 0 | L45: 0 | M45: 0 | N45: 0 | O45: 750000 | P45: 0 | Q45: 0 | R45: 0 | S45: 0 | T45: 0 | U45: 0 | V45: 0 | W45: 0 | X45: 0 | Y45: 0 | Z45: =IF(COUNTIF(D45:Y45,"<>0")<=1,IF(SUM(D45:Y45)=0,0,(IF(SUM(D45:Y45)>0,IF(SUM(D45:Y45)<400,(1.2675*45967*SUM(D45:Y45)^(-0.4664)),(IF(SUM(D45:Y45)<2000,(39128*SUM(D45:Y45)^(-0.37661)),IF(SUM(D45:Y45)<5000,18893*SUM(D45:Y45)^(-0.28083),IF(SUM(D45:Y45)<100000,29680*SUM(D45:Y45)^(-0.24475),1773.1))))*100/115)*SUM(D45:Y45)*(IF(SUM(D41:Y41)>0,0.0257,0)),0)*1.15*1.06*0.01)/SUM(D45:Y45)),$A$73) -> 0.483027902 | AA45: 0 | AB45: 0 | AC45: 0 | AD45: 0 | AE45: 0 | AF45: 0 | AG45: 0 | AH45: 0 | AI45: 0 | AJ45: 0 | AK45: 0 | AL45: 0 | AM45: 0 | AN45: 0 | AO45: 0 | AP45: 0 | AQ45: 0 | AR45: 0 | AS45: 0 | AT45: 0 | AU45: 0 | AV45: 0 | AW45: 0 | AX45: =VLOOKUP(D$3,Prisindeks!$A$1:$B$111,2,FALSE)/100*AA45 -> 0 | AY45: =VLOOKUP(E$3,Prisindeks!$A$1:$B$111,2,FALSE)/100*AB45 -> 0 | AZ45: =VLOOKUP(F$3,Prisindeks!$A$1:$B$111,2,FALSE)/100*AC45 -> 0 | BA45: =VLOOKUP(G$3,Prisindeks!$A$1:$B$111,2,FALSE)/100*AD45 -> 0 | BB45: =VLOOKUP(H$3,Prisindeks!$A$1:$B$111,2,FALSE)/100*AE45 -> 0 | BC45: =VLOOKUP(I$3,Prisindeks!$A$1:$B$111,2,FALSE)/100*AF45 -> 0 | BD45: =VLOOKUP(J$3,Prisindeks!$A$1:$B$111,2,FALSE)/100*AG45 -> 0 | BE45: =VLOOKUP(K$3,Prisindeks!$A$1:$B$111,2,FALSE)/100*AH45 -> 0 | BF45: =VLOOKUP(L$3,Prisindeks!$A$1:$B$111,2,FALSE)/100*AI45 -> 0 | BG45: =VLOOKUP(M$3,Prisindeks!$A$1:$B$111,2,FALSE)/100*AJ45 -> 0 | BH45: =VLOOKUP(N$3,Prisindeks!$A$1:$B$111,2,FALSE)/100*AK45 -> 0 | BI45: =VLOOKUP(O$3,Prisindeks!$A$1:$B$111,2,FALSE)/100*AL45 -> 0 | BJ45: =VLOOKUP(P$3,Prisindeks!$A$1:$B$111,2,FALSE)/100*AM45 -> 0 | BK45: =VLOOKUP(Q$3,Prisindeks!$A$1:$B$111,2,FALSE)/100*AN45 -> 0 | BL45: =VLOOKUP(R$3,Prisindeks!$A$1:$B$111,2,FALSE)/100*AO45 -> 0 | BM45: =VLOOKUP(S$3,Prisindeks!$A$1:$B$111,2,FALSE)/100*AP45 -> 0 | BN45: =VLOOKUP(T$3,Prisindeks!$A$1:$B$111,2,FALSE)/100*AQ45 -> 0 | BO45: =VLOOKUP(U$3,Prisindeks!$A$1:$B$111,2,FALSE)/100*AR45 -> 0 | BP45: =VLOOKUP(V$3,Prisindeks!$A$1:$B$111,2,FALSE)/100*AS45 -> 0 | BQ45: =VLOOKUP(W$3,Prisindeks!$A$1:$B$111,2,FALSE)/100*AT45 -> 0 | BR45: =VLOOKUP(X$3,Prisindeks!$A$1:$B$111,2,FALSE)/100*AU45 -> 0 | BS45: =VLOOKUP(Y$3,Prisindeks!$A$1:$B$111,2,FALSE)/100*AV45 -> 0 | BT45: 0 | BU45: 0 | BV45: 0 | BW45: 0 | BX45: 0 | BY45: 0 | BZ45: 0 | CA45: 0 | CB45: 0 | CC45: 0 | CD45: 0 | CE45: 0 | CF45: 0 | CG45: 0 | CH45: 0 | CI45: 0 | CJ45: 0 | CK45: 0 | CL45: 0 | CM45: 0 | CN45: 0 | CO45: 0 | CP45: 0 | CQ45: 0 | CR45: 750000
A46: =+Genanskaffelsespriser!$B$35 -> Gasdisponering - elproduktionsanlæg, Konstruktioner | B46: PE | C46: =Genanskaffelsespriser!$E$35 -> 60 | D46: 0 | E46: 0 | F46: 0 | G46: 0 | H46: 0 | I46: 0 | J46: 0 | K46: 0 | L46: 0 | M46: 0 | N46: 0 | O46: 0 | P46: 0 | Q46: 0 | R46: 0 | S46: 0 | T46: 0 | U46: 0 | V46: 0 | W46: 0 | X46: 0 | Y46: 0 | Z46: =IF(COUNTIF(D46:Y46,"<>0")<=1,IF(SUM(D46:Y46)=0,0,(IF(SUM(D46:Y46)>0,IF(SUM(D46:Y46)<400,(1.2675*45967*SUM(D46:Y46)^(-0.4664)),(IF(SUM(D46:Y46)<2000,(39128*SUM(D46:Y46)^(-0.37661)),IF(SUM(D46:Y46)<5000,18893*SUM(D46:Y46)^(-0.28083),IF(SUM(D46:Y46)<100000,29680*SUM(D46:Y46)^(-0.24475),1773.1))))*100/115)*SUM(D46:Y46)*(IF(SUM(D38:Y38)>0,0.0257,0)),0)*1.15*1.06*0.25)*(1+Genanskaffelsespriser!$D$389)/SUM(D46:Y46)),$A$73) -> 0 | AA46: =IF((D46*$Z46-(2009-D$3)/($C46+D47)*$Z46*D46)<0,0,(D46*$Z46-(2009-D$3)/($C46+D47)*$Z46*D46)) -> 0 | AB46: =IF((E46*$Z46-(2009-E$3)/($C46+E47)*$Z46*E46)<0,0,(E46*$Z46-(2009-E$3)/($C46+E47)*$Z46*E46)) -> 0 | AC46: =IF((F46*$Z46-(2009-F$3)/($C46+F47)*$Z46*F46)<0,0,(F46*$Z46-(2009-F$3)/($C46+F47)*$Z46*F46)) -> 0 | AD46: 0 | AE46: 0 | AF46: 0 | AG46: 0 | AH46: 0 | AI46: 0 | AJ46: 0 | AK46: 0 | AL46: 0 | AM46: 0 | AN46: 0 | AO46: 0 | AP46: 0 | AQ46: 0 | AR46: 0 | AS46: 0 | AT46: 0 | AU46: 0 | AV46: 0 | AW46: 0 | AX46: =VLOOKUP(D$3,Prisindeks!$A$1:$B$111,2,FALSE)/100*AA46 -> 0 | AY46: =VLOOKUP(E$3,Prisindeks!$A$1:$B$111,2,FALSE)/100*AB46 -> 0 | AZ46: =VLOOKUP(F$3,Prisindeks!$A$1:$B$111,2,FALSE)/100*AC46 -> 0 | BA46: =VLOOKUP(G$3,Prisindeks!$A$1:$B$111,2,FALSE)/100*AD46 -> 0 | BB46: =VLOOKUP(H$3,Prisindeks!$A$1:$B$111,2,FALSE)/100*AE46 -> 0 | BC46: =VLOOKUP(I$3,Prisindeks!$A$1:$B$111,2,FALSE)/100*AF46 -> 0 | BD46: =VLOOKUP(J$3,Prisindeks!$A$1:$B$111,2,FALSE)/100*AG46 -> 0 | BE46: =VLOOKUP(K$3,Prisindeks!$A$1:$B$111,2,FALSE)/100*AH46 -> 0 | BF46: =VLOOKUP(L$3,Prisindeks!$A$1:$B$111,2,FALSE)/100*AI46 -> 0 | BG46: =VLOOKUP(M$3,Prisindeks!$A$1:$B$111,2,FALSE)/100*AJ46 -> 0 | BH46: =VLOOKUP(N$3,Prisindeks!$A$1:$B$111,2,FALSE)/100*AK46 -> 0 | BI46: =VLOOKUP(O$3,Prisindeks!$A$1:$B$111,2,FALSE)/100*AL46 -> 0 | BJ46: =VLOOKUP(P$3,Prisindeks!$A$1:$B$111,2,FALSE)/100*AM46 -> 0 | BK46: =VLOOKUP(Q$3,Prisindeks!$A$1:$B$111,2,FALSE)/100*AN46 -> 0 | BL46: =VLOOKUP(R$3,Prisindeks!$A$1:$B$111,2,FALSE)/100*AO46 -> 0 | BM46: =VLOOKUP(S$3,Prisindeks!$A$1:$B$111,2,FALSE)/100*AP46 -> 0 | BN46: =VLOOKUP(T$3,Prisindeks!$A$1:$B$111,2,FALSE)/100*AQ46 -> 0 | BO46: =VLOOKUP(U$3,Prisindeks!$A$1:$B$111,2,FALSE)/100*AR46 -> 0 | BP46: =VLOOKUP(V$3,Prisindeks!$A$1:$B$111,2,FALSE)/100*AS46 -> 0 | BQ46: =VLOOKUP(W$3,Prisindeks!$A$1:$B$111,2,FALSE)/100*AT46 -> 0 | BR46: =VLOOKUP(X$3,Prisindeks!$A$1:$B$111,2,FALSE)/100*AU46 -> 0 | BS46: =VLOOKUP(Y$3,Prisindeks!$A$1:$B$111,2,FALSE)/100*AV46 -> 0 | BT46: 0 | BU46: 0 | BV46: 0 | BW46: 0 | BX46: 0 | BY46: 0 | BZ46: 0 | CA46: 0 | CB46: 0 | CC46: 0 | CD46: 0 | CE46: 0 | CF46: 0 | CG46: 0 | CH46: 0 | CI46: 0 | CJ46: 0 | CK46: 0 | CL46: 0 | CM46: 0 | CN46: 0 | CO46: 0 | CP46: 0 | CQ46: 0 | CR46: 0
A47: Levetidsforlængelse | B47: år | C47: - | D47: 0 | E47: 0 | F47: 0 | G47: 0 | H47: 0 | I47: 0 | J47: 0 | K47: 0 | L47: 0 | M47: 0 | N47: 0 | O47: 0 | P47: 0 | Q47: 0 | R47: 0 | S47: 0 | T47: 0 | U47: 0 | V47: 0 | W47: 0 | X47: 0 | Y47: 0
A48: =+Genanskaffelsespriser!$B$36 -> Gasdisponering - elproduktionsanlæg, Mek/EL | B48: PE | C48: =Genanskaffelsespriser!$E$36 -> 20 | D48: 0 | E48: 0 | F48: 0 | G48: 0 | H48: 0 | I48: 0 | J48: 0 | K48: 0 | L48: 0 | M48: 0 | N48: 0 | O48: 0 | P48: 0 | Q48: 0 | R48: 0 | S48: 0 | T48: 0 | U48: 0 | V48: 0 | W48: 0 | X48: 0 | Y48: 0 | Z48: =IF(COUNTIF(D48:Y48,"<>0")<=1,IF(SUM(D48:Y48)=0,0,(IF(SUM(D48:Y48)>0,IF(SUM(D48:Y48)<400,(1.2675*45967*SUM(D48:Y48)^(-0.4664)),(IF(SUM(D48:Y48)<2000,(39128*SUM(D48:Y48)^(-0.37661)),IF(SUM(D48:Y48)<5000,18893*SUM(D48:Y48)^(-0.28083),IF(SUM(D48:Y48)<100000,29680*SUM(D48:Y48)^(-0.24475),1773.1))))*100/115)*SUM(D48:Y48)*(IF(SUM(D40:Y40)>0,0.0257,0)),0)*1.15*1.06*0.72)/SUM(D48:Y48)),$A$73) -> 0 | AA48: 0 | AB48: 0 | AC48: 0 | AD48: 0 | AE48: 0 | AF48: 0 | AG48: 0 | AH48: 0 | AI48: 0 | AJ48: 0 | AK48: 0 | AL48: 0 | AM48: 0 | AN48: 0 | AO48: 0 | AP48: 0 | AQ48: 0 | AR48: 0 | AS48: 0 | AT48: 0 | AU48: 0 | AV48: 0 | AW48: 0 | AX48: =VLOOKUP(D$3,Prisindeks!$A$1:$B$111,2,FALSE)/100*AA48 -> 0 | AY48: =VLOOKUP(E$3,Prisindeks!$A$1:$B$111,2,FALSE)/100*AB48 -> 0 | AZ48: =VLOOKUP(F$3,Prisindeks!$A$1:$B$111,2,FALSE)/100*AC48 -> 0 | BA48: =VLOOKUP(G$3,Prisindeks!$A$1:$B$111,2,FALSE)/100*AD48 -> 0 | BB48: =VLOOKUP(H$3,Prisindeks!$A$1:$B$111,2,FALSE)/100*AE48 -> 0 | BC48: =VLOOKUP(I$3,Prisindeks!$A$1:$B$111,2,FALSE)/100*AF48 -> 0 | BD48: =VLOOKUP(J$3,Prisindeks!$A$1:$B$111,2,FALSE)/100*AG48 -> 0 | BE48: =VLOOKUP(K$3,Prisindeks!$A$1:$B$111,2,FALSE)/100*AH48 -> 0 | BF48: =VLOOKUP(L$3,Prisindeks!$A$1:$B$111,2,FALSE)/100*AI48 -> 0 | BG48: =VLOOKUP(M$3,Prisindeks!$A$1:$B$111,2,FALSE)/100*AJ48 -> 0 | BH48: =VLOOKUP(N$3,Prisindeks!$A$1:$B$111,2,FALSE)/100*AK48 -> 0 | BI48: =VLOOKUP(O$3,Prisindeks!$A$1:$B$111,2,FALSE)/100*AL48 -> 0 | BJ48: =VLOOKUP(P$3,Prisindeks!$A$1:$B$111,2,FALSE)/100*AM48 -> 0 | BK48: =VLOOKUP(Q$3,Prisindeks!$A$1:$B$111,2,FALSE)/100*AN48 -> 0 | BL48: =VLOOKUP(R$3,Prisindeks!$A$1:$B$111,2,FALSE)/100*AO48 -> 0 | BM48: =VLOOKUP(S$3,Prisindeks!$A$1:$B$111,2,FALSE)/100*AP48 -> 0 | BN48: =VLOOKUP(T$3,Prisindeks!$A$1:$B$111,2,FALSE)/100*AQ48 -> 0 | BO48: =VLOOKUP(U$3,Prisindeks!$A$1:$B$111,2,FALSE)/100*AR48 -> 0 | BP48: =VLOOKUP(V$3,Prisindeks!$A$1:$B$111,2,FALSE)/100*AS48 -> 0 | BQ48: =VLOOKUP(W$3,Prisindeks!$A$1:$B$111,2,FALSE)/100*AT48 -> 0 | BR48: =VLOOKUP(X$3,Prisindeks!$A$1:$B$111,2,FALSE)/100*AU48 -> 0 | BS48: =VLOOKUP(Y$3,Prisindeks!$A$1:$B$111,2,FALSE)/100*AV48 -> 0 | BT48: 0 | BU48: 0 | BV48: 0 | BW48: 0 | BX48: 0 | BY48: 0 | BZ48: 0 | CA48: 0 | CB48: 0 | CC48: 0 | CD48: 0 | CE48: 0 | CF48: 0 | CG48: 0 | CH48: 0 | CI48: 0 | CJ48: 0 | CK48: 0 | CL48: 0 | CM48: 0 | CN48: 0 | CO48: 0 | CP48: 0 | CQ48: 0 | CR48: 0
A49: =+Genanskaffelsespriser!$B$37 -> Gasdisponering - elproduktionsanlæg, SRO | B49: PE | C49: =Genanskaffelsespriser!$E$37 -> 10 | D49: 0 | E49: 0 | F49: 0 | G49: 0 | H49: 0 | I49: 0 | J49: 0 | K49: 0 | L49: 0 | M49: 0 | N49: 0 | O49: 0 | P49: 0 | Q49: 0 | R49: 0 | S49: 0 | T49: 0 | U49: 0 | V49: 0 | W49: 0 | X49: 0 | Y49: 0 | Z49: =IF(COUNTIF(D49:Y49,"<>0")<=1,IF(SUM(D49:Y49)=0,0,(IF(SUM(D49:Y49)>0,IF(SUM(D49:Y49)<400,(1.2675*45967*SUM(D49:Y49)^(-0.4664)),(IF(SUM(D49:Y49)<2000,(39128*SUM(D49:Y49)^(-0.37661)),IF(SUM(D49:Y49)<5000,18893*SUM(D49:Y49)^(-0.28083),IF(SUM(D49:Y49)<100000,29680*SUM(D49:Y49)^(-0.24475),1773.1))))*100/115)*SUM(D49:Y49)*(IF(SUM(D41:Y41)>0,0.0257,0)),0)*1.15*1.06*0.03)/SUM(D49:Y49)),$A$73) -> 0 | AA49: 0 | AB49: 0 | AC49: 0 | AD49: 0 | AE49: 0 | AF49: 0 | AG49: 0 | AH49: 0 | AI49: 0 | AJ49: 0 | AK49: 0 | AL49: 0 | AM49: 0 | AN49: 0 | AO49: 0 | AP49: 0 | AQ49: 0 | AR49: 0 | AS49: 0 | AT49: 0 | AU49: 0 | AV49: 0 | AW49: 0 | AX49: =VLOOKUP(D$3,Prisindeks!$A$1:$B$111,2,FALSE)/100*AA49 -> 0 | AY49: =VLOOKUP(E$3,Prisindeks!$A$1:$B$111,2,FALSE)/100*AB49 -> 0 | AZ49: =VLOOKUP(F$3,Prisindeks!$A$1:$B$111,2,FALSE)/100*AC49 -> 0 | BA49: =VLOOKUP(G$3,Prisindeks!$A$1:$B$111,2,FALSE)/100*AD49 -> 0 | BB49: =VLOOKUP(H$3,Prisindeks!$A$1:$B$111,2,FALSE)/100*AE49 -> 0 | BC49: =VLOOKUP(I$3,Prisindeks!$A$1:$B$111,2,FALSE)/100*AF49 -> 0 | BD49: =VLOOKUP(J$3,Prisindeks!$A$1:$B$111,2,FALSE)/100*AG49 -> 0 | BE49: =VLOOKUP(K$3,Prisindeks!$A$1:$B$111,2,FALSE)/100*AH49 -> 0 | BF49: =VLOOKUP(L$3,Prisindeks!$A$1:$B$111,2,FALSE)/100*AI49 -> 0 | BG49: =VLOOKUP(M$3,Prisindeks!$A$1:$B$111,2,FALSE)/100*AJ49 -> 0 | BH49: =VLOOKUP(N$3,Prisindeks!$A$1:$B$111,2,FALSE)/100*AK49 -> 0 | BI49: =VLOOKUP(O$3,Prisindeks!$A$1:$B$111,2,FALSE)/100*AL49 -> 0 | BJ49: =VLOOKUP(P$3,Prisindeks!$A$1:$B$111,2,FALSE)/100*AM49 -> 0 | BK49: =VLOOKUP(Q$3,Prisindeks!$A$1:$B$111,2,FALSE)/100*AN49 -> 0 | BL49: =VLOOKUP(R$3,Prisindeks!$A$1:$B$111,2,FALSE)/100*AO49 -> 0 | BM49: =VLOOKUP(S$3,Prisindeks!$A$1:$B$111,2,FALSE)/100*AP49 -> 0 | BN49: =VLOOKUP(T$3,Prisindeks!$A$1:$B$111,2,FALSE)/100*AQ49 -> 0 | BO49: =VLOOKUP(U$3,Prisindeks!$A$1:$B$111,2,FALSE)/100*AR49 -> 0 | BP49: =VLOOKUP(V$3,Prisindeks!$A$1:$B$111,2,FALSE)/100*AS49 -> 0 | BQ49: =VLOOKUP(W$3,Prisindeks!$A$1:$B$111,2,FALSE)/100*AT49 -> 0 | BR49: =VLOOKUP(X$3,Prisindeks!$A$1:$B$111,2,FALSE)/100*AU49 -> 0 | BS49: =VLOOKUP(Y$3,Prisindeks!$A$1:$B$111,2,FALSE)/100*AV49 -> 0 | BT49: 0 | BU49: 0 | BV49: 0 | BW49: 0 | BX49: 0 | BY49: 0 | BZ49: 0 | CA49: 0 | CB49: 0 | CC49: 0 | CD49: 0 | CE49: 0 | CF49: 0 | CG49: 0 | CH49: 0 | CI49: 0 | CJ49: 0 | CK49: 0 | CL49: 0 | CM49: 0 | CN49: 0 | CO49: 0 | CP49: 0 | CQ49: 0 | CR49: 0
A50: =+Genanskaffelsespriser!$B$38 -> Slutafvanding, slam - lavteknologisk (slambede), Konstruktioner | B50: PE | C50: =Genanskaffelsespriser!$E$38 -> 60 | D50: 0 | E50: 0 | F50: 0 | G50: 0 | H50: 0 | I50: 0 | J50: 0 | K50: 0 | L50: 0 | M50: 0 | N50: 0 | O50: 0 | P50: 0 | Q50: 0 | R50: 0 | S50: 0 | T50: 0 | U50: 0 | V50: 0 | W50: 0 | X50: 0 | Y50: 0 | Z50: =IF(COUNTIF(D50:Y50,"<>0")<=1,IF(SUM(D50:Y50)=0,0,(IF(SUM(D50:Y50)>0,IF(SUM(D50:Y50)<400,(1.2675*45967*SUM(D50:Y50)^(-0.4664)),(IF(SUM(D50:Y50)<2000,(39128*SUM(D50:Y50)^(-0.37661)),IF(SUM(D50:Y50)<5000,18893*SUM(D50:Y50)^(-0.28083),IF(SUM(D50:Y50)<100000,29680*SUM(D50:Y50)^(-0.24475),1773.1))))*100/115)*SUM(D50:Y50)*(IF(SUM(D38:Y38)>0,0.046,0.0531)),0)*1.15*1.06*0.85)*(1+Genanskaffelsespriser!$D$389)/SUM(D50:Y50)),$A$73) -> 0 | AA50: =IF((D50*$Z50-(2009-D$3)/($C50+D51)*$Z50*D50)<0,0,(D50*$Z50-(2009-D$3)/($C50+D51)*$Z50*D50)) -> 0 | AB50: =IF((E50*$Z50-(2009-E$3)/($C50+E51)*$Z50*E50)<0,0,(E50*$Z50-(2009-E$3)/($C50+E51)*$Z50*E50)) -> 0 | AC50: =IF((F50*$Z50-(2009-F$3)/($C50+F51)*$Z50*F50)<0,0,(F50*$Z50-(2009-F$3)/($C50+F51)*$Z50*F50)) -> 0 | AD50: 0 | AE50: 0 | AF50: 0 | AG50: 0 | AH50: 0 | AI50: 0 | AJ50: 0 | AK50: 0 | AL50: 0 | AM50: 0 | AN50: 0 | AO50: 0 | AP50: 0 | AQ50: 0 | AR50: 0 | AS50: 0 | AT50: 0 | AU50: 0 | AV50: 0 | AW50: 0 | AX50: =VLOOKUP(D$3,Prisindeks!$A$1:$B$111,2,FALSE)/100*AA50 -> 0 | AY50: =VLOOKUP(E$3,Prisindeks!$A$1:$B$111,2,FALSE)/100*AB50 -> 0 | AZ50: =VLOOKUP(F$3,Prisindeks!$A$1:$B$111,2,FALSE)/100*AC50 -> 0 | BA50: =VLOOKUP(G$3,Prisindeks!$A$1:$B$111,2,FALSE)/100*AD50 -> 0 | BB50: =VLOOKUP(H$3,Prisindeks!$A$1:$B$111,2,FALSE)/100*AE50 -> 0 | BC50: =VLOOKUP(I$3,Prisindeks!$A$1:$B$111,2,FALSE)/100*AF50 -> 0 | BD50: =VLOOKUP(J$3,Prisindeks!$A$1:$B$111,2,FALSE)/100*AG50 -> 0 | BE50: =VLOOKUP(K$3,Prisindeks!$A$1:$B$111,2,FALSE)/100*AH50 -> 0 | BF50: =VLOOKUP(L$3,Prisindeks!$A$1:$B$111,2,FALSE)/100*AI50 -> 0 | BG50: =VLOOKUP(M$3,Prisindeks!$A$1:$B$111,2,FALSE)/100*AJ50 -> 0 | BH50: =VLOOKUP(N$3,Prisindeks!$A$1:$B$111,2,FALSE)/100*AK50 -> 0 | BI50: =VLOOKUP(O$3,Prisindeks!$A$1:$B$111,2,FALSE)/100*AL50 -> 0 | BJ50: =VLOOKUP(P$3,Prisindeks!$A$1:$B$111,2,FALSE)/100*AM50 -> 0 | BK50: =VLOOKUP(Q$3,Prisindeks!$A$1:$B$111,2,FALSE)/100*AN50 -> 0 | BL50: =VLOOKUP(R$3,Prisindeks!$A$1:$B$111,2,FALSE)/100*AO50 -> 0 | BM50: =VLOOKUP(S$3,Prisindeks!$A$1:$B$111,2,FALSE)/100*AP50 -> 0 | BN50: =VLOOKUP(T$3,Prisindeks!$A$1:$B$111,2,FALSE)/100*AQ50 -> 0 | BO50: =VLOOKUP(U$3,Prisindeks!$A$1:$B$111,2,FALSE)/100*AR50 -> 0 | BP50: =VLOOKUP(V$3,Prisindeks!$A$1:$B$111,2,FALSE)/100*AS50 -> 0 | BQ50: =VLOOKUP(W$3,Prisindeks!$A$1:$B$111,2,FALSE)/100*AT50 -> 0 | BR50: =VLOOKUP(X$3,Prisindeks!$A$1:$B$111,2,FALSE)/100*AU50 -> 0 | BS50: =VLOOKUP(Y$3,Prisindeks!$A$1:$B$111,2,FALSE)/100*AV50 -> 0 | BT50: 0 | BU50: 0 | BV50: 0 | BW50: 0 | BX50: 0 | BY50: 0 | BZ50: 0 | CA50: 0 | CB50: 0 | CC50: 0 | CD50: 0 | CE50: 0 | CF50: 0 | CG50: 0 | CH50: 0 | CI50: 0 | CJ50: 0 | CK50: 0 | CL50: 0 | CM50: 0 | CN50: 0 | CO50: 0 | CP50: 0 | CQ50: 0 | CR50: 0
A51: Levetidsforlængelse | B51: år | C51: - | D51: 0 | E51: 0 | F51: 0 | G51: 0 | H51: 0 | I51: 0 | J51: 0 | K51: 0 | L51: 0 | M51: 0 | N51: 0 | O51: 0 | P51: 0 | Q51: 0 | R51: 0 | S51: 0 | T51: 0 | U51: 0 | V51: 0 | W51: 0 | X51: 0 | Y51: 0
A52: =+Genanskaffelsespriser!$B$39 -> Slutafvanding, slam - lavteknologisk (slambede), Mek/EL | B52: PE | C52: =Genanskaffelsespriser!$E$39 -> 20 | D52: 0 | E52: 0 | F52: 0 | G52: 0 | H52: 0 | I52: 0 | J52: 0 | K52: 0 | L52: 0 | M52: 0 | N52: 0 | O52: 0 | P52: 0 | Q52: 0 | R52: 0 | S52: 0 | T52: 0 | U52: 0 | V52: 0 | W52: 0 | X52: 0 | Y52: 0 | Z52: =IF(COUNTIF(D52:Y52,"<>0")<=1,IF(SUM(D52:Y52)=0,0,(IF(SUM(D52:Y52)>0,IF(SUM(D52:Y52)<400,(1.2675*45967*SUM(D52:Y52)^(-0.4664)),(IF(SUM(D52:Y52)<2000,(39128*SUM(D52:Y52)^(-0.37661)),IF(SUM(D52:Y52)<5000,18893*SUM(D52:Y52)^(-0.28083),IF(SUM(D52:Y52)<100000,29680*SUM(D52:Y52)^(-0.24475),1773.1))))*100/115)*SUM(D52:Y52)*(IF(SUM(D40:Y40)>0,0.046,0.0531)),0)*1.15*1.06*0.14)/SUM(D52:Y52)),$A$73) -> 0 | AA52: 0 | AB52: 0 | AC52: 0 | AD52: 0 | AE52: 0 | AF52: 0 | AG52: 0 | AH52: 0 | AI52: 0 | AJ52: 0 | AK52: 0 | AL52: 0 | AM52: 0 | AN52: 0 | AO52: 0 | AP52: 0 | AQ52: 0 | AR52: 0 | AS52: 0 | AT52: 0 | AU52: 0 | AV52: 0 | AW52: 0 | AX52: =VLOOKUP(D$3,Prisindeks!$A$1:$B$111,2,FALSE)/100*AA52 -> 0 | AY52: =VLOOKUP(E$3,Prisindeks!$A$1:$B$111,2,FALSE)/100*AB52 -> 0 | AZ52: =VLOOKUP(F$3,Prisindeks!$A$1:$B$111,2,FALSE)/100*AC52 -> 0 | BA52: =VLOOKUP(G$3,Prisindeks!$A$1:$B$111,2,FALSE)/100*AD52 -> 0 | BB52: =VLOOKUP(H$3,Prisindeks!$A$1:$B$111,2,FALSE)/100*AE52 -> 0 | BC52: =VLOOKUP(I$3,Prisindeks!$A$1:$B$111,2,FALSE)/100*AF52 -> 0 | BD52: =VLOOKUP(J$3,Prisindeks!$A$1:$B$111,2,FALSE)/100*AG52 -> 0 | BE52: =VLOOKUP(K$3,Prisindeks!$A$1:$B$111,2,FALSE)/100*AH52 -> 0 | BF52: =VLOOKUP(L$3,Prisindeks!$A$1:$B$111,2,FALSE)/100*AI52 -> 0 | BG52: =VLOOKUP(M$3,Prisindeks!$A$1:$B$111,2,FALSE)/100*AJ52 -> 0 | BH52: =VLOOKUP(N$3,Prisindeks!$A$1:$B$111,2,FALSE)/100*AK52 -> 0 | BI52: =VLOOKUP(O$3,Prisindeks!$A$1:$B$111,2,FALSE)/100*AL52 -> 0 | BJ52: =VLOOKUP(P$3,Prisindeks!$A$1:$B$111,2,FALSE)/100*AM52 -> 0 | BK52: =VLOOKUP(Q$3,Prisindeks!$A$1:$B$111,2,FALSE)/100*AN52 -> 0 | BL52: =VLOOKUP(R$3,Prisindeks!$A$1:$B$111,2,FALSE)/100*AO52 -> 0 | BM52: =VLOOKUP(S$3,Prisindeks!$A$1:$B$111,2,FALSE)/100*AP52 -> 0 | BN52: =VLOOKUP(T$3,Prisindeks!$A$1:$B$111,2,FALSE)/100*AQ52 -> 0 | BO52: =VLOOKUP(U$3,Prisindeks!$A$1:$B$111,2,FALSE)/100*AR52 -> 0 | BP52: =VLOOKUP(V$3,Prisindeks!$A$1:$B$111,2,FALSE)/100*AS52 -> 0 | BQ52: =VLOOKUP(W$3,Prisindeks!$A$1:$B$111,2,FALSE)/100*AT52 -> 0 | BR52: =VLOOKUP(X$3,Prisindeks!$A$1:$B$111,2,FALSE)/100*AU52 -> 0 | BS52: =VLOOKUP(Y$3,Prisindeks!$A$1:$B$111,2,FALSE)/100*AV52 -> 0 | BT52: 0 | BU52: 0 | BV52: 0 | BW52: 0 | BX52: 0 | BY52: 0 | BZ52: 0 | CA52: 0 | CB52: 0 | CC52: 0 | CD52: 0 | CE52: 0 | CF52: 0 | CG52: 0 | CH52: 0 | CI52: 0 | CJ52: 0 | CK52: 0 | CL52: 0 | CM52: 0 | CN52: 0 | CO52: 0 | CP52: 0 | CQ52: 0 | CR52: 0
A53: =+Genanskaffelsespriser!$B$40 -> Slutafvanding, slam - lavteknologisk (slambede), SRO | B53: PE | C53: =Genanskaffelsespriser!$E$40 -> 10 | D53: 0 | E53: 0 | F53: 0 | G53: 0 | H53: 0 | I53: 0 | J53: 0 | K53: 0 | L53: 0 | M53: 0 | N53: 0 | O53: 0 | P53: 0 | Q53: 0 | R53: 0 | S53: 0 | T53: 0 | U53: 0 | V53: 0 | W53: 0 | X53: 0 | Y53: 0 | Z53: =IF(COUNTIF(D53:Y53,"<>0")<=1,IF(SUM(D53:Y53)=0,0,(IF(SUM(D53:Y53)>0,IF(SUM(D53:Y53)<400,(1.2675*45967*SUM(D53:Y53)^(-0.4664)),(IF(SUM(D53:Y53)<2000,(39128*SUM(D53:Y53)^(-0.37661)),IF(SUM(D53:Y53)<5000,18893*SUM(D53:Y53)^(-0.28083),IF(SUM(D53:Y53)<100000,29680*SUM(D53:Y53)^(-0.24475),1773.1))))*100/115)*SUM(D53:Y53)*(IF(SUM(D41:Y41)>0,0.046,0.0531)),0)*1.15*1.06*0.01)/SUM(D53:Y53)),$A$73) -> 0 | AA53: 0 | AB53: 0 | AC53: 0 | AD53: 0 | AE53: 0 | AF53: 0 | AG53: 0 | AH53: 0 | AI53: 0 | AJ53: 0 | AK53: 0 | AL53: 0 | AM53: 0 | AN53: 0 | AO53: 0 | AP53: 0 | AQ53: 0 | AR53: 0 | AS53: 0 | AT53: 0 | AU53: 0 | AV53: 0 | AW53: 0 | AX53: =VLOOKUP(D$3,Prisindeks!$A$1:$B$111,2,FALSE)/100*AA53 -> 0 | AY53: =VLOOKUP(E$3,Prisindeks!$A$1:$B$111,2,FALSE)/100*AB53 -> 0 | AZ53: =VLOOKUP(F$3,Prisindeks!$A$1:$B$111,2,FALSE)/100*AC53 -> 0 | BA53: =VLOOKUP(G$3,Prisindeks!$A$1:$B$111,2,FALSE)/100*AD53 -> 0 | BB53: =VLOOKUP(H$3,Prisindeks!$A$1:$B$111,2,FALSE)/100*AE53 -> 0 | BC53: =VLOOKUP(I$3,Prisindeks!$A$1:$B$111,2,FALSE)/100*AF53 -> 0 | BD53: =VLOOKUP(J$3,Prisindeks!$A$1:$B$111,2,FALSE)/100*AG53 -> 0 | BE53: =VLOOKUP(K$3,Prisindeks!$A$1:$B$111,2,FALSE)/100*AH53 -> 0 | BF53: =VLOOKUP(L$3,Prisindeks!$A$1:$B$111,2,FALSE)/100*AI53 -> 0 | BG53: =VLOOKUP(M$3,Prisindeks!$A$1:$B$111,2,FALSE)/100*AJ53 -> 0 | BH53: =VLOOKUP(N$3,Prisindeks!$A$1:$B$111,2,FALSE)/100*AK53 -> 0 | BI53: =VLOOKUP(O$3,Prisindeks!$A$1:$B$111,2,FALSE)/100*AL53 -> 0 | BJ53: =VLOOKUP(P$3,Prisindeks!$A$1:$B$111,2,FALSE)/100*AM53 -> 0 | BK53: =VLOOKUP(Q$3,Prisindeks!$A$1:$B$111,2,FALSE)/100*AN53 -> 0 | BL53: =VLOOKUP(R$3,Prisindeks!$A$1:$B$111,2,FALSE)/100*AO53 -> 0 | BM53: =VLOOKUP(S$3,Prisindeks!$A$1:$B$111,2,FALSE)/100*AP53 -> 0 | BN53: =VLOOKUP(T$3,Prisindeks!$A$1:$B$111,2,FALSE)/100*AQ53 -> 0 | BO53: =VLOOKUP(U$3,Prisindeks!$A$1:$B$111,2,FALSE)/100*AR53 -> 0 | BP53: =VLOOKUP(V$3,Prisindeks!$A$1:$B$111,2,FALSE)/100*AS53 -> 0 | BQ53: =VLOOKUP(W$3,Prisindeks!$A$1:$B$111,2,FALSE)/100*AT53 -> 0 | BR53: =VLOOKUP(X$3,Prisindeks!$A$1:$B$111,2,FALSE)/100*AU53 -> 0 | BS53: =VLOOKUP(Y$3,Prisindeks!$A$1:$B$111,2,FALSE)/100*AV53 -> 0 | BT53: 0 | BU53: 0 | BV53: 0 | BW53: 0 | BX53: 0 | BY53: 0 | BZ53: 0 | CA53: 0 | CB53: 0 | CC53: 0 | CD53: 0 | CE53: 0 | CF53: 0 | CG53: 0 | CH53: 0 | CI53: 0 | CJ53: 0 | CK53: 0 | CL53: 0 | CM53: 0 | CN53: 0 | CO53: 0 | CP53: 0 | CQ53: 0 | CR53: 0
A54: =+Genanskaffelsespriser!$B$41 -> Slutafvanding, slam - højteknologisk (centrifuger), Konstruktioner | B54: PE | C54: =Genanskaffelsespriser!$E$41 -> 60 | D54: 0 | E54: 0 | F54: 0 | G54: 0 | H54: 0 | I54: 0 | J54: 0 | K54: 0 | L54: 750000 | M54: 0 | N54: 0 | O54: 0 | P54: 0 | Q54: 0 | R54: 0 | S54: 0 | T54: 0 | U54: 0 | V54: 0 | W54: 0 | X54: 0 | Y54: 0 | Z54: =IF(COUNTIF(D54:Y54,"<>0")<=1,IF(SUM(D54:Y54)=0,0,(IF(SUM(D54:Y54)>0,IF(SUM(D54:Y54)<400,(1.2675*45967*SUM(D54:Y54)^(-0.4664)),(IF(SUM(D54:Y54)<2000,(39128*SUM(D54:Y54)^(-0.37661)),IF(SUM(D54:Y54)<5000,18893*SUM(D54:Y54)^(-0.28083),IF(SUM(D54:Y54)<100000,29680*SUM(D54:Y54)^(-0.24475),1773.1))))*100/115)*SUM(D54:Y54)*(IF(SUM(D38:Y38)>0,0.0722,0.0776)),0)*1.15*1.06*0.49)*(1+Genanskaffelsespriser!$D$389)/SUM(D54:Y54)),$A$73) -> 68.95267657 | AA54: =IF((D54*$Z54-(2009-D$3)/($C54+D55)*$Z54*D54)<0,0,(D54*$Z54-(2009-D$3)/($C54+D55)*$Z54*D54)) -> 0 | AB54: =IF((E54*$Z54-(2009-E$3)/($C54+E55)*$Z54*E54)<0,0,(E54*$Z54-(2009-E$3)/($C54+E55)*$Z54*E54)) -> 0 | AC54: =IF((F54*$Z54-(2009-F$3)/($C54+F55)*$Z54*F54)<0,0,(F54*$Z54-(2009-F$3)/($C54+F55)*$Z54*F54)) -> 0 | AD54: 0 | AE54: 0 | AF54: 0 | AG54: 0 | AH54: 0 | AI54: 28442979.08 | AJ54: 0 | AK54: 0 | AL54: 0 | AM54: 0 | AN54: 0 | AO54: 0 | AP54: 0 | AQ54: 0 | AR54: 0 | AS54: 0 | AT54: 0 | AU54: 0 | AV54: 0 | AW54: 28442979.08 | AX54: =VLOOKUP(D$3,Prisindeks!$A$1:$B$111,2,FALSE)/100*AA54 -> 0 | AY54: =VLOOKUP(E$3,Prisindeks!$A$1:$B$111,2,FALSE)/100*AB54 -> 0 | AZ54: =VLOOKUP(F$3,Prisindeks!$A$1:$B$111,2,FALSE)/100*AC54 -> 0 | BA54: =VLOOKUP(G$3,Prisindeks!$A$1:$B$111,2,FALSE)/100*AD54 -> 0 | BB54: =VLOOKUP(H$3,Prisindeks!$A$1:$B$111,2,FALSE)/100*AE54 -> 0 | BC54: =VLOOKUP(I$3,Prisindeks!$A$1:$B$111,2,FALSE)/100*AF54 -> 0 | BD54: =VLOOKUP(J$3,Prisindeks!$A$1:$B$111,2,FALSE)/100*AG54 -> 0 | BE54: =VLOOKUP(K$3,Prisindeks!$A$1:$B$111,2,FALSE)/100*AH54 -> 0 | BF54: =VLOOKUP(L$3,Prisindeks!$A$1:$B$111,2,FALSE)/100*AI54 -> 13404338.02 | BG54: =VLOOKUP(M$3,Prisindeks!$A$1:$B$111,2,FALSE)/100*AJ54 -> 0 | BH54: =VLOOKUP(N$3,Prisindeks!$A$1:$B$111,2,FALSE)/100*AK54 -> 0 | BI54: =VLOOKUP(O$3,Prisindeks!$A$1:$B$111,2,FALSE)/100*AL54 -> 0 | BJ54: =VLOOKUP(P$3,Prisindeks!$A$1:$B$111,2,FALSE)/100*AM54 -> 0 | BK54: =VLOOKUP(Q$3,Prisindeks!$A$1:$B$111,2,FALSE)/100*AN54 -> 0 | BL54: =VLOOKUP(R$3,Prisindeks!$A$1:$B$111,2,FALSE)/100*AO54 -> 0 | BM54: =VLOOKUP(S$3,Prisindeks!$A$1:$B$111,2,FALSE)/100*AP54 -> 0 | BN54: =VLOOKUP(T$3,Prisindeks!$A$1:$B$111,2,FALSE)/100*AQ54 -> 0 | BO54: =VLOOKUP(U$3,Prisindeks!$A$1:$B$111,2,FALSE)/100*AR54 -> 0 | BP54: =VLOOKUP(V$3,Prisindeks!$A$1:$B$111,2,FALSE)/100*AS54 -> 0 | BQ54: =VLOOKUP(W$3,Prisindeks!$A$1:$B$111,2,FALSE)/100*AT54 -> 0 | BR54: =VLOOKUP(X$3,Prisindeks!$A$1:$B$111,2,FALSE)/100*AU54 -> 0 | BS54: =VLOOKUP(Y$3,Prisindeks!$A$1:$B$111,2,FALSE)/100*AV54 -> 0 | BT54: 13404338.02 | BU54: 0 | BV54: 0 | BW54: 0 | BX54: 0 | BY54: 0 | BZ54: 0 | CA54: 0 | CB54: 0 | CC54: 20923658.55 | CD54: 0 | CE54: 0 | CF54: 0 | CG54: 0 | CH54: 0 | CI54: 0 | CJ54: 0 | CK54: 0 | CL54: 0 | CM54: 0 | CN54: 0 | CO54: 0 | CP54: 0 | CQ54: 20923658.55 | CR54: 750000
A55: Levetidsforlængelse | B55: år | C55: - | D55: 0 | E55: 0 | F55: 0 | G55: 0 | H55: 0 | I55: 0 | J55: 0 | K55: 0 | L55: 0 | M55: 0 | N55: 0 | O55: 0 | P55: 0 | Q55: 0 | R55: 0 | S55: 0 | T55: 0 | U55: 0 | V55: 0 | W55: 0 | X55: 0 | Y55: 0
A56: =+Genanskaffelsespriser!$B$42 -> Slutafvanding, slam - højteknologisk (centrifuger), Mek/El | B56: PE | C56: =Genanskaffelsespriser!$E$42 -> 20 | D56: 0 | E56: 0 | F56: 0 | G56: 0 | H56: 0 | I56: 0 | J56: 0 | K56: 0 | L56: 0 | M56: 0 | N56: 0 | O56: 750000 | P56: 0 | Q56: 0 | R56: 0 | S56: 0 | T56: 0 | U56: 0 | V56: 0 | W56: 0 | X56: 0 | Y56: 0 | Z56: =IF(COUNTIF(D56:Y56,"<>0")<=1,IF(SUM(D56:Y56)=0,0,(IF(SUM(D56:Y56)>0,IF(SUM(D56:Y56)<400,(1.2675*45967*SUM(D56:Y56)^(-0.4664)),(IF(SUM(D56:Y56)<2000,(39128*SUM(D56:Y56)^(-0.37661)),IF(SUM(D56:Y56)<5000,18893*SUM(D56:Y56)^(-0.28083),IF(SUM(D56:Y56)<100000,29680*SUM(D56:Y56)^(-0.24475),1773.1))))*100/115)*SUM(D56:Y56)*(IF(SUM(D40:Y40)>0,0.0722,0.0776)),0)*1.15*1.06*0.47)/SUM(D56:Y56)),$A$73) -> 63.77847792 | AA56: 0 | AB56: 0 | AC56: 0 | AD56: 0 | AE56: 0 | AF56: 0 | AG56: 0 | AH56: 0 | AI56: 0 | AJ56: 0 | AK56: 0 | AL56: 19133543.38 | AM56: 0 | AN56: 0 | AO56: 0 | AP56: 0 | AQ56: 0 | AR56: 0 | AS56: 0 | AT56: 0 | AU56: 0 | AV56: 0 | AW56: 19133543.38 | AX56: =VLOOKUP(D$3,Prisindeks!$A$1:$B$111,2,FALSE)/100*AA56 -> 0 | AY56: =VLOOKUP(E$3,Prisindeks!$A$1:$B$111,2,FALSE)/100*AB56 -> 0 | AZ56: =VLOOKUP(F$3,Prisindeks!$A$1:$B$111,2,FALSE)/100*AC56 -> 0 | BA56: =VLOOKUP(G$3,Prisindeks!$A$1:$B$111,2,FALSE)/100*AD56 -> 0 | BB56: =VLOOKUP(H$3,Prisindeks!$A$1:$B$111,2,FALSE)/100*AE56 -> 0 | BC56: =VLOOKUP(I$3,Prisindeks!$A$1:$B$111,2,FALSE)/100*AF56 -> 0 | BD56: =VLOOKUP(J$3,Prisindeks!$A$1:$B$111,2,FALSE)/100*AG56 -> 0 | BE56: =VLOOKUP(K$3,Prisindeks!$A$1:$B$111,2,FALSE)/100*AH56 -> 0 | BF56: =VLOOKUP(L$3,Prisindeks!$A$1:$B$111,2,FALSE)/100*AI56 -> 0 | BG56: =VLOOKUP(M$3,Prisindeks!$A$1:$B$111,2,FALSE)/100*AJ56 -> 0 | BH56: =VLOOKUP(N$3,Prisindeks!$A$1:$B$111,2,FALSE)/100*AK56 -> 0 | BI56: =VLOOKUP(O$3,Prisindeks!$A$1:$B$111,2,FALSE)/100*AL56 -> 15439903.83 | BJ56: =VLOOKUP(P$3,Prisindeks!$A$1:$B$111,2,FALSE)/100*AM56 -> 0 | BK56: =VLOOKUP(Q$3,Prisindeks!$A$1:$B$111,2,FALSE)/100*AN56 -> 0 | BL56: =VLOOKUP(R$3,Prisindeks!$A$1:$B$111,2,FALSE)/100*AO56 -> 0 | BM56: =VLOOKUP(S$3,Prisindeks!$A$1:$B$111,2,FALSE)/100*AP56 -> 0 | BN56: =VLOOKUP(T$3,Prisindeks!$A$1:$B$111,2,FALSE)/100*AQ56 -> 0 | BO56: =VLOOKUP(U$3,Prisindeks!$A$1:$B$111,2,FALSE)/100*AR56 -> 0 | BP56: =VLOOKUP(V$3,Prisindeks!$A$1:$B$111,2,FALSE)/100*AS56 -> 0 | BQ56: =VLOOKUP(W$3,Prisindeks!$A$1:$B$111,2,FALSE)/100*AT56 -> 0 | BR56: =VLOOKUP(X$3,Prisindeks!$A$1:$B$111,2,FALSE)/100*AU56 -> 0 | BS56: =VLOOKUP(Y$3,Prisindeks!$A$1:$B$111,2,FALSE)/100*AV56 -> 0 | BT56: 15439903.83 | BU56: 0 | BV56: 0 | BW56: 0 | BX56: 0 | BY56: 0 | BZ56: 0 | CA56: 0 | CB56: 0 | CC56: 0 | CD56: 0 | CE56: 0 | CF56: 17286723.6 | CG56: 0 | CH56: 0 | CI56: 0 | CJ56: 0 | CK56: 0 | CL56: 0 | CM56: 0 | CN56: 0 | CO56: 0 | CP56: 0 | CQ56: 17286723.6 | CR56: 750000
A57: =+Genanskaffelsespriser!$B$43 -> Slutafvanding, slam - højteknologisk (centrifuger), SRO | B57: PE | C57: =Genanskaffelsespriser!$E$43 -> 10 | D57: 0 | E57: 0 | F57: 0 | G57: 0 | H57: 0 | I57: 0 | J57: 0 | K57: 0 | L57: 0 | M57: 0 | N57: 0 | O57: 750000 | P57: 0 | Q57: 0 | R57: 0 | S57: 0 | T57: 0 | U57: 0 | V57: 0 | W57: 0 | X57: 0 | Y57: 0 | Z57: =IF(COUNTIF(D57:Y57,"<>0")<=1,IF(SUM(D57:Y57)=0,0,(IF(SUM(D57:Y57)>0,IF(SUM(D57:Y57)<400,(1.2675*45967*SUM(D57:Y57)^(-0.4664)),(IF(SUM(D57:Y57)<2000,(39128*SUM(D57:Y57)^(-0.37661)),IF(SUM(D57:Y57)<5000,18893*SUM(D57:Y57)^(-0.28083),IF(SUM(D57:Y57)<100000,29680*SUM(D57:Y57)^(-0.24475),1773.1))))*100/115)*SUM(D57:Y57)*(IF(SUM(D41:Y41)>0,0.0722,0.0776)),0)*1.15*1.06*0.04)/SUM(D57:Y57)),$A$73) -> 5.427955568 | AA57: 0 | AB57: 0 | AC57: 0 | AD57: 0 | AE57: 0 | AF57: 0 | AG57: 0 | AH57: 0 | AI57: 0 | AJ57: 0 | AK57: 0 | AL57: 0 | AM57: 0 | AN57: 0 | AO57: 0 | AP57: 0 | AQ57: 0 | AR57: 0 | AS57: 0 | AT57: 0 | AU57: 0 | AV57: 0 | AW57: 0 | AX57: =VLOOKUP(D$3,Prisindeks!$A$1:$B$111,2,FALSE)/100*AA57 -> 0 | AY57: =VLOOKUP(E$3,Prisindeks!$A$1:$B$111,2,FALSE)/100*AB57 -> 0 | AZ57: =VLOOKUP(F$3,Prisindeks!$A$1:$B$111,2,FALSE)/100*AC57 -> 0 | BA57: =VLOOKUP(G$3,Prisindeks!$A$1:$B$111,2,FALSE)/100*AD57 -> 0 | BB57: =VLOOKUP(H$3,Prisindeks!$A$1:$B$111,2,FALSE)/100*AE57 -> 0 | BC57: =VLOOKUP(I$3,Prisindeks!$A$1:$B$111,2,FALSE)/100*AF57 -> 0 | BD57: =VLOOKUP(J$3,Prisindeks!$A$1:$B$111,2,FALSE)/100*AG57 -> 0 | BE57: =VLOOKUP(K$3,Prisindeks!$A$1:$B$111,2,FALSE)/100*AH57 -> 0 | BF57: =VLOOKUP(L$3,Prisindeks!$A$1:$B$111,2,FALSE)/100*AI57 -> 0 | BG57: =VLOOKUP(M$3,Prisindeks!$A$1:$B$111,2,FALSE)/100*AJ57 -> 0 | BH57: =VLOOKUP(N$3,Prisindeks!$A$1:$B$111,2,FALSE)/100*AK57 -> 0 | BI57: =VLOOKUP(O$3,Prisindeks!$A$1:$B$111,2,FALSE)/100*AL57 -> 0 | BJ57: =VLOOKUP(P$3,Prisindeks!$A$1:$B$111,2,FALSE)/100*AM57 -> 0 | BK57: =VLOOKUP(Q$3,Prisindeks!$A$1:$B$111,2,FALSE)/100*AN57 -> 0 | BL57: =VLOOKUP(R$3,Prisindeks!$A$1:$B$111,2,FALSE)/100*AO57 -> 0 | BM57: =VLOOKUP(S$3,Prisindeks!$A$1:$B$111,2,FALSE)/100*AP57 -> 0 | BN57: =VLOOKUP(T$3,Prisindeks!$A$1:$B$111,2,FALSE)/100*AQ57 -> 0 | BO57: =VLOOKUP(U$3,Prisindeks!$A$1:$B$111,2,FALSE)/100*AR57 -> 0 | BP57: =VLOOKUP(V$3,Prisindeks!$A$1:$B$111,2,FALSE)/100*AS57 -> 0 | BQ57: =VLOOKUP(W$3,Prisindeks!$A$1:$B$111,2,FALSE)/100*AT57 -> 0 | BR57: =VLOOKUP(X$3,Prisindeks!$A$1:$B$111,2,FALSE)/100*AU57 -> 0 | BS57: =VLOOKUP(Y$3,Prisindeks!$A$1:$B$111,2,FALSE)/100*AV57 -> 0 | BT57: 0 | BU57: 0 | BV57: 0 | BW57: 0 | BX57: 0 | BY57: 0 | BZ57: 0 | CA57: 0 | CB57: 0 | CC57: 0 | CD57: 0 | CE57: 0 | CF57: 0 | CG57: 0 | CH57: 0 | CI57: 0 | CJ57: 0 | CK57: 0 | CL57: 0 | CM57: 0 | CN57: 0 | CO57: 0 | CP57: 0 | CQ57: 0 | CR57: 750000
A58: Renseanlæg >= 5.000 PE, Slamdisponering | AW58: =+SUM(AW59:AW70) -> 696752689.3 | BT58: =+SUM(BT59:BT70) -> 423597065.7 | CQ58: =+SUM(CQ59:CQ70) -> 560174877.5 | CR58: 0
A59: =+Genanskaffelsespriser!$B$45 -> Slutdisponering, slam - lavteknologisk (slammineralisering), Konstruktioner | B59: PE | C59: =Genanskaffelsespriser!$E$45 -> 60 | D59: 0 | E59: 0 | F59: 0 | G59: 0 | H59: 0 | I59: 0 | J59: 0 | K59: 0 | L59: 0 | M59: 0 | N59: 0 | O59: 0 | P59: 0 | Q59: 0 | R59: 0 | S59: 0 | T59: 0 | U59: 0 | V59: 0 | W59: 0 | X59: 0 | Y59: 0 | Z59: =IF(COUNTIF(D59:Y59,"<>0")<=1,IF(SUM(D59:Y59)=0,0,(IF(SUM(D59:Y59)>0,IF(SUM(D59:Y59)<400,(1.2675*45967*SUM(D59:Y59)^(-0.4664)),(IF(SUM(D59:Y59)<2000,(39128*SUM(D59:Y59)^(-0.37661)),IF(SUM(D59:Y59)<5000,18893*SUM(D59:Y59)^(-0.28083),IF(SUM(D59:Y59)<100000,29680*SUM(D59:Y59)^(-0.24475),1773.1))))*100/115)*SUM(D59:Y59)*(IF(SUM(D38:Y38)>0,0.2191,0.2778)),0)*1.15*1.06*0.8)*(1+Genanskaffelsespriser!$D$389)/SUM(D59:Y59)),$A$73) -> 0 | AA59: =IF((D59*$Z59-(2009-D$3)/($C59+D60)*$Z59*D59)<0,0,(D59*$Z59-(2009-D$3)/($C59+D60)*$Z59*D59)) -> 0 | AB59: =IF((E59*$Z59-(2009-E$3)/($C59+E60)*$Z59*E59)<0,0,(E59*$Z59-(2009-E$3)/($C59+E60)*$Z59*E59)) -> 0 | AC59: =IF((F59*$Z59-(2009-F$3)/($C59+F60)*$Z59*F59)<0,0,(F59*$Z59-(2009-F$3)/($C59+F60)*$Z59*F59)) -> 0 | AD59: 0 | AE59: 0 | AF59: 0 | AG59: 0 | AH59: 0 | AI59: 0 | AJ59: 0 | AK59: 0 | AL59: 0 | AM59: 0 | AN59: 0 | AO59: 0 | AP59: 0 | AQ59: 0 | AR59: 0 | AS59: 0 | AT59: 0 | AU59: 0 | AV59: 0 | AW59: =+SUM(AA59:AV59) -> 0 | AX59: =VLOOKUP(D$3,Prisindeks!$A$1:$B$111,2,FALSE)/100*AA59 -> 0 | AY59: =VLOOKUP(E$3,Prisindeks!$A$1:$B$111,2,FALSE)/100*AB59 -> 0 | AZ59: =VLOOKUP(F$3,Prisindeks!$A$1:$B$111,2,FALSE)/100*AC59 -> 0 | BA59: =VLOOKUP(G$3,Prisindeks!$A$1:$B$111,2,FALSE)/100*AD59 -> 0 | BB59: =VLOOKUP(H$3,Prisindeks!$A$1:$B$111,2,FALSE)/100*AE59 -> 0 | BC59: =VLOOKUP(I$3,Prisindeks!$A$1:$B$111,2,FALSE)/100*AF59 -> 0 | BD59: =VLOOKUP(J$3,Prisindeks!$A$1:$B$111,2,FALSE)/100*AG59 -> 0 | BE59: =VLOOKUP(K$3,Prisindeks!$A$1:$B$111,2,FALSE)/100*AH59 -> 0 | BF59: =VLOOKUP(L$3,Prisindeks!$A$1:$B$111,2,FALSE)/100*AI59 -> 0 | BG59: =VLOOKUP(M$3,Prisindeks!$A$1:$B$111,2,FALSE)/100*AJ59 -> 0 | BH59: =VLOOKUP(N$3,Prisindeks!$A$1:$B$111,2,FALSE)/100*AK59 -> 0 | BI59: =VLOOKUP(O$3,Prisindeks!$A$1:$B$111,2,FALSE)/100*AL59 -> 0 | BJ59: =VLOOKUP(P$3,Prisindeks!$A$1:$B$111,2,FALSE)/100*AM59 -> 0 | BK59: =VLOOKUP(Q$3,Prisindeks!$A$1:$B$111,2,FALSE)/100*AN59 -> 0 | BL59: =VLOOKUP(R$3,Prisindeks!$A$1:$B$111,2,FALSE)/100*AO59 -> 0 | BM59: =VLOOKUP(S$3,Prisindeks!$A$1:$B$111,2,FALSE)/100*AP59 -> 0 | BN59: =VLOOKUP(T$3,Prisindeks!$A$1:$B$111,2,FALSE)/100*AQ59 -> 0 | BO59: =VLOOKUP(U$3,Prisindeks!$A$1:$B$111,2,FALSE)/100*AR59 -> 0 | BP59: =VLOOKUP(V$3,Prisindeks!$A$1:$B$111,2,FALSE)/100*AS59 -> 0 | BQ59: =VLOOKUP(W$3,Prisindeks!$A$1:$B$111,2,FALSE)/100*AT59 -> 0 | BR59: =VLOOKUP(X$3,Prisindeks!$A$1:$B$111,2,FALSE)/100*AU59 -> 0 | BS59: =VLOOKUP(Y$3,Prisindeks!$A$1:$B$111,2,FALSE)/100*AV59 -> 0 | BT59: =+SUM(AX59:BS59) -> 0 | BU59: =(AA59+AX59)/2 -> 0 | BV59: 0 | BW59: 0 | BX59: 0 | BY59: 0 | BZ59: 0 | CA59: 0 | CB59: 0 | CC59: 0 | CD59: 0 | CE59: 0 | CF59: 0 | CG59: 0 | CH59: 0 | CI59: 0 | CJ59: 0 | CK59: 0 | CL59: 0 | CM59: 0 | CN59: 0 | CO59: 0 | CP59: 0 | CQ59: =+SUM(BU59:CP59) -> 0 | CR59: 0
A60: Levetidsforlængelse | B60: år | C60: - | D60: 0 | E60: 0 | F60: 0 | G60: 0 | H60: 0 | I60: 0 | J60: 0 | K60: 0 | L60: 0 | M60: 0 | N60: 0 | O60: 0 | P60: 0 | Q60: 0 | R60: 0 | S60: 0 | T60: 0 | U60: 0 | V60: 0 | W60: 0 | X60: 0 | Y60: 0
A61: =+Genanskaffelsespriser!$B$46 -> Slutdisponering, slam - lavteknologisk (slammineralisering), Mek/EL | B61: PE | C61: =Genanskaffelsespriser!$E$46 -> 20 | D61: 0 | E61: 0 | F61: 0 | G61: 0 | H61: 0 | I61: 0 | J61: 0 | K61: 0 | L61: 0 | M61: 0 | N61: 0 | O61: 0 | P61: 0 | Q61: 0 | R61: 0 | S61: 0 | T61: 0 | U61: 0 | V61: 0 | W61: 0 | X61: 0 | Y61: 0 | Z61: =IF(COUNTIF(D61:Y61,"<>0")<=1,IF(SUM(D61:Y61)=0,0,(IF(SUM(D61:Y61)>0,IF(SUM(D61:Y61)<400,(1.2675*45967*SUM(D61:Y61)^(-0.4664)),(IF(SUM(D61:Y61)<2000,(39128*SUM(D61:Y61)^(-0.37661)),IF(SUM(D61:Y61)<5000,18893*SUM(D61:Y61)^(-0.28083),IF(SUM(D61:Y61)<100000,29680*SUM(D61:Y61)^(-0.24475),1773.1))))*100/115)*SUM(D61:Y61)*(IF(SUM(D40:Y40)>0,0.2191,0.2778)),0)*1.15*1.06*0.14)/SUM(D61:Y61)),$A$73) -> 0 | AA61: =IF((D61*$Z61-(2009-D$3)/$C61*$Z61*D61)<0,0,(D61*$Z61-(2009-D$3)/$C61*$Z61*D61)) -> 0 | AB61: =IF((E61*$Z61-(2009-E$3)/$C61*$Z61*E61)<0,0,(E61*$Z61-(2009-E$3)/$C61*$Z61*E61)) -> 0 | AC61: =IF((F61*$Z61-(2009-F$3)/$C61*$Z61*F61)<0,0,(F61*$Z61-(2009-F$3)/$C61*$Z61*F61)) -> 0 | AD61: =IF((G61*$Z61-(2009-G$3)/$C61*$Z61*G61)<0,0,(G61*$Z61-(2009-G$3)/$C61*$Z61*G61)) -> 0 | AE61: =IF((H61*$Z61-(2009-H$3)/$C61*$Z61*H61)<0,0,(H61*$Z61-(2009-H$3)/$C61*$Z61*H61)) -> 0 | AF61: =IF((I61*$Z61-(2009-I$3)/$C61*$Z61*I61)<0,0,(I61*$Z61-(2009-I$3)/$C61*$Z61*I61)) -> 0 | AG61: =IF((J61*$Z61-(2009-J$3)/$C61*$Z61*J61)<0,0,(J61*$Z61-(2009-J$3)/$C61*$Z61*J61)) -> 0 | AH61: =IF((K61*$Z61-(2009-K$3)/$C61*$Z61*K61)<0,0,(K61*$Z61-(2009-K$3)/$C61*$Z61*K61)) -> 0 | AI61: =IF((L61*$Z61-(2009-L$3)/$C61*$Z61*L61)<0,0,(L61*$Z61-(2009-L$3)/$C61*$Z61*L61)) -> 0 | AJ61: =IF((M61*$Z61-(2009-M$3)/$C61*$Z61*M61)<0,0,(M61*$Z61-(2009-M$3)/$C61*$Z61*M61)) -> 0 | AK61: =IF((N61*$Z61-(2009-N$3)/$C61*$Z61*N61)<0,0,(N61*$Z61-(2009-N$3)/$C61*$Z61*N61)) -> 0 | AL61: =IF((O61*$Z61-(2009-O$3)/$C61*$Z61*O61)<0,0,(O61*$Z61-(2009-O$3)/$C61*$Z61*O61)) -> 0 | AM61: =IF((P61*$Z61-(2009-P$3)/$C61*$Z61*P61)<0,0,(P61*$Z61-(2009-P$3)/$C61*$Z61*P61)) -> 0 | AN61: =IF((Q61*$Z61-(2009-Q$3)/$C61*$Z61*Q61)<0,0,(Q61*$Z61-(2009-Q$3)/$C61*$Z61*Q61)) -> 0 | AO61: =IF((R61*$Z61-(2009-R$3)/$C61*$Z61*R61)<0,0,(R61*$Z61-(2009-R$3)/$C61*$Z61*R61)) -> 0 | AP61: =IF((S61*$Z61-(2009-S$3)/$C61*$Z61*S61)<0,0,(S61*$Z61-(2009-S$3)/$C61*$Z61*S61)) -> 0 | AQ61: =IF((T61*$Z61-(2009-T$3)/$C61*$Z61*T61)<0,0,(T61*$Z61-(2009-T$3)/$C61*$Z61*T61)) -> 0 | AR61: =IF((U61*$Z61-(2009-U$3)/$C61*$Z61*U61)<0,0,(U61*$Z61-(2009-U$3)/$C61*$Z61*U61)) -> 0 | AS61: =IF((V61*$Z61-(2009-V$3)/$C61*$Z61*V61)<0,0,(V61*$Z61-(2009-V$3)/$C61*$Z61*V61)) -> 0 | AT61: =IF((W61*$Z61-(2009-W$3)/$C61*$Z61*W61)<0,0,(W61*$Z61-(2009-W$3)/$C61*$Z61*W61)) -> 0 | AU61: =IF((X61*$Z61-(2009-X$3)/$C61*$Z61*X61)<0,0,(X61*$Z61-(2009-X$3)/$C61*$Z61*X61)) -> 0 | AV61: =IF((Y61*$Z61-(2009-Y$3)/$C61*$Z61*Y61)<0,0,(Y61*$Z61-(2009-Y$3)/$C61*$Z61*Y61)) -> 0 | AW61: =+SUM(AA61:AV61) -> 0 | AX61: =VLOOKUP(D$3,Prisindeks!$A$1:$B$111,2,FALSE)/100*AA61 -> 0 | AY61: =VLOOKUP(E$3,Prisindeks!$A$1:$B$111,2,FALSE)/100*AB61 -> 0 | AZ61: =VLOOKUP(F$3,Prisindeks!$A$1:$B$111,2,FALSE)/100*AC61 -> 0 | BA61: =VLOOKUP(G$3,Prisindeks!$A$1:$B$111,2,FALSE)/100*AD61 -> 0 | BB61: =VLOOKUP(H$3,Prisindeks!$A$1:$B$111,2,FALSE)/100*AE61 -> 0 | BC61: =VLOOKUP(I$3,Prisindeks!$A$1:$B$111,2,FALSE)/100*AF61 -> 0 | BD61: =VLOOKUP(J$3,Prisindeks!$A$1:$B$111,2,FALSE)/100*AG61 -> 0 | BE61: =VLOOKUP(K$3,Prisindeks!$A$1:$B$111,2,FALSE)/100*AH61 -> 0 | BF61: =VLOOKUP(L$3,Prisindeks!$A$1:$B$111,2,FALSE)/100*AI61 -> 0 | BG61: =VLOOKUP(M$3,Prisindeks!$A$1:$B$111,2,FALSE)/100*AJ61 -> 0 | BH61: =VLOOKUP(N$3,Prisindeks!$A$1:$B$111,2,FALSE)/100*AK61 -> 0 | BI61: =VLOOKUP(O$3,Prisindeks!$A$1:$B$111,2,FALSE)/100*AL61 -> 0 | BJ61: =VLOOKUP(P$3,Prisindeks!$A$1:$B$111,2,FALSE)/100*AM61 -> 0 | BK61: =VLOOKUP(Q$3,Prisindeks!$A$1:$B$111,2,FALSE)/100*AN61 -> 0 | BL61: =VLOOKUP(R$3,Prisindeks!$A$1:$B$111,2,FALSE)/100*AO61 -> 0 | BM61: =VLOOKUP(S$3,Prisindeks!$A$1:$B$111,2,FALSE)/100*AP61 -> 0 | BN61: =VLOOKUP(T$3,Prisindeks!$A$1:$B$111,2,FALSE)/100*AQ61 -> 0 | BO61: =VLOOKUP(U$3,Prisindeks!$A$1:$B$111,2,FALSE)/100*AR61 -> 0 | BP61: =VLOOKUP(V$3,Prisindeks!$A$1:$B$111,2,FALSE)/100*AS61 -> 0 | BQ61: =VLOOKUP(W$3,Prisindeks!$A$1:$B$111,2,FALSE)/100*AT61 -> 0 | BR61: =VLOOKUP(X$3,Prisindeks!$A$1:$B$111,2,FALSE)/100*AU61 -> 0 | BS61: =VLOOKUP(Y$3,Prisindeks!$A$1:$B$111,2,FALSE)/100*AV61 -> 0 | BT61: =+SUM(AX61:BS61) -> 0 | BU61: =(AA61+AX61)/2 -> 0 | BV61: =(AB61+AY61)/2 -> 0 | BW61: =(AC61+AZ61)/2 -> 0 | BX61: =(AD61+BA61)/2 -> 0 | BY61: =(AE61+BB61)/2 -> 0 | BZ61: =(AF61+BC61)/2 -> 0 | CA61: =(AG61+BD61)/2 -> 0 | CB61: =(AH61+BE61)/2 -> 0 | CC61: =(AI61+BF61)/2 -> 0 | CD61: =(AJ61+BG61)/2 -> 0 | CE61: =(AK61+BH61)/2 -> 0 | CF61: =(AL61+BI61)/2 -> 0 | CG61: =(AM61+BJ61)/2 -> 0 | CH61: =(AN61+BK61)/2 -> 0 | CI61: =(AO61+BL61)/2 -> 0 | CJ61: =(AP61+BM61)/2 -> 0 | CK61: =(AQ61+BN61)/2 -> 0 | CL61: =(AR61+BO61)/2 -> 0 | CM61: =(AS61+BP61)/2 -> 0 | CN61: =(AT61+BQ61)/2 -> 0 | CO61: =(AU61+BR61)/2 -> 0 | CP61: =(AV61+BS61)/2 -> 0 | CQ61: =+SUM(BU61:CP61) -> 0 | CR61: 0
A62: =+Genanskaffelsespriser!$B$47 -> Slutdisponering, slam - lavteknologisk (slammineralisering), SRO | B62: PE | C62: =Genanskaffelsespriser!$E$47 -> 10 | D62: 0 | E62: 0 | F62: 0 | G62: 0 | H62: 0 | I62: 0 | J62: 0 | K62: 0 | L62: 0 | M62: 0 | N62: 0 | O62: 0 | P62: 0 | Q62: 0 | R62: 0 | S62: 0 | T62: 0 | U62: 0 | V62: 0 | W62: 0 | X62: 0 | Y62: 0 | Z62: =IF(COUNTIF(D62:Y62,"<>0")<=1,IF(SUM(D62:Y62)=0,0,(IF(SUM(D62:Y62)>0,IF(SUM(D62:Y62)<400,(1.2675*45967*SUM(D62:Y62)^(-0.4664)),(IF(SUM(D62:Y62)<2000,(39128*SUM(D62:Y62)^(-0.37661)),IF(SUM(D62:Y62)<5000,18893*SUM(D62:Y62)^(-0.28083),IF(SUM(D62:Y62)<100000,29680*SUM(D62:Y62)^(-0.24475),1773.1))))*100/115)*SUM(D62:Y62)*(IF(SUM(D41:Y41)>0,0.2191,0.2778)),0)*1.15*1.06*0.06)/SUM(D62:Y62)),$A$73) -> 0 | AA62: 0 | AB62: 0 | AC62: 0 | AD62: 0 | AE62: 0 | AF62: 0 | AG62: 0 | AH62: 0 | AI62: 0 | AJ62: 0 | AK62: 0 | AL62: 0 | AM62: 0 | AN62: 0 | AO62: 0 | AP62: 0 | AQ62: 0 | AR62: 0 | AS62: 0 | AT62: 0 | AU62: 0 | AV62: 0 | AW62: 0 | AX62: =VLOOKUP(D$3,Prisindeks!$A$1:$B$111,2,FALSE)/100*AA62 -> 0 | AY62: =VLOOKUP(E$3,Prisindeks!$A$1:$B$111,2,FALSE)/100*AB62 -> 0 | AZ62: =VLOOKUP(F$3,Prisindeks!$A$1:$B$111,2,FALSE)/100*AC62 -> 0 | BA62: =VLOOKUP(G$3,Prisindeks!$A$1:$B$111,2,FALSE)/100*AD62 -> 0 | BB62: =VLOOKUP(H$3,Prisindeks!$A$1:$B$111,2,FALSE)/100*AE62 -> 0 | BC62: =VLOOKUP(I$3,Prisindeks!$A$1:$B$111,2,FALSE)/100*AF62 -> 0 | BD62: =VLOOKUP(J$3,Prisindeks!$A$1:$B$111,2,FALSE)/100*AG62 -> 0 | BE62: =VLOOKUP(K$3,Prisindeks!$A$1:$B$111,2,FALSE)/100*AH62 -> 0 | BF62: =VLOOKUP(L$3,Prisindeks!$A$1:$B$111,2,FALSE)/100*AI62 -> 0 | BG62: =VLOOKUP(M$3,Prisindeks!$A$1:$B$111,2,FALSE)/100*AJ62 -> 0 | BH62: =VLOOKUP(N$3,Prisindeks!$A$1:$B$111,2,FALSE)/100*AK62 -> 0 | BI62: =VLOOKUP(O$3,Prisindeks!$A$1:$B$111,2,FALSE)/100*AL62 -> 0 | BJ62: =VLOOKUP(P$3,Prisindeks!$A$1:$B$111,2,FALSE)/100*AM62 -> 0 | BK62: =VLOOKUP(Q$3,Prisindeks!$A$1:$B$111,2,FALSE)/100*AN62 -> 0 | BL62: =VLOOKUP(R$3,Prisindeks!$A$1:$B$111,2,FALSE)/100*AO62 -> 0 | BM62: =VLOOKUP(S$3,Prisindeks!$A$1:$B$111,2,FALSE)/100*AP62 -> 0 | BN62: =VLOOKUP(T$3,Prisindeks!$A$1:$B$111,2,FALSE)/100*AQ62 -> 0 | BO62: =VLOOKUP(U$3,Prisindeks!$A$1:$B$111,2,FALSE)/100*AR62 -> 0 | BP62: =VLOOKUP(V$3,Prisindeks!$A$1:$B$111,2,FALSE)/100*AS62 -> 0 | BQ62: =VLOOKUP(W$3,Prisindeks!$A$1:$B$111,2,FALSE)/100*AT62 -> 0 | BR62: =VLOOKUP(X$3,Prisindeks!$A$1:$B$111,2,FALSE)/100*AU62 -> 0 | BS62: =VLOOKUP(Y$3,Prisindeks!$A$1:$B$111,2,FALSE)/100*AV62 -> 0 | BT62: 0 | BU62: 0 | BV62: 0 | BW62: 0 | BX62: 0 | BY62: 0 | BZ62: 0 | CA62: 0 | CB62: 0 | CC62: 0 | CD62: 0 | CE62: 0 | CF62: 0 | CG62: 0 | CH62: 0 | CI62: 0 | CJ62: 0 | CK62: 0 | CL62: 0 | CM62: 0 | CN62: 0 | CO62: 0 | CP62: 0 | CQ62: 0 | CR62: 0
A63: =+Genanskaffelsespriser!$B$48 -> Slutdisponering, slam - højteknologisk (slamtørring), Konstruktioner | B63: PE | C63: =Genanskaffelsespriser!$E$48 -> 60 | D63: 0 | E63: 0 | F63: 0 | G63: 0 | H63: 0 | I63: 0 | J63: 0 | K63: 0 | L63: 0 | M63: 0 | N63: 0 | O63: 0 | P63: 0 | Q63: 0 | R63: 0 | S63: 0 | T63: 0 | U63: 0 | V63: 0 | W63: 0 | X63: 0 | Y63: 0 | Z63: =IF(COUNTIF(D63:Y63,"<>0")<=1,IF(SUM(D63:Y63)=0,0,(IF(SUM(D63:Y63)>0,IF(SUM(D63:Y63)<400,(1.2675*45967*SUM(D63:Y63)^(-0.4664)),(IF(SUM(D63:Y63)<2000,(39128*SUM(D63:Y63)^(-0.37661)),IF(SUM(D63:Y63)<5000,18893*SUM(D63:Y63)^(-0.28083),IF(SUM(D63:Y63)<100000,29680*SUM(D63:Y63)^(-0.24475),1773.1))))*100/115)*SUM(D63:Y63)*(IF(SUM(D38:Y38)>0,0.1922,0.2286)),0)*1.15*1.06*0.48)*(1+Genanskaffelsespriser!$D$389)/SUM(D63:Y63)),$A$73) -> 0 | AA63: =IF((D63*$Z63-(2009-D$3)/($C63+D64)*$Z63*D63)<0,0,(D63*$Z63-(2009-D$3)/($C63+D64)*$Z63*D63)) -> 0 | AB63: =IF((E63*$Z63-(2009-E$3)/($C63+E64)*$Z63*E63)<0,0,(E63*$Z63-(2009-E$3)/($C63+E64)*$Z63*E63)) -> 0 | AC63: =IF((F63*$Z63-(2009-F$3)/($C63+F64)*$Z63*F63)<0,0,(F63*$Z63-(2009-F$3)/($C63+F64)*$Z63*F63)) -> 0 | AD63: 0 | AE63: 0 | AF63: 0 | AG63: 0 | AH63: 0 | AI63: 0 | AJ63: 0 | AK63: 0 | AL63: 0 | AM63: 0 | AN63: 0 | AO63: 0 | AP63: 0 | AQ63: 0 | AR63: 0 | AS63: 0 | AT63: 0 | AU63: 0 | AV63: 0 | AW63: 0 | AX63: =VLOOKUP(D$3,Prisindeks!$A$1:$B$111,2,FALSE)/100*AA63 -> 0 | AY63: =VLOOKUP(E$3,Prisindeks!$A$1:$B$111,2,FALSE)/100*AB63 -> 0 | AZ63: =VLOOKUP(F$3,Prisindeks!$A$1:$B$111,2,FALSE)/100*AC63 -> 0 | BA63: =VLOOKUP(G$3,Prisindeks!$A$1:$B$111,2,FALSE)/100*AD63 -> 0 | BB63: =VLOOKUP(H$3,Prisindeks!$A$1:$B$111,2,FALSE)/100*AE63 -> 0 | BC63: =VLOOKUP(I$3,Prisindeks!$A$1:$B$111,2,FALSE)/100*AF63 -> 0 | BD63: =VLOOKUP(J$3,Prisindeks!$A$1:$B$111,2,FALSE)/100*AG63 -> 0 | BE63: =VLOOKUP(K$3,Prisindeks!$A$1:$B$111,2,FALSE)/100*AH63 -> 0 | BF63: =VLOOKUP(L$3,Prisindeks!$A$1:$B$111,2,FALSE)/100*AI63 -> 0 | BG63: =VLOOKUP(M$3,Prisindeks!$A$1:$B$111,2,FALSE)/100*AJ63 -> 0 | BH63: =VLOOKUP(N$3,Prisindeks!$A$1:$B$111,2,FALSE)/100*AK63 -> 0 | BI63: =VLOOKUP(O$3,Prisindeks!$A$1:$B$111,2,FALSE)/100*AL63 -> 0 | BJ63: =VLOOKUP(P$3,Prisindeks!$A$1:$B$111,2,FALSE)/100*AM63 -> 0 | BK63: =VLOOKUP(Q$3,Prisindeks!$A$1:$B$111,2,FALSE)/100*AN63 -> 0 | BL63: =VLOOKUP(R$3,Prisindeks!$A$1:$B$111,2,FALSE)/100*AO63 -> 0 | BM63: =VLOOKUP(S$3,Prisindeks!$A$1:$B$111,2,FALSE)/100*AP63 -> 0 | BN63: =VLOOKUP(T$3,Prisindeks!$A$1:$B$111,2,FALSE)/100*AQ63 -> 0 | BO63: =VLOOKUP(U$3,Prisindeks!$A$1:$B$111,2,FALSE)/100*AR63 -> 0 | BP63: =VLOOKUP(V$3,Prisindeks!$A$1:$B$111,2,FALSE)/100*AS63 -> 0 | BQ63: =VLOOKUP(W$3,Prisindeks!$A$1:$B$111,2,FALSE)/100*AT63 -> 0 | BR63: =VLOOKUP(X$3,Prisindeks!$A$1:$B$111,2,FALSE)/100*AU63 -> 0 | BS63: =VLOOKUP(Y$3,Prisindeks!$A$1:$B$111,2,FALSE)/100*AV63 -> 0 | BT63: 0 | BU63: 0 | BV63: 0 | BW63: 0 | BX63: 0 | BY63: 0 | BZ63: 0 | CA63: 0 | CB63: 0 | CC63: 0 | CD63: 0 | CE63: 0 | CF63: 0 | CG63: 0 | CH63: 0 | CI63: 0 | CJ63: 0 | CK63: 0 | CL63: 0 | CM63: 0 | CN63: 0 | CO63: 0 | CP63: 0 | CQ63: 0 | CR63: 0
A64: Levetidsforlængelse | B64: år | C64: - | D64: 0 | E64: 0 | F64: 0 | G64: 0 | H64: 0 | I64: 0 | J64: 0 | K64: 0 | L64: 0 | M64: 0 | N64: 0 | O64: 0 | P64: 0 | Q64: 0 | R64: 0 | S64: 0 | T64: 0 | U64: 0 | V64: 0 | W64: 0 | X64: 0 | Y64: 0
A65: =+Genanskaffelsespriser!$B$49 -> Slutdisponering, slam - højteknologisk (slamtørring), Mek/EL | B65: PE | C65: =Genanskaffelsespriser!$E$49 -> 20 | D65: 0 | E65: 0 | F65: 0 | G65: 0 | H65: 0 | I65: 0 | J65: 0 | K65: 0 | L65: 0 | M65: 0 | N65: 0 | O65: 0 | P65: 2400000 | Q65: 0 | R65: 0 | S65: 0 | T65: 0 | U65: 0 | V65: 0 | W65: 0 | X65: 0 | Y65: 0 | Z65: =IF(COUNTIF(D65:Y65,"<>0")<=1,IF(SUM(D65:Y65)=0,0,(IF(SUM(D65:Y65)>0,IF(SUM(D65:Y65)<400,(1.2675*45967*SUM(D65:Y65)^(-0.4664)),(IF(SUM(D65:Y65)<2000,(39128*SUM(D65:Y65)^(-0.37661)),IF(SUM(D65:Y65)<5000,18893*SUM(D65:Y65)^(-0.28083),IF(SUM(D65:Y65)<100000,29680*SUM(D65:Y65)^(-0.24475),1773.1))))*100/115)*SUM(D65:Y65)*(IF(SUM(D40:Y40)>0,0.1922,0.2286)),0)*1.15*1.06*0.47)/SUM(D65:Y65)),$A$73) -> 169.7814883 | AA65: 0 | AB65: 0 | AC65: 0 | AD65: 0 | AE65: 0 | AF65: 0 | AG65: 0 | AH65: 0 | AI65: 0 | AJ65: 0 | AK65: 0 | AL65: 0 | AM65: 224111564.6 | AN65: 0 | AO65: 0 | AP65: 0 | AQ65: 0 | AR65: 0 | AS65: 0 | AT65: 0 | AU65: 0 | AV65: 0 | AW65: 224111564.6 | AX65: =VLOOKUP(D$3,Prisindeks!$A$1:$B$111,2,FALSE)/100*AA65 -> 0 | AY65: =VLOOKUP(E$3,Prisindeks!$A$1:$B$111,2,FALSE)/100*AB65 -> 0 | AZ65: =VLOOKUP(F$3,Prisindeks!$A$1:$B$111,2,FALSE)/100*AC65 -> 0 | BA65: =VLOOKUP(G$3,Prisindeks!$A$1:$B$111,2,FALSE)/100*AD65 -> 0 | BB65: =VLOOKUP(H$3,Prisindeks!$A$1:$B$111,2,FALSE)/100*AE65 -> 0 | BC65: =VLOOKUP(I$3,Prisindeks!$A$1:$B$111,2,FALSE)/100*AF65 -> 0 | BD65: =VLOOKUP(J$3,Prisindeks!$A$1:$B$111,2,FALSE)/100*AG65 -> 0 | BE65: =VLOOKUP(K$3,Prisindeks!$A$1:$B$111,2,FALSE)/100*AH65 -> 0 | BF65: =VLOOKUP(L$3,Prisindeks!$A$1:$B$111,2,FALSE)/100*AI65 -> 0 | BG65: =VLOOKUP(M$3,Prisindeks!$A$1:$B$111,2,FALSE)/100*AJ65 -> 0 | BH65: =VLOOKUP(N$3,Prisindeks!$A$1:$B$111,2,FALSE)/100*AK65 -> 0 | BI65: =VLOOKUP(O$3,Prisindeks!$A$1:$B$111,2,FALSE)/100*AL65 -> 0 | BJ65: =VLOOKUP(P$3,Prisindeks!$A$1:$B$111,2,FALSE)/100*AM65 -> 199048055.5 | BK65: =VLOOKUP(Q$3,Prisindeks!$A$1:$B$111,2,FALSE)/100*AN65 -> 0 | BL65: =VLOOKUP(R$3,Prisindeks!$A$1:$B$111,2,FALSE)/100*AO65 -> 0 | BM65: =VLOOKUP(S$3,Prisindeks!$A$1:$B$111,2,FALSE)/100*AP65 -> 0 | BN65: =VLOOKUP(T$3,Prisindeks!$A$1:$B$111,2,FALSE)/100*AQ65 -> 0 | BO65: =VLOOKUP(U$3,Prisindeks!$A$1:$B$111,2,FALSE)/100*AR65 -> 0 | BP65: =VLOOKUP(V$3,Prisindeks!$A$1:$B$111,2,FALSE)/100*AS65 -> 0 | BQ65: =VLOOKUP(W$3,Prisindeks!$A$1:$B$111,2,FALSE)/100*AT65 -> 0 | BR65: =VLOOKUP(X$3,Prisindeks!$A$1:$B$111,2,FALSE)/100*AU65 -> 0 | BS65: =VLOOKUP(Y$3,Prisindeks!$A$1:$B$111,2,FALSE)/100*AV65 -> 0 | BT65: 199048055.5 | BU65: 0 | BV65: 0 | BW65: 0 | BX65: 0 | BY65: 0 | BZ65: 0 | CA65: 0 | CB65: 0 | CC65: 0 | CD65: 0 | CE65: 0 | CF65: 0 | CG65: 211579810 | CH65: 0 | CI65: 0 | CJ65: 0 | CK65: 0 | CL65: 0 | CM65: 0 | CN65: 0 | CO65: 0 | CP65: 0 | CQ65: 211579810 | CR65: 2400000
A66: =+Genanskaffelsespriser!$B$50 -> Slutdisponering, slam - højteknologisk (slamtørring), SRO | B66: PE | C66: =Genanskaffelsespriser!$E$50 -> 10 | D66: 0 | E66: 0 | F66: 0 | G66: 0 | H66: 0 | I66: 0 | J66: 0 | K66: 0 | L66: 0 | M66: 0 | N66: 0 | O66: 0 | P66: 2400000 | Q66: 0 | R66: 0 | S66: 0 | T66: 0 | U66: 0 | V66: 0 | W66: 0 | X66: 0 | Y66: 0 | Z66: =IF(COUNTIF(D66:Y66,"<>0")<=1,IF(SUM(D66:Y66)=0,0,(IF(SUM(D66:Y66)>0,IF(SUM(D66:Y66)<400,(1.2675*45967*SUM(D66:Y66)^(-0.4664)),(IF(SUM(D66:Y66)<2000,(39128*SUM(D66:Y66)^(-0.37661)),IF(SUM(D66:Y66)<5000,18893*SUM(D66:Y66)^(-0.28083),IF(SUM(D66:Y66)<100000,29680*SUM(D66:Y66)^(-0.24475),1773.1))))*100/115)*SUM(D66:Y66)*(IF(SUM(D41:Y41)>0,0.1922,0.2286)),0)*1.15*1.06*0.05)/SUM(D66:Y66)),$A$73) -> 18.06186046 | AA66: 0 | AB66: 0 | AC66: 0 | AD66: 0 | AE66: 0 | AF66: 0 | AG66: 0 | AH66: 0 | AI66: 0 | AJ66: 0 | AK66: 0 | AL66: 0 | AM66: 4334846.51 | AN66: 0 | AO66: 0 | AP66: 0 | AQ66: 0 | AR66: 0 | AS66: 0 | AT66: 0 | AU66: 0 | AV66: 0 | AW66: 4334846.51 | AX66: =VLOOKUP(D$3,Prisindeks!$A$1:$B$111,2,FALSE)/100*AA66 -> 0 | AY66: =VLOOKUP(E$3,Prisindeks!$A$1:$B$111,2,FALSE)/100*AB66 -> 0 | AZ66: =VLOOKUP(F$3,Prisindeks!$A$1:$B$111,2,FALSE)/100*AC66 -> 0 | BA66: =VLOOKUP(G$3,Prisindeks!$A$1:$B$111,2,FALSE)/100*AD66 -> 0 | BB66: =VLOOKUP(H$3,Prisindeks!$A$1:$B$111,2,FALSE)/100*AE66 -> 0 | BC66: =VLOOKUP(I$3,Prisindeks!$A$1:$B$111,2,FALSE)/100*AF66 -> 0 | BD66: =VLOOKUP(J$3,Prisindeks!$A$1:$B$111,2,FALSE)/100*AG66 -> 0 | BE66: =VLOOKUP(K$3,Prisindeks!$A$1:$B$111,2,FALSE)/100*AH66 -> 0 | BF66: =VLOOKUP(L$3,Prisindeks!$A$1:$B$111,2,FALSE)/100*AI66 -> 0 | BG66: =VLOOKUP(M$3,Prisindeks!$A$1:$B$111,2,FALSE)/100*AJ66 -> 0 | BH66: =VLOOKUP(N$3,Prisindeks!$A$1:$B$111,2,FALSE)/100*AK66 -> 0 | BI66: =VLOOKUP(O$3,Prisindeks!$A$1:$B$111,2,FALSE)/100*AL66 -> 0 | BJ66: =VLOOKUP(P$3,Prisindeks!$A$1:$B$111,2,FALSE)/100*AM66 -> 3850059.101 | BK66: =VLOOKUP(Q$3,Prisindeks!$A$1:$B$111,2,FALSE)/100*AN66 -> 0 | BL66: =VLOOKUP(R$3,Prisindeks!$A$1:$B$111,2,FALSE)/100*AO66 -> 0 | BM66: =VLOOKUP(S$3,Prisindeks!$A$1:$B$111,2,FALSE)/100*AP66 -> 0 | BN66: =VLOOKUP(T$3,Prisindeks!$A$1:$B$111,2,FALSE)/100*AQ66 -> 0 | BO66: =VLOOKUP(U$3,Prisindeks!$A$1:$B$111,2,FALSE)/100*AR66 -> 0 | BP66: =VLOOKUP(V$3,Prisindeks!$A$1:$B$111,2,FALSE)/100*AS66 -> 0 | BQ66: =VLOOKUP(W$3,Prisindeks!$A$1:$B$111,2,FALSE)/100*AT66 -> 0 | BR66: =VLOOKUP(X$3,Prisindeks!$A$1:$B$111,2,FALSE)/100*AU66 -> 0 | BS66: =VLOOKUP(Y$3,Prisindeks!$A$1:$B$111,2,FALSE)/100*AV66 -> 0 | BT66: 3850059.101 | BU66: 0 | BV66: 0 | BW66: 0 | BX66: 0 | BY66: 0 | BZ66: 0 | CA66: 0 | CB66: 0 | CC66: 0 | CD66: 0 | CE66: 0 | CF66: 0 | CG66: 4092452.806 | CH66: 0 | CI66: 0 | CJ66: 0 | CK66: 0 | CL66: 0 | CM66: 0 | CN66: 0 | CO66: 0 | CP66: 0 | CQ66: 4092452.806 | CR66: 2400000
A67: =+Genanskaffelsespriser!$B$51 -> Slutdisponering, slam - højteknologisk (slamtørring og -forbrænding), Konstruktioner | B67: PE | C67: =Genanskaffelsespriser!$E$51 -> 60 | D67: 0 | E67: 0 | F67: 0 | G67: 0 | H67: 0 | I67: 0 | J67: 0 | K67: 0 | L67: 2400000 | M67: 0 | N67: 0 | O67: 0 | P67: 0 | Q67: 0 | R67: 0 | S67: 0 | T67: 0 | U67: 0 | V67: 0 | W67: 0 | X67: 0 | Y67: 0 | Z67: =IF(COUNTIF(D67:Y67,"<>0")<=1,IF(SUM(D67:Y67)=0,0,(IF(SUM(D67:Y67)>0,IF(SUM(D67:Y67)<400,(1.2675*45967*SUM(D67:Y67)^(-0.4664)),(IF(SUM(D67:Y67)<2000,(39128*SUM(D67:Y67)^(-0.37661)),IF(SUM(D67:Y67)<5000,18893*SUM(D67:Y67)^(-0.28083),IF(SUM(D67:Y67)<100000,29680*SUM(D67:Y67)^(-0.24475),1773.1))))*100/115)*SUM(D67:Y67)*(IF(SUM(D38:Y38)>0,0.4334,0.5155)),0)*1.15*1.06*0.42)*(1+Genanskaffelsespriser!$D$389)/SUM(D67:Y67)),$A$73) -> 354.7774835 | AA67: =IF((D67*$Z67-(2009-D$3)/($C67+D68)*$Z67*D67)<0,0,(D67*$Z67-(2009-D$3)/($C67+D68)*$Z67*D67)) -> 0 | AB67: =IF((E67*$Z67-(2009-E$3)/($C67+E68)*$Z67*E67)<0,0,(E67*$Z67-(2009-E$3)/($C67+E68)*$Z67*E67)) -> 0 | AC67: =IF((F67*$Z67-(2009-F$3)/($C67+F68)*$Z67*F67)<0,0,(F67*$Z67-(2009-F$3)/($C67+F68)*$Z67*F67)) -> 0 | AD67: 0 | AE67: 0 | AF67: 0 | AG67: 0 | AH67: 0 | AI67: 468306278.2 | AJ67: 0 | AK67: 0 | AL67: 0 | AM67: 0 | AN67: 0 | AO67: 0 | AP67: 0 | AQ67: 0 | AR67: 0 | AS67: 0 | AT67: 0 | AU67: 0 | AV67: 0 | AW67: 468306278.2 | AX67: =VLOOKUP(D$3,Prisindeks!$A$1:$B$111,2,FALSE)/100*AA67 -> 0 | AY67: =VLOOKUP(E$3,Prisindeks!$A$1:$B$111,2,FALSE)/100*AB67 -> 0 | AZ67: =VLOOKUP(F$3,Prisindeks!$A$1:$B$111,2,FALSE)/100*AC67 -> 0 | BA67: =VLOOKUP(G$3,Prisindeks!$A$1:$B$111,2,FALSE)/100*AD67 -> 0 | BB67: =VLOOKUP(H$3,Prisindeks!$A$1:$B$111,2,FALSE)/100*AE67 -> 0 | BC67: =VLOOKUP(I$3,Prisindeks!$A$1:$B$111,2,FALSE)/100*AF67 -> 0 | BD67: =VLOOKUP(J$3,Prisindeks!$A$1:$B$111,2,FALSE)/100*AG67 -> 0 | BE67: =VLOOKUP(K$3,Prisindeks!$A$1:$B$111,2,FALSE)/100*AH67 -> 0 | BF67: =VLOOKUP(L$3,Prisindeks!$A$1:$B$111,2,FALSE)/100*AI67 -> 220698951.1 | BG67: =VLOOKUP(M$3,Prisindeks!$A$1:$B$111,2,FALSE)/100*AJ67 -> 0 | BH67: =VLOOKUP(N$3,Prisindeks!$A$1:$B$111,2,FALSE)/100*AK67 -> 0 | BI67: =VLOOKUP(O$3,Prisindeks!$A$1:$B$111,2,FALSE)/100*AL67 -> 0 | BJ67: =VLOOKUP(P$3,Prisindeks!$A$1:$B$111,2,FALSE)/100*AM67 -> 0 | BK67: =VLOOKUP(Q$3,Prisindeks!$A$1:$B$111,2,FALSE)/100*AN67 -> 0 | BL67: =VLOOKUP(R$3,Prisindeks!$A$1:$B$111,2,FALSE)/100*AO67 -> 0 | BM67: =VLOOKUP(S$3,Prisindeks!$A$1:$B$111,2,FALSE)/100*AP67 -> 0 | BN67: =VLOOKUP(T$3,Prisindeks!$A$1:$B$111,2,FALSE)/100*AQ67 -> 0 | BO67: =VLOOKUP(U$3,Prisindeks!$A$1:$B$111,2,FALSE)/100*AR67 -> 0 | BP67: =VLOOKUP(V$3,Prisindeks!$A$1:$B$111,2,FALSE)/100*AS67 -> 0 | BQ67: =VLOOKUP(W$3,Prisindeks!$A$1:$B$111,2,FALSE)/100*AT67 -> 0 | BR67: =VLOOKUP(X$3,Prisindeks!$A$1:$B$111,2,FALSE)/100*AU67 -> 0 | BS67: =VLOOKUP(Y$3,Prisindeks!$A$1:$B$111,2,FALSE)/100*AV67 -> 0 | BT67: 220698951.1 | BU67: 0 | BV67: 0 | BW67: 0 | BX67: 0 | BY67: 0 | BZ67: 0 | CA67: 0 | CB67: 0 | CC67: 344502614.7 | CD67: 0 | CE67: 0 | CF67: 0 | CG67: 0 | CH67: 0 | CI67: 0 | CJ67: 0 | CK67: 0 | CL67: 0 | CM67: 0 | CN67: 0 | CO67: 0 | CP67: 0 | CQ67: 344502614.7 | CR67: 2400000
A68: Levetidsforlængelse | B68: år | C68: - | D68: 0 | E68: 0 | F68: 0 | G68: 0 | H68: 0 | I68: 0 | J68: 0 | K68: 0 | L68: 0 | M68: 0 | N68: 0 | O68: 0 | P68: 0 | Q68: 0 | R68: 0 | S68: 0 | T68: 0 | U68: 0 | V68: 0 | W68: 0 | X68: 0 | Y68: 0
A69: =+Genanskaffelsespriser!$B$52 -> Slutdisponering, slam - højteknologisk (slamtørring og -forbrænding), Mek/EL | B69: PE | C69: =Genanskaffelsespriser!$E$52 -> 20 | D69: 0 | E69: 0 | F69: 0 | G69: 0 | H69: 0 | I69: 0 | J69: 0 | K69: 0 | L69: 2400000 | M69: 0 | N69: 0 | O69: 0 | P69: 0 | Q69: 0 | R69: 0 | S69: 0 | T69: 0 | U69: 0 | V69: 0 | W69: 0 | X69: 0 | Y69: 0 | Z69: =IF(COUNTIF(D69:Y69,"<>0")<=1,IF(SUM(D69:Y69)=0,0,(IF(SUM(D69:Y69)>0,IF(SUM(D69:Y69)<400,(1.2675*45967*SUM(D69:Y69)^(-0.4664)),(IF(SUM(D69:Y69)<2000,(39128*SUM(D69:Y69)^(-0.37661)),IF(SUM(D69:Y69)<5000,18893*SUM(D69:Y69)^(-0.28083),IF(SUM(D69:Y69)<100000,29680*SUM(D69:Y69)^(-0.24475),1773.1))))*100/115)*SUM(D69:Y69)*(IF(SUM(D40:Y40)>0,0.4334,0.5155)),0)*1.15*1.06*0.53)/SUM(D69:Y69)),$A$73) -> 431.7216932 | AA69: 0 | AB69: 0 | AC69: 0 | AD69: 0 | AE69: 0 | AF69: 0 | AG69: 0 | AH69: 0 | AI69: 0 | AJ69: 0 | AK69: 0 | AL69: 0 | AM69: 0 | AN69: 0 | AO69: 0 | AP69: 0 | AQ69: 0 | AR69: 0 | AS69: 0 | AT69: 0 | AU69: 0 | AV69: 0 | AW69: 0 | AX69: =VLOOKUP(D$3,Prisindeks!$A$1:$B$111,2,FALSE)/100*AA69 -> 0 | AY69: =VLOOKUP(E$3,Prisindeks!$A$1:$B$111,2,FALSE)/100*AB69 -> 0 | AZ69: =VLOOKUP(F$3,Prisindeks!$A$1:$B$111,2,FALSE)/100*AC69 -> 0 | BA69: =VLOOKUP(G$3,Prisindeks!$A$1:$B$111,2,FALSE)/100*AD69 -> 0 | BB69: =VLOOKUP(H$3,Prisindeks!$A$1:$B$111,2,FALSE)/100*AE69 -> 0 | BC69: =VLOOKUP(I$3,Prisindeks!$A$1:$B$111,2,FALSE)/100*AF69 -> 0 | BD69: =VLOOKUP(J$3,Prisindeks!$A$1:$B$111,2,FALSE)/100*AG69 -> 0 | BE69: =VLOOKUP(K$3,Prisindeks!$A$1:$B$111,2,FALSE)/100*AH69 -> 0 | BF69: =VLOOKUP(L$3,Prisindeks!$A$1:$B$111,2,FALSE)/100*AI69 -> 0 | BG69: =VLOOKUP(M$3,Prisindeks!$A$1:$B$111,2,FALSE)/100*AJ69 -> 0 | BH69: =VLOOKUP(N$3,Prisindeks!$A$1:$B$111,2,FALSE)/100*AK69 -> 0 | BI69: =VLOOKUP(O$3,Prisindeks!$A$1:$B$111,2,FALSE)/100*AL69 -> 0 | BJ69: =VLOOKUP(P$3,Prisindeks!$A$1:$B$111,2,FALSE)/100*AM69 -> 0 | BK69: =VLOOKUP(Q$3,Prisindeks!$A$1:$B$111,2,FALSE)/100*AN69 -> 0 | BL69: =VLOOKUP(R$3,Prisindeks!$A$1:$B$111,2,FALSE)/100*AO69 -> 0 | BM69: =VLOOKUP(S$3,Prisindeks!$A$1:$B$111,2,FALSE)/100*AP69 -> 0 | BN69: =VLOOKUP(T$3,Prisindeks!$A$1:$B$111,2,FALSE)/100*AQ69 -> 0 | BO69: =VLOOKUP(U$3,Prisindeks!$A$1:$B$111,2,FALSE)/100*AR69 -> 0 | BP69: =VLOOKUP(V$3,Prisindeks!$A$1:$B$111,2,FALSE)/100*AS69 -> 0 | BQ69: =VLOOKUP(W$3,Prisindeks!$A$1:$B$111,2,FALSE)/100*AT69 -> 0 | BR69: =VLOOKUP(X$3,Prisindeks!$A$1:$B$111,2,FALSE)/100*AU69 -> 0 | BS69: =VLOOKUP(Y$3,Prisindeks!$A$1:$B$111,2,FALSE)/100*AV69 -> 0 | BT69: 0 | BU69: 0 | BV69: 0 | BW69: 0 | BX69: 0 | BY69: 0 | BZ69: 0 | CA69: 0 | CB69: 0 | CC69: 0 | CD69: 0 | CE69: 0 | CF69: 0 | CG69: 0 | CH69: 0 | CI69: 0 | CJ69: 0 | CK69: 0 | CL69: 0 | CM69: 0 | CN69: 0 | CO69: 0 | CP69: 0 | CQ69: 0 | CR69: 2400000
A70: =+Genanskaffelsespriser!$B$53 -> Slutdisponering, slam - højteknologisk (slamtørring og -forbrænding), SRO | B70: PE | C70: =Genanskaffelsespriser!$E$53 -> 10 | D70: 0 | E70: 0 | F70: 0 | G70: 0 | H70: 0 | I70: 0 | J70: 0 | K70: 0 | L70: 2400000 | M70: 0 | N70: 0 | O70: 0 | P70: 0 | Q70: 0 | R70: 0 | S70: 0 | T70: 0 | U70: 0 | V70: 0 | W70: 0 | X70: 0 | Y70: 0 | Z70: =IF(COUNTIF(D70:Y70,"<>0")<=1,IF(SUM(D70:Y70)=0,0,(IF(SUM(D70:Y70)>0,IF(SUM(D70:Y70)<400,(1.2675*45967*SUM(D70:Y70)^(-0.4664)),(IF(SUM(D70:Y70)<2000,(39128*SUM(D70:Y70)^(-0.37661)),IF(SUM(D70:Y70)<5000,18893*SUM(D70:Y70)^(-0.28083),IF(SUM(D70:Y70)<100000,29680*SUM(D70:Y70)^(-0.24475),1773.1))))*100/115)*SUM(D70:Y70)*(IF(SUM(D41:Y41)>0,0.4334,0.5155)),0)*1.15*1.06*0.05)/SUM(D70:Y70)),$A$73) -> 40.72846162 | AA70: 0 | AB70: 0 | AC70: 0 | AD70: 0 | AE70: 0 | AF70: 0 | AG70: 0 | AH70: 0 | AI70: 0 | AJ70: 0 | AK70: 0 | AL70: 0 | AM70: 0 | AN70: 0 | AO70: 0 | AP70: 0 | AQ70: 0 | AR70: 0 | AS70: 0 | AT70: 0 | AU70: 0 | AV70: 0 | AW70: 0 | AX70: =VLOOKUP(D$3,Prisindeks!$A$1:$B$111,2,FALSE)/100*AA70 -> 0 | AY70: =VLOOKUP(E$3,Prisindeks!$A$1:$B$111,2,FALSE)/100*AB70 -> 0 | AZ70: =VLOOKUP(F$3,Prisindeks!$A$1:$B$111,2,FALSE)/100*AC70 -> 0 | BA70: =VLOOKUP(G$3,Prisindeks!$A$1:$B$111,2,FALSE)/100*AD70 -> 0 | BB70: =VLOOKUP(H$3,Prisindeks!$A$1:$B$111,2,FALSE)/100*AE70 -> 0 | BC70: =VLOOKUP(I$3,Prisindeks!$A$1:$B$111,2,FALSE)/100*AF70 -> 0 | BD70: =VLOOKUP(J$3,Prisindeks!$A$1:$B$111,2,FALSE)/100*AG70 -> 0 | BE70: =VLOOKUP(K$3,Prisindeks!$A$1:$B$111,2,FALSE)/100*AH70 -> 0 | BF70: =VLOOKUP(L$3,Prisindeks!$A$1:$B$111,2,FALSE)/100*AI70 -> 0 | BG70: =VLOOKUP(M$3,Prisindeks!$A$1:$B$111,2,FALSE)/100*AJ70 -> 0 | BH70: =VLOOKUP(N$3,Prisindeks!$A$1:$B$111,2,FALSE)/100*AK70 -> 0 | BI70: =VLOOKUP(O$3,Prisindeks!$A$1:$B$111,2,FALSE)/100*AL70 -> 0 | BJ70: =VLOOKUP(P$3,Prisindeks!$A$1:$B$111,2,FALSE)/100*AM70 -> 0 | BK70: =VLOOKUP(Q$3,Prisindeks!$A$1:$B$111,2,FALSE)/100*AN70 -> 0 | BL70: =VLOOKUP(R$3,Prisindeks!$A$1:$B$111,2,FALSE)/100*AO70 -> 0 | BM70: =VLOOKUP(S$3,Prisindeks!$A$1:$B$111,2,FALSE)/100*AP70 -> 0 | BN70: =VLOOKUP(T$3,Prisindeks!$A$1:$B$111,2,FALSE)/100*AQ70 -> 0 | BO70: =VLOOKUP(U$3,Prisindeks!$A$1:$B$111,2,FALSE)/100*AR70 -> 0 | BP70: =VLOOKUP(V$3,Prisindeks!$A$1:$B$111,2,FALSE)/100*AS70 -> 0 | BQ70: =VLOOKUP(W$3,Prisindeks!$A$1:$B$111,2,FALSE)/100*AT70 -> 0 | BR70: =VLOOKUP(X$3,Prisindeks!$A$1:$B$111,2,FALSE)/100*AU70 -> 0 | BS70: =VLOOKUP(Y$3,Prisindeks!$A$1:$B$111,2,FALSE)/100*AV70 -> 0 | BT70: 0 | BU70: 0 | BV70: 0 | BW70: 0 | BX70: 0 | BY70: 0 | BZ70: 0 | CA70: 0 | CB70: 0 | CC70: 0 | CD70: 0 | CE70: 0 | CF70: 0 | CG70: 0 | CH70: 0 | CI70: 0 | CJ70: 0 | CK70: 0 | CL70: 0 | CM70: 0 | CN70: 0 | CO70: 0 | CP70: 0 | CQ70: 0 | CR70: 2400000
A71: Renseanlæg 2 | AW71: =+SUM(AW72,AW75,AW100,AW125) -> 79048000.84 | BT71: =+SUM(BT72,BT75,BT100,BT125) -> 63788160.25 | CQ71: =+SUM(CQ72,CQ75,CQ100,CQ125) -> 71418080.55
A72: Mindre renseanlæg | AW72: =SUM(AW73:AW74) -> 0 | BT72: =SUM(BT73:BT74) -> 0 | CQ72: =SUM(CQ73:CQ74) -> 0
A73: =+Genanskaffelsespriser!$B$5 -> Mindre renseanlæg < 5.000 PE uden mulighed for opdeling | B73: PE | C73: =Genanskaffelsespriser!$E$5 -> 40 | D73: 0 | E73: 0 | F73: 0 | G73: 0 | H73: 0 | I73: 0 | J73: 0 | K73: 0 | L73: 0 | M73: 0 | N73: 0 | O73: 0 | P73: 0 | Q73: 0 | R73: 0 | S73: 0 | T73: 0 | U73: 0 | V73: 0 | W73: 0 | X73: 0 | Y73: 0 | Z73: =IF(COUNTIF(D73:Y73,"<>0")<=1,IF(SUM(D73:Y73)=0,0,(IF(SUM(D73:Y73)>0,IF(SUM(D73:Y73)<400,(1.2675*45967*SUM(D73:Y73)^(-0.4664)),(IF(SUM(D73:Y73)<2000,(39128*SUM(D73:Y73)^(-0.37661)),IF(SUM(D73:Y73)<5000,18893*SUM(D73:Y73)^(-0.28083),IF(SUM(D73:Y73)<100000,29680*SUM(D73:Y73)^(-0.24475),1773.1))))*100/115)*SUM(D73:Y73)*1,0)*1.15*1.06)*(1+Genanskaffelsespriser!$D$389)/SUM(D73:Y73)),$A$73) -> 0 | AA73: =IF((D73*$Z73-(2009-D$3)/($C73+D74)*$Z73*D73)<0,0,(D73*$Z73-(2009-D$3)/($C73+D74)*$Z73*D73)) -> 0 | AB73: 0 | AC73: 0 | AD73: 0 | AE73: 0 | AF73: 0 | AG73: 0 | AH73: 0 | AI73: 0 | AJ73: 0 | AK73: 0 | AL73: 0 | AM73: 0 | AN73: 0 | AO73: 0 | AP73: 0 | AQ73: 0 | AR73: 0 | AS73: 0 | AT73: 0 | AU73: 0 | AV73: 0 | AW73: =+SUM(AA73:AV73) -> 0 | AX73: =VLOOKUP(D$3,Prisindeks!$A$1:$B$111,2,FALSE)/100*AA73 -> 0 | AY73: =VLOOKUP(E$3,Prisindeks!$A$1:$B$111,2,FALSE)/100*AB73 -> 0 | AZ73: =VLOOKUP(F$3,Prisindeks!$A$1:$B$111,2,FALSE)/100*AC73 -> 0 | BA73: =VLOOKUP(G$3,Prisindeks!$A$1:$B$111,2,FALSE)/100*AD73 -> 0 | BB73: =VLOOKUP(H$3,Prisindeks!$A$1:$B$111,2,FALSE)/100*AE73 -> 0 | BC73: =VLOOKUP(I$3,Prisindeks!$A$1:$B$111,2,FALSE)/100*AF73 -> 0 | BD73: =VLOOKUP(J$3,Prisindeks!$A$1:$B$111,2,FALSE)/100*AG73 -> 0 | BE73: =VLOOKUP(K$3,Prisindeks!$A$1:$B$111,2,FALSE)/100*AH73 -> 0 | BF73: =VLOOKUP(L$3,Prisindeks!$A$1:$B$111,2,FALSE)/100*AI73 -> 0 | BG73: =VLOOKUP(M$3,Prisindeks!$A$1:$B$111,2,FALSE)/100*AJ73 -> 0 | BH73: =VLOOKUP(N$3,Prisindeks!$A$1:$B$111,2,FALSE)/100*AK73 -> 0 | BI73: =VLOOKUP(O$3,Prisindeks!$A$1:$B$111,2,FALSE)/100*AL73 -> 0 | BJ73: =VLOOKUP(P$3,Prisindeks!$A$1:$B$111,2,FALSE)/100*AM73 -> 0 | BK73: =VLOOKUP(Q$3,Prisindeks!$A$1:$B$111,2,FALSE)/100*AN73 -> 0 | BL73: =VLOOKUP(R$3,Prisindeks!$A$1:$B$111,2,FALSE)/100*AO73 -> 0 | BM73: =VLOOKUP(S$3,Prisindeks!$A$1:$B$111,2,FALSE)/100*AP73 -> 0 | BN73: =VLOOKUP(T$3,Prisindeks!$A$1:$B$111,2,FALSE)/100*AQ73 -> 0 | BO73: =VLOOKUP(U$3,Prisindeks!$A$1:$B$111,2,FALSE)/100*AR73 -> 0 | BP73: =VLOOKUP(V$3,Prisindeks!$A$1:$B$111,2,FALSE)/100*AS73 -> 0 | BQ73: =VLOOKUP(W$3,Prisindeks!$A$1:$B$111,2,FALSE)/100*AT73 -> 0 | BR73: =VLOOKUP(X$3,Prisindeks!$A$1:$B$111,2,FALSE)/100*AU73 -> 0 | BS73: =VLOOKUP(Y$3,Prisindeks!$A$1:$B$111,2,FALSE)/100*AV73 -> 0 | BT73: =+SUM(AX73:BS73) -> 0 | BU73: =(AA73+AX73)/2 -> 0 | BV73: 0 | BW73: 0 | BX73: 0 | BY73: 0 | BZ73: 0 | CA73: 0 | CB73: 0 | CC73: 0 | CD73: 0 | CE73: 0 | CF73: 0 | CG73: 0 | CH73: 0 | CI73: 0 | CJ73: 0 | CK73: 0 | CL73: 0 | CM73: 0 | CN73: 0 | CO73: 0 | CP73: 0 | CQ73: =+SUM(BU73:CP73) -> 0 | CR73: =SUM(D73:Y73) -> 0
A74: Levetidsforlængelse | B74: år | C74: - | D74: 0 | E74: 0 | F74: 0 | G74: 0 | H74: 0 | I74: 0 | J74: 0 | K74: 0 | L74: 0 | M74: 0 | N74: 0 | O74: 0 | P74: 0 | Q74: 0 | R74: 0 | S74: 0 | T74: 0 | U74: 0 | V74: 0 | W74: 0 | X74: 0 | Y74: 0
A75: Renseanlæg >= 5.000 PE, Vandbehandling | AW75: =SUM(AW76:AW99) -> 79048000.84 | BT75: =SUM(BT76:BT99) -> 63788160.25 | CQ75: =SUM(CQ76:CQ99) -> 71418080.55 | CR75: =SUM(D75:Y75) -> 0
A76: =+Genanskaffelsespriser!$B$7 -> Indløb med riste, Konstruktioner | B76: PE | C76: =Genanskaffelsespriser!$E$7 -> 60 | D76: 0 | E76: 0 | F76: 0 | G76: 0 | H76: 0 | I76: 0 | J76: 0 | K76: 0 | L76: 0 | M76: 0 | N76: 0 | O76: 0 | P76: 0 | Q76: 0 | R76: 0 | S76: 0 | T76: 0 | U76: 0 | V76: 0 | W76: 0 | X76: 0 | Y76: 0 | Z76: =IF(COUNTIF(D76:Y76,"<>0")<=1,IF(SUM(D76:Y76)=0,0,(IF(SUM(D76:Y76)>0,IF(SUM(D76:Y76)<400,(1.2675*45967*SUM(D76:Y76)^(-0.4664)),(IF(SUM(D76:Y76)<2000,(39128*SUM(D76:Y76)^(-0.37661)),IF(SUM(D76:Y76)<5000,18893*SUM(D76:Y76)^(-0.28083),IF(SUM(D76:Y76)<100000,29680*SUM(D76:Y76)^(-0.24475),1773.1))))*100/115)*SUM(D76:Y76)*0.061,0)*1.15*1.06*0.55)*(1+Genanskaffelsespriser!$D$389)/SUM(D76:Y76)),$A$73) -> 0 | AA76: =IF((D76*$Z76-(2009-D$3)/($C76+D77)*$Z76*D76)<0,0,(D76*$Z76-(2009-D$3)/($C76+D77)*$Z76*D76)) -> 0 | AB76: 0 | AC76: 0 | AD76: 0 | AE76: 0 | AF76: 0 | AG76: 0 | AH76: 0 | AI76: 0 | AJ76: 0 | AK76: 0 | AL76: 0 | AM76: 0 | AN76: 0 | AO76: 0 | AP76: 0 | AQ76: 0 | AR76: 0 | AS76: 0 | AT76: 0 | AU76: 0 | AV76: 0 | AW76: =+SUM(AA76:AV76) -> 0 | AX76: =VLOOKUP(D$3,Prisindeks!$A$1:$B$111,2,FALSE)/100*AA76 -> 0 | AY76: =VLOOKUP(E$3,Prisindeks!$A$1:$B$111,2,FALSE)/100*AB76 -> 0 | AZ76: =VLOOKUP(F$3,Prisindeks!$A$1:$B$111,2,FALSE)/100*AC76 -> 0 | BA76: =VLOOKUP(G$3,Prisindeks!$A$1:$B$111,2,FALSE)/100*AD76 -> 0 | BB76: =VLOOKUP(H$3,Prisindeks!$A$1:$B$111,2,FALSE)/100*AE76 -> 0 | BC76: =VLOOKUP(I$3,Prisindeks!$A$1:$B$111,2,FALSE)/100*AF76 -> 0 | BD76: =VLOOKUP(J$3,Prisindeks!$A$1:$B$111,2,FALSE)/100*AG76 -> 0 | BE76: =VLOOKUP(K$3,Prisindeks!$A$1:$B$111,2,FALSE)/100*AH76 -> 0 | BF76: =VLOOKUP(L$3,Prisindeks!$A$1:$B$111,2,FALSE)/100*AI76 -> 0 | BG76: =VLOOKUP(M$3,Prisindeks!$A$1:$B$111,2,FALSE)/100*AJ76 -> 0 | BH76: =VLOOKUP(N$3,Prisindeks!$A$1:$B$111,2,FALSE)/100*AK76 -> 0 | BI76: =VLOOKUP(O$3,Prisindeks!$A$1:$B$111,2,FALSE)/100*AL76 -> 0 | BJ76: =VLOOKUP(P$3,Prisindeks!$A$1:$B$111,2,FALSE)/100*AM76 -> 0 | BK76: =VLOOKUP(Q$3,Prisindeks!$A$1:$B$111,2,FALSE)/100*AN76 -> 0 | BL76: =VLOOKUP(R$3,Prisindeks!$A$1:$B$111,2,FALSE)/100*AO76 -> 0 | BM76: =VLOOKUP(S$3,Prisindeks!$A$1:$B$111,2,FALSE)/100*AP76 -> 0 | BN76: =VLOOKUP(T$3,Prisindeks!$A$1:$B$111,2,FALSE)/100*AQ76 -> 0 | BO76: =VLOOKUP(U$3,Prisindeks!$A$1:$B$111,2,FALSE)/100*AR76 -> 0 | BP76: =VLOOKUP(V$3,Prisindeks!$A$1:$B$111,2,FALSE)/100*AS76 -> 0 | BQ76: =VLOOKUP(W$3,Prisindeks!$A$1:$B$111,2,FALSE)/100*AT76 -> 0 | BR76: =VLOOKUP(X$3,Prisindeks!$A$1:$B$111,2,FALSE)/100*AU76 -> 0 | BS76: =VLOOKUP(Y$3,Prisindeks!$A$1:$B$111,2,FALSE)/100*AV76 -> 0 | BT76: =+SUM(AX76:BS76) -> 0 | BU76: =(AA76+AX76)/2 -> 0 | BV76: 0 | BW76: 0 | BX76: 0 | BY76: 0 | BZ76: 0 | CA76: 0 | CB76: 0 | CC76: 0 | CD76: 0 | CE76: 0 | CF76: 0 | CG76: 0 | CH76: 0 | CI76: 0 | CJ76: 0 | CK76: 0 | CL76: 0 | CM76: 0 | CN76: 0 | CO76: 0 | CP76: 0 | CQ76: =+SUM(BU76:CP76) -> 0 | CR76: =SUM(D76:Y76) -> 0
A77: Levetidsforlængelse | B77: år | C77: - | D77: 0 | E77: 0 | F77: 0 | G77: 0 | H77: 0 | I77: 0 | J77: 0 | K77: 0 | L77: 0 | M77: 0 | N77: 0 | O77: 0 | P77: 0 | Q77: 0 | R77: 0 | S77: 0 | T77: 0 | U77: 0 | V77: 0 | W77: 0 | X77: 0 | Y77: 0
A78: =+Genanskaffelsespriser!$B$8 -> Indløb med riste, Mek/EL | B78: PE | C78: =Genanskaffelsespriser!$E$8 -> 20 | D78: 0 | E78: 0 | F78: 0 | G78: 0 | H78: 0 | I78: 0 | J78: 0 | K78: 0 | L78: 0 | M78: 0 | N78: 0 | O78: 0 | P78: 0 | Q78: 0 | R78: 0 | S78: 0 | T78: 0 | U78: 0 | V78: 0 | W78: 0 | X78: 0 | Y78: 0 | Z78: =IF(COUNTIF(D78:Y78,"<>0")<=1,IF(SUM(D78:Y78)=0,0,(IF(SUM(D78:Y78)>0,IF(SUM(D78:Y78)<400,(1.2675*45967*SUM(D78:Y78)^(-0.4664)),(IF(SUM(D78:Y78)<2000,(39128*SUM(D78:Y78)^(-0.37661)),IF(SUM(D78:Y78)<5000,18893*SUM(D78:Y78)^(-0.28083),IF(SUM(D78:Y78)<100000,29680*SUM(D78:Y78)^(-0.24475),1773.1))))*100/115)*SUM(D78:Y78)*0.061,0)*1.15*1.06*0.43)/SUM(D78:Y78)),$A$73) -> 0 | AA78: =IF((D78*$Z78-(2009-D$3)/$C78*$Z78*D78)<0,0,(D78*$Z78-(2009-D$3)/$C78*$Z78*D78)) -> 0 | AB78: 0 | AC78: 0 | AD78: 0 | AE78: 0 | AF78: 0 | AG78: 0 | AH78: 0 | AI78: 0 | AJ78: 0 | AK78: =IF((N78*$Z78-(2009-N$3)/$C78*$Z78*N78)<0,0,(N78*$Z78-(2009-N$3)/$C78*$Z78*N78)) -> 0 | AL78: 0 | AM78: 0 | AN78: 0 | AO78: 0 | AP78: 0 | AQ78: 0 | AR78: 0 | AS78: 0 | AT78: 0 | AU78: =IF((X78*$Z78-(2009-X$3)/$C78*$Z78*X78)<0,0,(X78*$Z78-(2009-X$3)/$C78*$Z78*X78)) -> 0 | AV78: =IF((Y78*$Z78-(2009-Y$3)/$C78*$Z78*Y78)<0,0,(Y78*$Z78-(2009-Y$3)/$C78*$Z78*Y78)) -> 0 | AW78: =+SUM(AA78:AV78) -> 0 | AX78: =VLOOKUP(D$3,Prisindeks!$A$1:$B$111,2,FALSE)/100*AA78 -> 0 | AY78: =VLOOKUP(E$3,Prisindeks!$A$1:$B$111,2,FALSE)/100*AB78 -> 0 | AZ78: =VLOOKUP(F$3,Prisindeks!$A$1:$B$111,2,FALSE)/100*AC78 -> 0 | BA78: =VLOOKUP(G$3,Prisindeks!$A$1:$B$111,2,FALSE)/100*AD78 -> 0 | BB78: =VLOOKUP(H$3,Prisindeks!$A$1:$B$111,2,FALSE)/100*AE78 -> 0 | BC78: =VLOOKUP(I$3,Prisindeks!$A$1:$B$111,2,FALSE)/100*AF78 -> 0 | BD78: =VLOOKUP(J$3,Prisindeks!$A$1:$B$111,2,FALSE)/100*AG78 -> 0 | BE78: =VLOOKUP(K$3,Prisindeks!$A$1:$B$111,2,FALSE)/100*AH78 -> 0 | BF78: =VLOOKUP(L$3,Prisindeks!$A$1:$B$111,2,FALSE)/100*AI78 -> 0 | BG78: =VLOOKUP(M$3,Prisindeks!$A$1:$B$111,2,FALSE)/100*AJ78 -> 0 | BH78: =VLOOKUP(N$3,Prisindeks!$A$1:$B$111,2,FALSE)/100*AK78 -> 0 | BI78: =VLOOKUP(O$3,Prisindeks!$A$1:$B$111,2,FALSE)/100*AL78 -> 0 | BJ78: =VLOOKUP(P$3,Prisindeks!$A$1:$B$111,2,FALSE)/100*AM78 -> 0 | BK78: =VLOOKUP(Q$3,Prisindeks!$A$1:$B$111,2,FALSE)/100*AN78 -> 0 | BL78: =VLOOKUP(R$3,Prisindeks!$A$1:$B$111,2,FALSE)/100*AO78 -> 0 | BM78: =VLOOKUP(S$3,Prisindeks!$A$1:$B$111,2,FALSE)/100*AP78 -> 0 | BN78: =VLOOKUP(T$3,Prisindeks!$A$1:$B$111,2,FALSE)/100*AQ78 -> 0 | BO78: =VLOOKUP(U$3,Prisindeks!$A$1:$B$111,2,FALSE)/100*AR78 -> 0 | BP78: =VLOOKUP(V$3,Prisindeks!$A$1:$B$111,2,FALSE)/100*AS78 -> 0 | BQ78: =VLOOKUP(W$3,Prisindeks!$A$1:$B$111,2,FALSE)/100*AT78 -> 0 | BR78: =VLOOKUP(X$3,Prisindeks!$A$1:$B$111,2,FALSE)/100*AU78 -> 0 | BS78: =VLOOKUP(Y$3,Prisindeks!$A$1:$B$111,2,FALSE)/100*AV78 -> 0 | BT78: =+SUM(AX78:BS78) -> 0 | BU78: =(AA78+AX78)/2 -> 0 | BV78: 0 | BW78: 0 | BX78: 0 | BY78: 0 | BZ78: 0 | CA78: 0 | CB78: 0 | CC78: 0 | CD78: 0 | CE78: =(AK78+BH78)/2 -> 0 | CF78: 0 | CG78: 0 | CH78: 0 | CI78: 0 | CJ78: 0 | CK78: 0 | CL78: 0 | CM78: 0 | CN78: 0 | CO78: =(AU78+BR78)/2 -> 0 | CP78: 0 | CQ78: =+SUM(BU78:CP78) -> 0 | CR78: =SUM(D78:Y78) -> 0
A79: =+Genanskaffelsespriser!$B$9 -> Indløb med riste, SRO | B79: PE | C79: =Genanskaffelsespriser!$E$9 -> 10 | D79: 0 | E79: 0 | F79: 0 | G79: 0 | H79: 0 | I79: 0 | J79: 0 | K79: 0 | L79: 0 | M79: 0 | N79: 0 | O79: 0 | P79: 0 | Q79: 0 | R79: 0 | S79: 0 | T79: 0 | U79: 0 | V79: 0 | W79: 0 | X79: 0 | Y79: 0 | Z79: =IF(COUNTIF(D79:Y79,"<>0")<=1,IF(SUM(D79:Y79)=0,0,(IF(SUM(D79:Y79)>0,IF(SUM(D79:Y79)<400,(1.2675*45967*SUM(D79:Y79)^(-0.4664)),(IF(SUM(D79:Y79)<2000,(39128*SUM(D79:Y79)^(-0.37661)),IF(SUM(D79:Y79)<5000,18893*SUM(D79:Y79)^(-0.28083),IF(SUM(D79:Y79)<100000,29680*SUM(D79:Y79)^(-0.24475),1773.1))))*100/115)*SUM(D79:Y79)*0.061,0)*1.15*1.06*0.02)/SUM(D79:Y79)),$A$73) -> 0 | AA79: 0 | AB79: 0 | AC79: 0 | AD79: 0 | AE79: 0 | AF79: 0 | AG79: 0 | AH79: 0 | AI79: 0 | AJ79: 0 | AK79: 0 | AL79: 0 | AM79: 0 | AN79: 0 | AO79: 0 | AP79: 0 | AQ79: 0 | AR79: 0 | AS79: 0 | AT79: 0 | AU79: =IF((X79*$Z79-(2009-X$3)/$C79*$Z79*X79)<0,0,(X79*$Z79-(2009-X$3)/$C79*$Z79*X79)) -> 0 | AV79: =IF((Y79*$Z79-(2009-Y$3)/$C79*$Z79*Y79)<0,0,(Y79*$Z79-(2009-Y$3)/$C79*$Z79*Y79)) -> 0 | AW79: =+SUM(AA79:AV79) -> 0 | AX79: =VLOOKUP(D$3,Prisindeks!$A$1:$B$111,2,FALSE)/100*AA79 -> 0 | AY79: =VLOOKUP(E$3,Prisindeks!$A$1:$B$111,2,FALSE)/100*AB79 -> 0 | AZ79: =VLOOKUP(F$3,Prisindeks!$A$1:$B$111,2,FALSE)/100*AC79 -> 0 | BA79: =VLOOKUP(G$3,Prisindeks!$A$1:$B$111,2,FALSE)/100*AD79 -> 0 | BB79: =VLOOKUP(H$3,Prisindeks!$A$1:$B$111,2,FALSE)/100*AE79 -> 0 | BC79: =VLOOKUP(I$3,Prisindeks!$A$1:$B$111,2,FALSE)/100*AF79 -> 0 | BD79: =VLOOKUP(J$3,Prisindeks!$A$1:$B$111,2,FALSE)/100*AG79 -> 0 | BE79: =VLOOKUP(K$3,Prisindeks!$A$1:$B$111,2,FALSE)/100*AH79 -> 0 | BF79: =VLOOKUP(L$3,Prisindeks!$A$1:$B$111,2,FALSE)/100*AI79 -> 0 | BG79: =VLOOKUP(M$3,Prisindeks!$A$1:$B$111,2,FALSE)/100*AJ79 -> 0 | BH79: =VLOOKUP(N$3,Prisindeks!$A$1:$B$111,2,FALSE)/100*AK79 -> 0 | BI79: =VLOOKUP(O$3,Prisindeks!$A$1:$B$111,2,FALSE)/100*AL79 -> 0 | BJ79: =VLOOKUP(P$3,Prisindeks!$A$1:$B$111,2,FALSE)/100*AM79 -> 0 | BK79: =VLOOKUP(Q$3,Prisindeks!$A$1:$B$111,2,FALSE)/100*AN79 -> 0 | BL79: =VLOOKUP(R$3,Prisindeks!$A$1:$B$111,2,FALSE)/100*AO79 -> 0 | BM79: =VLOOKUP(S$3,Prisindeks!$A$1:$B$111,2,FALSE)/100*AP79 -> 0 | BN79: =VLOOKUP(T$3,Prisindeks!$A$1:$B$111,2,FALSE)/100*AQ79 -> 0 | BO79: =VLOOKUP(U$3,Prisindeks!$A$1:$B$111,2,FALSE)/100*AR79 -> 0 | BP79: =VLOOKUP(V$3,Prisindeks!$A$1:$B$111,2,FALSE)/100*AS79 -> 0 | BQ79: =VLOOKUP(W$3,Prisindeks!$A$1:$B$111,2,FALSE)/100*AT79 -> 0 | BR79: =VLOOKUP(X$3,Prisindeks!$A$1:$B$111,2,FALSE)/100*AU79 -> 0 | BS79: =VLOOKUP(Y$3,Prisindeks!$A$1:$B$111,2,FALSE)/100*AV79 -> 0 | BT79: =+SUM(AX79:BS79) -> 0 | BU79: 0 | BV79: 0 | BW79: 0 | BX79: 0 | BY79: 0 | BZ79: 0 | CA79: 0 | CB79: 0 | CC79: 0 | CD79: 0 | CE79: 0 | CF79: 0 | CG79: 0 | CH79: 0 | CI79: 0 | CJ79: 0 | CK79: 0 | CL79: 0 | CM79: 0 | CN79: 0 | CO79: 0 | CP79: 0 | CQ79: =+SUM(BU79:CP79) -> 0 | CR79: =SUM(D79:Y79) -> 0
A80: =+Genanskaffelsespriser!$B$10 -> Sand- og fedtfang, Kontruktioner | B80: PE | C80: =Genanskaffelsespriser!$E$10 -> 60 | D80: 0 | E80: 0 | F80: 0 | G80: 0 | H80: 0 | I80: 0 | J80: 0 | K80: 0 | L80: 0 | M80: 0 | N80: 0 | O80: 0 | P80: 0 | Q80: 0 | R80: 0 | S80: 0 | T80: 0 | U80: 0 | V80: 0 | W80: 0 | X80: 0 | Y80: 0 | Z80: =IF(COUNTIF(D80:Y80,"<>0")<=1,IF(SUM(D80:Y80)=0,0,(IF(SUM(D80:Y80)>0,IF(SUM(D80:Y80)<400,(1.2675*45967*SUM(D80:Y80)^(-0.4664)),(IF(SUM(D80:Y80)<2000,(39128*SUM(D80:Y80)^(-0.37661)),IF(SUM(D80:Y80)<5000,18893*SUM(D80:Y80)^(-0.28083),IF(SUM(D80:Y80)<100000,29680*SUM(D80:Y80)^(-0.24475),1773.1))))*100/115)*SUM(D80:Y80)*0.0173,0)*1.15*1.06*0.55)*(1+Genanskaffelsespriser!$D$389)/SUM(D80:Y80)),$A$73) -> 0 | AA80: =IF((D80*$Z80-(2009-D$3)/($C80+D81)*$Z80*D80)<0,0,(D80*$Z80-(2009-D$3)/($C80+D81)*$Z80*D80)) -> 0 | AB80: 0 | AC80: 0 | AD80: 0 | AE80: 0 | AF80: 0 | AG80: 0 | AH80: 0 | AI80: 0 | AJ80: 0 | AK80: 0 | AL80: 0 | AM80: 0 | AN80: 0 | AO80: 0 | AP80: 0 | AQ80: 0 | AR80: 0 | AS80: 0 | AT80: 0 | AU80: 0 | AV80: 0 | AW80: =+SUM(AA80:AV80) -> 0 | AX80: =VLOOKUP(D$3,Prisindeks!$A$1:$B$111,2,FALSE)/100*AA80 -> 0 | AY80: =VLOOKUP(E$3,Prisindeks!$A$1:$B$111,2,FALSE)/100*AB80 -> 0 | AZ80: =VLOOKUP(F$3,Prisindeks!$A$1:$B$111,2,FALSE)/100*AC80 -> 0 | BA80: =VLOOKUP(G$3,Prisindeks!$A$1:$B$111,2,FALSE)/100*AD80 -> 0 | BB80: =VLOOKUP(H$3,Prisindeks!$A$1:$B$111,2,FALSE)/100*AE80 -> 0 | BC80: =VLOOKUP(I$3,Prisindeks!$A$1:$B$111,2,FALSE)/100*AF80 -> 0 | BD80: =VLOOKUP(J$3,Prisindeks!$A$1:$B$111,2,FALSE)/100*AG80 -> 0 | BE80: =VLOOKUP(K$3,Prisindeks!$A$1:$B$111,2,FALSE)/100*AH80 -> 0 | BF80: =VLOOKUP(L$3,Prisindeks!$A$1:$B$111,2,FALSE)/100*AI80 -> 0 | BG80: =VLOOKUP(M$3,Prisindeks!$A$1:$B$111,2,FALSE)/100*AJ80 -> 0 | BH80: =VLOOKUP(N$3,Prisindeks!$A$1:$B$111,2,FALSE)/100*AK80 -> 0 | BI80: =VLOOKUP(O$3,Prisindeks!$A$1:$B$111,2,FALSE)/100*AL80 -> 0 | BJ80: =VLOOKUP(P$3,Prisindeks!$A$1:$B$111,2,FALSE)/100*AM80 -> 0 | BK80: =VLOOKUP(Q$3,Prisindeks!$A$1:$B$111,2,FALSE)/100*AN80 -> 0 | BL80: =VLOOKUP(R$3,Prisindeks!$A$1:$B$111,2,FALSE)/100*AO80 -> 0 | BM80: =VLOOKUP(S$3,Prisindeks!$A$1:$B$111,2,FALSE)/100*AP80 -> 0 | BN80: =VLOOKUP(T$3,Prisindeks!$A$1:$B$111,2,FALSE)/100*AQ80 -> 0 | BO80: =VLOOKUP(U$3,Prisindeks!$A$1:$B$111,2,FALSE)/100*AR80 -> 0 | BP80: =VLOOKUP(V$3,Prisindeks!$A$1:$B$111,2,FALSE)/100*AS80 -> 0 | BQ80: =VLOOKUP(W$3,Prisindeks!$A$1:$B$111,2,FALSE)/100*AT80 -> 0 | BR80: =VLOOKUP(X$3,Prisindeks!$A$1:$B$111,2,FALSE)/100*AU80 -> 0 | BS80: =VLOOKUP(Y$3,Prisindeks!$A$1:$B$111,2,FALSE)/100*AV80 -> 0 | BT80: =+SUM(AX80:BS80) -> 0 | BU80: 0 | BV80: 0 | BW80: 0 | BX80: 0 | BY80: 0 | BZ80: 0 | CA80: 0 | CB80: 0 | CC80: 0 | CD80: 0 | CE80: 0 | CF80: 0 | CG80: 0 | CH80: 0 | CI80: 0 | CJ80: 0 | CK80: 0 | CL80: 0 | CM80: 0 | CN80: 0 | CO80: 0 | CP80: 0 | CQ80: =+SUM(BU80:CP80) -> 0 | CR80: =SUM(D80:Y80) -> 0
A81: Levetidsforlængelse | B81: år | C81: - | D81: 0 | E81: 0 | F81: 0 | G81: 0 | H81: 0 | I81: 0 | J81: 0 | K81: 0 | L81: 0 | M81: 0 | N81: 0 | O81: 0 | P81: 0 | Q81: 0 | R81: 0 | S81: 0 | T81: 0 | U81: 0 | V81: 0 | W81: 0 | X81: 0 | Y81: 0
A82: =+Genanskaffelsespriser!$B$11 -> Sand- og fedtfang, Mek/EL | B82: PE | C82: =Genanskaffelsespriser!$E$11 -> 20 | D82: 0 | E82: 0 | F82: 0 | G82: 0 | H82: 0 | I82: 0 | J82: 0 | K82: 0 | L82: 0 | M82: 0 | N82: 0 | O82: 0 | P82: 0 | Q82: 0 | R82: 0 | S82: 0 | T82: 0 | U82: 0 | V82: 0 | W82: 0 | X82: 0 | Y82: 0 | Z82: =IF(COUNTIF(D82:Y82,"<>0")<=1,IF(SUM(D82:Y82)=0,0,(IF(SUM(D82:Y82)>0,IF(SUM(D82:Y82)<400,(1.2675*45967*SUM(D82:Y82)^(-0.4664)),(IF(SUM(D82:Y82)<2000,(39128*SUM(D82:Y82)^(-0.37661)),IF(SUM(D82:Y82)<5000,18893*SUM(D82:Y82)^(-0.28083),IF(SUM(D82:Y82)<100000,29680*SUM(D82:Y82)^(-0.24475),1773.1))))*100/115)*SUM(D82:Y82)*0.0173,0)*1.15*1.06*0.43)/SUM(D82:Y82)),$A$73) -> 0 | AA82: =IF((D82*$Z82-(2009-D$3)/$C82*$Z82*D82)<0,0,(D82*$Z82-(2009-D$3)/$C82*$Z82*D82)) -> 0 | AB82: 0 | AC82: 0 | AD82: 0 | AE82: 0 | AF82: 0 | AG82: 0 | AH82: 0 | AI82: 0 | AJ82: 0 | AK82: =IF((N82*$Z82-(2009-N$3)/$C82*$Z82*N82)<0,0,(N82*$Z82-(2009-N$3)/$C82*$Z82*N82)) -> 0 | AL82: 0 | AM82: 0 | AN82: 0 | AO82: 0 | AP82: 0 | AQ82: 0 | AR82: 0 | AS82: 0 | AT82: 0 | AU82: =IF((X82*$Z82-(2009-X$3)/$C82*$Z82*X82)<0,0,(X82*$Z82-(2009-X$3)/$C82*$Z82*X82)) -> 0 | AV82: =IF((Y82*$Z82-(2009-Y$3)/$C82*$Z82*Y82)<0,0,(Y82*$Z82-(2009-Y$3)/$C82*$Z82*Y82)) -> 0 | AW82: =+SUM(AA82:AV82) -> 0 | AX82: =VLOOKUP(D$3,Prisindeks!$A$1:$B$111,2,FALSE)/100*AA82 -> 0 | AY82: =VLOOKUP(E$3,Prisindeks!$A$1:$B$111,2,FALSE)/100*AB82 -> 0 | AZ82: =VLOOKUP(F$3,Prisindeks!$A$1:$B$111,2,FALSE)/100*AC82 -> 0 | BA82: =VLOOKUP(G$3,Prisindeks!$A$1:$B$111,2,FALSE)/100*AD82 -> 0 | BB82: =VLOOKUP(H$3,Prisindeks!$A$1:$B$111,2,FALSE)/100*AE82 -> 0 | BC82: =VLOOKUP(I$3,Prisindeks!$A$1:$B$111,2,FALSE)/100*AF82 -> 0 | BD82: =VLOOKUP(J$3,Prisindeks!$A$1:$B$111,2,FALSE)/100*AG82 -> 0 | BE82: =VLOOKUP(K$3,Prisindeks!$A$1:$B$111,2,FALSE)/100*AH82 -> 0 | BF82: =VLOOKUP(L$3,Prisindeks!$A$1:$B$111,2,FALSE)/100*AI82 -> 0 | BG82: =VLOOKUP(M$3,Prisindeks!$A$1:$B$111,2,FALSE)/100*AJ82 -> 0 | BH82: =VLOOKUP(N$3,Prisindeks!$A$1:$B$111,2,FALSE)/100*AK82 -> 0 | BI82: =VLOOKUP(O$3,Prisindeks!$A$1:$B$111,2,FALSE)/100*AL82 -> 0 | BJ82: =VLOOKUP(P$3,Prisindeks!$A$1:$B$111,2,FALSE)/100*AM82 -> 0 | BK82: =VLOOKUP(Q$3,Prisindeks!$A$1:$B$111,2,FALSE)/100*AN82 -> 0 | BL82: =VLOOKUP(R$3,Prisindeks!$A$1:$B$111,2,FALSE)/100*AO82 -> 0 | BM82: =VLOOKUP(S$3,Prisindeks!$A$1:$B$111,2,FALSE)/100*AP82 -> 0 | BN82: =VLOOKUP(T$3,Prisindeks!$A$1:$B$111,2,FALSE)/100*AQ82 -> 0 | BO82: =VLOOKUP(U$3,Prisindeks!$A$1:$B$111,2,FALSE)/100*AR82 -> 0 | BP82: =VLOOKUP(V$3,Prisindeks!$A$1:$B$111,2,FALSE)/100*AS82 -> 0 | BQ82: =VLOOKUP(W$3,Prisindeks!$A$1:$B$111,2,FALSE)/100*AT82 -> 0 | BR82: =VLOOKUP(X$3,Prisindeks!$A$1:$B$111,2,FALSE)/100*AU82 -> 0 | BS82: =VLOOKUP(Y$3,Prisindeks!$A$1:$B$111,2,FALSE)/100*AV82 -> 0 | BT82: =+SUM(AX82:BS82) -> 0 | BU82: =(AA82+AX82)/2 -> 0 | BV82: 0 | BW82: 0 | BX82: 0 | BY82: 0 | BZ82: 0 | CA82: 0 | CB82: 0 | CC82: 0 | CD82: 0 | CE82: =(AK82+BH82)/2 -> 0 | CF82: 0 | CG82: 0 | CH82: 0 | CI82: 0 | CJ82: 0 | CK82: 0 | CL82: 0 | CM82: 0 | CN82: 0 | CO82: =(AU82+BR82)/2 -> 0 | CP82: 0 | CQ82: =+SUM(BU82:CP82) -> 0 | CR82: =SUM(D82:Y82) -> 0
A83: =+Genanskaffelsespriser!$B$12 -> Sand- og fedtfang, SRO | B83: PE | C83: =Genanskaffelsespriser!$E$12 -> 10 | D83: 0 | E83: 0 | F83: 0 | G83: 0 | H83: 0 | I83: 0 | J83: 0 | K83: 0 | L83: 0 | M83: 0 | N83: 0 | O83: 0 | P83: 0 | Q83: 0 | R83: 0 | S83: 0 | T83: 0 | U83: 0 | V83: 0 | W83: 0 | X83: 0 | Y83: 0 | Z83: =IF(COUNTIF(D83:Y83,"<>0")<=1,IF(SUM(D83:Y83)=0,0,(IF(SUM(D83:Y83)>0,IF(SUM(D83:Y83)<400,(1.2675*45967*SUM(D83:Y83)^(-0.4664)),(IF(SUM(D83:Y83)<2000,(39128*SUM(D83:Y83)^(-0.37661)),IF(SUM(D83:Y83)<5000,18893*SUM(D83:Y83)^(-0.28083),IF(SUM(D83:Y83)<100000,29680*SUM(D83:Y83)^(-0.24475),1773.1))))*100/115)*SUM(D83:Y83)*0.0173,0)*1.15*1.06*0.02)/SUM(D83:Y83)),$A$73) -> 0 | AA83: 0 | AB83: 0 | AC83: 0 | AD83: 0 | AE83: 0 | AF83: 0 | AG83: 0 | AH83: 0 | AI83: 0 | AJ83: 0 | AK83: 0 | AL83: 0 | AM83: 0 | AN83: 0 | AO83: 0 | AP83: 0 | AQ83: 0 | AR83: 0 | AS83: 0 | AT83: 0 | AU83: =IF((X83*$Z83-(2009-X$3)/$C83*$Z83*X83)<0,0,(X83*$Z83-(2009-X$3)/$C83*$Z83*X83)) -> 0 | AV83: =IF((Y83*$Z83-(2009-Y$3)/$C83*$Z83*Y83)<0,0,(Y83*$Z83-(2009-Y$3)/$C83*$Z83*Y83)) -> 0 | AW83: =+SUM(AA83:AV83) -> 0 | AX83: =VLOOKUP(D$3,Prisindeks!$A$1:$B$111,2,FALSE)/100*AA83 -> 0 | AY83: =VLOOKUP(E$3,Prisindeks!$A$1:$B$111,2,FALSE)/100*AB83 -> 0 | AZ83: =VLOOKUP(F$3,Prisindeks!$A$1:$B$111,2,FALSE)/100*AC83 -> 0 | BA83: =VLOOKUP(G$3,Prisindeks!$A$1:$B$111,2,FALSE)/100*AD83 -> 0 | BB83: =VLOOKUP(H$3,Prisindeks!$A$1:$B$111,2,FALSE)/100*AE83 -> 0 | BC83: =VLOOKUP(I$3,Prisindeks!$A$1:$B$111,2,FALSE)/100*AF83 -> 0 | BD83: =VLOOKUP(J$3,Prisindeks!$A$1:$B$111,2,FALSE)/100*AG83 -> 0 | BE83: =VLOOKUP(K$3,Prisindeks!$A$1:$B$111,2,FALSE)/100*AH83 -> 0 | BF83: =VLOOKUP(L$3,Prisindeks!$A$1:$B$111,2,FALSE)/100*AI83 -> 0 | BG83: =VLOOKUP(M$3,Prisindeks!$A$1:$B$111,2,FALSE)/100*AJ83 -> 0 | BH83: =VLOOKUP(N$3,Prisindeks!$A$1:$B$111,2,FALSE)/100*AK83 -> 0 | BI83: =VLOOKUP(O$3,Prisindeks!$A$1:$B$111,2,FALSE)/100*AL83 -> 0 | BJ83: =VLOOKUP(P$3,Prisindeks!$A$1:$B$111,2,FALSE)/100*AM83 -> 0 | BK83: =VLOOKUP(Q$3,Prisindeks!$A$1:$B$111,2,FALSE)/100*AN83 -> 0 | BL83: =VLOOKUP(R$3,Prisindeks!$A$1:$B$111,2,FALSE)/100*AO83 -> 0 | BM83: =VLOOKUP(S$3,Prisindeks!$A$1:$B$111,2,FALSE)/100*AP83 -> 0 | BN83: =VLOOKUP(T$3,Prisindeks!$A$1:$B$111,2,FALSE)/100*AQ83 -> 0 | BO83: =VLOOKUP(U$3,Prisindeks!$A$1:$B$111,2,FALSE)/100*AR83 -> 0 | BP83: =VLOOKUP(V$3,Prisindeks!$A$1:$B$111,2,FALSE)/100*AS83 -> 0 | BQ83: =VLOOKUP(W$3,Prisindeks!$A$1:$B$111,2,FALSE)/100*AT83 -> 0 | BR83: =VLOOKUP(X$3,Prisindeks!$A$1:$B$111,2,FALSE)/100*AU83 -> 0 | BS83: =VLOOKUP(Y$3,Prisindeks!$A$1:$B$111,2,FALSE)/100*AV83 -> 0 | BT83: =+SUM(AX83:BS83) -> 0 | BU83: 0 | BV83: 0 | BW83: 0 | BX83: 0 | BY83: 0 | BZ83: 0 | CA83: 0 | CB83: 0 | CC83: 0 | CD83: 0 | CE83: 0 | CF83: 0 | CG83: 0 | CH83: 0 | CI83: 0 | CJ83: 0 | CK83: 0 | CL83: 0 | CM83: 0 | CN83: 0 | CO83: 0 | CP83: 0 | CQ83: =+SUM(BU83:CP83) -> 0 | CR83: =SUM(D83:Y83) -> 0
A84: =+Genanskaffelsespriser!$B$13 -> Forklaring, Konstruktioner | B84: PE | C84: =Genanskaffelsespriser!$E$13 -> 60 | D84: 0 | E84: 0 | F84: 0 | G84: 0 | H84: 0 | I84: 0 | J84: 0 | K84: 0 | L84: 0 | M84: 0 | N84: 0 | O84: 0 | P84: 0 | Q84: 0 | R84: 0 | S84: 0 | T84: 0 | U84: 0 | V84: 0 | W84: 0 | X84: 0 | Y84: 0 | Z84: =IF(COUNTIF(D84:Y84,"<>0")<=1,IF(SUM(D84:Y84)=0,0,(IF(SUM(D84:Y84)>0,IF(SUM(D84:Y84)<400,(1.2675*45967*SUM(D84:Y84)^(-0.4664)),(IF(SUM(D84:Y84)<2000,(39128*SUM(D84:Y84)^(-0.37661)),IF(SUM(D84:Y84)<5000,18893*SUM(D84:Y84)^(-0.28083),IF(SUM(D84:Y84)<100000,29680*SUM(D84:Y84)^(-0.24475),1773.1))))*100/115)*SUM(D84:Y84)*(IF(SUM(D84:Y84)>0,0.0538,0)),0)*1.15*1.06*0.6)*(1+Genanskaffelsespriser!$D$389)/SUM(D84:Y84)),$A$73) -> 0 | AA84: =IF((D84*$Z84-(2009-D$3)/($C84+D85)*$Z84*D84)<0,0,(D84*$Z84-(2009-D$3)/($C84+D85)*$Z84*D84)) -> 0 | AB84: 0 | AC84: 0 | AD84: 0 | AE84: 0 | AF84: 0 | AG84: 0 | AH84: 0 | AI84: 0 | AJ84: 0 | AK84: 0 | AL84: 0 | AM84: 0 | AN84: 0 | AO84: 0 | AP84: 0 | AQ84: 0 | AR84: 0 | AS84: 0 | AT84: 0 | AU84: 0 | AV84: 0 | AW84: =+SUM(AA84:AV84) -> 0 | AX84: =VLOOKUP(D$3,Prisindeks!$A$1:$B$111,2,FALSE)/100*AA84 -> 0 | AY84: =VLOOKUP(E$3,Prisindeks!$A$1:$B$111,2,FALSE)/100*AB84 -> 0 | AZ84: =VLOOKUP(F$3,Prisindeks!$A$1:$B$111,2,FALSE)/100*AC84 -> 0 | BA84: =VLOOKUP(G$3,Prisindeks!$A$1:$B$111,2,FALSE)/100*AD84 -> 0 | BB84: =VLOOKUP(H$3,Prisindeks!$A$1:$B$111,2,FALSE)/100*AE84 -> 0 | BC84: =VLOOKUP(I$3,Prisindeks!$A$1:$B$111,2,FALSE)/100*AF84 -> 0 | BD84: =VLOOKUP(J$3,Prisindeks!$A$1:$B$111,2,FALSE)/100*AG84 -> 0 | BE84: =VLOOKUP(K$3,Prisindeks!$A$1:$B$111,2,FALSE)/100*AH84 -> 0 | BF84: =VLOOKUP(L$3,Prisindeks!$A$1:$B$111,2,FALSE)/100*AI84 -> 0 | BG84: =VLOOKUP(M$3,Prisindeks!$A$1:$B$111,2,FALSE)/100*AJ84 -> 0 | BH84: =VLOOKUP(N$3,Prisindeks!$A$1:$B$111,2,FALSE)/100*AK84 -> 0 | BI84: =VLOOKUP(O$3,Prisindeks!$A$1:$B$111,2,FALSE)/100*AL84 -> 0 | BJ84: =VLOOKUP(P$3,Prisindeks!$A$1:$B$111,2,FALSE)/100*AM84 -> 0 | BK84: =VLOOKUP(Q$3,Prisindeks!$A$1:$B$111,2,FALSE)/100*AN84 -> 0 | BL84: =VLOOKUP(R$3,Prisindeks!$A$1:$B$111,2,FALSE)/100*AO84 -> 0 | BM84: =VLOOKUP(S$3,Prisindeks!$A$1:$B$111,2,FALSE)/100*AP84 -> 0 | BN84: =VLOOKUP(T$3,Prisindeks!$A$1:$B$111,2,FALSE)/100*AQ84 -> 0 | BO84: =VLOOKUP(U$3,Prisindeks!$A$1:$B$111,2,FALSE)/100*AR84 -> 0 | BP84: =VLOOKUP(V$3,Prisindeks!$A$1:$B$111,2,FALSE)/100*AS84 -> 0 | BQ84: =VLOOKUP(W$3,Prisindeks!$A$1:$B$111,2,FALSE)/100*AT84 -> 0 | BR84: =VLOOKUP(X$3,Prisindeks!$A$1:$B$111,2,FALSE)/100*AU84 -> 0 | BS84: =VLOOKUP(Y$3,Prisindeks!$A$1:$B$111,2,FALSE)/100*AV84 -> 0 | BT84: =+SUM(AX84:BS84) -> 0 | BU84: 0 | BV84: 0 | BW84: 0 | BX84: 0 | BY84: 0 | BZ84: 0 | CA84: 0 | CB84: 0 | CC84: 0 | CD84: 0 | CE84: 0 | CF84: 0 | CG84: 0 | CH84: 0 | CI84: 0 | CJ84: 0 | CK84: 0 | CL84: 0 | CM84: 0 | CN84: 0 | CO84: 0 | CP84: 0 | CQ84: =+SUM(BU84:CP84) -> 0 | CR84: =SUM(D84:Y84) -> 0
A85: Levetidsforlængelse | B85: år | C85: - | D85: 0 | E85: 0 | F85: 0 | G85: 0 | H85: 0 | I85: 0 | J85: 0 | K85: 0 | L85: 0 | M85: 0 | N85: 0 | O85: 0 | P85: 0 | Q85: 0 | R85: 0 | S85: 0 | T85: 0 | U85: 0 | V85: 0 | W85: 0 | X85: 0 | Y85: 0
A86: =+Genanskaffelsespriser!$B$14 -> Forklaring, Mek/EL | B86: PE | C86: =Genanskaffelsespriser!$E$14 -> 20 | D86: 0 | E86: 0 | F86: 0 | G86: 0 | H86: 0 | I86: 0 | J86: 0 | K86: 0 | L86: 0 | M86: 0 | N86: 0 | O86: 0 | P86: 0 | Q86: 0 | R86: 0 | S86: 0 | T86: 0 | U86: 0 | V86: 0 | W86: 0 | X86: 0 | Y86: 0 | Z86: =IF(COUNTIF(D86:Y86,"<>0")<=1,IF(SUM(D86:Y86)=0,0,(IF(SUM(D86:Y86)>0,IF(SUM(D86:Y86)<400,(1.2675*45967*SUM(D86:Y86)^(-0.4664)),(IF(SUM(D86:Y86)<2000,(39128*SUM(D86:Y86)^(-0.37661)),IF(SUM(D86:Y86)<5000,18893*SUM(D86:Y86)^(-0.28083),IF(SUM(D86:Y86)<100000,29680*SUM(D86:Y86)^(-0.24475),1773.1))))*100/115)*SUM(D86:Y86)*(IF(SUM(D86:Y86)>0,0.0538,0)),0)*1.15*1.06*0.39)/SUM(D86:Y86)),$A$73) -> 0 | AA86: =IF((D86*$Z86-(2009-D$3)/$C86*$Z86*D86)<0,0,(D86*$Z86-(2009-D$3)/$C86*$Z86*D86)) -> 0 | AB86: 0 | AC86: 0 | AD86: 0 | AE86: 0 | AF86: 0 | AG86: 0 | AH86: 0 | AI86: 0 | AJ86: 0 | AK86: =IF((N86*$Z86-(2009-N$3)/$C86*$Z86*N86)<0,0,(N86*$Z86-(2009-N$3)/$C86*$Z86*N86)) -> 0 | AL86: 0 | AM86: 0 | AN86: 0 | AO86: 0 | AP86: 0 | AQ86: 0 | AR86: 0 | AS86: 0 | AT86: 0 | AU86: =IF((X86*$Z86-(2009-X$3)/$C86*$Z86*X86)<0,0,(X86*$Z86-(2009-X$3)/$C86*$Z86*X86)) -> 0 | AV86: =IF((Y86*$Z86-(2009-Y$3)/$C86*$Z86*Y86)<0,0,(Y86*$Z86-(2009-Y$3)/$C86*$Z86*Y86)) -> 0 | AW86: =+SUM(AA86:AV86) -> 0 | AX86: =VLOOKUP(D$3,Prisindeks!$A$1:$B$111,2,FALSE)/100*AA86 -> 0 | AY86: =VLOOKUP(E$3,Prisindeks!$A$1:$B$111,2,FALSE)/100*AB86 -> 0 | AZ86: =VLOOKUP(F$3,Prisindeks!$A$1:$B$111,2,FALSE)/100*AC86 -> 0 | BA86: =VLOOKUP(G$3,Prisindeks!$A$1:$B$111,2,FALSE)/100*AD86 -> 0 | BB86: =VLOOKUP(H$3,Prisindeks!$A$1:$B$111,2,FALSE)/100*AE86 -> 0 | BC86: =VLOOKUP(I$3,Prisindeks!$A$1:$B$111,2,FALSE)/100*AF86 -> 0 | BD86: =VLOOKUP(J$3,Prisindeks!$A$1:$B$111,2,FALSE)/100*AG86 -> 0 | BE86: =VLOOKUP(K$3,Prisindeks!$A$1:$B$111,2,FALSE)/100*AH86 -> 0 | BF86: =VLOOKUP(L$3,Prisindeks!$A$1:$B$111,2,FALSE)/100*AI86 -> 0 | BG86: =VLOOKUP(M$3,Prisindeks!$A$1:$B$111,2,FALSE)/100*AJ86 -> 0 | BH86: =VLOOKUP(N$3,Prisindeks!$A$1:$B$111,2,FALSE)/100*AK86 -> 0 | BI86: =VLOOKUP(O$3,Prisindeks!$A$1:$B$111,2,FALSE)/100*AL86 -> 0 | BJ86: =VLOOKUP(P$3,Prisindeks!$A$1:$B$111,2,FALSE)/100*AM86 -> 0 | BK86: =VLOOKUP(Q$3,Prisindeks!$A$1:$B$111,2,FALSE)/100*AN86 -> 0 | BL86: =VLOOKUP(R$3,Prisindeks!$A$1:$B$111,2,FALSE)/100*AO86 -> 0 | BM86: =VLOOKUP(S$3,Prisindeks!$A$1:$B$111,2,FALSE)/100*AP86 -> 0 | BN86: =VLOOKUP(T$3,Prisindeks!$A$1:$B$111,2,FALSE)/100*AQ86 -> 0 | BO86: =VLOOKUP(U$3,Prisindeks!$A$1:$B$111,2,FALSE)/100*AR86 -> 0 | BP86: =VLOOKUP(V$3,Prisindeks!$A$1:$B$111,2,FALSE)/100*AS86 -> 0 | BQ86: =VLOOKUP(W$3,Prisindeks!$A$1:$B$111,2,FALSE)/100*AT86 -> 0 | BR86: =VLOOKUP(X$3,Prisindeks!$A$1:$B$111,2,FALSE)/100*AU86 -> 0 | BS86: =VLOOKUP(Y$3,Prisindeks!$A$1:$B$111,2,FALSE)/100*AV86 -> 0 | BT86: =+SUM(AX86:BS86) -> 0 | BU86: =(AA86+AX86)/2 -> 0 | BV86: 0 | BW86: 0 | BX86: 0 | BY86: 0 | BZ86: 0 | CA86: 0 | CB86: 0 | CC86: 0 | CD86: 0 | CE86: =(AK86+BH86)/2 -> 0 | CF86: 0 | CG86: 0 | CH86: 0 | CI86: 0 | CJ86: 0 | CK86: 0 | CL86: 0 | CM86: 0 | CN86: 0 | CO86: =(AU86+BR86)/2 -> 0 | CP86: 0 | CQ86: =+SUM(BU86:CP86) -> 0 | CR86: =SUM(D86:Y86) -> 0
A87: =+Genanskaffelsespriser!$B$15 -> Forklaring, SRO | B87: PE | C87: =Genanskaffelsespriser!$E$15 -> 10 | D87: 0 | E87: 0 | F87: 0 | G87: 0 | H87: 0 | I87: 0 | J87: 0 | K87: 0 | L87: 0 | M87: 0 | N87: 0 | O87: 0 | P87: 0 | Q87: 0 | R87: 0 | S87: 0 | T87: 0 | U87: 0 | V87: 0 | W87: 0 | X87: 0 | Y87: 0 | Z87: =IF(COUNTIF(D87:Y87,"<>0")<=1,IF(SUM(D87:Y87)=0,0,(IF(SUM(D87:Y87)>0,IF(SUM(D87:Y87)<400,(1.2675*45967*SUM(D87:Y87)^(-0.4664)),(IF(SUM(D87:Y87)<2000,(39128*SUM(D87:Y87)^(-0.37661)),IF(SUM(D87:Y87)<5000,18893*SUM(D87:Y87)^(-0.28083),IF(SUM(D87:Y87)<100000,29680*SUM(D87:Y87)^(-0.24475),1773.1))))*100/115)*SUM(D87:Y87)*(IF(SUM(D87:Y87)>0,0.0538,0)),0)*1.15*1.06*0.01)/SUM(D87:Y87)),$A$73) -> 0 | AA87: 0 | AB87: 0 | AC87: 0 | AD87: 0 | AE87: 0 | AF87: 0 | AG87: 0 | AH87: 0 | AI87: 0 | AJ87: 0 | AK87: 0 | AL87: 0 | AM87: 0 | AN87: 0 | AO87: 0 | AP87: 0 | AQ87: 0 | AR87: 0 | AS87: 0 | AT87: 0 | AU87: =IF((X87*$Z87-(2009-X$3)/$C87*$Z87*X87)<0,0,(X87*$Z87-(2009-X$3)/$C87*$Z87*X87)) -> 0 | AV87: =IF((Y87*$Z87-(2009-Y$3)/$C87*$Z87*Y87)<0,0,(Y87*$Z87-(2009-Y$3)/$C87*$Z87*Y87)) -> 0 | AW87: =+SUM(AA87:AV87) -> 0 | AX87: =VLOOKUP(D$3,Prisindeks!$A$1:$B$111,2,FALSE)/100*AA87 -> 0 | AY87: =VLOOKUP(E$3,Prisindeks!$A$1:$B$111,2,FALSE)/100*AB87 -> 0 | AZ87: =VLOOKUP(F$3,Prisindeks!$A$1:$B$111,2,FALSE)/100*AC87 -> 0 | BA87: =VLOOKUP(G$3,Prisindeks!$A$1:$B$111,2,FALSE)/100*AD87 -> 0 | BB87: =VLOOKUP(H$3,Prisindeks!$A$1:$B$111,2,FALSE)/100*AE87 -> 0 | BC87: =VLOOKUP(I$3,Prisindeks!$A$1:$B$111,2,FALSE)/100*AF87 -> 0 | BD87: =VLOOKUP(J$3,Prisindeks!$A$1:$B$111,2,FALSE)/100*AG87 -> 0 | BE87: =VLOOKUP(K$3,Prisindeks!$A$1:$B$111,2,FALSE)/100*AH87 -> 0 | BF87: =VLOOKUP(L$3,Prisindeks!$A$1:$B$111,2,FALSE)/100*AI87 -> 0 | BG87: =VLOOKUP(M$3,Prisindeks!$A$1:$B$111,2,FALSE)/100*AJ87 -> 0 | BH87: =VLOOKUP(N$3,Prisindeks!$A$1:$B$111,2,FALSE)/100*AK87 -> 0 | BI87: =VLOOKUP(O$3,Prisindeks!$A$1:$B$111,2,FALSE)/100*AL87 -> 0 | BJ87: =VLOOKUP(P$3,Prisindeks!$A$1:$B$111,2,FALSE)/100*AM87 -> 0 | BK87: =VLOOKUP(Q$3,Prisindeks!$A$1:$B$111,2,FALSE)/100*AN87 -> 0 | BL87: =VLOOKUP(R$3,Prisindeks!$A$1:$B$111,2,FALSE)/100*AO87 -> 0 | BM87: =VLOOKUP(S$3,Prisindeks!$A$1:$B$111,2,FALSE)/100*AP87 -> 0 | BN87: =VLOOKUP(T$3,Prisindeks!$A$1:$B$111,2,FALSE)/100*AQ87 -> 0 | BO87: =VLOOKUP(U$3,Prisindeks!$A$1:$B$111,2,FALSE)/100*AR87 -> 0 | BP87: =VLOOKUP(V$3,Prisindeks!$A$1:$B$111,2,FALSE)/100*AS87 -> 0 | BQ87: =VLOOKUP(W$3,Prisindeks!$A$1:$B$111,2,FALSE)/100*AT87 -> 0 | BR87: =VLOOKUP(X$3,Prisindeks!$A$1:$B$111,2,FALSE)/100*AU87 -> 0 | BS87: =VLOOKUP(Y$3,Prisindeks!$A$1:$B$111,2,FALSE)/100*AV87 -> 0 | BT87: =+SUM(AX87:BS87) -> 0 | BU87: 0 | BV87: 0 | BW87: 0 | BX87: 0 | BY87: 0 | BZ87: 0 | CA87: 0 | CB87: 0 | CC87: 0 | CD87: 0 | CE87: 0 | CF87: 0 | CG87: 0 | CH87: 0 | CI87: 0 | CJ87: 0 | CK87: 0 | CL87: 0 | CM87: 0 | CN87: 0 | CO87: 0 | CP87: 0 | CQ87: =+SUM(BU87:CP87) -> 0 | CR87: =SUM(D87:Y87) -> 0
A88: =+Genanskaffelsespriser!$B$16 -> Beluftningstanke, Konstruktioner | B88: PE | C88: =Genanskaffelsespriser!$E$16 -> 60 | D88: 0 | E88: 0 | F88: 0 | G88: 0 | H88: 0 | I88: 0 | J88: 0 | K88: 0 | L88: 0 | M88: 0 | N88: 0 | O88: 0 | P88: 0 | Q88: 0 | R88: 0 | S88: 0 | T88: 0 | U88: 0 | V88: 0 | W88: 0 | X88: 0 | Y88: 0 | Z88: =IF(COUNTIF(D88:Y88,"<>0")<=1,IF(SUM(D88:Y88)=0,0,(IF(SUM(D88:Y88)>0,IF(SUM(D88:Y88)<400,(1.2675*45967*SUM(D88:Y88)^(-0.4664)),(IF(SUM(D88:Y88)<2000,(39128*SUM(D88:Y88)^(-0.37661)),IF(SUM(D88:Y88)<5000,18893*SUM(D88:Y88)^(-0.28083),IF(SUM(D88:Y88)<100000,29680*SUM(D88:Y88)^(-0.24475),1773.1))))*100/115)*SUM(D88:Y88)*(IF(SUM(D84:Y84)>0,0.3551,0.5283)),0)*1.15*1.06*0.54)*(1+Genanskaffelsespriser!$D$389)/SUM(D88:Y88)),$A$73) -> 0 | AA88: =IF((D88*$Z88-(2009-D$3)/($C88+D89)*$Z88*D88)<0,0,(D88*$Z88-(2009-D$3)/($C88+D89)*$Z88*D88)) -> 0 | AB88: 0 | AC88: 0 | AD88: 0 | AE88: 0 | AF88: 0 | AG88: 0 | AH88: 0 | AI88: 0 | AJ88: 0 | AK88: 0 | AL88: 0 | AM88: 0 | AN88: 0 | AO88: 0 | AP88: 0 | AQ88: 0 | AR88: 0 | AS88: 0 | AT88: 0 | AU88: 0 | AV88: 0 | AW88: =+SUM(AA88:AV88) -> 0 | AX88: =VLOOKUP(D$3,Prisindeks!$A$1:$B$111,2,FALSE)/100*AA88 -> 0 | AY88: =VLOOKUP(E$3,Prisindeks!$A$1:$B$111,2,FALSE)/100*AB88 -> 0 | AZ88: =VLOOKUP(F$3,Prisindeks!$A$1:$B$111,2,FALSE)/100*AC88 -> 0 | BA88: =VLOOKUP(G$3,Prisindeks!$A$1:$B$111,2,FALSE)/100*AD88 -> 0 | BB88: =VLOOKUP(H$3,Prisindeks!$A$1:$B$111,2,FALSE)/100*AE88 -> 0 | BC88: =VLOOKUP(I$3,Prisindeks!$A$1:$B$111,2,FALSE)/100*AF88 -> 0 | BD88: =VLOOKUP(J$3,Prisindeks!$A$1:$B$111,2,FALSE)/100*AG88 -> 0 | BE88: =VLOOKUP(K$3,Prisindeks!$A$1:$B$111,2,FALSE)/100*AH88 -> 0 | BF88: =VLOOKUP(L$3,Prisindeks!$A$1:$B$111,2,FALSE)/100*AI88 -> 0 | BG88: =VLOOKUP(M$3,Prisindeks!$A$1:$B$111,2,FALSE)/100*AJ88 -> 0 | BH88: =VLOOKUP(N$3,Prisindeks!$A$1:$B$111,2,FALSE)/100*AK88 -> 0 | BI88: =VLOOKUP(O$3,Prisindeks!$A$1:$B$111,2,FALSE)/100*AL88 -> 0 | BJ88: =VLOOKUP(P$3,Prisindeks!$A$1:$B$111,2,FALSE)/100*AM88 -> 0 | BK88: =VLOOKUP(Q$3,Prisindeks!$A$1:$B$111,2,FALSE)/100*AN88 -> 0 | BL88: =VLOOKUP(R$3,Prisindeks!$A$1:$B$111,2,FALSE)/100*AO88 -> 0 | BM88: =VLOOKUP(S$3,Prisindeks!$A$1:$B$111,2,FALSE)/100*AP88 -> 0 | BN88: =VLOOKUP(T$3,Prisindeks!$A$1:$B$111,2,FALSE)/100*AQ88 -> 0 | BO88: =VLOOKUP(U$3,Prisindeks!$A$1:$B$111,2,FALSE)/100*AR88 -> 0 | BP88: =VLOOKUP(V$3,Prisindeks!$A$1:$B$111,2,FALSE)/100*AS88 -> 0 | BQ88: =VLOOKUP(W$3,Prisindeks!$A$1:$B$111,2,FALSE)/100*AT88 -> 0 | BR88: =VLOOKUP(X$3,Prisindeks!$A$1:$B$111,2,FALSE)/100*AU88 -> 0 | BS88: =VLOOKUP(Y$3,Prisindeks!$A$1:$B$111,2,FALSE)/100*AV88 -> 0 | BT88: =+SUM(AX88:BS88) -> 0 | BU88: 0 | BV88: 0 | BW88: 0 | BX88: 0 | BY88: 0 | BZ88: 0 | CA88: 0 | CB88: 0 | CC88: 0 | CD88: 0 | CE88: 0 | CF88: 0 | CG88: 0 | CH88: 0 | CI88: 0 | CJ88: 0 | CK88: 0 | CL88: 0 | CM88: 0 | CN88: 0 | CO88: 0 | CP88: 0 | CQ88: =+SUM(BU88:CP88) -> 0 | CR88: =SUM(D88:Y88) -> 0
A89: Levetidsforlængelse | B89: år | C89: - | D89: 0 | E89: 0 | F89: 0 | G89: 0 | H89: 0 | I89: 0 | J89: 0 | K89: 0 | L89: 0 | M89: 0 | N89: 0 | O89: 0 | P89: 0 | Q89: 0 | R89: 0 | S89: 0 | T89: 0 | U89: 0 | V89: 0 | W89: 0 | X89: 0 | Y89: 0
A90: =+Genanskaffelsespriser!$B$17 -> Beluftningstanke, Mek/EL | B90: PE | C90: =Genanskaffelsespriser!$E$17 -> 20 | D90: 0 | E90: 0 | F90: 0 | G90: 0 | H90: 0 | I90: 0 | J90: 0 | K90: 0 | L90: 0 | M90: 0 | N90: 0 | O90: 0 | P90: 0 | Q90: 0 | R90: 0 | S90: 0 | T90: 0 | U90: 0 | V90: 0 | W90: 0 | X90: 0 | Y90: 0 | Z90: =IF(COUNTIF(D90:Y90,"<>0")<=1,IF(SUM(D90:Y90)=0,0,(IF(SUM(D90:Y90)>0,IF(SUM(D90:Y90)<400,(1.2675*45967*SUM(D90:Y90)^(-0.4664)),(IF(SUM(D90:Y90)<2000,(39128*SUM(D90:Y90)^(-0.37661)),IF(SUM(D90:Y90)<5000,18893*SUM(D90:Y90)^(-0.28083),IF(SUM(D90:Y90)<100000,29680*SUM(D90:Y90)^(-0.24475),1773.1))))*100/115)*SUM(D90:Y90)*(IF(SUM(D86:Y86)>0,0.3551,0.5283)),0)*1.15*1.06*0.4)/SUM(D90:Y90)),$A$73) -> 0 | AA90: =IF((D90*$Z90-(2009-D$3)/$C90*$Z90*D90)<0,0,(D90*$Z90-(2009-D$3)/$C90*$Z90*D90)) -> 0 | AB90: 0 | AC90: 0 | AD90: 0 | AE90: 0 | AF90: 0 | AG90: 0 | AH90: 0 | AI90: 0 | AJ90: 0 | AK90: =IF((N90*$Z90-(2009-N$3)/$C90*$Z90*N90)<0,0,(N90*$Z90-(2009-N$3)/$C90*$Z90*N90)) -> 0 | AL90: 0 | AM90: 0 | AN90: 0 | AO90: 0 | AP90: 0 | AQ90: 0 | AR90: 0 | AS90: 0 | AT90: 0 | AU90: =IF((X90*$Z90-(2009-X$3)/$C90*$Z90*X90)<0,0,(X90*$Z90-(2009-X$3)/$C90*$Z90*X90)) -> 0 | AV90: =IF((Y90*$Z90-(2009-Y$3)/$C90*$Z90*Y90)<0,0,(Y90*$Z90-(2009-Y$3)/$C90*$Z90*Y90)) -> 0 | AW90: =+SUM(AA90:AV90) -> 0 | AX90: =VLOOKUP(D$3,Prisindeks!$A$1:$B$111,2,FALSE)/100*AA90 -> 0 | AY90: =VLOOKUP(E$3,Prisindeks!$A$1:$B$111,2,FALSE)/100*AB90 -> 0 | AZ90: =VLOOKUP(F$3,Prisindeks!$A$1:$B$111,2,FALSE)/100*AC90 -> 0 | BA90: =VLOOKUP(G$3,Prisindeks!$A$1:$B$111,2,FALSE)/100*AD90 -> 0 | BB90: =VLOOKUP(H$3,Prisindeks!$A$1:$B$111,2,FALSE)/100*AE90 -> 0 | BC90: =VLOOKUP(I$3,Prisindeks!$A$1:$B$111,2,FALSE)/100*AF90 -> 0 | BD90: =VLOOKUP(J$3,Prisindeks!$A$1:$B$111,2,FALSE)/100*AG90 -> 0 | BE90: =VLOOKUP(K$3,Prisindeks!$A$1:$B$111,2,FALSE)/100*AH90 -> 0 | BF90: =VLOOKUP(L$3,Prisindeks!$A$1:$B$111,2,FALSE)/100*AI90 -> 0 | BG90: =VLOOKUP(M$3,Prisindeks!$A$1:$B$111,2,FALSE)/100*AJ90 -> 0 | BH90: =VLOOKUP(N$3,Prisindeks!$A$1:$B$111,2,FALSE)/100*AK90 -> 0 | BI90: =VLOOKUP(O$3,Prisindeks!$A$1:$B$111,2,FALSE)/100*AL90 -> 0 | BJ90: =VLOOKUP(P$3,Prisindeks!$A$1:$B$111,2,FALSE)/100*AM90 -> 0 | BK90: =VLOOKUP(Q$3,Prisindeks!$A$1:$B$111,2,FALSE)/100*AN90 -> 0 | BL90: =VLOOKUP(R$3,Prisindeks!$A$1:$B$111,2,FALSE)/100*AO90 -> 0 | BM90: =VLOOKUP(S$3,Prisindeks!$A$1:$B$111,2,FALSE)/100*AP90 -> 0 | BN90: =VLOOKUP(T$3,Prisindeks!$A$1:$B$111,2,FALSE)/100*AQ90 -> 0 | BO90: =VLOOKUP(U$3,Prisindeks!$A$1:$B$111,2,FALSE)/100*AR90 -> 0 | BP90: =VLOOKUP(V$3,Prisindeks!$A$1:$B$111,2,FALSE)/100*AS90 -> 0 | BQ90: =VLOOKUP(W$3,Prisindeks!$A$1:$B$111,2,FALSE)/100*AT90 -> 0 | BR90: =VLOOKUP(X$3,Prisindeks!$A$1:$B$111,2,FALSE)/100*AU90 -> 0 | BS90: =VLOOKUP(Y$3,Prisindeks!$A$1:$B$111,2,FALSE)/100*AV90 -> 0 | BT90: =+SUM(AX90:BS90) -> 0 | BU90: =(AA90+AX90)/2 -> 0 | BV90: 0 | BW90: 0 | BX90: 0 | BY90: 0 | BZ90: 0 | CA90: 0 | CB90: 0 | CC90: 0 | CD90: 0 | CE90: =(AK90+BH90)/2 -> 0 | CF90: 0 | CG90: 0 | CH90: 0 | CI90: 0 | CJ90: 0 | CK90: 0 | CL90: 0 | CM90: 0 | CN90: 0 | CO90: =(AU90+BR90)/2 -> 0 | CP90: 0 | CQ90: =+SUM(BU90:CP90) -> 0 | CR90: =SUM(D90:Y90) -> 0
A91: =+Genanskaffelsespriser!$B$18 -> Beluftningstanke, SRO | B91: PE | C91: =Genanskaffelsespriser!$E$18 -> 10 | D91: 0 | E91: 0 | F91: 0 | G91: 0 | H91: 0 | I91: 0 | J91: 0 | K91: 0 | L91: 0 | M91: 0 | N91: 0 | O91: 0 | P91: 0 | Q91: 0 | R91: 0 | S91: 0 | T91: 0 | U91: 0 | V91: 0 | W91: 0 | X91: 0 | Y91: 0 | Z91: =IF(COUNTIF(D91:Y91,"<>0")<=1,IF(SUM(D91:Y91)=0,0,(IF(SUM(D91:Y91)>0,IF(SUM(D91:Y91)<400,(1.2675*45967*SUM(D91:Y91)^(-0.4664)),(IF(SUM(D91:Y91)<2000,(39128*SUM(D91:Y91)^(-0.37661)),IF(SUM(D91:Y91)<5000,18893*SUM(D91:Y91)^(-0.28083),IF(SUM(D91:Y91)<100000,29680*SUM(D91:Y91)^(-0.24475),1773.1))))*100/115)*SUM(D91:Y91)*(IF(SUM(D87:Y87)>0,0.3551,0.5283)),0)*1.15*1.06*0.06)/SUM(D91:Y91)),$A$73) -> 0 | AA91: 0 | AB91: 0 | AC91: 0 | AD91: 0 | AE91: 0 | AF91: 0 | AG91: 0 | AH91: 0 | AI91: 0 | AJ91: 0 | AK91: 0 | AL91: 0 | AM91: 0 | AN91: 0 | AO91: 0 | AP91: 0 | AQ91: 0 | AR91: 0 | AS91: 0 | AT91: 0 | AU91: =IF((X91*$Z91-(2009-X$3)/$C91*$Z91*X91)<0,0,(X91*$Z91-(2009-X$3)/$C91*$Z91*X91)) -> 0 | AV91: =IF((Y91*$Z91-(2009-Y$3)/$C91*$Z91*Y91)<0,0,(Y91*$Z91-(2009-Y$3)/$C91*$Z91*Y91)) -> 0 | AW91: =+SUM(AA91:AV91) -> 0 | AX91: =VLOOKUP(D$3,Prisindeks!$A$1:$B$111,2,FALSE)/100*AA91 -> 0 | AY91: =VLOOKUP(E$3,Prisindeks!$A$1:$B$111,2,FALSE)/100*AB91 -> 0 | AZ91: =VLOOKUP(F$3,Prisindeks!$A$1:$B$111,2,FALSE)/100*AC91 -> 0 | BA91: =VLOOKUP(G$3,Prisindeks!$A$1:$B$111,2,FALSE)/100*AD91 -> 0 | BB91: =VLOOKUP(H$3,Prisindeks!$A$1:$B$111,2,FALSE)/100*AE91 -> 0 | BC91: =VLOOKUP(I$3,Prisindeks!$A$1:$B$111,2,FALSE)/100*AF91 -> 0 | BD91: =VLOOKUP(J$3,Prisindeks!$A$1:$B$111,2,FALSE)/100*AG91 -> 0 | BE91: =VLOOKUP(K$3,Prisindeks!$A$1:$B$111,2,FALSE)/100*AH91 -> 0 | BF91: =VLOOKUP(L$3,Prisindeks!$A$1:$B$111,2,FALSE)/100*AI91 -> 0 | BG91: =VLOOKUP(M$3,Prisindeks!$A$1:$B$111,2,FALSE)/100*AJ91 -> 0 | BH91: =VLOOKUP(N$3,Prisindeks!$A$1:$B$111,2,FALSE)/100*AK91 -> 0 | BI91: =VLOOKUP(O$3,Prisindeks!$A$1:$B$111,2,FALSE)/100*AL91 -> 0 | BJ91: =VLOOKUP(P$3,Prisindeks!$A$1:$B$111,2,FALSE)/100*AM91 -> 0 | BK91: =VLOOKUP(Q$3,Prisindeks!$A$1:$B$111,2,FALSE)/100*AN91 -> 0 | BL91: =VLOOKUP(R$3,Prisindeks!$A$1:$B$111,2,FALSE)/100*AO91 -> 0 | BM91: =VLOOKUP(S$3,Prisindeks!$A$1:$B$111,2,FALSE)/100*AP91 -> 0 | BN91: =VLOOKUP(T$3,Prisindeks!$A$1:$B$111,2,FALSE)/100*AQ91 -> 0 | BO91: =VLOOKUP(U$3,Prisindeks!$A$1:$B$111,2,FALSE)/100*AR91 -> 0 | BP91: =VLOOKUP(V$3,Prisindeks!$A$1:$B$111,2,FALSE)/100*AS91 -> 0 | BQ91: =VLOOKUP(W$3,Prisindeks!$A$1:$B$111,2,FALSE)/100*AT91 -> 0 | BR91: =VLOOKUP(X$3,Prisindeks!$A$1:$B$111,2,FALSE)/100*AU91 -> 0 | BS91: =VLOOKUP(Y$3,Prisindeks!$A$1:$B$111,2,FALSE)/100*AV91 -> 0 | BT91: =+SUM(AX91:BS91) -> 0 | BU91: 0 | BV91: 0 | BW91: 0 | BX91: 0 | BY91: 0 | BZ91: 0 | CA91: 0 | CB91: 0 | CC91: 0 | CD91: 0 | CE91: 0 | CF91: 0 | CG91: 0 | CH91: 0 | CI91: 0 | CJ91: 0 | CK91: 0 | CL91: 0 | CM91: 0 | CN91: 0 | CO91: 0 | CP91: 0 | CQ91: =+SUM(BU91:CP91) -> 0 | CR91: =SUM(D91:Y91) -> 0
A92: =+Genanskaffelsespriser!$B$19 -> Efterklaringstanke, Konstruktioner | B92: PE | C92: =Genanskaffelsespriser!$E$19 -> 60 | D92: 0 | E92: 0 | F92: 0 | G92: 0 | H92: 0 | I92: 0 | J92: 0 | K92: 0 | L92: 0 | M92: 0 | N92: 0 | O92: 225000 | P92: 0 | Q92: 0 | R92: 0 | S92: 0 | T92: 0 | U92: 0 | V92: 0 | W92: 0 | X92: 0 | Y92: 0 | Z92: =IF(COUNTIF(D92:Y92,"<>0")<=1,IF(SUM(D92:Y92)=0,0,(IF(SUM(D92:Y92)>0,IF(SUM(D92:Y92)<400,(1.2675*45967*SUM(D92:Y92)^(-0.4664)),(IF(SUM(D92:Y92)<2000,(39128*SUM(D92:Y92)^(-0.37661)),IF(SUM(D92:Y92)<5000,18893*SUM(D92:Y92)^(-0.28083),IF(SUM(D92:Y92)<100000,29680*SUM(D92:Y92)^(-0.24475),1773.1))))*100/115)*SUM(D92:Y92)*(IF(SUM(D84:Y84)>0,0.2965,0.2971)),0)*1.15*1.06*0.58)*(1+Genanskaffelsespriser!$D$389)/SUM(D92:Y92)),$A$73) -> 335.8524315 | AA92: =IF((D92*$Z92-(2009-D$3)/($C92+D93)*$Z92*D92)<0,0,(D92*$Z92-(2009-D$3)/($C92+D93)*$Z92*D92)) -> 0 | AB92: 0 | AC92: 0 | AD92: 0 | AE92: 0 | AF92: 0 | AG92: 0 | AH92: 0 | AI92: 0 | AJ92: 0 | AK92: 0 | AL92: 60453437.67 | AM92: 0 | AN92: 0 | AO92: 0 | AP92: 0 | AQ92: 0 | AR92: 0 | AS92: 0 | AT92: 0 | AU92: 0 | AV92: 0 | AW92: =+SUM(AA92:AV92) -> 60453437.67 | AX92: =VLOOKUP(D$3,Prisindeks!$A$1:$B$111,2,FALSE)/100*AA92 -> 0 | AY92: =VLOOKUP(E$3,Prisindeks!$A$1:$B$111,2,FALSE)/100*AB92 -> 0 | AZ92: =VLOOKUP(F$3,Prisindeks!$A$1:$B$111,2,FALSE)/100*AC92 -> 0 | BA92: =VLOOKUP(G$3,Prisindeks!$A$1:$B$111,2,FALSE)/100*AD92 -> 0 | BB92: =VLOOKUP(H$3,Prisindeks!$A$1:$B$111,2,FALSE)/100*AE92 -> 0 | BC92: =VLOOKUP(I$3,Prisindeks!$A$1:$B$111,2,FALSE)/100*AF92 -> 0 | BD92: =VLOOKUP(J$3,Prisindeks!$A$1:$B$111,2,FALSE)/100*AG92 -> 0 | BE92: =VLOOKUP(K$3,Prisindeks!$A$1:$B$111,2,FALSE)/100*AH92 -> 0 | BF92: =VLOOKUP(L$3,Prisindeks!$A$1:$B$111,2,FALSE)/100*AI92 -> 0 | BG92: =VLOOKUP(M$3,Prisindeks!$A$1:$B$111,2,FALSE)/100*AJ92 -> 0 | BH92: =VLOOKUP(N$3,Prisindeks!$A$1:$B$111,2,FALSE)/100*AK92 -> 0 | BI92: =VLOOKUP(O$3,Prisindeks!$A$1:$B$111,2,FALSE)/100*AL92 -> 48783189.06 | BJ92: =VLOOKUP(P$3,Prisindeks!$A$1:$B$111,2,FALSE)/100*AM92 -> 0 | BK92: =VLOOKUP(Q$3,Prisindeks!$A$1:$B$111,2,FALSE)/100*AN92 -> 0 | BL92: =VLOOKUP(R$3,Prisindeks!$A$1:$B$111,2,FALSE)/100*AO92 -> 0 | BM92: =VLOOKUP(S$3,Prisindeks!$A$1:$B$111,2,FALSE)/100*AP92 -> 0 | BN92: =VLOOKUP(T$3,Prisindeks!$A$1:$B$111,2,FALSE)/100*AQ92 -> 0 | BO92: =VLOOKUP(U$3,Prisindeks!$A$1:$B$111,2,FALSE)/100*AR92 -> 0 | BP92: =VLOOKUP(V$3,Prisindeks!$A$1:$B$111,2,FALSE)/100*AS92 -> 0 | BQ92: =VLOOKUP(W$3,Prisindeks!$A$1:$B$111,2,FALSE)/100*AT92 -> 0 | BR92: =VLOOKUP(X$3,Prisindeks!$A$1:$B$111,2,FALSE)/100*AU92 -> 0 | BS92: =VLOOKUP(Y$3,Prisindeks!$A$1:$B$111,2,FALSE)/100*AV92 -> 0 | BT92: =+SUM(AX92:BS92) -> 48783189.06 | BU92: 0 | BV92: 0 | BW92: 0 | BX92: 0 | BY92: 0 | BZ92: 0 | CA92: 0 | CB92: 0 | CC92: 0 | CD92: 0 | CE92: 0 | CF92: 54618313.36 | CG92: 0 | CH92: 0 | CI92: 0 | CJ92: 0 | CK92: 0 | CL92: 0 | CM92: 0 | CN92: 0 | CO92: 0 | CP92: 0 | CQ92: =+SUM(BU92:CP92) -> 54618313.36 | CR92: =SUM(D92:Y92) -> 225000
A93: Levetidsforlængelse | B93: år | C93: - | D93: 0 | E93: 0 | F93: 0 | G93: 0 | H93: 0 | I93: 0 | J93: 0 | K93: 0 | L93: 0 | M93: 0 | N93: 0 | O93: 0 | P93: 0 | Q93: 0 | R93: 0 | S93: 0 | T93: 0 | U93: 0 | V93: 0 | W93: 0 | X93: 0 | Y93: 0
A94: =+Genanskaffelsespriser!$B$20 -> Efterklaringstanke, Mek/El | B94: PE | C94: =Genanskaffelsespriser!$E$20 -> 20 | D94: 0 | E94: 0 | F94: 0 | G94: 0 | H94: 0 | I94: 0 | J94: 0 | K94: 0 | L94: 0 | M94: 0 | N94: 0 | O94: 225000 | P94: 0 | Q94: 0 | R94: 0 | S94: 0 | T94: 0 | U94: 0 | V94: 0 | W94: 0 | X94: 0 | Y94: 0 | Z94: =IF(COUNTIF(D94:Y94,"<>0")<=1,IF(SUM(D94:Y94)=0,0,(IF(SUM(D94:Y94)>0,IF(SUM(D94:Y94)<400,(1.2675*45967*SUM(D94:Y94)^(-0.4664)),(IF(SUM(D94:Y94)<2000,(39128*SUM(D94:Y94)^(-0.37661)),IF(SUM(D94:Y94)<5000,18893*SUM(D94:Y94)^(-0.28083),IF(SUM(D94:Y94)<100000,29680*SUM(D94:Y94)^(-0.24475),1773.1))))*100/115)*SUM(D94:Y94)*(IF(SUM(D86:Y86)>0,0.2965,0.2971)),0)*1.15*1.06*0.37)/SUM(D94:Y94)),$A$73) -> 206.6062575 | AA94: =IF((D94*$Z94-(2009-D$3)/$C94*$Z94*D94)<0,0,(D94*$Z94-(2009-D$3)/$C94*$Z94*D94)) -> 0 | AB94: 0 | AC94: 0 | AD94: 0 | AE94: 0 | AF94: 0 | AG94: 0 | AH94: 0 | AI94: 0 | AJ94: 0 | AK94: =IF((N94*$Z94-(2009-N$3)/$C94*$Z94*N94)<0,0,(N94*$Z94-(2009-N$3)/$C94*$Z94*N94)) -> 0 | AL94: 18594563.18 | AM94: 0 | AN94: 0 | AO94: 0 | AP94: 0 | AQ94: 0 | AR94: 0 | AS94: 0 | AT94: 0 | AU94: =IF((X94*$Z94-(2009-X$3)/$C94*$Z94*X94)<0,0,(X94*$Z94-(2009-X$3)/$C94*$Z94*X94)) -> 0 | AV94: =IF((Y94*$Z94-(2009-Y$3)/$C94*$Z94*Y94)<0,0,(Y94*$Z94-(2009-Y$3)/$C94*$Z94*Y94)) -> 0 | AW94: =+SUM(AA94:AV94) -> 18594563.18 | AX94: =VLOOKUP(D$3,Prisindeks!$A$1:$B$111,2,FALSE)/100*AA94 -> 0 | AY94: =VLOOKUP(E$3,Prisindeks!$A$1:$B$111,2,FALSE)/100*AB94 -> 0 | AZ94: =VLOOKUP(F$3,Prisindeks!$A$1:$B$111,2,FALSE)/100*AC94 -> 0 | BA94: =VLOOKUP(G$3,Prisindeks!$A$1:$B$111,2,FALSE)/100*AD94 -> 0 | BB94: =VLOOKUP(H$3,Prisindeks!$A$1:$B$111,2,FALSE)/100*AE94 -> 0 | BC94: =VLOOKUP(I$3,Prisindeks!$A$1:$B$111,2,FALSE)/100*AF94 -> 0 | BD94: =VLOOKUP(J$3,Prisindeks!$A$1:$B$111,2,FALSE)/100*AG94 -> 0 | BE94: =VLOOKUP(K$3,Prisindeks!$A$1:$B$111,2,FALSE)/100*AH94 -> 0 | BF94: =VLOOKUP(L$3,Prisindeks!$A$1:$B$111,2,FALSE)/100*AI94 -> 0 | BG94: =VLOOKUP(M$3,Prisindeks!$A$1:$B$111,2,FALSE)/100*AJ94 -> 0 | BH94: =VLOOKUP(N$3,Prisindeks!$A$1:$B$111,2,FALSE)/100*AK94 -> 0 | BI94: =VLOOKUP(O$3,Prisindeks!$A$1:$B$111,2,FALSE)/100*AL94 -> 15004971.2 | BJ94: =VLOOKUP(P$3,Prisindeks!$A$1:$B$111,2,FALSE)/100*AM94 -> 0 | BK94: =VLOOKUP(Q$3,Prisindeks!$A$1:$B$111,2,FALSE)/100*AN94 -> 0 | BL94: =VLOOKUP(R$3,Prisindeks!$A$1:$B$111,2,FALSE)/100*AO94 -> 0 | BM94: =VLOOKUP(S$3,Prisindeks!$A$1:$B$111,2,FALSE)/100*AP94 -> 0 | BN94: =VLOOKUP(T$3,Prisindeks!$A$1:$B$111,2,FALSE)/100*AQ94 -> 0 | BO94: =VLOOKUP(U$3,Prisindeks!$A$1:$B$111,2,FALSE)/100*AR94 -> 0 | BP94: =VLOOKUP(V$3,Prisindeks!$A$1:$B$111,2,FALSE)/100*AS94 -> 0 | BQ94: =VLOOKUP(W$3,Prisindeks!$A$1:$B$111,2,FALSE)/100*AT94 -> 0 | BR94: =VLOOKUP(X$3,Prisindeks!$A$1:$B$111,2,FALSE)/100*AU94 -> 0 | BS94: =VLOOKUP(Y$3,Prisindeks!$A$1:$B$111,2,FALSE)/100*AV94 -> 0 | BT94: =+SUM(AX94:BS94) -> 15004971.2 | BU94: =(AA94+AX94)/2 -> 0 | BV94: 0 | BW94: 0 | BX94: 0 | BY94: 0 | BZ94: 0 | CA94: 0 | CB94: 0 | CC94: 0 | CD94: 0 | CE94: =(AK94+BH94)/2 -> 0 | CF94: 16799767.19 | CG94: 0 | CH94: 0 | CI94: 0 | CJ94: 0 | CK94: 0 | CL94: 0 | CM94: 0 | CN94: 0 | CO94: =(AU94+BR94)/2 -> 0 | CP94: 0 | CQ94: =+SUM(BU94:CP94) -> 16799767.19 | CR94: =SUM(D94:Y94) -> 225000
A95: =+Genanskaffelsespriser!$B$21 -> Efterklaringstanke, SRO | B95: PE | C95: =Genanskaffelsespriser!$E$21 -> 10 | D95: 0 | E95: 0 | F95: 0 | G95: 0 | H95: 0 | I95: 0 | J95: 0 | K95: 0 | L95: 0 | M95: 0 | N95: 0 | O95: 225000 | P95: 0 | Q95: 0 | R95: 0 | S95: 0 | T95: 0 | U95: 0 | V95: 0 | W95: 0 | X95: 0 | Y95: 0 | Z95: =IF(COUNTIF(D95:Y95,"<>0")<=1,IF(SUM(D95:Y95)=0,0,(IF(SUM(D95:Y95)>0,IF(SUM(D95:Y95)<400,(1.2675*45967*SUM(D95:Y95)^(-0.4664)),(IF(SUM(D95:Y95)<2000,(39128*SUM(D95:Y95)^(-0.37661)),IF(SUM(D95:Y95)<5000,18893*SUM(D95:Y95)^(-0.28083),IF(SUM(D95:Y95)<100000,29680*SUM(D95:Y95)^(-0.24475),1773.1))))*100/115)*SUM(D95:Y95)*(IF(SUM(D87:Y87)>0,0.2965,0.2971)),0)*1.15*1.06*0.05)/SUM(D95:Y95)),$A$73) -> 27.91976453 | AA95: 0 | AB95: 0 | AC95: 0 | AD95: 0 | AE95: 0 | AF95: 0 | AG95: 0 | AH95: 0 | AI95: 0 | AJ95: 0 | AK95: 0 | AL95: 0 | AM95: 0 | AN95: 0 | AO95: 0 | AP95: 0 | AQ95: 0 | AR95: 0 | AS95: 0 | AT95: 0 | AU95: =IF((X95*$Z95-(2009-X$3)/$C95*$Z95*X95)<0,0,(X95*$Z95-(2009-X$3)/$C95*$Z95*X95)) -> 0 | AV95: =IF((Y95*$Z95-(2009-Y$3)/$C95*$Z95*Y95)<0,0,(Y95*$Z95-(2009-Y$3)/$C95*$Z95*Y95)) -> 0 | AW95: =+SUM(AA95:AV95) -> 0 | AX95: =VLOOKUP(D$3,Prisindeks!$A$1:$B$111,2,FALSE)/100*AA95 -> 0 | AY95: =VLOOKUP(E$3,Prisindeks!$A$1:$B$111,2,FALSE)/100*AB95 -> 0 | AZ95: =VLOOKUP(F$3,Prisindeks!$A$1:$B$111,2,FALSE)/100*AC95 -> 0 | BA95: =VLOOKUP(G$3,Prisindeks!$A$1:$B$111,2,FALSE)/100*AD95 -> 0 | BB95: =VLOOKUP(H$3,Prisindeks!$A$1:$B$111,2,FALSE)/100*AE95 -> 0 | BC95: =VLOOKUP(I$3,Prisindeks!$A$1:$B$111,2,FALSE)/100*AF95 -> 0 | BD95: =VLOOKUP(J$3,Prisindeks!$A$1:$B$111,2,FALSE)/100*AG95 -> 0 | BE95: =VLOOKUP(K$3,Prisindeks!$A$1:$B$111,2,FALSE)/100*AH95 -> 0 | BF95: =VLOOKUP(L$3,Prisindeks!$A$1:$B$111,2,FALSE)/100*AI95 -> 0 | BG95: =VLOOKUP(M$3,Prisindeks!$A$1:$B$111,2,FALSE)/100*AJ95 -> 0 | BH95: =VLOOKUP(N$3,Prisindeks!$A$1:$B$111,2,FALSE)/100*AK95 -> 0 | BI95: =VLOOKUP(O$3,Prisindeks!$A$1:$B$111,2,FALSE)/100*AL95 -> 0 | BJ95: =VLOOKUP(P$3,Prisindeks!$A$1:$B$111,2,FALSE)/100*AM95 -> 0 | BK95: =VLOOKUP(Q$3,Prisindeks!$A$1:$B$111,2,FALSE)/100*AN95 -> 0 | BL95: =VLOOKUP(R$3,Prisindeks!$A$1:$B$111,2,FALSE)/100*AO95 -> 0 | BM95: =VLOOKUP(S$3,Prisindeks!$A$1:$B$111,2,FALSE)/100*AP95 -> 0 | BN95: =VLOOKUP(T$3,Prisindeks!$A$1:$B$111,2,FALSE)/100*AQ95 -> 0 | BO95: =VLOOKUP(U$3,Prisindeks!$A$1:$B$111,2,FALSE)/100*AR95 -> 0 | BP95: =VLOOKUP(V$3,Prisindeks!$A$1:$B$111,2,FALSE)/100*AS95 -> 0 | BQ95: =VLOOKUP(W$3,Prisindeks!$A$1:$B$111,2,FALSE)/100*AT95 -> 0 | BR95: =VLOOKUP(X$3,Prisindeks!$A$1:$B$111,2,FALSE)/100*AU95 -> 0 | BS95: =VLOOKUP(Y$3,Prisindeks!$A$1:$B$111,2,FALSE)/100*AV95 -> 0 | BT95: =+SUM(AX95:BS95) -> 0 | BU95: 0 | BV95: 0 | BW95: 0 | BX95: 0 | BY95: 0 | BZ95: 0 | CA95: 0 | CB95: 0 | CC95: 0 | CD95: 0 | CE95: 0 | CF95: 0 | CG95: 0 | CH95: 0 | CI95: 0 | CJ95: 0 | CK95: 0 | CL95: 0 | CM95: 0 | CN95: 0 | CO95: 0 | CP95: 0 | CQ95: =+SUM(BU95:CP95) -> 0 | CR95: =SUM(D95:Y95) -> 225000
A96: =+Genanskaffelsespriser!$B$22 -> Efterbehandlingsanlæg (sandfilter), Konstruktioner | B96: PE | C96: =Genanskaffelsespriser!$E$22 -> 60 | D96: 0 | E96: 0 | F96: 0 | G96: 0 | H96: 0 | I96: 0 | J96: 0 | K96: 0 | L96: 0 | M96: 0 | N96: 0 | O96: 0 | P96: 0 | Q96: 0 | R96: 0 | S96: 0 | T96: 0 | U96: 0 | V96: 0 | W96: 0 | X96: 0 | Y96: 0 | Z96: =IF(COUNTIF(D96:Y96,"<>0")<=1,IF(SUM(D96:Y96)=0,0,(IF(SUM(D96:Y96)>0,IF(SUM(D96:Y96)<400,(1.2675*45967*SUM(D96:Y96)^(-0.4664)),(IF(SUM(D96:Y96)<2000,(39128*SUM(D96:Y96)^(-0.37661)),IF(SUM(D96:Y96)<5000,18893*SUM(D96:Y96)^(-0.28083),IF(SUM(D96:Y96)<100000,29680*SUM(D96:Y96)^(-0.24475),1773.1))))*100/115)*SUM(D96:Y96)*(0.246),0)*1.15*1.06*0.55)*(1+Genanskaffelsespriser!$D$389)/SUM(D96:Y96)),$A$73) -> 0 | AA96: =IF((D96*$Z96-(2009-D$3)/($C96+D97)*$Z96*D96)<0,0,(D96*$Z96-(2009-D$3)/($C96+D97)*$Z96*D96)) -> 0 | AB96: 0 | AC96: 0 | AD96: 0 | AE96: 0 | AF96: 0 | AG96: 0 | AH96: 0 | AI96: 0 | AJ96: 0 | AK96: 0 | AL96: 0 | AM96: 0 | AN96: 0 | AO96: 0 | AP96: 0 | AQ96: 0 | AR96: 0 | AS96: 0 | AT96: 0 | AU96: 0 | AV96: 0 | AW96: =+SUM(AA96:AV96) -> 0 | AX96: =VLOOKUP(D$3,Prisindeks!$A$1:$B$111,2,FALSE)/100*AA96 -> 0 | AY96: =VLOOKUP(E$3,Prisindeks!$A$1:$B$111,2,FALSE)/100*AB96 -> 0 | AZ96: =VLOOKUP(F$3,Prisindeks!$A$1:$B$111,2,FALSE)/100*AC96 -> 0 | BA96: =VLOOKUP(G$3,Prisindeks!$A$1:$B$111,2,FALSE)/100*AD96 -> 0 | BB96: =VLOOKUP(H$3,Prisindeks!$A$1:$B$111,2,FALSE)/100*AE96 -> 0 | BC96: =VLOOKUP(I$3,Prisindeks!$A$1:$B$111,2,FALSE)/100*AF96 -> 0 | BD96: =VLOOKUP(J$3,Prisindeks!$A$1:$B$111,2,FALSE)/100*AG96 -> 0 | BE96: =VLOOKUP(K$3,Prisindeks!$A$1:$B$111,2,FALSE)/100*AH96 -> 0 | BF96: =VLOOKUP(L$3,Prisindeks!$A$1:$B$111,2,FALSE)/100*AI96 -> 0 | BG96: =VLOOKUP(M$3,Prisindeks!$A$1:$B$111,2,FALSE)/100*AJ96 -> 0 | BH96: =VLOOKUP(N$3,Prisindeks!$A$1:$B$111,2,FALSE)/100*AK96 -> 0 | BI96: =VLOOKUP(O$3,Prisindeks!$A$1:$B$111,2,FALSE)/100*AL96 -> 0 | BJ96: =VLOOKUP(P$3,Prisindeks!$A$1:$B$111,2,FALSE)/100*AM96 -> 0 | BK96: =VLOOKUP(Q$3,Prisindeks!$A$1:$B$111,2,FALSE)/100*AN96 -> 0 | BL96: =VLOOKUP(R$3,Prisindeks!$A$1:$B$111,2,FALSE)/100*AO96 -> 0 | BM96: =VLOOKUP(S$3,Prisindeks!$A$1:$B$111,2,FALSE)/100*AP96 -> 0 | BN96: =VLOOKUP(T$3,Prisindeks!$A$1:$B$111,2,FALSE)/100*AQ96 -> 0 | BO96: =VLOOKUP(U$3,Prisindeks!$A$1:$B$111,2,FALSE)/100*AR96 -> 0 | BP96: =VLOOKUP(V$3,Prisindeks!$A$1:$B$111,2,FALSE)/100*AS96 -> 0 | BQ96: =VLOOKUP(W$3,Prisindeks!$A$1:$B$111,2,FALSE)/100*AT96 -> 0 | BR96: =VLOOKUP(X$3,Prisindeks!$A$1:$B$111,2,FALSE)/100*AU96 -> 0 | BS96: =VLOOKUP(Y$3,Prisindeks!$A$1:$B$111,2,FALSE)/100*AV96 -> 0 | BT96: =+SUM(AX96:BS96) -> 0 | BU96: 0 | BV96: 0 | BW96: 0 | BX96: 0 | BY96: 0 | BZ96: 0 | CA96: 0 | CB96: 0 | CC96: 0 | CD96: 0 | CE96: 0 | CF96: 0 | CG96: 0 | CH96: 0 | CI96: 0 | CJ96: 0 | CK96: 0 | CL96: 0 | CM96: 0 | CN96: 0 | CO96: 0 | CP96: 0 | CQ96: =+SUM(BU96:CP96) -> 0 | CR96: =SUM(D96:Y96) -> 0
A97: Levetidsforlængelse | B97: år | C97: - | D97: 0 | E97: 0 | F97: 0 | G97: 0 | H97: 0 | I97: 0 | J97: 0 | K97: 0 | L97: 0 | M97: 0 | N97: 0 | O97: 0 | P97: 0 | Q97: 0 | R97: 0 | S97: 0 | T97: 0 | U97: 0 | V97: 0 | W97: 0 | X97: 0 | Y97: 0
A98: =+Genanskaffelsespriser!$B$23 -> Efterbehandlingsanlæg (sandfilter), Mek/EL | B98: PE | C98: =Genanskaffelsespriser!$E$23 -> 20 | D98: 0 | E98: 0 | F98: 0 | G98: 0 | H98: 0 | I98: 0 | J98: 0 | K98: 0 | L98: 0 | M98: 0 | N98: 0 | O98: 0 | P98: 0 | Q98: 0 | R98: 0 | S98: 0 | T98: 0 | U98: 0 | V98: 0 | W98: 0 | X98: 0 | Y98: 0 | Z98: =IF(COUNTIF(D98:Y98,"<>0")<=1,IF(SUM(D98:Y98)=0,0,(IF(SUM(D98:Y98)>0,IF(SUM(D98:Y98)<400,(1.2675*45967*SUM(D98:Y98)^(-0.4664)),(IF(SUM(D98:Y98)<2000,(39128*SUM(D98:Y98)^(-0.37661)),IF(SUM(D98:Y98)<5000,18893*SUM(D98:Y98)^(-0.28083),IF(SUM(D98:Y98)<100000,29680*SUM(D98:Y98)^(-0.24475),1773.1))))*100/115)*SUM(D98:Y98)*(0.246),0)*1.15*1.06*0.4)/SUM(D98:Y98)),$A$73) -> 0 | AA98: =IF((D98*$Z98-(2009-D$3)/$C98*$Z98*D98)<0,0,(D98*$Z98-(2009-D$3)/$C98*$Z98*D98)) -> 0 | AB98: 0 | AC98: 0 | AD98: 0 | AE98: 0 | AF98: 0 | AG98: 0 | AH98: 0 | AI98: 0 | AJ98: 0 | AK98: =IF((N98*$Z98-(2009-N$3)/$C98*$Z98*N98)<0,0,(N98*$Z98-(2009-N$3)/$C98*$Z98*N98)) -> 0 | AL98: 0 | AM98: 0 | AN98: 0 | AO98: 0 | AP98: 0 | AQ98: 0 | AR98: 0 | AS98: 0 | AT98: 0 | AU98: =IF((X98*$Z98-(2009-X$3)/$C98*$Z98*X98)<0,0,(X98*$Z98-(2009-X$3)/$C98*$Z98*X98)) -> 0 | AV98: =IF((Y98*$Z98-(2009-Y$3)/$C98*$Z98*Y98)<0,0,(Y98*$Z98-(2009-Y$3)/$C98*$Z98*Y98)) -> 0 | AW98: =+SUM(AA98:AV98) -> 0 | AX98: =VLOOKUP(D$3,Prisindeks!$A$1:$B$111,2,FALSE)/100*AA98 -> 0 | AY98: =VLOOKUP(E$3,Prisindeks!$A$1:$B$111,2,FALSE)/100*AB98 -> 0 | AZ98: =VLOOKUP(F$3,Prisindeks!$A$1:$B$111,2,FALSE)/100*AC98 -> 0 | BA98: =VLOOKUP(G$3,Prisindeks!$A$1:$B$111,2,FALSE)/100*AD98 -> 0 | BB98: =VLOOKUP(H$3,Prisindeks!$A$1:$B$111,2,FALSE)/100*AE98 -> 0 | BC98: =VLOOKUP(I$3,Prisindeks!$A$1:$B$111,2,FALSE)/100*AF98 -> 0 | BD98: =VLOOKUP(J$3,Prisindeks!$A$1:$B$111,2,FALSE)/100*AG98 -> 0 | BE98: =VLOOKUP(K$3,Prisindeks!$A$1:$B$111,2,FALSE)/100*AH98 -> 0 | BF98: =VLOOKUP(L$3,Prisindeks!$A$1:$B$111,2,FALSE)/100*AI98 -> 0 | BG98: =VLOOKUP(M$3,Prisindeks!$A$1:$B$111,2,FALSE)/100*AJ98 -> 0 | BH98: =VLOOKUP(N$3,Prisindeks!$A$1:$B$111,2,FALSE)/100*AK98 -> 0 | BI98: =VLOOKUP(O$3,Prisindeks!$A$1:$B$111,2,FALSE)/100*AL98 -> 0 | BJ98: =VLOOKUP(P$3,Prisindeks!$A$1:$B$111,2,FALSE)/100*AM98 -> 0 | BK98: =VLOOKUP(Q$3,Prisindeks!$A$1:$B$111,2,FALSE)/100*AN98 -> 0 | BL98: =VLOOKUP(R$3,Prisindeks!$A$1:$B$111,2,FALSE)/100*AO98 -> 0 | BM98: =VLOOKUP(S$3,Prisindeks!$A$1:$B$111,2,FALSE)/100*AP98 -> 0 | BN98: =VLOOKUP(T$3,Prisindeks!$A$1:$B$111,2,FALSE)/100*AQ98 -> 0 | BO98: =VLOOKUP(U$3,Prisindeks!$A$1:$B$111,2,FALSE)/100*AR98 -> 0 | BP98: =VLOOKUP(V$3,Prisindeks!$A$1:$B$111,2,FALSE)/100*AS98 -> 0 | BQ98: =VLOOKUP(W$3,Prisindeks!$A$1:$B$111,2,FALSE)/100*AT98 -> 0 | BR98: =VLOOKUP(X$3,Prisindeks!$A$1:$B$111,2,FALSE)/100*AU98 -> 0 | BS98: =VLOOKUP(Y$3,Prisindeks!$A$1:$B$111,2,FALSE)/100*AV98 -> 0 | BT98: =+SUM(AX98:BS98) -> 0 | BU98: =(AA98+AX98)/2 -> 0 | BV98: 0 | BW98: 0 | BX98: 0 | BY98: 0 | BZ98: 0 | CA98: 0 | CB98: 0 | CC98: 0 | CD98: 0 | CE98: =(AK98+BH98)/2 -> 0 | CF98: 0 | CG98: 0 | CH98: 0 | CI98: 0 | CJ98: 0 | CK98: 0 | CL98: 0 | CM98: 0 | CN98: 0 | CO98: =(AU98+BR98)/2 -> 0 | CP98: =(AV98+BS98)/2 -> 0 | CQ98: =+SUM(BU98:CP98) -> 0 | CR98: =SUM(D98:Y98) -> 0
A99: =+Genanskaffelsespriser!$B$24 -> Efterbehandlingsanlæg (sandfilter), SRO | B99: PE | C99: =Genanskaffelsespriser!$E$24 -> 10 | D99: 0 | E99: 0 | F99: 0 | G99: 0 | H99: 0 | I99: 0 | J99: 0 | K99: 0 | L99: 0 | M99: 0 | N99: 0 | O99: 0 | P99: 0 | Q99: 0 | R99: 0 | S99: 0 | T99: 0 | U99: 0 | V99: 0 | W99: 0 | X99: 0 | Y99: 0 | Z99: =IF(COUNTIF(D99:Y99,"<>0")<=1,IF(SUM(D99:Y99)=0,0,(IF(SUM(D99:Y99)>0,IF(SUM(D99:Y99)<400,(1.2675*45967*SUM(D99:Y99)^(-0.4664)),(IF(SUM(D99:Y99)<2000,(39128*SUM(D99:Y99)^(-0.37661)),IF(SUM(D99:Y99)<5000,18893*SUM(D99:Y99)^(-0.28083),IF(SUM(D99:Y99)<100000,29680*SUM(D99:Y99)^(-0.24475),1773.1))))*100/115)*SUM(D99:Y99)*(0.246),0)*1.15*1.06*0.05)/SUM(D99:Y99)),$A$73) -> 0 | AA99: 0 | AB99: 0 | AC99: 0 | AD99: 0 | AE99: 0 | AF99: 0 | AG99: 0 | AH99: 0 | AI99: 0 | AJ99: 0 | AK99: 0 | AL99: 0 | AM99: 0 | AN99: 0 | AO99: 0 | AP99: 0 | AQ99: 0 | AR99: 0 | AS99: 0 | AT99: 0 | AU99: =IF((X99*$Z99-(2009-X$3)/$C99*$Z99*X99)<0,0,(X99*$Z99-(2009-X$3)/$C99*$Z99*X99)) -> 0 | AV99: =IF((Y99*$Z99-(2009-Y$3)/$C99*$Z99*Y99)<0,0,(Y99*$Z99-(2009-Y$3)/$C99*$Z99*Y99)) -> 0 | AW99: =+SUM(AA99:AV99) -> 0 | AX99: =VLOOKUP(D$3,Prisindeks!$A$1:$B$111,2,FALSE)/100*AA99 -> 0 | AY99: =VLOOKUP(E$3,Prisindeks!$A$1:$B$111,2,FALSE)/100*AB99 -> 0 | AZ99: =VLOOKUP(F$3,Prisindeks!$A$1:$B$111,2,FALSE)/100*AC99 -> 0 | BA99: =VLOOKUP(G$3,Prisindeks!$A$1:$B$111,2,FALSE)/100*AD99 -> 0 | BB99: =VLOOKUP(H$3,Prisindeks!$A$1:$B$111,2,FALSE)/100*AE99 -> 0 | BC99: =VLOOKUP(I$3,Prisindeks!$A$1:$B$111,2,FALSE)/100*AF99 -> 0 | BD99: =VLOOKUP(J$3,Prisindeks!$A$1:$B$111,2,FALSE)/100*AG99 -> 0 | BE99: =VLOOKUP(K$3,Prisindeks!$A$1:$B$111,2,FALSE)/100*AH99 -> 0 | BF99: =VLOOKUP(L$3,Prisindeks!$A$1:$B$111,2,FALSE)/100*AI99 -> 0 | BG99: =VLOOKUP(M$3,Prisindeks!$A$1:$B$111,2,FALSE)/100*AJ99 -> 0 | BH99: =VLOOKUP(N$3,Prisindeks!$A$1:$B$111,2,FALSE)/100*AK99 -> 0 | BI99: =VLOOKUP(O$3,Prisindeks!$A$1:$B$111,2,FALSE)/100*AL99 -> 0 | BJ99: =VLOOKUP(P$3,Prisindeks!$A$1:$B$111,2,FALSE)/100*AM99 -> 0 | BK99: =VLOOKUP(Q$3,Prisindeks!$A$1:$B$111,2,FALSE)/100*AN99 -> 0 | BL99: =VLOOKUP(R$3,Prisindeks!$A$1:$B$111,2,FALSE)/100*AO99 -> 0 | BM99: =VLOOKUP(S$3,Prisindeks!$A$1:$B$111,2,FALSE)/100*AP99 -> 0 | BN99: =VLOOKUP(T$3,Prisindeks!$A$1:$B$111,2,FALSE)/100*AQ99 -> 0 | BO99: =VLOOKUP(U$3,Prisindeks!$A$1:$B$111,2,FALSE)/100*AR99 -> 0 | BP99: =VLOOKUP(V$3,Prisindeks!$A$1:$B$111,2,FALSE)/100*AS99 -> 0 | BQ99: =VLOOKUP(W$3,Prisindeks!$A$1:$B$111,2,FALSE)/100*AT99 -> 0 | BR99: =VLOOKUP(X$3,Prisindeks!$A$1:$B$111,2,FALSE)/100*AU99 -> 0 | BS99: =VLOOKUP(Y$3,Prisindeks!$A$1:$B$111,2,FALSE)/100*AV99 -> 0 | BT99: =+SUM(AX99:BS99) -> 0 | BU99: 0 | BV99: 0 | BW99: 0 | BX99: 0 | BY99: 0 | BZ99: 0 | CA99: 0 | CB99: 0 | CC99: 0 | CD99: 0 | CE99: 0 | CF99: 0 | CG99: 0 | CH99: 0 | CI99: 0 | CJ99: 0 | CK99: 0 | CL99: 0 | CM99: 0 | CN99: 0 | CO99: =(AU99+BR99)/2 -> 0 | CP99: =(AV99+BS99)/2 -> 0 | CQ99: =+SUM(BU99:CP99) -> 0 | CR99: =SUM(D99:Y99) -> 0
A100: Renseanlæg >= 5.000 PE, Slambehandling | AW100: =SUM(AW101:AW124) -> 0 | BT100: =SUM(BT101:BT124) -> 0 | CQ100: =SUM(CQ101:CQ124) -> 0 | CR100: =SUM(D100:Y100) -> 0
A101: =+Genanskaffelsespriser!$B$26 -> Forafvanding, slam, Konstruktion | B101: PE | C101: =Genanskaffelsespriser!$E$26 -> 60 | D101: 0 | E101: 0 | F101: 0 | G101: 0 | H101: 0 | I101: 0 | J101: 0 | K101: 0 | L101: 0 | M101: 0 | N101: 0 | O101: 0 | P101: 0 | Q101: 0 | R101: 0 | S101: 0 | T101: 0 | U101: 0 | V101: 0 | W101: 0 | X101: 0 | Y101: 0 | Z101: =IF(COUNTIF(D101:Y101,"<>0")<=1,IF(SUM(D101:Y101)=0,0,(IF(SUM(D101:Y101)>0,IF(SUM(D101:Y101)<400,(1.2675*45967*SUM(D101:Y101)^(-0.4664)),(IF(SUM(D101:Y101)<2000,(39128*SUM(D101:Y101)^(-0.37661)),IF(SUM(D101:Y101)<5000,18893*SUM(D101:Y101)^(-0.28083),IF(SUM(D101:Y101)<100000,29680*SUM(D101:Y101)^(-0.24475),1773.1))))*100/115)*SUM(D101:Y101)*(IF(SUM(D84:Y84)>0,0.0238,0.0186)),0)*1.15*1.06*0.52)*(1+Genanskaffelsespriser!$D$389)/SUM(D101:Y101)),$A$73) -> 0 | AA101: =IF((D101*$Z101-(2009-D$3)/($C101+D102)*$Z101*D101)<0,0,(D101*$Z101-(2009-D$3)/($C101+D102)*$Z101*D101)) -> 0 | AB101: 0 | AC101: 0 | AD101: 0 | AE101: 0 | AF101: 0 | AG101: 0 | AH101: 0 | AI101: 0 | AJ101: 0 | AK101: 0 | AL101: 0 | AM101: 0 | AN101: 0 | AO101: 0 | AP101: 0 | AQ101: 0 | AR101: 0 | AS101: 0 | AT101: 0 | AU101: 0 | AV101: 0 | AW101: =+SUM(AA101:AV101) -> 0 | AX101: =VLOOKUP(D$3,Prisindeks!$A$1:$B$111,2,FALSE)/100*AA101 -> 0 | AY101: =VLOOKUP(E$3,Prisindeks!$A$1:$B$111,2,FALSE)/100*AB101 -> 0 | AZ101: =VLOOKUP(F$3,Prisindeks!$A$1:$B$111,2,FALSE)/100*AC101 -> 0 | BA101: =VLOOKUP(G$3,Prisindeks!$A$1:$B$111,2,FALSE)/100*AD101 -> 0 | BB101: =VLOOKUP(H$3,Prisindeks!$A$1:$B$111,2,FALSE)/100*AE101 -> 0 | BC101: =VLOOKUP(I$3,Prisindeks!$A$1:$B$111,2,FALSE)/100*AF101 -> 0 | BD101: =VLOOKUP(J$3,Prisindeks!$A$1:$B$111,2,FALSE)/100*AG101 -> 0 | BE101: =VLOOKUP(K$3,Prisindeks!$A$1:$B$111,2,FALSE)/100*AH101 -> 0 | BF101: =VLOOKUP(L$3,Prisindeks!$A$1:$B$111,2,FALSE)/100*AI101 -> 0 | BG101: =VLOOKUP(M$3,Prisindeks!$A$1:$B$111,2,FALSE)/100*AJ101 -> 0 | BH101: =VLOOKUP(N$3,Prisindeks!$A$1:$B$111,2,FALSE)/100*AK101 -> 0 | BI101: =VLOOKUP(O$3,Prisindeks!$A$1:$B$111,2,FALSE)/100*AL101 -> 0 | BJ101: =VLOOKUP(P$3,Prisindeks!$A$1:$B$111,2,FALSE)/100*AM101 -> 0 | BK101: =VLOOKUP(Q$3,Prisindeks!$A$1:$B$111,2,FALSE)/100*AN101 -> 0 | BL101: =VLOOKUP(R$3,Prisindeks!$A$1:$B$111,2,FALSE)/100*AO101 -> 0 | BM101: =VLOOKUP(S$3,Prisindeks!$A$1:$B$111,2,FALSE)/100*AP101 -> 0 | BN101: =VLOOKUP(T$3,Prisindeks!$A$1:$B$111,2,FALSE)/100*AQ101 -> 0 | BO101: =VLOOKUP(U$3,Prisindeks!$A$1:$B$111,2,FALSE)/100*AR101 -> 0 | BP101: =VLOOKUP(V$3,Prisindeks!$A$1:$B$111,2,FALSE)/100*AS101 -> 0 | BQ101: =VLOOKUP(W$3,Prisindeks!$A$1:$B$111,2,FALSE)/100*AT101 -> 0 | BR101: =VLOOKUP(X$3,Prisindeks!$A$1:$B$111,2,FALSE)/100*AU101 -> 0 | BS101: =VLOOKUP(Y$3,Prisindeks!$A$1:$B$111,2,FALSE)/100*AV101 -> 0 | BT101: =+SUM(AX101:BS101) -> 0 | BU101: =(AA101+AX101)/2 -> 0 | BV101: 0 | BW101: 0 | BX101: 0 | BY101: 0 | BZ101: 0 | CA101: 0 | CB101: 0 | CC101: 0 | CD101: 0 | CE101: 0 | CF101: 0 | CG101: 0 | CH101: 0 | CI101: 0 | CJ101: 0 | CK101: 0 | CL101: 0 | CM101: 0 | CN101: 0 | CO101: 0 | CP101: 0 | CQ101: =+SUM(BU101:CP101) -> 0 | CR101: =SUM(D101:Y101) -> 0
A102: Levetidsforlængelse | B102: år | C102: - | D102: 0 | E102: 0 | F102: 0 | G102: 0 | H102: 0 | I102: 0 | J102: 0 | K102: 0 | L102: 0 | M102: 0 | N102: 0 | O102: 0 | P102: 0 | Q102: 0 | R102: 0 | S102: 0 | T102: 0 | U102: 0 | V102: 0 | W102: 0 | X102: 0 | Y102: 0
A103: =+Genanskaffelsespriser!$B$27 -> Forafvanding, slam, Mek/EL | B103: PE | C103: =Genanskaffelsespriser!$E$27 -> 20 | D103: 0 | E103: 0 | F103: 0 | G103: 0 | H103: 0 | I103: 0 | J103: 0 | K103: 0 | L103: 0 | M103: 0 | N103: 0 | O103: 0 | P103: 0 | Q103: 0 | R103: 0 | S103: 0 | T103: 0 | U103: 0 | V103: 0 | W103: 0 | X103: 0 | Y103: 0 | Z103: =IF(COUNTIF(D103:Y103,"<>0")<=1,IF(SUM(D103:Y103)=0,0,(IF(SUM(D103:Y103)>0,IF(SUM(D103:Y103)<400,(1.2675*45967*SUM(D103:Y103)^(-0.4664)),(IF(SUM(D103:Y103)<2000,(39128*SUM(D103:Y103)^(-0.37661)),IF(SUM(D103:Y103)<5000,18893*SUM(D103:Y103)^(-0.28083),IF(SUM(D103:Y103)<100000,29680*SUM(D103:Y103)^(-0.24475),1773.1))))*100/115)*SUM(D103:Y103)*(IF(SUM(D86:Y86)>0,0.0238,0.0186)),0)*1.15*1.06*0.45)/SUM(D103:Y103)),$A$73) -> 0 | AA103: =IF((D103*$Z103-(2009-D$3)/$C103*$Z103*D103)<0,0,(D103*$Z103-(2009-D$3)/$C103*$Z103*D103)) -> 0 | AB103: 0 | AC103: 0 | AD103: 0 | AE103: 0 | AF103: 0 | AG103: 0 | AH103: 0 | AI103: 0 | AJ103: 0 | AK103: =IF((N103*$Z103-(2009-N$3)/$C103*$Z103*N103)<0,0,(N103*$Z103-(2009-N$3)/$C103*$Z103*N103)) -> 0 | AL103: 0 | AM103: 0 | AN103: 0 | AO103: 0 | AP103: 0 | AQ103: 0 | AR103: 0 | AS103: 0 | AT103: 0 | AU103: =IF((X103*$Z103-(2009-X$3)/$C103*$Z103*X103)<0,0,(X103*$Z103-(2009-X$3)/$C103*$Z103*X103)) -> 0 | AV103: =IF((Y103*$Z103-(2009-Y$3)/$C103*$Z103*Y103)<0,0,(Y103*$Z103-(2009-Y$3)/$C103*$Z103*Y103)) -> 0 | AW103: =+SUM(AA103:AV103) -> 0 | AX103: =VLOOKUP(D$3,Prisindeks!$A$1:$B$111,2,FALSE)/100*AA103 -> 0 | AY103: =VLOOKUP(E$3,Prisindeks!$A$1:$B$111,2,FALSE)/100*AB103 -> 0 | AZ103: =VLOOKUP(F$3,Prisindeks!$A$1:$B$111,2,FALSE)/100*AC103 -> 0 | BA103: =VLOOKUP(G$3,Prisindeks!$A$1:$B$111,2,FALSE)/100*AD103 -> 0 | BB103: =VLOOKUP(H$3,Prisindeks!$A$1:$B$111,2,FALSE)/100*AE103 -> 0 | BC103: =VLOOKUP(I$3,Prisindeks!$A$1:$B$111,2,FALSE)/100*AF103 -> 0 | BD103: =VLOOKUP(J$3,Prisindeks!$A$1:$B$111,2,FALSE)/100*AG103 -> 0 | BE103: =VLOOKUP(K$3,Prisindeks!$A$1:$B$111,2,FALSE)/100*AH103 -> 0 | BF103: =VLOOKUP(L$3,Prisindeks!$A$1:$B$111,2,FALSE)/100*AI103 -> 0 | BG103: =VLOOKUP(M$3,Prisindeks!$A$1:$B$111,2,FALSE)/100*AJ103 -> 0 | BH103: =VLOOKUP(N$3,Prisindeks!$A$1:$B$111,2,FALSE)/100*AK103 -> 0 | BI103: =VLOOKUP(O$3,Prisindeks!$A$1:$B$111,2,FALSE)/100*AL103 -> 0 | BJ103: =VLOOKUP(P$3,Prisindeks!$A$1:$B$111,2,FALSE)/100*AM103 -> 0 | BK103: =VLOOKUP(Q$3,Prisindeks!$A$1:$B$111,2,FALSE)/100*AN103 -> 0 | BL103: =VLOOKUP(R$3,Prisindeks!$A$1:$B$111,2,FALSE)/100*AO103 -> 0 | BM103: =VLOOKUP(S$3,Prisindeks!$A$1:$B$111,2,FALSE)/100*AP103 -> 0 | BN103: =VLOOKUP(T$3,Prisindeks!$A$1:$B$111,2,FALSE)/100*AQ103 -> 0 | BO103: =VLOOKUP(U$3,Prisindeks!$A$1:$B$111,2,FALSE)/100*AR103 -> 0 | BP103: =VLOOKUP(V$3,Prisindeks!$A$1:$B$111,2,FALSE)/100*AS103 -> 0 | BQ103: =VLOOKUP(W$3,Prisindeks!$A$1:$B$111,2,FALSE)/100*AT103 -> 0 | BR103: =VLOOKUP(X$3,Prisindeks!$A$1:$B$111,2,FALSE)/100*AU103 -> 0 | BS103: =VLOOKUP(Y$3,Prisindeks!$A$1:$B$111,2,FALSE)/100*AV103 -> 0 | BT103: =+SUM(AX103:BS103) -> 0 | BU103: =(AA103+AX103)/2 -> 0 | BV103: 0 | BW103: 0 | BX103: 0 | BY103: 0 | BZ103: 0 | CA103: 0 | CB103: 0 | CC103: 0 | CD103: 0 | CE103: =(AK103+BH103)/2 -> 0 | CF103: 0 | CG103: 0 | CH103: 0 | CI103: 0 | CJ103: 0 | CK103: 0 | CL103: 0 | CM103: 0 | CN103: 0 | CO103: =(AU103+BR103)/2 -> 0 | CP103: 0 | CQ103: =+SUM(BU103:CP103) -> 0 | CR103: =SUM(D103:Y103) -> 0
A104: =+Genanskaffelsespriser!$B$28 -> Forafvanding, slam, SRO | B104: PE | C104: =Genanskaffelsespriser!$E$28 -> 10 | D104: 0 | E104: 0 | F104: 0 | G104: 0 | H104: 0 | I104: 0 | J104: 0 | K104: 0 | L104: 0 | M104: 0 | N104: 0 | O104: 0 | P104: 0 | Q104: 0 | R104: 0 | S104: 0 | T104: 0 | U104: 0 | V104: 0 | W104: 0 | X104: 0 | Y104: 0 | Z104: =IF(COUNTIF(D104:Y104,"<>0")<=1,IF(SUM(D104:Y104)=0,0,(IF(SUM(D104:Y104)>0,IF(SUM(D104:Y104)<400,(1.2675*45967*SUM(D104:Y104)^(-0.4664)),(IF(SUM(D104:Y104)<2000,(39128*SUM(D104:Y104)^(-0.37661)),IF(SUM(D104:Y104)<5000,18893*SUM(D104:Y104)^(-0.28083),IF(SUM(D104:Y104)<100000,29680*SUM(D104:Y104)^(-0.24475),1773.1))))*100/115)*SUM(D104:Y104)*(IF(SUM(D87:Y87)>0,0.0238,0.0186)),0)*1.15*1.06*0.03)/SUM(D104:Y104)),$A$73) -> 0 | AA104: 0 | AB104: 0 | AC104: 0 | AD104: 0 | AE104: 0 | AF104: 0 | AG104: 0 | AH104: 0 | AI104: 0 | AJ104: 0 | AK104: 0 | AL104: 0 | AM104: 0 | AN104: 0 | AO104: 0 | AP104: 0 | AQ104: 0 | AR104: 0 | AS104: 0 | AT104: 0 | AU104: =IF((X104*$Z104-(2009-X$3)/$C104*$Z104*X104)<0,0,(X104*$Z104-(2009-X$3)/$C104*$Z104*X104)) -> 0 | AV104: =IF((Y104*$Z104-(2009-Y$3)/$C104*$Z104*Y104)<0,0,(Y104*$Z104-(2009-Y$3)/$C104*$Z104*Y104)) -> 0 | AW104: =+SUM(AA104:AV104) -> 0 | AX104: =VLOOKUP(D$3,Prisindeks!$A$1:$B$111,2,FALSE)/100*AA104 -> 0 | AY104: =VLOOKUP(E$3,Prisindeks!$A$1:$B$111,2,FALSE)/100*AB104 -> 0 | AZ104: =VLOOKUP(F$3,Prisindeks!$A$1:$B$111,2,FALSE)/100*AC104 -> 0 | BA104: =VLOOKUP(G$3,Prisindeks!$A$1:$B$111,2,FALSE)/100*AD104 -> 0 | BB104: =VLOOKUP(H$3,Prisindeks!$A$1:$B$111,2,FALSE)/100*AE104 -> 0 | BC104: =VLOOKUP(I$3,Prisindeks!$A$1:$B$111,2,FALSE)/100*AF104 -> 0 | BD104: =VLOOKUP(J$3,Prisindeks!$A$1:$B$111,2,FALSE)/100*AG104 -> 0 | BE104: =VLOOKUP(K$3,Prisindeks!$A$1:$B$111,2,FALSE)/100*AH104 -> 0 | BF104: =VLOOKUP(L$3,Prisindeks!$A$1:$B$111,2,FALSE)/100*AI104 -> 0 | BG104: =VLOOKUP(M$3,Prisindeks!$A$1:$B$111,2,FALSE)/100*AJ104 -> 0 | BH104: =VLOOKUP(N$3,Prisindeks!$A$1:$B$111,2,FALSE)/100*AK104 -> 0 | BI104: =VLOOKUP(O$3,Prisindeks!$A$1:$B$111,2,FALSE)/100*AL104 -> 0 | BJ104: =VLOOKUP(P$3,Prisindeks!$A$1:$B$111,2,FALSE)/100*AM104 -> 0 | BK104: =VLOOKUP(Q$3,Prisindeks!$A$1:$B$111,2,FALSE)/100*AN104 -> 0 | BL104: =VLOOKUP(R$3,Prisindeks!$A$1:$B$111,2,FALSE)/100*AO104 -> 0 | BM104: =VLOOKUP(S$3,Prisindeks!$A$1:$B$111,2,FALSE)/100*AP104 -> 0 | BN104: =VLOOKUP(T$3,Prisindeks!$A$1:$B$111,2,FALSE)/100*AQ104 -> 0 | BO104: =VLOOKUP(U$3,Prisindeks!$A$1:$B$111,2,FALSE)/100*AR104 -> 0 | BP104: =VLOOKUP(V$3,Prisindeks!$A$1:$B$111,2,FALSE)/100*AS104 -> 0 | BQ104: =VLOOKUP(W$3,Prisindeks!$A$1:$B$111,2,FALSE)/100*AT104 -> 0 | BR104: =VLOOKUP(X$3,Prisindeks!$A$1:$B$111,2,FALSE)/100*AU104 -> 0 | BS104: =VLOOKUP(Y$3,Prisindeks!$A$1:$B$111,2,FALSE)/100*AV104 -> 0 | BT104: =+SUM(AX104:BS104) -> 0 | BU104: 0 | BV104: 0 | BW104: 0 | BX104: 0 | BY104: 0 | BZ104: 0 | CA104: 0 | CB104: 0 | CC104: 0 | CD104: 0 | CE104: 0 | CF104: 0 | CG104: 0 | CH104: 0 | CI104: 0 | CJ104: 0 | CK104: 0 | CL104: 0 | CM104: 0 | CN104: 0 | CO104: 0 | CP104: 0 | CQ104: =+SUM(BU104:CP104) -> 0 | CR104: =SUM(D104:Y104) -> 0
A105: =+Genanskaffelsespriser!$B$29 -> Rådnetanke, slam, Konstruktioner | B105: PE | C105: =Genanskaffelsespriser!$E$29 -> 60 | D105: 0 | E105: 0 | F105: 0 | G105: 0 | H105: 0 | I105: 0 | J105: 0 | K105: 0 | L105: 0 | M105: 0 | N105: 0 | O105: 0 | P105: 0 | Q105: 0 | R105: 0 | S105: 0 | T105: 0 | U105: 0 | V105: 0 | W105: 0 | X105: 0 | Y105: 0 | Z105: =IF(COUNTIF(D105:Y105,"<>0")<=1,IF(SUM(D105:Y105)=0,0,(IF(SUM(D105:Y105)>0,IF(SUM(D105:Y105)<400,(1.2675*45967*SUM(D105:Y105)^(-0.4664)),(IF(SUM(D105:Y105)<2000,(39128*SUM(D105:Y105)^(-0.37661)),IF(SUM(D105:Y105)<5000,18893*SUM(D105:Y105)^(-0.28083),IF(SUM(D105:Y105)<100000,29680*SUM(D105:Y105)^(-0.24475),1773.1))))*100/115)*SUM(D105:Y105)*0.1638,0)*1.15*1.06*0.55)*(1+Genanskaffelsespriser!$D$389)/SUM(D105:Y105)),$A$73) -> 0 | AA105: =IF((D105*$Z105-(2009-D$3)/($C105+D106)*$Z105*D105)<0,0,(D105*$Z105-(2009-D$3)/($C105+D106)*$Z105*D105)) -> 0 | AB105: 0 | AC105: 0 | AD105: 0 | AE105: 0 | AF105: 0 | AG105: 0 | AH105: 0 | AI105: 0 | AJ105: 0 | AK105: 0 | AL105: 0 | AM105: 0 | AN105: 0 | AO105: 0 | AP105: 0 | AQ105: 0 | AR105: 0 | AS105: 0 | AT105: 0 | AU105: 0 | AV105: 0 | AW105: =+SUM(AA105:AV105) -> 0 | AX105: =VLOOKUP(D$3,Prisindeks!$A$1:$B$111,2,FALSE)/100*AA105 -> 0 | AY105: =VLOOKUP(E$3,Prisindeks!$A$1:$B$111,2,FALSE)/100*AB105 -> 0 | AZ105: =VLOOKUP(F$3,Prisindeks!$A$1:$B$111,2,FALSE)/100*AC105 -> 0 | BA105: =VLOOKUP(G$3,Prisindeks!$A$1:$B$111,2,FALSE)/100*AD105 -> 0 | BB105: =VLOOKUP(H$3,Prisindeks!$A$1:$B$111,2,FALSE)/100*AE105 -> 0 | BC105: =VLOOKUP(I$3,Prisindeks!$A$1:$B$111,2,FALSE)/100*AF105 -> 0 | BD105: =VLOOKUP(J$3,Prisindeks!$A$1:$B$111,2,FALSE)/100*AG105 -> 0 | BE105: =VLOOKUP(K$3,Prisindeks!$A$1:$B$111,2,FALSE)/100*AH105 -> 0 | BF105: =VLOOKUP(L$3,Prisindeks!$A$1:$B$111,2,FALSE)/100*AI105 -> 0 | BG105: =VLOOKUP(M$3,Prisindeks!$A$1:$B$111,2,FALSE)/100*AJ105 -> 0 | BH105: =VLOOKUP(N$3,Prisindeks!$A$1:$B$111,2,FALSE)/100*AK105 -> 0 | BI105: =VLOOKUP(O$3,Prisindeks!$A$1:$B$111,2,FALSE)/100*AL105 -> 0 | BJ105: =VLOOKUP(P$3,Prisindeks!$A$1:$B$111,2,FALSE)/100*AM105 -> 0 | BK105: =VLOOKUP(Q$3,Prisindeks!$A$1:$B$111,2,FALSE)/100*AN105 -> 0 | BL105: =VLOOKUP(R$3,Prisindeks!$A$1:$B$111,2,FALSE)/100*AO105 -> 0 | BM105: =VLOOKUP(S$3,Prisindeks!$A$1:$B$111,2,FALSE)/100*AP105 -> 0 | BN105: =VLOOKUP(T$3,Prisindeks!$A$1:$B$111,2,FALSE)/100*AQ105 -> 0 | BO105: =VLOOKUP(U$3,Prisindeks!$A$1:$B$111,2,FALSE)/100*AR105 -> 0 | BP105: =VLOOKUP(V$3,Prisindeks!$A$1:$B$111,2,FALSE)/100*AS105 -> 0 | BQ105: =VLOOKUP(W$3,Prisindeks!$A$1:$B$111,2,FALSE)/100*AT105 -> 0 | BR105: =VLOOKUP(X$3,Prisindeks!$A$1:$B$111,2,FALSE)/100*AU105 -> 0 | BS105: =VLOOKUP(Y$3,Prisindeks!$A$1:$B$111,2,FALSE)/100*AV105 -> 0 | BT105: =+SUM(AX105:BS105) -> 0 | BU105: 0 | BV105: 0 | BW105: 0 | BX105: 0 | BY105: 0 | BZ105: 0 | CA105: 0 | CB105: 0 | CC105: 0 | CD105: 0 | CE105: 0 | CF105: 0 | CG105: 0 | CH105: 0 | CI105: 0 | CJ105: 0 | CK105: 0 | CL105: 0 | CM105: 0 | CN105: 0 | CO105: 0 | CP105: 0 | CQ105: =+SUM(BU105:CP105) -> 0 | CR105: =SUM(D105:Y105) -> 0
A106: Levetidsforlængelse | B106: år | C106: - | D106: 0 | E106: 0 | F106: 0 | G106: 0 | H106: 0 | I106: 0 | J106: 0 | K106: 0 | L106: 0 | M106: 0 | N106: 0 | O106: 0 | P106: 0 | Q106: 0 | R106: 0 | S106: 0 | T106: 0 | U106: 0 | V106: 0 | W106: 0 | X106: 0 | Y106: 0
A107: =+Genanskaffelsespriser!$B$30 -> Rådnetanke, slam, Mek/EL | B107: PE | C107: =Genanskaffelsespriser!$E$30 -> 20 | D107: 0 | E107: 0 | F107: 0 | G107: 0 | H107: 0 | I107: 0 | J107: 0 | K107: 0 | L107: 0 | M107: 0 | N107: 0 | O107: 0 | P107: 0 | Q107: 0 | R107: 0 | S107: 0 | T107: 0 | U107: 0 | V107: 0 | W107: 0 | X107: 0 | Y107: 0 | Z107: =IF(COUNTIF(D107:Y107,"<>0")<=1,IF(SUM(D107:Y107)=0,0,(IF(SUM(D107:Y107)>0,IF(SUM(D107:Y107)<400,(1.2675*45967*SUM(D107:Y107)^(-0.4664)),(IF(SUM(D107:Y107)<2000,(39128*SUM(D107:Y107)^(-0.37661)),IF(SUM(D107:Y107)<5000,18893*SUM(D107:Y107)^(-0.28083),IF(SUM(D107:Y107)<100000,29680*SUM(D107:Y107)^(-0.24475),1773.1))))*100/115)*SUM(D107:Y107)*0.1638,0)*1.15*1.06*0.4)/SUM(D107:Y107)),$A$73) -> 0 | AA107: =IF((D107*$Z107-(2009-D$3)/$C107*$Z107*D107)<0,0,(D107*$Z107-(2009-D$3)/$C107*$Z107*D107)) -> 0 | AB107: 0 | AC107: 0 | AD107: 0 | AE107: 0 | AF107: 0 | AG107: 0 | AH107: 0 | AI107: 0 | AJ107: 0 | AK107: =IF((N107*$Z107-(2009-N$3)/$C107*$Z107*N107)<0,0,(N107*$Z107-(2009-N$3)/$C107*$Z107*N107)) -> 0 | AL107: 0 | AM107: 0 | AN107: 0 | AO107: 0 | AP107: 0 | AQ107: 0 | AR107: 0 | AS107: 0 | AT107: 0 | AU107: =IF((X107*$Z107-(2009-X$3)/$C107*$Z107*X107)<0,0,(X107*$Z107-(2009-X$3)/$C107*$Z107*X107)) -> 0 | AV107: =IF((Y107*$Z107-(2009-Y$3)/$C107*$Z107*Y107)<0,0,(Y107*$Z107-(2009-Y$3)/$C107*$Z107*Y107)) -> 0 | AW107: =+SUM(AA107:AV107) -> 0 | AX107: =VLOOKUP(D$3,Prisindeks!$A$1:$B$111,2,FALSE)/100*AA107 -> 0 | AY107: =VLOOKUP(E$3,Prisindeks!$A$1:$B$111,2,FALSE)/100*AB107 -> 0 | AZ107: =VLOOKUP(F$3,Prisindeks!$A$1:$B$111,2,FALSE)/100*AC107 -> 0 | BA107: =VLOOKUP(G$3,Prisindeks!$A$1:$B$111,2,FALSE)/100*AD107 -> 0 | BB107: =VLOOKUP(H$3,Prisindeks!$A$1:$B$111,2,FALSE)/100*AE107 -> 0 | BC107: =VLOOKUP(I$3,Prisindeks!$A$1:$B$111,2,FALSE)/100*AF107 -> 0 | BD107: =VLOOKUP(J$3,Prisindeks!$A$1:$B$111,2,FALSE)/100*AG107 -> 0 | BE107: =VLOOKUP(K$3,Prisindeks!$A$1:$B$111,2,FALSE)/100*AH107 -> 0 | BF107: =VLOOKUP(L$3,Prisindeks!$A$1:$B$111,2,FALSE)/100*AI107 -> 0 | BG107: =VLOOKUP(M$3,Prisindeks!$A$1:$B$111,2,FALSE)/100*AJ107 -> 0 | BH107: =VLOOKUP(N$3,Prisindeks!$A$1:$B$111,2,FALSE)/100*AK107 -> 0 | BI107: =VLOOKUP(O$3,Prisindeks!$A$1:$B$111,2,FALSE)/100*AL107 -> 0 | BJ107: =VLOOKUP(P$3,Prisindeks!$A$1:$B$111,2,FALSE)/100*AM107 -> 0 | BK107: =VLOOKUP(Q$3,Prisindeks!$A$1:$B$111,2,FALSE)/100*AN107 -> 0 | BL107: =VLOOKUP(R$3,Prisindeks!$A$1:$B$111,2,FALSE)/100*AO107 -> 0 | BM107: =VLOOKUP(S$3,Prisindeks!$A$1:$B$111,2,FALSE)/100*AP107 -> 0 | BN107: =VLOOKUP(T$3,Prisindeks!$A$1:$B$111,2,FALSE)/100*AQ107 -> 0 | BO107: =VLOOKUP(U$3,Prisindeks!$A$1:$B$111,2,FALSE)/100*AR107 -> 0 | BP107: =VLOOKUP(V$3,Prisindeks!$A$1:$B$111,2,FALSE)/100*AS107 -> 0 | BQ107: =VLOOKUP(W$3,Prisindeks!$A$1:$B$111,2,FALSE)/100*AT107 -> 0 | BR107: =VLOOKUP(X$3,Prisindeks!$A$1:$B$111,2,FALSE)/100*AU107 -> 0 | BS107: =VLOOKUP(Y$3,Prisindeks!$A$1:$B$111,2,FALSE)/100*AV107 -> 0 | BT107: =+SUM(AX107:BS107) -> 0 | BU107: =(AA107+AX107)/2 -> 0 | BV107: 0 | BW107: 0 | BX107: 0 | BY107: 0 | BZ107: 0 | CA107: 0 | CB107: 0 | CC107: 0 | CD107: 0 | CE107: =(AK107+BH107)/2 -> 0 | CF107: 0 | CG107: 0 | CH107: 0 | CI107: 0 | CJ107: 0 | CK107: 0 | CL107: 0 | CM107: 0 | CN107: 0 | CO107: =(AU107+BR107)/2 -> 0 | CP107: 0 | CQ107: =+SUM(BU107:CP107) -> 0 | CR107: =SUM(D107:Y107) -> 0
A108: =+Genanskaffelsespriser!$B$31 -> Rådnetanke, slam, SRO | B108: PE | C108: =Genanskaffelsespriser!$E$31 -> 10 | D108: 0 | E108: 0 | F108: 0 | G108: 0 | H108: 0 | I108: 0 | J108: 0 | K108: 0 | L108: 0 | M108: 0 | N108: 0 | O108: 0 | P108: 0 | Q108: 0 | R108: 0 | S108: 0 | T108: 0 | U108: 0 | V108: 0 | W108: 0 | X108: 0 | Y108: 0 | Z108: =IF(COUNTIF(D108:Y108,"<>0")<=1,IF(SUM(D108:Y108)=0,0,(IF(SUM(D108:Y108)>0,IF(SUM(D108:Y108)<400,(1.2675*45967*SUM(D108:Y108)^(-0.4664)),(IF(SUM(D108:Y108)<2000,(39128*SUM(D108:Y108)^(-0.37661)),IF(SUM(D108:Y108)<5000,18893*SUM(D108:Y108)^(-0.28083),IF(SUM(D108:Y108)<100000,29680*SUM(D108:Y108)^(-0.24475),1773.1))))*100/115)*SUM(D108:Y108)*0.1638,0)*1.15*1.06*0.05)/SUM(D108:Y108)),$A$73) -> 0 | AA108: 0 | AB108: 0 | AC108: 0 | AD108: 0 | AE108: 0 | AF108: 0 | AG108: 0 | AH108: 0 | AI108: 0 | AJ108: 0 | AK108: 0 | AL108: 0 | AM108: 0 | AN108: 0 | AO108: 0 | AP108: 0 | AQ108: 0 | AR108: 0 | AS108: 0 | AT108: 0 | AU108: =IF((X108*$Z108-(2009-X$3)/$C108*$Z108*X108)<0,0,(X108*$Z108-(2009-X$3)/$C108*$Z108*X108)) -> 0 | AV108: =IF((Y108*$Z108-(2009-Y$3)/$C108*$Z108*Y108)<0,0,(Y108*$Z108-(2009-Y$3)/$C108*$Z108*Y108)) -> 0 | AW108: =+SUM(AA108:AV108) -> 0 | AX108: =VLOOKUP(D$3,Prisindeks!$A$1:$B$111,2,FALSE)/100*AA108 -> 0 | AY108: =VLOOKUP(E$3,Prisindeks!$A$1:$B$111,2,FALSE)/100*AB108 -> 0 | AZ108: =VLOOKUP(F$3,Prisindeks!$A$1:$B$111,2,FALSE)/100*AC108 -> 0 | BA108: =VLOOKUP(G$3,Prisindeks!$A$1:$B$111,2,FALSE)/100*AD108 -> 0 | BB108: =VLOOKUP(H$3,Prisindeks!$A$1:$B$111,2,FALSE)/100*AE108 -> 0 | BC108: =VLOOKUP(I$3,Prisindeks!$A$1:$B$111,2,FALSE)/100*AF108 -> 0 | BD108: =VLOOKUP(J$3,Prisindeks!$A$1:$B$111,2,FALSE)/100*AG108 -> 0 | BE108: =VLOOKUP(K$3,Prisindeks!$A$1:$B$111,2,FALSE)/100*AH108 -> 0 | BF108: =VLOOKUP(L$3,Prisindeks!$A$1:$B$111,2,FALSE)/100*AI108 -> 0 | BG108: =VLOOKUP(M$3,Prisindeks!$A$1:$B$111,2,FALSE)/100*AJ108 -> 0 | BH108: =VLOOKUP(N$3,Prisindeks!$A$1:$B$111,2,FALSE)/100*AK108 -> 0 | BI108: =VLOOKUP(O$3,Prisindeks!$A$1:$B$111,2,FALSE)/100*AL108 -> 0 | BJ108: =VLOOKUP(P$3,Prisindeks!$A$1:$B$111,2,FALSE)/100*AM108 -> 0 | BK108: =VLOOKUP(Q$3,Prisindeks!$A$1:$B$111,2,FALSE)/100*AN108 -> 0 | BL108: =VLOOKUP(R$3,Prisindeks!$A$1:$B$111,2,FALSE)/100*AO108 -> 0 | BM108: =VLOOKUP(S$3,Prisindeks!$A$1:$B$111,2,FALSE)/100*AP108 -> 0 | BN108: =VLOOKUP(T$3,Prisindeks!$A$1:$B$111,2,FALSE)/100*AQ108 -> 0 | BO108: =VLOOKUP(U$3,Prisindeks!$A$1:$B$111,2,FALSE)/100*AR108 -> 0 | BP108: =VLOOKUP(V$3,Prisindeks!$A$1:$B$111,2,FALSE)/100*AS108 -> 0 | BQ108: =VLOOKUP(W$3,Prisindeks!$A$1:$B$111,2,FALSE)/100*AT108 -> 0 | BR108: =VLOOKUP(X$3,Prisindeks!$A$1:$B$111,2,FALSE)/100*AU108 -> 0 | BS108: =VLOOKUP(Y$3,Prisindeks!$A$1:$B$111,2,FALSE)/100*AV108 -> 0 | BT108: =+SUM(AX108:BS108) -> 0 | BU108: 0 | BV108: 0 | BW108: 0 | BX108: 0 | BY108: 0 | BZ108: 0 | CA108: 0 | CB108: 0 | CC108: 0 | CD108: 0 | CE108: 0 | CF108: 0 | CG108: 0 | CH108: 0 | CI108: 0 | CJ108: 0 | CK108: 0 | CL108: 0 | CM108: 0 | CN108: 0 | CO108: 0 | CP108: 0 | CQ108: =+SUM(BU108:CP108) -> 0 | CR108: =SUM(D108:Y108) -> 0
A109: =+Genanskaffelsespriser!$B$32 -> Gasdisponering, Konstruktioner | B109: PE | C109: =Genanskaffelsespriser!$E$32 -> 60 | D109: 0 | E109: 0 | F109: 0 | G109: 0 | H109: 0 | I109: 0 | J109: 0 | K109: 0 | L109: 0 | M109: 0 | N109: 0 | O109: 0 | P109: 0 | Q109: 0 | R109: 0 | S109: 0 | T109: 0 | U109: 0 | V109: 0 | W109: 0 | X109: 0 | Y109: 0 | Z109: =IF(COUNTIF(D109:Y109,"<>0")<=1,IF(SUM(D109:Y109)=0,0,(IF(SUM(D109:Y109)>0,IF(SUM(D109:Y109)<400,(1.2675*45967*SUM(D109:Y109)^(-0.4664)),(IF(SUM(D109:Y109)<2000,(39128*SUM(D109:Y109)^(-0.37661)),IF(SUM(D109:Y109)<5000,18893*SUM(D109:Y109)^(-0.28083),IF(SUM(D109:Y109)<100000,29680*SUM(D109:Y109)^(-0.24475),1773.1))))*100/115)*SUM(D109:Y109)*(IF(SUM(D105:Y105)>0,0.0257,0)),0)*1.15*1.06*0.94)*(1+Genanskaffelsespriser!$D$389)/SUM(D109:Y109)),$A$73) -> 0 | AA109: =IF((D109*$Z109-(2009-D$3)/($C109+D110)*$Z109*D109)<0,0,(D109*$Z109-(2009-D$3)/($C109+D110)*$Z109*D109)) -> 0 | AB109: 0 | AC109: 0 | AD109: 0 | AE109: 0 | AF109: 0 | AG109: 0 | AH109: 0 | AI109: 0 | AJ109: 0 | AK109: 0 | AL109: 0 | AM109: 0 | AN109: 0 | AO109: 0 | AP109: 0 | AQ109: 0 | AR109: 0 | AS109: 0 | AT109: 0 | AU109: 0 | AV109: 0 | AW109: =+SUM(AA109:AV109) -> 0 | AX109: =VLOOKUP(D$3,Prisindeks!$A$1:$B$111,2,FALSE)/100*AA109 -> 0 | AY109: =VLOOKUP(E$3,Prisindeks!$A$1:$B$111,2,FALSE)/100*AB109 -> 0 | AZ109: =VLOOKUP(F$3,Prisindeks!$A$1:$B$111,2,FALSE)/100*AC109 -> 0 | BA109: =VLOOKUP(G$3,Prisindeks!$A$1:$B$111,2,FALSE)/100*AD109 -> 0 | BB109: =VLOOKUP(H$3,Prisindeks!$A$1:$B$111,2,FALSE)/100*AE109 -> 0 | BC109: =VLOOKUP(I$3,Prisindeks!$A$1:$B$111,2,FALSE)/100*AF109 -> 0 | BD109: =VLOOKUP(J$3,Prisindeks!$A$1:$B$111,2,FALSE)/100*AG109 -> 0 | BE109: =VLOOKUP(K$3,Prisindeks!$A$1:$B$111,2,FALSE)/100*AH109 -> 0 | BF109: =VLOOKUP(L$3,Prisindeks!$A$1:$B$111,2,FALSE)/100*AI109 -> 0 | BG109: =VLOOKUP(M$3,Prisindeks!$A$1:$B$111,2,FALSE)/100*AJ109 -> 0 | BH109: =VLOOKUP(N$3,Prisindeks!$A$1:$B$111,2,FALSE)/100*AK109 -> 0 | BI109: =VLOOKUP(O$3,Prisindeks!$A$1:$B$111,2,FALSE)/100*AL109 -> 0 | BJ109: =VLOOKUP(P$3,Prisindeks!$A$1:$B$111,2,FALSE)/100*AM109 -> 0 | BK109: =VLOOKUP(Q$3,Prisindeks!$A$1:$B$111,2,FALSE)/100*AN109 -> 0 | BL109: =VLOOKUP(R$3,Prisindeks!$A$1:$B$111,2,FALSE)/100*AO109 -> 0 | BM109: =VLOOKUP(S$3,Prisindeks!$A$1:$B$111,2,FALSE)/100*AP109 -> 0 | BN109: =VLOOKUP(T$3,Prisindeks!$A$1:$B$111,2,FALSE)/100*AQ109 -> 0 | BO109: =VLOOKUP(U$3,Prisindeks!$A$1:$B$111,2,FALSE)/100*AR109 -> 0 | BP109: =VLOOKUP(V$3,Prisindeks!$A$1:$B$111,2,FALSE)/100*AS109 -> 0 | BQ109: =VLOOKUP(W$3,Prisindeks!$A$1:$B$111,2,FALSE)/100*AT109 -> 0 | BR109: =VLOOKUP(X$3,Prisindeks!$A$1:$B$111,2,FALSE)/100*AU109 -> 0 | BS109: =VLOOKUP(Y$3,Prisindeks!$A$1:$B$111,2,FALSE)/100*AV109 -> 0 | BT109: =+SUM(AX109:BS109) -> 0 | BU109: 0 | BV109: 0 | BW109: 0 | BX109: 0 | BY109: 0 | BZ109: 0 | CA109: 0 | CB109: 0 | CC109: 0 | CD109: 0 | CE109: 0 | CF109: 0 | CG109: 0 | CH109: 0 | CI109: 0 | CJ109: 0 | CK109: 0 | CL109: 0 | CM109: 0 | CN109: 0 | CO109: 0 | CP109: 0 | CQ109: =+SUM(BU109:CP109) -> 0 | CR109: =SUM(D109:Y109) -> 0
A110: Levetidsforlængelse | B110: år | C110: - | D110: 0 | E110: 0 | F110: 0 | G110: 0 | H110: 0 | I110: 0 | J110: 0 | K110: 0 | L110: 0 | M110: 0 | N110: 0 | O110: 0 | P110: 0 | Q110: 0 | R110: 0 | S110: 0 | T110: 0 | U110: 0 | V110: 0 | W110: 0 | X110: 0 | Y110: 0
A111: =+Genanskaffelsespriser!$B$33 -> Gasdisponering, Mek/EL | B111: PE | C111: =Genanskaffelsespriser!$E$33 -> 20 | D111: 0 | E111: 0 | F111: 0 | G111: 0 | H111: 0 | I111: 0 | J111: 0 | K111: 0 | L111: 0 | M111: 0 | N111: 0 | O111: 0 | P111: 0 | Q111: 0 | R111: 0 | S111: 0 | T111: 0 | U111: 0 | V111: 0 | W111: 0 | X111: 0 | Y111: 0 | Z111: =IF(COUNTIF(D111:Y111,"<>0")<=1,IF(SUM(D111:Y111)=0,0,(IF(SUM(D111:Y111)>0,IF(SUM(D111:Y111)<400,(1.2675*45967*SUM(D111:Y111)^(-0.4664)),(IF(SUM(D111:Y111)<2000,(39128*SUM(D111:Y111)^(-0.37661)),IF(SUM(D111:Y111)<5000,18893*SUM(D111:Y111)^(-0.28083),IF(SUM(D111:Y111)<100000,29680*SUM(D111:Y111)^(-0.24475),1773.1))))*100/115)*SUM(D111:Y111)*(IF(SUM(D107:Y107)>0,0.0257,0)),0)*1.15*1.06*0.05)/SUM(D111:Y111)),$A$73) -> 0 | AA111: =IF((D111*$Z111-(2009-D$3)/$C111*$Z111*D111)<0,0,(D111*$Z111-(2009-D$3)/$C111*$Z111*D111)) -> 0 | AB111: 0 | AC111: 0 | AD111: 0 | AE111: 0 | AF111: 0 | AG111: 0 | AH111: 0 | AI111: 0 | AJ111: 0 | AK111: =IF((N111*$Z111-(2009-N$3)/$C111*$Z111*N111)<0,0,(N111*$Z111-(2009-N$3)/$C111*$Z111*N111)) -> 0 | AL111: 0 | AM111: 0 | AN111: 0 | AO111: 0 | AP111: 0 | AQ111: 0 | AR111: 0 | AS111: 0 | AT111: 0 | AU111: =IF((X111*$Z111-(2009-X$3)/$C111*$Z111*X111)<0,0,(X111*$Z111-(2009-X$3)/$C111*$Z111*X111)) -> 0 | AV111: =IF((Y111*$Z111-(2009-Y$3)/$C111*$Z111*Y111)<0,0,(Y111*$Z111-(2009-Y$3)/$C111*$Z111*Y111)) -> 0 | AW111: =+SUM(AA111:AV111) -> 0 | AX111: =VLOOKUP(D$3,Prisindeks!$A$1:$B$111,2,FALSE)/100*AA111 -> 0 | AY111: =VLOOKUP(E$3,Prisindeks!$A$1:$B$111,2,FALSE)/100*AB111 -> 0 | AZ111: =VLOOKUP(F$3,Prisindeks!$A$1:$B$111,2,FALSE)/100*AC111 -> 0 | BA111: =VLOOKUP(G$3,Prisindeks!$A$1:$B$111,2,FALSE)/100*AD111 -> 0 | BB111: =VLOOKUP(H$3,Prisindeks!$A$1:$B$111,2,FALSE)/100*AE111 -> 0 | BC111: =VLOOKUP(I$3,Prisindeks!$A$1:$B$111,2,FALSE)/100*AF111 -> 0 | BD111: =VLOOKUP(J$3,Prisindeks!$A$1:$B$111,2,FALSE)/100*AG111 -> 0 | BE111: =VLOOKUP(K$3,Prisindeks!$A$1:$B$111,2,FALSE)/100*AH111 -> 0 | BF111: =VLOOKUP(L$3,Prisindeks!$A$1:$B$111,2,FALSE)/100*AI111 -> 0 | BG111: =VLOOKUP(M$3,Prisindeks!$A$1:$B$111,2,FALSE)/100*AJ111 -> 0 | BH111: =VLOOKUP(N$3,Prisindeks!$A$1:$B$111,2,FALSE)/100*AK111 -> 0 | BI111: =VLOOKUP(O$3,Prisindeks!$A$1:$B$111,2,FALSE)/100*AL111 -> 0 | BJ111: =VLOOKUP(P$3,Prisindeks!$A$1:$B$111,2,FALSE)/100*AM111 -> 0 | BK111: =VLOOKUP(Q$3,Prisindeks!$A$1:$B$111,2,FALSE)/100*AN111 -> 0 | BL111: =VLOOKUP(R$3,Prisindeks!$A$1:$B$111,2,FALSE)/100*AO111 -> 0 | BM111: =VLOOKUP(S$3,Prisindeks!$A$1:$B$111,2,FALSE)/100*AP111 -> 0 | BN111: =VLOOKUP(T$3,Prisindeks!$A$1:$B$111,2,FALSE)/100*AQ111 -> 0 | BO111: =VLOOKUP(U$3,Prisindeks!$A$1:$B$111,2,FALSE)/100*AR111 -> 0 | BP111: =VLOOKUP(V$3,Prisindeks!$A$1:$B$111,2,FALSE)/100*AS111 -> 0 | BQ111: =VLOOKUP(W$3,Prisindeks!$A$1:$B$111,2,FALSE)/100*AT111 -> 0 | BR111: =VLOOKUP(X$3,Prisindeks!$A$1:$B$111,2,FALSE)/100*AU111 -> 0 | BS111: =VLOOKUP(Y$3,Prisindeks!$A$1:$B$111,2,FALSE)/100*AV111 -> 0 | BT111: =+SUM(AX111:BS111) -> 0 | BU111: =(AA111+AX111)/2 -> 0 | BV111: 0 | BW111: 0 | BX111: 0 | BY111: 0 | BZ111: 0 | CA111: 0 | CB111: 0 | CC111: 0 | CD111: 0 | CE111: =(AK111+BH111)/2 -> 0 | CF111: 0 | CG111: 0 | CH111: 0 | CI111: 0 | CJ111: 0 | CK111: 0 | CL111: 0 | CM111: 0 | CN111: 0 | CO111: =(AU111+BR111)/2 -> 0 | CP111: 0 | CQ111: =+SUM(BU111:CP111) -> 0 | CR111: =SUM(D111:Y111) -> 0
A112: =+Genanskaffelsespriser!$B$34 -> Gasdisponering, SRO | B112: PE | C112: =Genanskaffelsespriser!$E$34 -> 10 | D112: 0 | E112: 0 | F112: 0 | G112: 0 | H112: 0 | I112: 0 | J112: 0 | K112: 0 | L112: 0 | M112: 0 | N112: 0 | O112: 0 | P112: 0 | Q112: 0 | R112: 0 | S112: 0 | T112: 0 | U112: 0 | V112: 0 | W112: 0 | X112: 0 | Y112: 0 | Z112: =IF(COUNTIF(D112:Y112,"<>0")<=1,IF(SUM(D112:Y112)=0,0,(IF(SUM(D112:Y112)>0,IF(SUM(D112:Y112)<400,(1.2675*45967*SUM(D112:Y112)^(-0.4664)),(IF(SUM(D112:Y112)<2000,(39128*SUM(D112:Y112)^(-0.37661)),IF(SUM(D112:Y112)<5000,18893*SUM(D112:Y112)^(-0.28083),IF(SUM(D112:Y112)<100000,29680*SUM(D112:Y112)^(-0.24475),1773.1))))*100/115)*SUM(D112:Y112)*(IF(SUM(D108:Y108)>0,0.0257,0)),0)*1.15*1.06*0.01)/SUM(D112:Y112)),$A$73) -> 0 | AA112: 0 | AB112: 0 | AC112: 0 | AD112: 0 | AE112: 0 | AF112: 0 | AG112: 0 | AH112: 0 | AI112: 0 | AJ112: 0 | AK112: 0 | AL112: 0 | AM112: 0 | AN112: 0 | AO112: 0 | AP112: 0 | AQ112: 0 | AR112: 0 | AS112: 0 | AT112: 0 | AU112: =IF((X112*$Z112-(2009-X$3)/$C112*$Z112*X112)<0,0,(X112*$Z112-(2009-X$3)/$C112*$Z112*X112)) -> 0 | AV112: =IF((Y112*$Z112-(2009-Y$3)/$C112*$Z112*Y112)<0,0,(Y112*$Z112-(2009-Y$3)/$C112*$Z112*Y112)) -> 0 | AW112: =+SUM(AA112:AV112) -> 0 | AX112: =VLOOKUP(D$3,Prisindeks!$A$1:$B$111,2,FALSE)/100*AA112 -> 0 | AY112: =VLOOKUP(E$3,Prisindeks!$A$1:$B$111,2,FALSE)/100*AB112 -> 0 | AZ112: =VLOOKUP(F$3,Prisindeks!$A$1:$B$111,2,FALSE)/100*AC112 -> 0 | BA112: =VLOOKUP(G$3,Prisindeks!$A$1:$B$111,2,FALSE)/100*AD112 -> 0 | BB112: =VLOOKUP(H$3,Prisindeks!$A$1:$B$111,2,FALSE)/100*AE112 -> 0 | BC112: =VLOOKUP(I$3,Prisindeks!$A$1:$B$111,2,FALSE)/100*AF112 -> 0 | BD112: =VLOOKUP(J$3,Prisindeks!$A$1:$B$111,2,FALSE)/100*AG112 -> 0 | BE112: =VLOOKUP(K$3,Prisindeks!$A$1:$B$111,2,FALSE)/100*AH112 -> 0 | BF112: =VLOOKUP(L$3,Prisindeks!$A$1:$B$111,2,FALSE)/100*AI112 -> 0 | BG112: =VLOOKUP(M$3,Prisindeks!$A$1:$B$111,2,FALSE)/100*AJ112 -> 0 | BH112: =VLOOKUP(N$3,Prisindeks!$A$1:$B$111,2,FALSE)/100*AK112 -> 0 | BI112: =VLOOKUP(O$3,Prisindeks!$A$1:$B$111,2,FALSE)/100*AL112 -> 0 | BJ112: =VLOOKUP(P$3,Prisindeks!$A$1:$B$111,2,FALSE)/100*AM112 -> 0 | BK112: =VLOOKUP(Q$3,Prisindeks!$A$1:$B$111,2,FALSE)/100*AN112 -> 0 | BL112: =VLOOKUP(R$3,Prisindeks!$A$1:$B$111,2,FALSE)/100*AO112 -> 0 | BM112: =VLOOKUP(S$3,Prisindeks!$A$1:$B$111,2,FALSE)/100*AP112 -> 0 | BN112: =VLOOKUP(T$3,Prisindeks!$A$1:$B$111,2,FALSE)/100*AQ112 -> 0 | BO112: =VLOOKUP(U$3,Prisindeks!$A$1:$B$111,2,FALSE)/100*AR112 -> 0 | BP112: =VLOOKUP(V$3,Prisindeks!$A$1:$B$111,2,FALSE)/100*AS112 -> 0 | BQ112: =VLOOKUP(W$3,Prisindeks!$A$1:$B$111,2,FALSE)/100*AT112 -> 0 | BR112: =VLOOKUP(X$3,Prisindeks!$A$1:$B$111,2,FALSE)/100*AU112 -> 0 | BS112: =VLOOKUP(Y$3,Prisindeks!$A$1:$B$111,2,FALSE)/100*AV112 -> 0 | BT112: =+SUM(AX112:BS112) -> 0 | BU112: 0 | BV112: 0 | BW112: 0 | BX112: 0 | BY112: 0 | BZ112: 0 | CA112: 0 | CB112: 0 | CC112: 0 | CD112: 0 | CE112: 0 | CF112: 0 | CG112: 0 | CH112: 0 | CI112: 0 | CJ112: 0 | CK112: 0 | CL112: 0 | CM112: 0 | CN112: 0 | CO112: 0 | CP112: 0 | CQ112: =+SUM(BU112:CP112) -> 0 | CR112: =SUM(D112:Y112) -> 0
A113: =+Genanskaffelsespriser!$B$35 -> Gasdisponering - elproduktionsanlæg, Konstruktioner | B113: PE | C113: =Genanskaffelsespriser!$E$35 -> 60 | D113: 0 | E113: 0 | F113: 0 | G113: 0 | H113: 0 | I113: 0 | J113: 0 | K113: 0 | L113: 0 | M113: 0 | N113: 0 | O113: 0 | P113: 0 | Q113: 0 | R113: 0 | S113: 0 | T113: 0 | U113: 0 | V113: 0 | W113: 0 | X113: 0 | Y113: 0 | Z113: =IF(COUNTIF(D113:Y113,"<>0")<=1,IF(SUM(D113:Y113)=0,0,(IF(SUM(D113:Y113)>0,IF(SUM(D113:Y113)<400,(1.2675*45967*SUM(D113:Y113)^(-0.4664)),(IF(SUM(D113:Y113)<2000,(39128*SUM(D113:Y113)^(-0.37661)),IF(SUM(D113:Y113)<5000,18893*SUM(D113:Y113)^(-0.28083),IF(SUM(D113:Y113)<100000,29680*SUM(D113:Y113)^(-0.24475),1773.1))))*100/115)*SUM(D113:Y113)*(IF(SUM(D105:Y105)>0,0.0257,0)),0)*1.15*1.06*0.25)*(1+Genanskaffelsespriser!$D$389)/SUM(D113:Y113)),$A$73) -> 0 | AA113: =IF((D113*$Z113-(2009-D$3)/($C113+D114)*$Z113*D113)<0,0,(D113*$Z113-(2009-D$3)/($C113+D114)*$Z113*D113)) -> 0 | AB113: 0 | AC113: 0 | AD113: 0 | AE113: 0 | AF113: 0 | AG113: 0 | AH113: 0 | AI113: 0 | AJ113: 0 | AK113: 0 | AL113: 0 | AM113: 0 | AN113: 0 | AO113: 0 | AP113: 0 | AQ113: 0 | AR113: 0 | AS113: 0 | AT113: 0 | AU113: 0 | AV113: 0 | AW113: =+SUM(AA113:AV113) -> 0 | AX113: =VLOOKUP(D$3,Prisindeks!$A$1:$B$111,2,FALSE)/100*AA113 -> 0 | AY113: =VLOOKUP(E$3,Prisindeks!$A$1:$B$111,2,FALSE)/100*AB113 -> 0 | AZ113: =VLOOKUP(F$3,Prisindeks!$A$1:$B$111,2,FALSE)/100*AC113 -> 0 | BA113: =VLOOKUP(G$3,Prisindeks!$A$1:$B$111,2,FALSE)/100*AD113 -> 0 | BB113: =VLOOKUP(H$3,Prisindeks!$A$1:$B$111,2,FALSE)/100*AE113 -> 0 | BC113: =VLOOKUP(I$3,Prisindeks!$A$1:$B$111,2,FALSE)/100*AF113 -> 0 | BD113: =VLOOKUP(J$3,Prisindeks!$A$1:$B$111,2,FALSE)/100*AG113 -> 0 | BE113: =VLOOKUP(K$3,Prisindeks!$A$1:$B$111,2,FALSE)/100*AH113 -> 0 | BF113: =VLOOKUP(L$3,Prisindeks!$A$1:$B$111,2,FALSE)/100*AI113 -> 0 | BG113: =VLOOKUP(M$3,Prisindeks!$A$1:$B$111,2,FALSE)/100*AJ113 -> 0 | BH113: =VLOOKUP(N$3,Prisindeks!$A$1:$B$111,2,FALSE)/100*AK113 -> 0 | BI113: =VLOOKUP(O$3,Prisindeks!$A$1:$B$111,2,FALSE)/100*AL113 -> 0 | BJ113: =VLOOKUP(P$3,Prisindeks!$A$1:$B$111,2,FALSE)/100*AM113 -> 0 | BK113: =VLOOKUP(Q$3,Prisindeks!$A$1:$B$111,2,FALSE)/100*AN113 -> 0 | BL113: =VLOOKUP(R$3,Prisindeks!$A$1:$B$111,2,FALSE)/100*AO113 -> 0 | BM113: =VLOOKUP(S$3,Prisindeks!$A$1:$B$111,2,FALSE)/100*AP113 -> 0 | BN113: =VLOOKUP(T$3,Prisindeks!$A$1:$B$111,2,FALSE)/100*AQ113 -> 0 | BO113: =VLOOKUP(U$3,Prisindeks!$A$1:$B$111,2,FALSE)/100*AR113 -> 0 | BP113: =VLOOKUP(V$3,Prisindeks!$A$1:$B$111,2,FALSE)/100*AS113 -> 0 | BQ113: =VLOOKUP(W$3,Prisindeks!$A$1:$B$111,2,FALSE)/100*AT113 -> 0 | BR113: =VLOOKUP(X$3,Prisindeks!$A$1:$B$111,2,FALSE)/100*AU113 -> 0 | BS113: =VLOOKUP(Y$3,Prisindeks!$A$1:$B$111,2,FALSE)/100*AV113 -> 0 | BT113: =+SUM(AX113:BS113) -> 0 | BU113: 0 | BV113: 0 | BW113: 0 | BX113: 0 | BY113: 0 | BZ113: 0 | CA113: 0 | CB113: 0 | CC113: 0 | CD113: 0 | CE113: 0 | CF113: 0 | CG113: 0 | CH113: 0 | CI113: 0 | CJ113: 0 | CK113: 0 | CL113: 0 | CM113: 0 | CN113: 0 | CO113: 0 | CP113: 0 | CQ113: =+SUM(BU113:CP113) -> 0 | CR113: =SUM(D113:Y113) -> 0
A114: Levetidsforlængelse | B114: år | C114: - | D114: 0 | E114: 0 | F114: 0 | G114: 0 | H114: 0 | I114: 0 | J114: 0 | K114: 0 | L114: 0 | M114: 0 | N114: 0 | O114: 0 | P114: 0 | Q114: 0 | R114: 0 | S114: 0 | T114: 0 | U114: 0 | V114: 0 | W114: 0 | X114: 0 | Y114: 0
A115: =+Genanskaffelsespriser!$B$36 -> Gasdisponering - elproduktionsanlæg, Mek/EL | B115: PE | C115: =Genanskaffelsespriser!$E$36 -> 20 | D115: 0 | E115: 0 | F115: 0 | G115: 0 | H115: 0 | I115: 0 | J115: 0 | K115: 0 | L115: 0 | M115: 0 | N115: 0 | O115: 0 | P115: 0 | Q115: 0 | R115: 0 | S115: 0 | T115: 0 | U115: 0 | V115: 0 | W115: 0 | X115: 0 | Y115: 0 | Z115: =IF(COUNTIF(D115:Y115,"<>0")<=1,IF(SUM(D115:Y115)=0,0,(IF(SUM(D115:Y115)>0,IF(SUM(D115:Y115)<400,(1.2675*45967*SUM(D115:Y115)^(-0.4664)),(IF(SUM(D115:Y115)<2000,(39128*SUM(D115:Y115)^(-0.37661)),IF(SUM(D115:Y115)<5000,18893*SUM(D115:Y115)^(-0.28083),IF(SUM(D115:Y115)<100000,29680*SUM(D115:Y115)^(-0.24475),1773.1))))*100/115)*SUM(D115:Y115)*(IF(SUM(D107:Y107)>0,0.0257,0)),0)*1.15*1.06*0.72)/SUM(D115:Y115)),$A$73) -> 0 | AA115: =IF((D115*$Z115-(2009-D$3)/$C115*$Z115*D115)<0,0,(D115*$Z115-(2009-D$3)/$C115*$Z115*D115)) -> 0 | AB115: 0 | AC115: 0 | AD115: 0 | AE115: 0 | AF115: 0 | AG115: 0 | AH115: 0 | AI115: 0 | AJ115: 0 | AK115: =IF((N115*$Z115-(2009-N$3)/$C115*$Z115*N115)<0,0,(N115*$Z115-(2009-N$3)/$C115*$Z115*N115)) -> 0 | AL115: 0 | AM115: 0 | AN115: 0 | AO115: 0 | AP115: 0 | AQ115: 0 | AR115: 0 | AS115: 0 | AT115: 0 | AU115: =IF((X115*$Z115-(2009-X$3)/$C115*$Z115*X115)<0,0,(X115*$Z115-(2009-X$3)/$C115*$Z115*X115)) -> 0 | AV115: =IF((Y115*$Z115-(2009-Y$3)/$C115*$Z115*Y115)<0,0,(Y115*$Z115-(2009-Y$3)/$C115*$Z115*Y115)) -> 0 | AW115: =+SUM(AA115:AV115) -> 0 | AX115: =VLOOKUP(D$3,Prisindeks!$A$1:$B$111,2,FALSE)/100*AA115 -> 0 | AY115: =VLOOKUP(E$3,Prisindeks!$A$1:$B$111,2,FALSE)/100*AB115 -> 0 | AZ115: =VLOOKUP(F$3,Prisindeks!$A$1:$B$111,2,FALSE)/100*AC115 -> 0 | BA115: =VLOOKUP(G$3,Prisindeks!$A$1:$B$111,2,FALSE)/100*AD115 -> 0 | BB115: =VLOOKUP(H$3,Prisindeks!$A$1:$B$111,2,FALSE)/100*AE115 -> 0 | BC115: =VLOOKUP(I$3,Prisindeks!$A$1:$B$111,2,FALSE)/100*AF115 -> 0 | BD115: =VLOOKUP(J$3,Prisindeks!$A$1:$B$111,2,FALSE)/100*AG115 -> 0 | BE115: =VLOOKUP(K$3,Prisindeks!$A$1:$B$111,2,FALSE)/100*AH115 -> 0 | BF115: =VLOOKUP(L$3,Prisindeks!$A$1:$B$111,2,FALSE)/100*AI115 -> 0 | BG115: =VLOOKUP(M$3,Prisindeks!$A$1:$B$111,2,FALSE)/100*AJ115 -> 0 | BH115: =VLOOKUP(N$3,Prisindeks!$A$1:$B$111,2,FALSE)/100*AK115 -> 0 | BI115: =VLOOKUP(O$3,Prisindeks!$A$1:$B$111,2,FALSE)/100*AL115 -> 0 | BJ115: =VLOOKUP(P$3,Prisindeks!$A$1:$B$111,2,FALSE)/100*AM115 -> 0 | BK115: =VLOOKUP(Q$3,Prisindeks!$A$1:$B$111,2,FALSE)/100*AN115 -> 0 | BL115: =VLOOKUP(R$3,Prisindeks!$A$1:$B$111,2,FALSE)/100*AO115 -> 0 | BM115: =VLOOKUP(S$3,Prisindeks!$A$1:$B$111,2,FALSE)/100*AP115 -> 0 | BN115: =VLOOKUP(T$3,Prisindeks!$A$1:$B$111,2,FALSE)/100*AQ115 -> 0 | BO115: =VLOOKUP(U$3,Prisindeks!$A$1:$B$111,2,FALSE)/100*AR115 -> 0 | BP115: =VLOOKUP(V$3,Prisindeks!$A$1:$B$111,2,FALSE)/100*AS115 -> 0 | BQ115: =VLOOKUP(W$3,Prisindeks!$A$1:$B$111,2,FALSE)/100*AT115 -> 0 | BR115: =VLOOKUP(X$3,Prisindeks!$A$1:$B$111,2,FALSE)/100*AU115 -> 0 | BS115: =VLOOKUP(Y$3,Prisindeks!$A$1:$B$111,2,FALSE)/100*AV115 -> 0 | BT115: =+SUM(AX115:BS115) -> 0 | BU115: =(AA115+AX115)/2 -> 0 | BV115: 0 | BW115: 0 | BX115: 0 | BY115: 0 | BZ115: 0 | CA115: 0 | CB115: 0 | CC115: 0 | CD115: 0 | CE115: =(AK115+BH115)/2 -> 0 | CF115: 0 | CG115: 0 | CH115: 0 | CI115: 0 | CJ115: 0 | CK115: 0 | CL115: 0 | CM115: 0 | CN115: 0 | CO115: =(AU115+BR115)/2 -> 0 | CP115: 0 | CQ115: =+SUM(BU115:CP115) -> 0 | CR115: =SUM(D115:Y115) -> 0
A116: =+Genanskaffelsespriser!$B$37 -> Gasdisponering - elproduktionsanlæg, SRO | B116: PE | C116: =Genanskaffelsespriser!$E$37 -> 10 | D116: 0 | E116: 0 | F116: 0 | G116: 0 | H116: 0 | I116: 0 | J116: 0 | K116: 0 | L116: 0 | M116: 0 | N116: 0 | O116: 0 | P116: 0 | Q116: 0 | R116: 0 | S116: 0 | T116: 0 | U116: 0 | V116: 0 | W116: 0 | X116: 0 | Y116: 0 | Z116: =IF(COUNTIF(D116:Y116,"<>0")<=1,IF(SUM(D116:Y116)=0,0,(IF(SUM(D116:Y116)>0,IF(SUM(D116:Y116)<400,(1.2675*45967*SUM(D116:Y116)^(-0.4664)),(IF(SUM(D116:Y116)<2000,(39128*SUM(D116:Y116)^(-0.37661)),IF(SUM(D116:Y116)<5000,18893*SUM(D116:Y116)^(-0.28083),IF(SUM(D116:Y116)<100000,29680*SUM(D116:Y116)^(-0.24475),1773.1))))*100/115)*SUM(D116:Y116)*(IF(SUM(D108:Y108)>0,0.0257,0)),0)*1.15*1.06*0.03)/SUM(D116:Y116)),$A$73) -> 0 | AA116: 0 | AB116: 0 | AC116: 0 | AD116: 0 | AE116: 0 | AF116: 0 | AG116: 0 | AH116: 0 | AI116: 0 | AJ116: 0 | AK116: 0 | AL116: 0 | AM116: 0 | AN116: 0 | AO116: 0 | AP116: 0 | AQ116: 0 | AR116: 0 | AS116: 0 | AT116: 0 | AU116: =IF((X116*$Z116-(2009-X$3)/$C116*$Z116*X116)<0,0,(X116*$Z116-(2009-X$3)/$C116*$Z116*X116)) -> 0 | AV116: =IF((Y116*$Z116-(2009-Y$3)/$C116*$Z116*Y116)<0,0,(Y116*$Z116-(2009-Y$3)/$C116*$Z116*Y116)) -> 0 | AW116: =+SUM(AA116:AV116) -> 0 | AX116: =VLOOKUP(D$3,Prisindeks!$A$1:$B$111,2,FALSE)/100*AA116 -> 0 | AY116: =VLOOKUP(E$3,Prisindeks!$A$1:$B$111,2,FALSE)/100*AB116 -> 0 | AZ116: =VLOOKUP(F$3,Prisindeks!$A$1:$B$111,2,FALSE)/100*AC116 -> 0 | BA116: =VLOOKUP(G$3,Prisindeks!$A$1:$B$111,2,FALSE)/100*AD116 -> 0 | BB116: =VLOOKUP(H$3,Prisindeks!$A$1:$B$111,2,FALSE)/100*AE116 -> 0 | BC116: =VLOOKUP(I$3,Prisindeks!$A$1:$B$111,2,FALSE)/100*AF116 -> 0 | BD116: =VLOOKUP(J$3,Prisindeks!$A$1:$B$111,2,FALSE)/100*AG116 -> 0 | BE116: =VLOOKUP(K$3,Prisindeks!$A$1:$B$111,2,FALSE)/100*AH116 -> 0 | BF116: =VLOOKUP(L$3,Prisindeks!$A$1:$B$111,2,FALSE)/100*AI116 -> 0 | BG116: =VLOOKUP(M$3,Prisindeks!$A$1:$B$111,2,FALSE)/100*AJ116 -> 0 | BH116: =VLOOKUP(N$3,Prisindeks!$A$1:$B$111,2,FALSE)/100*AK116 -> 0 | BI116: =VLOOKUP(O$3,Prisindeks!$A$1:$B$111,2,FALSE)/100*AL116 -> 0 | BJ116: =VLOOKUP(P$3,Prisindeks!$A$1:$B$111,2,FALSE)/100*AM116 -> 0 | BK116: =VLOOKUP(Q$3,Prisindeks!$A$1:$B$111,2,FALSE)/100*AN116 -> 0 | BL116: =VLOOKUP(R$3,Prisindeks!$A$1:$B$111,2,FALSE)/100*AO116 -> 0 | BM116: =VLOOKUP(S$3,Prisindeks!$A$1:$B$111,2,FALSE)/100*AP116 -> 0 | BN116: =VLOOKUP(T$3,Prisindeks!$A$1:$B$111,2,FALSE)/100*AQ116 -> 0 | BO116: =VLOOKUP(U$3,Prisindeks!$A$1:$B$111,2,FALSE)/100*AR116 -> 0 | BP116: =VLOOKUP(V$3,Prisindeks!$A$1:$B$111,2,FALSE)/100*AS116 -> 0 | BQ116: =VLOOKUP(W$3,Prisindeks!$A$1:$B$111,2,FALSE)/100*AT116 -> 0 | BR116: =VLOOKUP(X$3,Prisindeks!$A$1:$B$111,2,FALSE)/100*AU116 -> 0 | BS116: =VLOOKUP(Y$3,Prisindeks!$A$1:$B$111,2,FALSE)/100*AV116 -> 0 | BT116: =+SUM(AX116:BS116) -> 0 | BU116: 0 | BV116: 0 | BW116: 0 | BX116: 0 | BY116: 0 | BZ116: 0 | CA116: 0 | CB116: 0 | CC116: 0 | CD116: 0 | CE116: 0 | CF116: 0 | CG116: 0 | CH116: 0 | CI116: 0 | CJ116: 0 | CK116: 0 | CL116: 0 | CM116: 0 | CN116: 0 | CO116: 0 | CP116: 0 | CQ116: =+SUM(BU116:CP116) -> 0 | CR116: =SUM(D116:Y116) -> 0
A117: =+Genanskaffelsespriser!$B$38 -> Slutafvanding, slam - lavteknologisk (slambede), Konstruktioner | B117: PE | C117: =Genanskaffelsespriser!$E$38 -> 60 | D117: 0 | E117: 0 | F117: 0 | G117: 0 | H117: 0 | I117: 0 | J117: 0 | K117: 0 | L117: 0 | M117: 0 | N117: 0 | O117: 0 | P117: 0 | Q117: 0 | R117: 0 | S117: 0 | T117: 0 | U117: 0 | V117: 0 | W117: 0 | X117: 0 | Y117: 0 | Z117: =IF(COUNTIF(D117:Y117,"<>0")<=1,IF(SUM(D117:Y117)=0,0,(IF(SUM(D117:Y117)>0,IF(SUM(D117:Y117)<400,(1.2675*45967*SUM(D117:Y117)^(-0.4664)),(IF(SUM(D117:Y117)<2000,(39128*SUM(D117:Y117)^(-0.37661)),IF(SUM(D117:Y117)<5000,18893*SUM(D117:Y117)^(-0.28083),IF(SUM(D117:Y117)<100000,29680*SUM(D117:Y117)^(-0.24475),1773.1))))*100/115)*SUM(D117:Y117)*(IF(SUM(D105:Y105)>0,0.046,0.0531)),0)*1.15*1.06*0.85)*(1+Genanskaffelsespriser!$D$389)/SUM(D117:Y117)),$A$73) -> 0 | AA117: =IF((D117*$Z117-(2009-D$3)/($C117+D118)*$Z117*D117)<0,0,(D117*$Z117-(2009-D$3)/($C117+D118)*$Z117*D117)) -> 0 | AB117: 0 | AC117: 0 | AD117: 0 | AE117: 0 | AF117: 0 | AG117: 0 | AH117: 0 | AI117: 0 | AJ117: 0 | AK117: 0 | AL117: 0 | AM117: 0 | AN117: 0 | AO117: 0 | AP117: 0 | AQ117: 0 | AR117: 0 | AS117: 0 | AT117: 0 | AU117: 0 | AV117: 0 | AW117: =+SUM(AA117:AV117) -> 0 | AX117: =VLOOKUP(D$3,Prisindeks!$A$1:$B$111,2,FALSE)/100*AA117 -> 0 | AY117: =VLOOKUP(E$3,Prisindeks!$A$1:$B$111,2,FALSE)/100*AB117 -> 0 | AZ117: =VLOOKUP(F$3,Prisindeks!$A$1:$B$111,2,FALSE)/100*AC117 -> 0 | BA117: =VLOOKUP(G$3,Prisindeks!$A$1:$B$111,2,FALSE)/100*AD117 -> 0 | BB117: =VLOOKUP(H$3,Prisindeks!$A$1:$B$111,2,FALSE)/100*AE117 -> 0 | BC117: =VLOOKUP(I$3,Prisindeks!$A$1:$B$111,2,FALSE)/100*AF117 -> 0 | BD117: =VLOOKUP(J$3,Prisindeks!$A$1:$B$111,2,FALSE)/100*AG117 -> 0 | BE117: =VLOOKUP(K$3,Prisindeks!$A$1:$B$111,2,FALSE)/100*AH117 -> 0 | BF117: =VLOOKUP(L$3,Prisindeks!$A$1:$B$111,2,FALSE)/100*AI117 -> 0 | BG117: =VLOOKUP(M$3,Prisindeks!$A$1:$B$111,2,FALSE)/100*AJ117 -> 0 | BH117: =VLOOKUP(N$3,Prisindeks!$A$1:$B$111,2,FALSE)/100*AK117 -> 0 | BI117: =VLOOKUP(O$3,Prisindeks!$A$1:$B$111,2,FALSE)/100*AL117 -> 0 | BJ117: =VLOOKUP(P$3,Prisindeks!$A$1:$B$111,2,FALSE)/100*AM117 -> 0 | BK117: =VLOOKUP(Q$3,Prisindeks!$A$1:$B$111,2,FALSE)/100*AN117 -> 0 | BL117: =VLOOKUP(R$3,Prisindeks!$A$1:$B$111,2,FALSE)/100*AO117 -> 0 | BM117: =VLOOKUP(S$3,Prisindeks!$A$1:$B$111,2,FALSE)/100*AP117 -> 0 | BN117: =VLOOKUP(T$3,Prisindeks!$A$1:$B$111,2,FALSE)/100*AQ117 -> 0 | BO117: =VLOOKUP(U$3,Prisindeks!$A$1:$B$111,2,FALSE)/100*AR117 -> 0 | BP117: =VLOOKUP(V$3,Prisindeks!$A$1:$B$111,2,FALSE)/100*AS117 -> 0 | BQ117: =VLOOKUP(W$3,Prisindeks!$A$1:$B$111,2,FALSE)/100*AT117 -> 0 | BR117: =VLOOKUP(X$3,Prisindeks!$A$1:$B$111,2,FALSE)/100*AU117 -> 0 | BS117: =VLOOKUP(Y$3,Prisindeks!$A$1:$B$111,2,FALSE)/100*AV117 -> 0 | BT117: =+SUM(AX117:BS117) -> 0 | BU117: 0 | BV117: 0 | BW117: 0 | BX117: 0 | BY117: 0 | BZ117: 0 | CA117: 0 | CB117: 0 | CC117: 0 | CD117: 0 | CE117: 0 | CF117: 0 | CG117: 0 | CH117: 0 | CI117: 0 | CJ117: 0 | CK117: 0 | CL117: 0 | CM117: 0 | CN117: 0 | CO117: 0 | CP117: 0 | CQ117: =+SUM(BU117:CP117) -> 0 | CR117: =SUM(D117:Y117) -> 0
A118: Levetidsforlængelse | B118: år | C118: - | D118: 0 | E118: 0 | F118: 0 | G118: 0 | H118: 0 | I118: 0 | J118: 0 | K118: 0 | L118: 0 | M118: 0 | N118: 0 | O118: 0 | P118: 0 | Q118: 0 | R118: 0 | S118: 0 | T118: 0 | U118: 0 | V118: 0 | W118: 0 | X118: 0 | Y118: 0
A119: =+Genanskaffelsespriser!$B$39 -> Slutafvanding, slam - lavteknologisk (slambede), Mek/EL | B119: PE | C119: =Genanskaffelsespriser!$E$39 -> 20 | D119: 0 | E119: 0 | F119: 0 | G119: 0 | H119: 0 | I119: 0 | J119: 0 | K119: 0 | L119: 0 | M119: 0 | N119: 0 | O119: 0 | P119: 0 | Q119: 0 | R119: 0 | S119: 0 | T119: 0 | U119: 0 | V119: 0 | W119: 0 | X119: 0 | Y119: 0 | Z119: =IF(COUNTIF(D119:Y119,"<>0")<=1,IF(SUM(D119:Y119)=0,0,(IF(SUM(D119:Y119)>0,IF(SUM(D119:Y119)<400,(1.2675*45967*SUM(D119:Y119)^(-0.4664)),(IF(SUM(D119:Y119)<2000,(39128*SUM(D119:Y119)^(-0.37661)),IF(SUM(D119:Y119)<5000,18893*SUM(D119:Y119)^(-0.28083),IF(SUM(D119:Y119)<100000,29680*SUM(D119:Y119)^(-0.24475),1773.1))))*100/115)*SUM(D119:Y119)*(IF(SUM(D107:Y107)>0,0.046,0.0531)),0)*1.15*1.06*0.14)/SUM(D119:Y119)),$A$73) -> 0 | AA119: =IF((D119*$Z119-(2009-D$3)/$C119*$Z119*D119)<0,0,(D119*$Z119-(2009-D$3)/$C119*$Z119*D119)) -> 0 | AB119: 0 | AC119: 0 | AD119: 0 | AE119: 0 | AF119: 0 | AG119: 0 | AH119: 0 | AI119: 0 | AJ119: 0 | AK119: =IF((N119*$Z119-(2009-N$3)/$C119*$Z119*N119)<0,0,(N119*$Z119-(2009-N$3)/$C119*$Z119*N119)) -> 0 | AL119: 0 | AM119: 0 | AN119: 0 | AO119: 0 | AP119: 0 | AQ119: 0 | AR119: 0 | AS119: 0 | AT119: 0 | AU119: =IF((X119*$Z119-(2009-X$3)/$C119*$Z119*X119)<0,0,(X119*$Z119-(2009-X$3)/$C119*$Z119*X119)) -> 0 | AV119: =IF((Y119*$Z119-(2009-Y$3)/$C119*$Z119*Y119)<0,0,(Y119*$Z119-(2009-Y$3)/$C119*$Z119*Y119)) -> 0 | AW119: =+SUM(AA119:AV119) -> 0 | AX119: =VLOOKUP(D$3,Prisindeks!$A$1:$B$111,2,FALSE)/100*AA119 -> 0 | AY119: =VLOOKUP(E$3,Prisindeks!$A$1:$B$111,2,FALSE)/100*AB119 -> 0 | AZ119: =VLOOKUP(F$3,Prisindeks!$A$1:$B$111,2,FALSE)/100*AC119 -> 0 | BA119: =VLOOKUP(G$3,Prisindeks!$A$1:$B$111,2,FALSE)/100*AD119 -> 0 | BB119: =VLOOKUP(H$3,Prisindeks!$A$1:$B$111,2,FALSE)/100*AE119 -> 0 | BC119: =VLOOKUP(I$3,Prisindeks!$A$1:$B$111,2,FALSE)/100*AF119 -> 0 | BD119: =VLOOKUP(J$3,Prisindeks!$A$1:$B$111,2,FALSE)/100*AG119 -> 0 | BE119: =VLOOKUP(K$3,Prisindeks!$A$1:$B$111,2,FALSE)/100*AH119 -> 0 | BF119: =VLOOKUP(L$3,Prisindeks!$A$1:$B$111,2,FALSE)/100*AI119 -> 0 | BG119: =VLOOKUP(M$3,Prisindeks!$A$1:$B$111,2,FALSE)/100*AJ119 -> 0 | BH119: =VLOOKUP(N$3,Prisindeks!$A$1:$B$111,2,FALSE)/100*AK119 -> 0 | BI119: =VLOOKUP(O$3,Prisindeks!$A$1:$B$111,2,FALSE)/100*AL119 -> 0 | BJ119: =VLOOKUP(P$3,Prisindeks!$A$1:$B$111,2,FALSE)/100*AM119 -> 0 | BK119: =VLOOKUP(Q$3,Prisindeks!$A$1:$B$111,2,FALSE)/100*AN119 -> 0 | BL119: =VLOOKUP(R$3,Prisindeks!$A$1:$B$111,2,FALSE)/100*AO119 -> 0 | BM119: =VLOOKUP(S$3,Prisindeks!$A$1:$B$111,2,FALSE)/100*AP119 -> 0 | BN119: =VLOOKUP(T$3,Prisindeks!$A$1:$B$111,2,FALSE)/100*AQ119 -> 0 | BO119: =VLOOKUP(U$3,Prisindeks!$A$1:$B$111,2,FALSE)/100*AR119 -> 0 | BP119: =VLOOKUP(V$3,Prisindeks!$A$1:$B$111,2,FALSE)/100*AS119 -> 0 | BQ119: =VLOOKUP(W$3,Prisindeks!$A$1:$B$111,2,FALSE)/100*AT119 -> 0 | BR119: =VLOOKUP(X$3,Prisindeks!$A$1:$B$111,2,FALSE)/100*AU119 -> 0 | BS119: =VLOOKUP(Y$3,Prisindeks!$A$1:$B$111,2,FALSE)/100*AV119 -> 0 | BT119: =+SUM(AX119:BS119) -> 0 | BU119: =(AA119+AX119)/2 -> 0 | BV119: 0 | BW119: 0 | BX119: 0 | BY119: 0 | BZ119: 0 | CA119: 0 | CB119: 0 | CC119: 0 | CD119: 0 | CE119: =(AK119+BH119)/2 -> 0 | CF119: 0 | CG119: 0 | CH119: 0 | CI119: 0 | CJ119: 0 | CK119: 0 | CL119: 0 | CM119: 0 | CN119: 0 | CO119: =(AU119+BR119)/2 -> 0 | CP119: 0 | CQ119: =+SUM(BU119:CP119) -> 0 | CR119: =SUM(D119:Y119) -> 0
A120: =+Genanskaffelsespriser!$B$40 -> Slutafvanding, slam - lavteknologisk (slambede), SRO | B120: PE | C120: =Genanskaffelsespriser!$E$40 -> 10 | D120: 0 | E120: 0 | F120: 0 | G120: 0 | H120: 0 | I120: 0 | J120: 0 | K120: 0 | L120: 0 | M120: 0 | N120: 0 | O120: 0 | P120: 0 | Q120: 0 | R120: 0 | S120: 0 | T120: 0 | U120: 0 | V120: 0 | W120: 0 | X120: 0 | Y120: 0 | Z120: =IF(COUNTIF(D120:Y120,"<>0")<=1,IF(SUM(D120:Y120)=0,0,(IF(SUM(D120:Y120)>0,IF(SUM(D120:Y120)<400,(1.2675*45967*SUM(D120:Y120)^(-0.4664)),(IF(SUM(D120:Y120)<2000,(39128*SUM(D120:Y120)^(-0.37661)),IF(SUM(D120:Y120)<5000,18893*SUM(D120:Y120)^(-0.28083),IF(SUM(D120:Y120)<100000,29680*SUM(D120:Y120)^(-0.24475),1773.1))))*100/115)*SUM(D120:Y120)*(IF(SUM(D108:Y108)>0,0.046,0.0531)),0)*1.15*1.06*0.01)/SUM(D120:Y120)),$A$73) -> 0 | AA120: 0 | AB120: 0 | AC120: 0 | AD120: 0 | AE120: 0 | AF120: 0 | AG120: 0 | AH120: 0 | AI120: 0 | AJ120: 0 | AK120: 0 | AL120: 0 | AM120: 0 | AN120: 0 | AO120: 0 | AP120: 0 | AQ120: 0 | AR120: 0 | AS120: 0 | AT120: 0 | AU120: =IF((X120*$Z120-(2009-X$3)/$C120*$Z120*X120)<0,0,(X120*$Z120-(2009-X$3)/$C120*$Z120*X120)) -> 0 | AV120: =IF((Y120*$Z120-(2009-Y$3)/$C120*$Z120*Y120)<0,0,(Y120*$Z120-(2009-Y$3)/$C120*$Z120*Y120)) -> 0 | AW120: =+SUM(AA120:AV120) -> 0 | AX120: =VLOOKUP(D$3,Prisindeks!$A$1:$B$111,2,FALSE)/100*AA120 -> 0 | AY120: =VLOOKUP(E$3,Prisindeks!$A$1:$B$111,2,FALSE)/100*AB120 -> 0 | AZ120: =VLOOKUP(F$3,Prisindeks!$A$1:$B$111,2,FALSE)/100*AC120 -> 0 | BA120: =VLOOKUP(G$3,Prisindeks!$A$1:$B$111,2,FALSE)/100*AD120 -> 0 | BB120: =VLOOKUP(H$3,Prisindeks!$A$1:$B$111,2,FALSE)/100*AE120 -> 0 | BC120: =VLOOKUP(I$3,Prisindeks!$A$1:$B$111,2,FALSE)/100*AF120 -> 0 | BD120: =VLOOKUP(J$3,Prisindeks!$A$1:$B$111,2,FALSE)/100*AG120 -> 0 | BE120: =VLOOKUP(K$3,Prisindeks!$A$1:$B$111,2,FALSE)/100*AH120 -> 0 | BF120: =VLOOKUP(L$3,Prisindeks!$A$1:$B$111,2,FALSE)/100*AI120 -> 0 | BG120: =VLOOKUP(M$3,Prisindeks!$A$1:$B$111,2,FALSE)/100*AJ120 -> 0 | BH120: =VLOOKUP(N$3,Prisindeks!$A$1:$B$111,2,FALSE)/100*AK120 -> 0 | BI120: =VLOOKUP(O$3,Prisindeks!$A$1:$B$111,2,FALSE)/100*AL120 -> 0 | BJ120: =VLOOKUP(P$3,Prisindeks!$A$1:$B$111,2,FALSE)/100*AM120 -> 0 | BK120: =VLOOKUP(Q$3,Prisindeks!$A$1:$B$111,2,FALSE)/100*AN120 -> 0 | BL120: =VLOOKUP(R$3,Prisindeks!$A$1:$B$111,2,FALSE)/100*AO120 -> 0 | BM120: =VLOOKUP(S$3,Prisindeks!$A$1:$B$111,2,FALSE)/100*AP120 -> 0 | BN120: =VLOOKUP(T$3,Prisindeks!$A$1:$B$111,2,FALSE)/100*AQ120 -> 0 | BO120: =VLOOKUP(U$3,Prisindeks!$A$1:$B$111,2,FALSE)/100*AR120 -> 0 | BP120: =VLOOKUP(V$3,Prisindeks!$A$1:$B$111,2,FALSE)/100*AS120 -> 0 | BQ120: =VLOOKUP(W$3,Prisindeks!$A$1:$B$111,2,FALSE)/100*AT120 -> 0 | BR120: =VLOOKUP(X$3,Prisindeks!$A$1:$B$111,2,FALSE)/100*AU120 -> 0 | BS120: =VLOOKUP(Y$3,Prisindeks!$A$1:$B$111,2,FALSE)/100*AV120 -> 0 | BT120: =+SUM(AX120:BS120) -> 0 | BU120: 0 | BV120: 0 | BW120: 0 | BX120: 0 | BY120: 0 | BZ120: 0 | CA120: 0 | CB120: 0 | CC120: 0 | CD120: 0 | CE120: 0 | CF120: 0 | CG120: 0 | CH120: 0 | CI120: 0 | CJ120: 0 | CK120: 0 | CL120: 0 | CM120: 0 | CN120: 0 | CO120: 0 | CP120: 0 | CQ120: =+SUM(BU120:CP120) -> 0 | CR120: =SUM(D120:Y120) -> 0
A121: =+Genanskaffelsespriser!$B$41 -> Slutafvanding, slam - højteknologisk (centrifuger), Konstruktioner | B121: PE | C121: =Genanskaffelsespriser!$E$41 -> 60 | D121: 0 | E121: 0 | F121: 0 | G121: 0 | H121: 0 | I121: 0 | J121: 0 | K121: 0 | L121: 0 | M121: 0 | N121: 0 | O121: 0 | P121: 0 | Q121: 0 | R121: 0 | S121: 0 | T121: 0 | U121: 0 | V121: 0 | W121: 0 | X121: 0 | Y121: 0 | Z121: =IF(COUNTIF(D121:Y121,"<>0")<=1,IF(SUM(D121:Y121)=0,0,(IF(SUM(D121:Y121)>0,IF(SUM(D121:Y121)<400,(1.2675*45967*SUM(D121:Y121)^(-0.4664)),(IF(SUM(D121:Y121)<2000,(39128*SUM(D121:Y121)^(-0.37661)),IF(SUM(D121:Y121)<5000,18893*SUM(D121:Y121)^(-0.28083),IF(SUM(D121:Y121)<100000,29680*SUM(D121:Y121)^(-0.24475),1773.1))))*100/115)*SUM(D121:Y121)*(IF(SUM(D105:Y105)>0,0.0722,0.0776)),0)*1.15*1.06*0.49)*(1+Genanskaffelsespriser!$D$389)/SUM(D121:Y121)),$A$73) -> 0 | AA121: =IF((D121*$Z121-(2009-D$3)/($C121+D122)*$Z121*D121)<0,0,(D121*$Z121-(2009-D$3)/($C121+D122)*$Z121*D121)) -> 0 | AB121: 0 | AC121: 0 | AD121: 0 | AE121: 0 | AF121: 0 | AG121: 0 | AH121: 0 | AI121: 0 | AJ121: 0 | AK121: 0 | AL121: 0 | AM121: 0 | AN121: 0 | AO121: 0 | AP121: 0 | AQ121: 0 | AR121: 0 | AS121: 0 | AT121: 0 | AU121: 0 | AV121: 0 | AW121: =+SUM(AA121:AV121) -> 0 | AX121: =VLOOKUP(D$3,Prisindeks!$A$1:$B$111,2,FALSE)/100*AA121 -> 0 | AY121: =VLOOKUP(E$3,Prisindeks!$A$1:$B$111,2,FALSE)/100*AB121 -> 0 | AZ121: =VLOOKUP(F$3,Prisindeks!$A$1:$B$111,2,FALSE)/100*AC121 -> 0 | BA121: =VLOOKUP(G$3,Prisindeks!$A$1:$B$111,2,FALSE)/100*AD121 -> 0 | BB121: =VLOOKUP(H$3,Prisindeks!$A$1:$B$111,2,FALSE)/100*AE121 -> 0 | BC121: =VLOOKUP(I$3,Prisindeks!$A$1:$B$111,2,FALSE)/100*AF121 -> 0 | BD121: =VLOOKUP(J$3,Prisindeks!$A$1:$B$111,2,FALSE)/100*AG121 -> 0 | BE121: =VLOOKUP(K$3,Prisindeks!$A$1:$B$111,2,FALSE)/100*AH121 -> 0 | BF121: =VLOOKUP(L$3,Prisindeks!$A$1:$B$111,2,FALSE)/100*AI121 -> 0 | BG121: =VLOOKUP(M$3,Prisindeks!$A$1:$B$111,2,FALSE)/100*AJ121 -> 0 | BH121: =VLOOKUP(N$3,Prisindeks!$A$1:$B$111,2,FALSE)/100*AK121 -> 0 | BI121: =VLOOKUP(O$3,Prisindeks!$A$1:$B$111,2,FALSE)/100*AL121 -> 0 | BJ121: =VLOOKUP(P$3,Prisindeks!$A$1:$B$111,2,FALSE)/100*AM121 -> 0 | BK121: =VLOOKUP(Q$3,Prisindeks!$A$1:$B$111,2,FALSE)/100*AN121 -> 0 | BL121: =VLOOKUP(R$3,Prisindeks!$A$1:$B$111,2,FALSE)/100*AO121 -> 0 | BM121: =VLOOKUP(S$3,Prisindeks!$A$1:$B$111,2,FALSE)/100*AP121 -> 0 | BN121: =VLOOKUP(T$3,Prisindeks!$A$1:$B$111,2,FALSE)/100*AQ121 -> 0 | BO121: =VLOOKUP(U$3,Prisindeks!$A$1:$B$111,2,FALSE)/100*AR121 -> 0 | BP121: =VLOOKUP(V$3,Prisindeks!$A$1:$B$111,2,FALSE)/100*AS121 -> 0 | BQ121: =VLOOKUP(W$3,Prisindeks!$A$1:$B$111,2,FALSE)/100*AT121 -> 0 | BR121: =VLOOKUP(X$3,Prisindeks!$A$1:$B$111,2,FALSE)/100*AU121 -> 0 | BS121: =VLOOKUP(Y$3,Prisindeks!$A$1:$B$111,2,FALSE)/100*AV121 -> 0 | BT121: =+SUM(AX121:BS121) -> 0 | BU121: 0 | BV121: 0 | BW121: 0 | BX121: 0 | BY121: 0 | BZ121: 0 | CA121: 0 | CB121: 0 | CC121: 0 | CD121: 0 | CE121: 0 | CF121: 0 | CG121: 0 | CH121: 0 | CI121: 0 | CJ121: 0 | CK121: 0 | CL121: 0 | CM121: 0 | CN121: 0 | CO121: 0 | CP121: 0 | CQ121: =+SUM(BU121:CP121) -> 0 | CR121: =SUM(D121:Y121) -> 0
A122: Levetidsforlængelse | B122: år | C122: - | D122: 0 | E122: 0 | F122: 0 | G122: 0 | H122: 0 | I122: 0 | J122: 0 | K122: 0 | L122: 0 | M122: 0 | N122: 0 | O122: 0 | P122: 0 | Q122: 0 | R122: 0 | S122: 0 | T122: 0 | U122: 0 | V122: 0 | W122: 0 | X122: 0 | Y122: 0
A123: =+Genanskaffelsespriser!$B$42 -> Slutafvanding, slam - højteknologisk (centrifuger), Mek/El | B123: PE | C123: =Genanskaffelsespriser!$E$42 -> 20 | D123: 0 | E123: 0 | F123: 0 | G123: 0 | H123: 0 | I123: 0 | J123: 0 | K123: 0 | L123: 0 | M123: 0 | N123: 0 | O123: 0 | P123: 0 | Q123: 0 | R123: 0 | S123: 0 | T123: 0 | U123: 0 | V123: 0 | W123: 0 | X123: 0 | Y123: 0 | Z123: =IF(COUNTIF(D123:Y123,"<>0")<=1,IF(SUM(D123:Y123)=0,0,(IF(SUM(D123:Y123)>0,IF(SUM(D123:Y123)<400,(1.2675*45967*SUM(D123:Y123)^(-0.4664)),(IF(SUM(D123:Y123)<2000,(39128*SUM(D123:Y123)^(-0.37661)),IF(SUM(D123:Y123)<5000,18893*SUM(D123:Y123)^(-0.28083),IF(SUM(D123:Y123)<100000,29680*SUM(D123:Y123)^(-0.24475),1773.1))))*100/115)*SUM(D123:Y123)*(IF(SUM(D107:Y107)>0,0.0722,0.0776)),0)*1.15*1.06*0.47)/SUM(D123:Y123)),$A$73) -> 0 | AA123: =IF((D123*$Z123-(2009-D$3)/$C123*$Z123*D123)<0,0,(D123*$Z123-(2009-D$3)/$C123*$Z123*D123)) -> 0 | AB123: 0 | AC123: 0 | AD123: 0 | AE123: 0 | AF123: 0 | AG123: 0 | AH123: 0 | AI123: 0 | AJ123: 0 | AK123: =IF((N123*$Z123-(2009-N$3)/$C123*$Z123*N123)<0,0,(N123*$Z123-(2009-N$3)/$C123*$Z123*N123)) -> 0 | AL123: 0 | AM123: 0 | AN123: 0 | AO123: 0 | AP123: 0 | AQ123: 0 | AR123: 0 | AS123: 0 | AT123: 0 | AU123: =IF((X123*$Z123-(2009-X$3)/$C123*$Z123*X123)<0,0,(X123*$Z123-(2009-X$3)/$C123*$Z123*X123)) -> 0 | AV123: =IF((Y123*$Z123-(2009-Y$3)/$C123*$Z123*Y123)<0,0,(Y123*$Z123-(2009-Y$3)/$C123*$Z123*Y123)) -> 0 | AW123: =+SUM(AA123:AV123) -> 0 | AX123: =VLOOKUP(D$3,Prisindeks!$A$1:$B$111,2,FALSE)/100*AA123 -> 0 | AY123: =VLOOKUP(E$3,Prisindeks!$A$1:$B$111,2,FALSE)/100*AB123 -> 0 | AZ123: =VLOOKUP(F$3,Prisindeks!$A$1:$B$111,2,FALSE)/100*AC123 -> 0 | BA123: =VLOOKUP(G$3,Prisindeks!$A$1:$B$111,2,FALSE)/100*AD123 -> 0 | BB123: =VLOOKUP(H$3,Prisindeks!$A$1:$B$111,2,FALSE)/100*AE123 -> 0 | BC123: =VLOOKUP(I$3,Prisindeks!$A$1:$B$111,2,FALSE)/100*AF123 -> 0 | BD123: =VLOOKUP(J$3,Prisindeks!$A$1:$B$111,2,FALSE)/100*AG123 -> 0 | BE123: =VLOOKUP(K$3,Prisindeks!$A$1:$B$111,2,FALSE)/100*AH123 -> 0 | BF123: =VLOOKUP(L$3,Prisindeks!$A$1:$B$111,2,FALSE)/100*AI123 -> 0 | BG123: =VLOOKUP(M$3,Prisindeks!$A$1:$B$111,2,FALSE)/100*AJ123 -> 0 | BH123: =VLOOKUP(N$3,Prisindeks!$A$1:$B$111,2,FALSE)/100*AK123 -> 0 | BI123: =VLOOKUP(O$3,Prisindeks!$A$1:$B$111,2,FALSE)/100*AL123 -> 0 | BJ123: =VLOOKUP(P$3,Prisindeks!$A$1:$B$111,2,FALSE)/100*AM123 -> 0 | BK123: =VLOOKUP(Q$3,Prisindeks!$A$1:$B$111,2,FALSE)/100*AN123 -> 0 | BL123: =VLOOKUP(R$3,Prisindeks!$A$1:$B$111,2,FALSE)/100*AO123 -> 0 | BM123: =VLOOKUP(S$3,Prisindeks!$A$1:$B$111,2,FALSE)/100*AP123 -> 0 | BN123: =VLOOKUP(T$3,Prisindeks!$A$1:$B$111,2,FALSE)/100*AQ123 -> 0 | BO123: =VLOOKUP(U$3,Prisindeks!$A$1:$B$111,2,FALSE)/100*AR123 -> 0 | BP123: =VLOOKUP(V$3,Prisindeks!$A$1:$B$111,2,FALSE)/100*AS123 -> 0 | BQ123: =VLOOKUP(W$3,Prisindeks!$A$1:$B$111,2,FALSE)/100*AT123 -> 0 | BR123: =VLOOKUP(X$3,Prisindeks!$A$1:$B$111,2,FALSE)/100*AU123 -> 0 | BS123: =VLOOKUP(Y$3,Prisindeks!$A$1:$B$111,2,FALSE)/100*AV123 -> 0 | BT123: =+SUM(AX123:BS123) -> 0 | BU123: =(AA123+AX123)/2 -> 0 | BV123: 0 | BW123: 0 | BX123: 0 | BY123: 0 | BZ123: 0 | CA123: 0 | CB123: 0 | CC123: 0 | CD123: 0 | CE123: =(AK123+BH123)/2 -> 0 | CF123: 0 | CG123: 0 | CH123: 0 | CI123: 0 | CJ123: 0 | CK123: 0 | CL123: 0 | CM123: 0 | CN123: 0 | CO123: =(AU123+BR123)/2 -> 0 | CP123: =(AV123+BS123)/2 -> 0 | CQ123: =+SUM(BU123:CP123) -> 0 | CR123: =SUM(D123:Y123) -> 0
A124: =+Genanskaffelsespriser!$B$43 -> Slutafvanding, slam - højteknologisk (centrifuger), SRO | B124: PE | C124: =Genanskaffelsespriser!$E$43 -> 10 | D124: 0 | E124: 0 | F124: 0 | G124: 0 | H124: 0 | I124: 0 | J124: 0 | K124: 0 | L124: 0 | M124: 0 | N124: 0 | O124: 0 | P124: 0 | Q124: 0 | R124: 0 | S124: 0 | T124: 0 | U124: 0 | V124: 0 | W124: 0 | X124: 0 | Y124: 0 | Z124: =IF(COUNTIF(D124:Y124,"<>0")<=1,IF(SUM(D124:Y124)=0,0,(IF(SUM(D124:Y124)>0,IF(SUM(D124:Y124)<400,(1.2675*45967*SUM(D124:Y124)^(-0.4664)),(IF(SUM(D124:Y124)<2000,(39128*SUM(D124:Y124)^(-0.37661)),IF(SUM(D124:Y124)<5000,18893*SUM(D124:Y124)^(-0.28083),IF(SUM(D124:Y124)<100000,29680*SUM(D124:Y124)^(-0.24475),1773.1))))*100/115)*SUM(D124:Y124)*(IF(SUM(D108:Y108)>0,0.0722,0.0776)),0)*1.15*1.06*0.04)/SUM(D124:Y124)),$A$73) -> 0 | AA124: 0 | AB124: 0 | AC124: 0 | AD124: 0 | AE124: 0 | AF124: 0 | AG124: 0 | AH124: 0 | AI124: 0 | AJ124: 0 | AK124: 0 | AL124: 0 | AM124: 0 | AN124: 0 | AO124: 0 | AP124: 0 | AQ124: 0 | AR124: 0 | AS124: 0 | AT124: 0 | AU124: =IF((X124*$Z124-(2009-X$3)/$C124*$Z124*X124)<0,0,(X124*$Z124-(2009-X$3)/$C124*$Z124*X124)) -> 0 | AV124: =IF((Y124*$Z124-(2009-Y$3)/$C124*$Z124*Y124)<0,0,(Y124*$Z124-(2009-Y$3)/$C124*$Z124*Y124)) -> 0 | AW124: =+SUM(AA124:AV124) -> 0 | AX124: =VLOOKUP(D$3,Prisindeks!$A$1:$B$111,2,FALSE)/100*AA124 -> 0 | AY124: =VLOOKUP(E$3,Prisindeks!$A$1:$B$111,2,FALSE)/100*AB124 -> 0 | AZ124: =VLOOKUP(F$3,Prisindeks!$A$1:$B$111,2,FALSE)/100*AC124 -> 0 | BA124: =VLOOKUP(G$3,Prisindeks!$A$1:$B$111,2,FALSE)/100*AD124 -> 0 | BB124: =VLOOKUP(H$3,Prisindeks!$A$1:$B$111,2,FALSE)/100*AE124 -> 0 | BC124: =VLOOKUP(I$3,Prisindeks!$A$1:$B$111,2,FALSE)/100*AF124 -> 0 | BD124: =VLOOKUP(J$3,Prisindeks!$A$1:$B$111,2,FALSE)/100*AG124 -> 0 | BE124: =VLOOKUP(K$3,Prisindeks!$A$1:$B$111,2,FALSE)/100*AH124 -> 0 | BF124: =VLOOKUP(L$3,Prisindeks!$A$1:$B$111,2,FALSE)/100*AI124 -> 0 | BG124: =VLOOKUP(M$3,Prisindeks!$A$1:$B$111,2,FALSE)/100*AJ124 -> 0 | BH124: =VLOOKUP(N$3,Prisindeks!$A$1:$B$111,2,FALSE)/100*AK124 -> 0 | BI124: =VLOOKUP(O$3,Prisindeks!$A$1:$B$111,2,FALSE)/100*AL124 -> 0 | BJ124: =VLOOKUP(P$3,Prisindeks!$A$1:$B$111,2,FALSE)/100*AM124 -> 0 | BK124: =VLOOKUP(Q$3,Prisindeks!$A$1:$B$111,2,FALSE)/100*AN124 -> 0 | BL124: =VLOOKUP(R$3,Prisindeks!$A$1:$B$111,2,FALSE)/100*AO124 -> 0 | BM124: =VLOOKUP(S$3,Prisindeks!$A$1:$B$111,2,FALSE)/100*AP124 -> 0 | BN124: =VLOOKUP(T$3,Prisindeks!$A$1:$B$111,2,FALSE)/100*AQ124 -> 0 | BO124: =VLOOKUP(U$3,Prisindeks!$A$1:$B$111,2,FALSE)/100*AR124 -> 0 | BP124: =VLOOKUP(V$3,Prisindeks!$A$1:$B$111,2,FALSE)/100*AS124 -> 0 | BQ124: =VLOOKUP(W$3,Prisindeks!$A$1:$B$111,2,FALSE)/100*AT124 -> 0 | BR124: =VLOOKUP(X$3,Prisindeks!$A$1:$B$111,2,FALSE)/100*AU124 -> 0 | BS124: =VLOOKUP(Y$3,Prisindeks!$A$1:$B$111,2,FALSE)/100*AV124 -> 0 | BT124: =+SUM(AX124:BS124) -> 0 | BU124: 0 | BV124: 0 | BW124: 0 | BX124: 0 | BY124: 0 | BZ124: 0 | CA124: 0 | CB124: 0 | CC124: 0 | CD124: 0 | CE124: 0 | CF124: 0 | CG124: 0 | CH124: 0 | CI124: 0 | CJ124: 0 | CK124: 0 | CL124: 0 | CM124: 0 | CN124: 0 | CO124: =(AU124+BR124)/2 -> 0 | CP124: =(AV124+BS124)/2 -> 0 | CQ124: =+SUM(BU124:CP124) -> 0 | CR124: =SUM(D124:Y124) -> 0
A125: Renseanlæg >= 5.000 PE, Slamdisponering | AW125: =+SUM(AW126:AW137) -> 0 | BT125: =+SUM(BT126:BT137) -> 0 | CQ125: =+SUM(CQ126:CQ137) -> 0 | CR125: =SUM(D125:Y125) -> 0
A126: =+Genanskaffelsespriser!$B$45 -> Slutdisponering, slam - lavteknologisk (slammineralisering), Konstruktioner | B126: PE | C126: =Genanskaffelsespriser!$E$45 -> 60 | D126: 0 | E126: 0 | F126: 0 | G126: 0 | H126: 0 | I126: 0 | J126: 0 | K126: 0 | L126: 0 | M126: 0 | N126: 0 | O126: 0 | P126: 0 | Q126: 0 | R126: 0 | S126: 0 | T126: 0 | U126: 0 | V126: 0 | W126: 0 | X126: 0 | Y126: 0 | Z126: =IF(COUNTIF(D126:Y126,"<>0")<=1,IF(SUM(D126:Y126)=0,0,(IF(SUM(D126:Y126)>0,IF(SUM(D126:Y126)<400,(1.2675*45967*SUM(D126:Y126)^(-0.4664)),(IF(SUM(D126:Y126)<2000,(39128*SUM(D126:Y126)^(-0.37661)),IF(SUM(D126:Y126)<5000,18893*SUM(D126:Y126)^(-0.28083),IF(SUM(D126:Y126)<100000,29680*SUM(D126:Y126)^(-0.24475),1773.1))))*100/115)*SUM(D126:Y126)*(IF(SUM(D105:Y105)>0,0.2191,0.2778)),0)*1.15*1.06*0.8)*(1+Genanskaffelsespriser!$D$389)/SUM(D126:Y126)),$A$73) -> 0 | AA126: =IF((D126*$Z126-(2009-D$3)/($C126+D127)*$Z126*D126)<0,0,(D126*$Z126-(2009-D$3)/($C126+D127)*$Z126*D126)) -> 0 | AB126: 0 | AC126: 0 | AD126: 0 | AE126: 0 | AF126: 0 | AG126: 0 | AH126: 0 | AI126: 0 | AJ126: 0 | AK126: 0 | AL126: 0 | AM126: 0 | AN126: 0 | AO126: 0 | AP126: 0 | AQ126: 0 | AR126: 0 | AS126: 0 | AT126: 0 | AU126: 0 | AV126: 0 | AW126: =+SUM(AA126:AV126) -> 0 | AX126: =VLOOKUP(D$3,Prisindeks!$A$1:$B$111,2,FALSE)/100*AA126 -> 0 | AY126: =VLOOKUP(E$3,Prisindeks!$A$1:$B$111,2,FALSE)/100*AB126 -> 0 | AZ126: =VLOOKUP(F$3,Prisindeks!$A$1:$B$111,2,FALSE)/100*AC126 -> 0 | BA126: =VLOOKUP(G$3,Prisindeks!$A$1:$B$111,2,FALSE)/100*AD126 -> 0 | BB126: =VLOOKUP(H$3,Prisindeks!$A$1:$B$111,2,FALSE)/100*AE126 -> 0 | BC126: =VLOOKUP(I$3,Prisindeks!$A$1:$B$111,2,FALSE)/100*AF126 -> 0 | BD126: =VLOOKUP(J$3,Prisindeks!$A$1:$B$111,2,FALSE)/100*AG126 -> 0 | BE126: =VLOOKUP(K$3,Prisindeks!$A$1:$B$111,2,FALSE)/100*AH126 -> 0 | BF126: =VLOOKUP(L$3,Prisindeks!$A$1:$B$111,2,FALSE)/100*AI126 -> 0 | BG126: =VLOOKUP(M$3,Prisindeks!$A$1:$B$111,2,FALSE)/100*AJ126 -> 0 | BH126: =VLOOKUP(N$3,Prisindeks!$A$1:$B$111,2,FALSE)/100*AK126 -> 0 | BI126: =VLOOKUP(O$3,Prisindeks!$A$1:$B$111,2,FALSE)/100*AL126 -> 0 | BJ126: =VLOOKUP(P$3,Prisindeks!$A$1:$B$111,2,FALSE)/100*AM126 -> 0 | BK126: =VLOOKUP(Q$3,Prisindeks!$A$1:$B$111,2,FALSE)/100*AN126 -> 0 | BL126: =VLOOKUP(R$3,Prisindeks!$A$1:$B$111,2,FALSE)/100*AO126 -> 0 | BM126: =VLOOKUP(S$3,Prisindeks!$A$1:$B$111,2,FALSE)/100*AP126 -> 0 | BN126: =VLOOKUP(T$3,Prisindeks!$A$1:$B$111,2,FALSE)/100*AQ126 -> 0 | BO126: =VLOOKUP(U$3,Prisindeks!$A$1:$B$111,2,FALSE)/100*AR126 -> 0 | BP126: =VLOOKUP(V$3,Prisindeks!$A$1:$B$111,2,FALSE)/100*AS126 -> 0 | BQ126: =VLOOKUP(W$3,Prisindeks!$A$1:$B$111,2,FALSE)/100*AT126 -> 0 | BR126: =VLOOKUP(X$3,Prisindeks!$A$1:$B$111,2,FALSE)/100*AU126 -> 0 | BS126: =VLOOKUP(Y$3,Prisindeks!$A$1:$B$111,2,FALSE)/100*AV126 -> 0 | BT126: =+SUM(AX126:BS126) -> 0 | BU126: =(AA126+AX126)/2 -> 0 | BV126: 0 | BW126: 0 | BX126: 0 | BY126: 0 | BZ126: 0 | CA126: 0 | CB126: 0 | CC126: 0 | CD126: 0 | CE126: 0 | CF126: 0 | CG126: 0 | CH126: 0 | CI126: 0 | CJ126: 0 | CK126: 0 | CL126: 0 | CM126: 0 | CN126: 0 | CO126: 0 | CP126: 0 | CQ126: =+SUM(BU126:CP126) -> 0 | CR126: =SUM(D126:Y126) -> 0
A127: Levetidsforlængelse | B127: år | C127: - | D127: 0 | E127: 0 | F127: 0 | G127: 0 | H127: 0 | I127: 0 | J127: 0 | K127: 0 | L127: 0 | M127: 0 | N127: 0 | O127: 0 | P127: 0 | Q127: 0 | R127: 0 | S127: 0 | T127: 0 | U127: 0 | V127: 0 | W127: 0 | X127: 0 | Y127: 0
A128: =+Genanskaffelsespriser!$B$46 -> Slutdisponering, slam - lavteknologisk (slammineralisering), Mek/EL | B128: PE | C128: =Genanskaffelsespriser!$E$46 -> 20 | D128: 0 | E128: 0 | F128: 0 | G128: 0 | H128: 0 | I128: 0 | J128: 0 | K128: 0 | L128: 0 | M128: 0 | N128: 0 | O128: 0 | P128: 0 | Q128: 0 | R128: 0 | S128: 0 | T128: 0 | U128: 0 | V128: 0 | W128: 0 | X128: 0 | Y128: 0 | Z128: =IF(COUNTIF(D128:Y128,"<>0")<=1,IF(SUM(D128:Y128)=0,0,(IF(SUM(D128:Y128)>0,IF(SUM(D128:Y128)<400,(1.2675*45967*SUM(D128:Y128)^(-0.4664)),(IF(SUM(D128:Y128)<2000,(39128*SUM(D128:Y128)^(-0.37661)),IF(SUM(D128:Y128)<5000,18893*SUM(D128:Y128)^(-0.28083),IF(SUM(D128:Y128)<100000,29680*SUM(D128:Y128)^(-0.24475),1773.1))))*100/115)*SUM(D128:Y128)*(IF(SUM(D107:Y107)>0,0.2191,0.2778)),0)*1.15*1.06*0.14)/SUM(D128:Y128)),$A$73) -> 0 | AA128: =IF((D128*$Z128-(2009-D$3)/$C128*$Z128*D128)<0,0,(D128*$Z128-(2009-D$3)/$C128*$Z128*D128)) -> 0 | AB128: 0 | AC128: 0 | AD128: 0 | AE128: 0 | AF128: 0 | AG128: 0 | AH128: 0 | AI128: 0 | AJ128: 0 | AK128: =IF((N128*$Z128-(2009-N$3)/$C128*$Z128*N128)<0,0,(N128*$Z128-(2009-N$3)/$C128*$Z128*N128)) -> 0 | AL128: 0 | AM128: 0 | AN128: 0 | AO128: 0 | AP128: 0 | AQ128: 0 | AR128: 0 | AS128: 0 | AT128: 0 | AU128: =IF((X128*$Z128-(2009-X$3)/$C128*$Z128*X128)<0,0,(X128*$Z128-(2009-X$3)/$C128*$Z128*X128)) -> 0 | AV128: =IF((Y128*$Z128-(2009-Y$3)/$C128*$Z128*Y128)<0,0,(Y128*$Z128-(2009-Y$3)/$C128*$Z128*Y128)) -> 0 | AW128: =+SUM(AA128:AV128) -> 0 | AX128: =VLOOKUP(D$3,Prisindeks!$A$1:$B$111,2,FALSE)/100*AA128 -> 0 | AY128: =VLOOKUP(E$3,Prisindeks!$A$1:$B$111,2,FALSE)/100*AB128 -> 0 | AZ128: =VLOOKUP(F$3,Prisindeks!$A$1:$B$111,2,FALSE)/100*AC128 -> 0 | BA128: =VLOOKUP(G$3,Prisindeks!$A$1:$B$111,2,FALSE)/100*AD128 -> 0 | BB128: =VLOOKUP(H$3,Prisindeks!$A$1:$B$111,2,FALSE)/100*AE128 -> 0 | BC128: =VLOOKUP(I$3,Prisindeks!$A$1:$B$111,2,FALSE)/100*AF128 -> 0 | BD128: =VLOOKUP(J$3,Prisindeks!$A$1:$B$111,2,FALSE)/100*AG128 -> 0 | BE128: =VLOOKUP(K$3,Prisindeks!$A$1:$B$111,2,FALSE)/100*AH128 -> 0 | BF128: =VLOOKUP(L$3,Prisindeks!$A$1:$B$111,2,FALSE)/100*AI128 -> 0 | BG128: =VLOOKUP(M$3,Prisindeks!$A$1:$B$111,2,FALSE)/100*AJ128 -> 0 | BH128: =VLOOKUP(N$3,Prisindeks!$A$1:$B$111,2,FALSE)/100*AK128 -> 0 | BI128: =VLOOKUP(O$3,Prisindeks!$A$1:$B$111,2,FALSE)/100*AL128 -> 0 | BJ128: =VLOOKUP(P$3,Prisindeks!$A$1:$B$111,2,FALSE)/100*AM128 -> 0 | BK128: =VLOOKUP(Q$3,Prisindeks!$A$1:$B$111,2,FALSE)/100*AN128 -> 0 | BL128: =VLOOKUP(R$3,Prisindeks!$A$1:$B$111,2,FALSE)/100*AO128 -> 0 | BM128: =VLOOKUP(S$3,Prisindeks!$A$1:$B$111,2,FALSE)/100*AP128 -> 0 | BN128: =VLOOKUP(T$3,Prisindeks!$A$1:$B$111,2,FALSE)/100*AQ128 -> 0 | BO128: =VLOOKUP(U$3,Prisindeks!$A$1:$B$111,2,FALSE)/100*AR128 -> 0 | BP128: =VLOOKUP(V$3,Prisindeks!$A$1:$B$111,2,FALSE)/100*AS128 -> 0 | BQ128: =VLOOKUP(W$3,Prisindeks!$A$1:$B$111,2,FALSE)/100*AT128 -> 0 | BR128: =VLOOKUP(X$3,Prisindeks!$A$1:$B$111,2,FALSE)/100*AU128 -> 0 | BS128: =VLOOKUP(Y$3,Prisindeks!$A$1:$B$111,2,FALSE)/100*AV128 -> 0 | BT128: =+SUM(AX128:BS128) -> 0 | BU128: =(AA128+AX128)/2 -> 0 | BV128: 0 | BW128: 0 | BX128: 0 | BY128: 0 | BZ128: 0 | CA128: 0 | CB128: 0 | CC128: 0 | CD128: 0 | CE128: =(AK128+BH128)/2 -> 0 | CF128: 0 | CG128: 0 | CH128: 0 | CI128: 0 | CJ128: 0 | CK128: 0 | CL128: 0 | CM128: 0 | CN128: 0 | CO128: =(AU128+BR128)/2 -> 0 | CP128: 0 | CQ128: =+SUM(BU128:CP128) -> 0 | CR128: =SUM(D128:Y128) -> 0
A129: =+Genanskaffelsespriser!$B$47 -> Slutdisponering, slam - lavteknologisk (slammineralisering), SRO | B129: PE | C129: =Genanskaffelsespriser!$E$47 -> 10 | D129: 0 | E129: 0 | F129: 0 | G129: 0 | H129: 0 | I129: 0 | J129: 0 | K129: 0 | L129: 0 | M129: 0 | N129: 0 | O129: 0 | P129: 0 | Q129: 0 | R129: 0 | S129: 0 | T129: 0 | U129: 0 | V129: 0 | W129: 0 | X129: 0 | Y129: 0 | Z129: =IF(COUNTIF(D129:Y129,"<>0")<=1,IF(SUM(D129:Y129)=0,0,(IF(SUM(D129:Y129)>0,IF(SUM(D129:Y129)<400,(1.2675*45967*SUM(D129:Y129)^(-0.4664)),(IF(SUM(D129:Y129)<2000,(39128*SUM(D129:Y129)^(-0.37661)),IF(SUM(D129:Y129)<5000,18893*SUM(D129:Y129)^(-0.28083),IF(SUM(D129:Y129)<100000,29680*SUM(D129:Y129)^(-0.24475),1773.1))))*100/115)*SUM(D129:Y129)*(IF(SUM(D108:Y108)>0,0.2191,0.2778)),0)*1.15*1.06*0.06)/SUM(D129:Y129)),$A$73) -> 0 | AA129: 0 | AB129: 0 | AC129: 0 | AD129: 0 | AE129: 0 | AF129: 0 | AG129: 0 | AH129: 0 | AI129: 0 | AJ129: 0 | AK129: 0 | AL129: 0 | AM129: 0 | AN129: 0 | AO129: 0 | AP129: 0 | AQ129: 0 | AR129: 0 | AS129: 0 | AT129: 0 | AU129: =IF((X129*$Z129-(2009-X$3)/$C129*$Z129*X129)<0,0,(X129*$Z129-(2009-X$3)/$C129*$Z129*X129)) -> 0 | AV129: =IF((Y129*$Z129-(2009-Y$3)/$C129*$Z129*Y129)<0,0,(Y129*$Z129-(2009-Y$3)/$C129*$Z129*Y129)) -> 0 | AW129: =+SUM(AA129:AV129) -> 0 | AX129: =VLOOKUP(D$3,Prisindeks!$A$1:$B$111,2,FALSE)/100*AA129 -> 0 | AY129: =VLOOKUP(E$3,Prisindeks!$A$1:$B$111,2,FALSE)/100*AB129 -> 0 | AZ129: =VLOOKUP(F$3,Prisindeks!$A$1:$B$111,2,FALSE)/100*AC129 -> 0 | BA129: =VLOOKUP(G$3,Prisindeks!$A$1:$B$111,2,FALSE)/100*AD129 -> 0 | BB129: =VLOOKUP(H$3,Prisindeks!$A$1:$B$111,2,FALSE)/100*AE129 -> 0 | BC129: =VLOOKUP(I$3,Prisindeks!$A$1:$B$111,2,FALSE)/100*AF129 -> 0 | BD129: =VLOOKUP(J$3,Prisindeks!$A$1:$B$111,2,FALSE)/100*AG129 -> 0 | BE129: =VLOOKUP(K$3,Prisindeks!$A$1:$B$111,2,FALSE)/100*AH129 -> 0 | BF129: =VLOOKUP(L$3,Prisindeks!$A$1:$B$111,2,FALSE)/100*AI129 -> 0 | BG129: =VLOOKUP(M$3,Prisindeks!$A$1:$B$111,2,FALSE)/100*AJ129 -> 0 | BH129: =VLOOKUP(N$3,Prisindeks!$A$1:$B$111,2,FALSE)/100*AK129 -> 0 | BI129: =VLOOKUP(O$3,Prisindeks!$A$1:$B$111,2,FALSE)/100*AL129 -> 0 | BJ129: =VLOOKUP(P$3,Prisindeks!$A$1:$B$111,2,FALSE)/100*AM129 -> 0 | BK129: =VLOOKUP(Q$3,Prisindeks!$A$1:$B$111,2,FALSE)/100*AN129 -> 0 | BL129: =VLOOKUP(R$3,Prisindeks!$A$1:$B$111,2,FALSE)/100*AO129 -> 0 | BM129: =VLOOKUP(S$3,Prisindeks!$A$1:$B$111,2,FALSE)/100*AP129 -> 0 | BN129: =VLOOKUP(T$3,Prisindeks!$A$1:$B$111,2,FALSE)/100*AQ129 -> 0 | BO129: =VLOOKUP(U$3,Prisindeks!$A$1:$B$111,2,FALSE)/100*AR129 -> 0 | BP129: =VLOOKUP(V$3,Prisindeks!$A$1:$B$111,2,FALSE)/100*AS129 -> 0 | BQ129: =VLOOKUP(W$3,Prisindeks!$A$1:$B$111,2,FALSE)/100*AT129 -> 0 | BR129: =VLOOKUP(X$3,Prisindeks!$A$1:$B$111,2,FALSE)/100*AU129 -> 0 | BS129: =VLOOKUP(Y$3,Prisindeks!$A$1:$B$111,2,FALSE)/100*AV129 -> 0 | BT129: =+SUM(AX129:BS129) -> 0 | BU129: 0 | BV129: 0 | BW129: 0 | BX129: 0 | BY129: 0 | BZ129: 0 | CA129: 0 | CB129: 0 | CC129: 0 | CD129: 0 | CE129: 0 | CF129: 0 | CG129: 0 | CH129: 0 | CI129: 0 | CJ129: 0 | CK129: 0 | CL129: 0 | CM129: 0 | CN129: 0 | CO129: 0 | CP129: 0 | CQ129: =+SUM(BU129:CP129) -> 0 | CR129: =SUM(D129:Y129) -> 0
A130: =+Genanskaffelsespriser!$B$48 -> Slutdisponering, slam - højteknologisk (slamtørring), Konstruktioner | B130: PE | C130: =Genanskaffelsespriser!$E$48 -> 60 | D130: 0 | E130: 0 | F130: 0 | G130: 0 | H130: 0 | I130: 0 | J130: 0 | K130: 0 | L130: 0 | M130: 0 | N130: 0 | O130: 0 | P130: 0 | Q130: 0 | R130: 0 | S130: 0 | T130: 0 | U130: 0 | V130: 0 | W130: 0 | X130: 0 | Y130: 0 | Z130: =IF(COUNTIF(D130:Y130,"<>0")<=1,IF(SUM(D130:Y130)=0,0,(IF(SUM(D130:Y130)>0,IF(SUM(D130:Y130)<400,(1.2675*45967*SUM(D130:Y130)^(-0.4664)),(IF(SUM(D130:Y130)<2000,(39128*SUM(D130:Y130)^(-0.37661)),IF(SUM(D130:Y130)<5000,18893*SUM(D130:Y130)^(-0.28083),IF(SUM(D130:Y130)<100000,29680*SUM(D130:Y130)^(-0.24475),1773.1))))*100/115)*SUM(D130:Y130)*(IF(SUM(D105:Y105)>0,0.1922,0.2286)),0)*1.15*1.06*0.48)*(1+Genanskaffelsespriser!$D$389)/SUM(D130:Y130)),$A$73) -> 0 | AA130: =IF((D130*$Z130-(2009-D$3)/($C130+D131)*$Z130*D130)<0,0,(D130*$Z130-(2009-D$3)/($C130+D131)*$Z130*D130)) -> 0 | AB130: 0 | AC130: 0 | AD130: 0 | AE130: 0 | AF130: 0 | AG130: 0 | AH130: 0 | AI130: 0 | AJ130: 0 | AK130: 0 | AL130: 0 | AM130: 0 | AN130: 0 | AO130: 0 | AP130: 0 | AQ130: 0 | AR130: 0 | AS130: 0 | AT130: 0 | AU130: 0 | AV130: 0 | AW130: =+SUM(AA130:AV130) -> 0 | AX130: =VLOOKUP(D$3,Prisindeks!$A$1:$B$111,2,FALSE)/100*AA130 -> 0 | AY130: =VLOOKUP(E$3,Prisindeks!$A$1:$B$111,2,FALSE)/100*AB130 -> 0 | AZ130: =VLOOKUP(F$3,Prisindeks!$A$1:$B$111,2,FALSE)/100*AC130 -> 0 | BA130: =VLOOKUP(G$3,Prisindeks!$A$1:$B$111,2,FALSE)/100*AD130 -> 0 | BB130: =VLOOKUP(H$3,Prisindeks!$A$1:$B$111,2,FALSE)/100*AE130 -> 0 | BC130: =VLOOKUP(I$3,Prisindeks!$A$1:$B$111,2,FALSE)/100*AF130 -> 0 | BD130: =VLOOKUP(J$3,Prisindeks!$A$1:$B$111,2,FALSE)/100*AG130 -> 0 | BE130: =VLOOKUP(K$3,Prisindeks!$A$1:$B$111,2,FALSE)/100*AH130 -> 0 | BF130: =VLOOKUP(L$3,Prisindeks!$A$1:$B$111,2,FALSE)/100*AI130 -> 0 | BG130: =VLOOKUP(M$3,Prisindeks!$A$1:$B$111,2,FALSE)/100*AJ130 -> 0 | BH130: =VLOOKUP(N$3,Prisindeks!$A$1:$B$111,2,FALSE)/100*AK130 -> 0 | BI130: =VLOOKUP(O$3,Prisindeks!$A$1:$B$111,2,FALSE)/100*AL130 -> 0 | BJ130: =VLOOKUP(P$3,Prisindeks!$A$1:$B$111,2,FALSE)/100*AM130 -> 0 | BK130: =VLOOKUP(Q$3,Prisindeks!$A$1:$B$111,2,FALSE)/100*AN130 -> 0 | BL130: =VLOOKUP(R$3,Prisindeks!$A$1:$B$111,2,FALSE)/100*AO130 -> 0 | BM130: =VLOOKUP(S$3,Prisindeks!$A$1:$B$111,2,FALSE)/100*AP130 -> 0 | BN130: =VLOOKUP(T$3,Prisindeks!$A$1:$B$111,2,FALSE)/100*AQ130 -> 0 | BO130: =VLOOKUP(U$3,Prisindeks!$A$1:$B$111,2,FALSE)/100*AR130 -> 0 | BP130: =VLOOKUP(V$3,Prisindeks!$A$1:$B$111,2,FALSE)/100*AS130 -> 0 | BQ130: =VLOOKUP(W$3,Prisindeks!$A$1:$B$111,2,FALSE)/100*AT130 -> 0 | BR130: =VLOOKUP(X$3,Prisindeks!$A$1:$B$111,2,FALSE)/100*AU130 -> 0 | BS130: =VLOOKUP(Y$3,Prisindeks!$A$1:$B$111,2,FALSE)/100*AV130 -> 0 | BT130: =+SUM(AX130:BS130) -> 0 | BU130: 0 | BV130: 0 | BW130: 0 | BX130: 0 | BY130: 0 | BZ130: 0 | CA130: 0 | CB130: 0 | CC130: 0 | CD130: 0 | CE130: 0 | CF130: 0 | CG130: 0 | CH130: 0 | CI130: 0 | CJ130: 0 | CK130: 0 | CL130: 0 | CM130: 0 | CN130: 0 | CO130: 0 | CP130: 0 | CQ130: =+SUM(BU130:CP130) -> 0 | CR130: =SUM(D130:Y130) -> 0
A131: Levetidsforlængelse | B131: år | C131: - | D131: 0 | E131: 0 | F131: 0 | G131: 0 | H131: 0 | I131: 0 | J131: 0 | K131: 0 | L131: 0 | M131: 0 | N131: 0 | O131: 0 | P131: 0 | Q131: 0 | R131: 0 | S131: 0 | T131: 0 | U131: 0 | V131: 0 | W131: 0 | X131: 0 | Y131: 0
A132: =+Genanskaffelsespriser!$B$49 -> Slutdisponering, slam - højteknologisk (slamtørring), Mek/EL | B132: PE | C132: =Genanskaffelsespriser!$E$49 -> 20 | D132: 0 | E132: 0 | F132: 0 | G132: 0 | H132: 0 | I132: 0 | J132: 0 | K132: 0 | L132: 0 | M132: 0 | N132: 0 | O132: 0 | P132: 0 | Q132: 0 | R132: 0 | S132: 0 | T132: 0 | U132: 0 | V132: 0 | W132: 0 | X132: 0 | Y132: 0 | Z132: =IF(COUNTIF(D132:Y132,"<>0")<=1,IF(SUM(D132:Y132)=0,0,(IF(SUM(D132:Y132)>0,IF(SUM(D132:Y132)<400,(1.2675*45967*SUM(D132:Y132)^(-0.4664)),(IF(SUM(D132:Y132)<2000,(39128*SUM(D132:Y132)^(-0.37661)),IF(SUM(D132:Y132)<5000,18893*SUM(D132:Y132)^(-0.28083),IF(SUM(D132:Y132)<100000,29680*SUM(D132:Y132)^(-0.24475),1773.1))))*100/115)*SUM(D132:Y132)*(IF(SUM(D107:Y107)>0,0.1922,0.2286)),0)*1.15*1.06*0.47)/SUM(D132:Y132)),$A$73) -> 0 | AA132: =IF((D132*$Z132-(2009-D$3)/$C132*$Z132*D132)<0,0,(D132*$Z132-(2009-D$3)/$C132*$Z132*D132)) -> 0 | AB132: 0 | AC132: 0 | AD132: 0 | AE132: 0 | AF132: 0 | AG132: 0 | AH132: 0 | AI132: 0 | AJ132: 0 | AK132: =IF((N132*$Z132-(2009-N$3)/$C132*$Z132*N132)<0,0,(N132*$Z132-(2009-N$3)/$C132*$Z132*N132)) -> 0 | AL132: 0 | AM132: 0 | AN132: 0 | AO132: 0 | AP132: 0 | AQ132: 0 | AR132: 0 | AS132: 0 | AT132: 0 | AU132: =IF((X132*$Z132-(2009-X$3)/$C132*$Z132*X132)<0,0,(X132*$Z132-(2009-X$3)/$C132*$Z132*X132)) -> 0 | AV132: =IF((Y132*$Z132-(2009-Y$3)/$C132*$Z132*Y132)<0,0,(Y132*$Z132-(2009-Y$3)/$C132*$Z132*Y132)) -> 0 | AW132: =+SUM(AA132:AV132) -> 0 | AX132: =VLOOKUP(D$3,Prisindeks!$A$1:$B$111,2,FALSE)/100*AA132 -> 0 | AY132: =VLOOKUP(E$3,Prisindeks!$A$1:$B$111,2,FALSE)/100*AB132 -> 0 | AZ132: =VLOOKUP(F$3,Prisindeks!$A$1:$B$111,2,FALSE)/100*AC132 -> 0 | BA132: =VLOOKUP(G$3,Prisindeks!$A$1:$B$111,2,FALSE)/100*AD132 -> 0 | BB132: =VLOOKUP(H$3,Prisindeks!$A$1:$B$111,2,FALSE)/100*AE132 -> 0 | BC132: =VLOOKUP(I$3,Prisindeks!$A$1:$B$111,2,FALSE)/100*AF132 -> 0 | BD132: =VLOOKUP(J$3,Prisindeks!$A$1:$B$111,2,FALSE)/100*AG132 -> 0 | BE132: =VLOOKUP(K$3,Prisindeks!$A$1:$B$111,2,FALSE)/100*AH132 -> 0 | BF132: =VLOOKUP(L$3,Prisindeks!$A$1:$B$111,2,FALSE)/100*AI132 -> 0 | BG132: =VLOOKUP(M$3,Prisindeks!$A$1:$B$111,2,FALSE)/100*AJ132 -> 0 | BH132: =VLOOKUP(N$3,Prisindeks!$A$1:$B$111,2,FALSE)/100*AK132 -> 0 | BI132: =VLOOKUP(O$3,Prisindeks!$A$1:$B$111,2,FALSE)/100*AL132 -> 0 | BJ132: =VLOOKUP(P$3,Prisindeks!$A$1:$B$111,2,FALSE)/100*AM132 -> 0 | BK132: =VLOOKUP(Q$3,Prisindeks!$A$1:$B$111,2,FALSE)/100*AN132 -> 0 | BL132: =VLOOKUP(R$3,Prisindeks!$A$1:$B$111,2,FALSE)/100*AO132 -> 0 | BM132: =VLOOKUP(S$3,Prisindeks!$A$1:$B$111,2,FALSE)/100*AP132 -> 0 | BN132: =VLOOKUP(T$3,Prisindeks!$A$1:$B$111,2,FALSE)/100*AQ132 -> 0 | BO132: =VLOOKUP(U$3,Prisindeks!$A$1:$B$111,2,FALSE)/100*AR132 -> 0 | BP132: =VLOOKUP(V$3,Prisindeks!$A$1:$B$111,2,FALSE)/100*AS132 -> 0 | BQ132: =VLOOKUP(W$3,Prisindeks!$A$1:$B$111,2,FALSE)/100*AT132 -> 0 | BR132: =VLOOKUP(X$3,Prisindeks!$A$1:$B$111,2,FALSE)/100*AU132 -> 0 | BS132: =VLOOKUP(Y$3,Prisindeks!$A$1:$B$111,2,FALSE)/100*AV132 -> 0 | BT132: =+SUM(AX132:BS132) -> 0 | BU132: =(AA132+AX132)/2 -> 0 | BV132: 0 | BW132: 0 | BX132: 0 | BY132: 0 | BZ132: 0 | CA132: 0 | CB132: 0 | CC132: 0 | CD132: 0 | CE132: =(AK132+BH132)/2 -> 0 | CF132: 0 | CG132: 0 | CH132: 0 | CI132: 0 | CJ132: 0 | CK132: 0 | CL132: 0 | CM132: 0 | CN132: 0 | CO132: =(AU132+BR132)/2 -> 0 | CP132: 0 | CQ132: =+SUM(BU132:CP132) -> 0 | CR132: =SUM(D132:Y132) -> 0
A133: =+Genanskaffelsespriser!$B$50 -> Slutdisponering, slam - højteknologisk (slamtørring), SRO | B133: PE | C133: =Genanskaffelsespriser!$E$50 -> 10 | D133: 0 | E133: 0 | F133: 0 | G133: 0 | H133: 0 | I133: 0 | J133: 0 | K133: 0 | L133: 0 | M133: 0 | N133: 0 | O133: 0 | P133: 0 | Q133: 0 | R133: 0 | S133: 0 | T133: 0 | U133: 0 | V133: 0 | W133: 0 | X133: 0 | Y133: 0 | Z133: =IF(COUNTIF(D133:Y133,"<>0")<=1,IF(SUM(D133:Y133)=0,0,(IF(SUM(D133:Y133)>0,IF(SUM(D133:Y133)<400,(1.2675*45967*SUM(D133:Y133)^(-0.4664)),(IF(SUM(D133:Y133)<2000,(39128*SUM(D133:Y133)^(-0.37661)),IF(SUM(D133:Y133)<5000,18893*SUM(D133:Y133)^(-0.28083),IF(SUM(D133:Y133)<100000,29680*SUM(D133:Y133)^(-0.24475),1773.1))))*100/115)*SUM(D133:Y133)*(IF(SUM(D108:Y108)>0,0.1922,0.2286)),0)*1.15*1.06*0.05)/SUM(D133:Y133)),$A$73) -> 0 | AA133: 0 | AB133: 0 | AC133: 0 | AD133: 0 | AE133: 0 | AF133: 0 | AG133: 0 | AH133: 0 | AI133: 0 | AJ133: 0 | AK133: 0 | AL133: 0 | AM133: 0 | AN133: 0 | AO133: 0 | AP133: 0 | AQ133: 0 | AR133: 0 | AS133: 0 | AT133: 0 | AU133: =IF((X133*$Z133-(2009-X$3)/$C133*$Z133*X133)<0,0,(X133*$Z133-(2009-X$3)/$C133*$Z133*X133)) -> 0 | AV133: =IF((Y133*$Z133-(2009-Y$3)/$C133*$Z133*Y133)<0,0,(Y133*$Z133-(2009-Y$3)/$C133*$Z133*Y133)) -> 0 | AW133: =+SUM(AA133:AV133) -> 0 | AX133: =VLOOKUP(D$3,Prisindeks!$A$1:$B$111,2,FALSE)/100*AA133 -> 0 | AY133: =VLOOKUP(E$3,Prisindeks!$A$1:$B$111,2,FALSE)/100*AB133 -> 0 | AZ133: =VLOOKUP(F$3,Prisindeks!$A$1:$B$111,2,FALSE)/100*AC133 -> 0 | BA133: =VLOOKUP(G$3,Prisindeks!$A$1:$B$111,2,FALSE)/100*AD133 -> 0 | BB133: =VLOOKUP(H$3,Prisindeks!$A$1:$B$111,2,FALSE)/100*AE133 -> 0 | BC133: =VLOOKUP(I$3,Prisindeks!$A$1:$B$111,2,FALSE)/100*AF133 -> 0 | BD133: =VLOOKUP(J$3,Prisindeks!$A$1:$B$111,2,FALSE)/100*AG133 -> 0 | BE133: =VLOOKUP(K$3,Prisindeks!$A$1:$B$111,2,FALSE)/100*AH133 -> 0 | BF133: =VLOOKUP(L$3,Prisindeks!$A$1:$B$111,2,FALSE)/100*AI133 -> 0 | BG133: =VLOOKUP(M$3,Prisindeks!$A$1:$B$111,2,FALSE)/100*AJ133 -> 0 | BH133: =VLOOKUP(N$3,Prisindeks!$A$1:$B$111,2,FALSE)/100*AK133 -> 0 | BI133: =VLOOKUP(O$3,Prisindeks!$A$1:$B$111,2,FALSE)/100*AL133 -> 0 | BJ133: =VLOOKUP(P$3,Prisindeks!$A$1:$B$111,2,FALSE)/100*AM133 -> 0 | BK133: =VLOOKUP(Q$3,Prisindeks!$A$1:$B$111,2,FALSE)/100*AN133 -> 0 | BL133: =VLOOKUP(R$3,Prisindeks!$A$1:$B$111,2,FALSE)/100*AO133 -> 0 | BM133: =VLOOKUP(S$3,Prisindeks!$A$1:$B$111,2,FALSE)/100*AP133 -> 0 | BN133: =VLOOKUP(T$3,Prisindeks!$A$1:$B$111,2,FALSE)/100*AQ133 -> 0 | BO133: =VLOOKUP(U$3,Prisindeks!$A$1:$B$111,2,FALSE)/100*AR133 -> 0 | BP133: =VLOOKUP(V$3,Prisindeks!$A$1:$B$111,2,FALSE)/100*AS133 -> 0 | BQ133: =VLOOKUP(W$3,Prisindeks!$A$1:$B$111,2,FALSE)/100*AT133 -> 0 | BR133: =VLOOKUP(X$3,Prisindeks!$A$1:$B$111,2,FALSE)/100*AU133 -> 0 | BS133: =VLOOKUP(Y$3,Prisindeks!$A$1:$B$111,2,FALSE)/100*AV133 -> 0 | BT133: =+SUM(AX133:BS133) -> 0 | BU133: 0 | BV133: 0 | BW133: 0 | BX133: 0 | BY133: 0 | BZ133: 0 | CA133: 0 | CB133: 0 | CC133: 0 | CD133: 0 | CE133: 0 | CF133: 0 | CG133: 0 | CH133: 0 | CI133: 0 | CJ133: 0 | CK133: 0 | CL133: 0 | CM133: 0 | CN133: 0 | CO133: 0 | CP133: 0 | CQ133: =+SUM(BU133:CP133) -> 0 | CR133: =SUM(D133:Y133) -> 0
A134: =+Genanskaffelsespriser!$B$51 -> Slutdisponering, slam - højteknologisk (slamtørring og -forbrænding), Konstruktioner | B134: PE | C134: =Genanskaffelsespriser!$E$51 -> 60 | D134: 0 | E134: 0 | F134: 0 | G134: 0 | H134: 0 | I134: 0 | J134: 0 | K134: 0 | L134: 0 | M134: 0 | N134: 0 | O134: 0 | P134: 0 | Q134: 0 | R134: 0 | S134: 0 | T134: 0 | U134: 0 | V134: 0 | W134: 0 | X134: 0 | Y134: 0 | Z134: =IF(COUNTIF(D134:Y134,"<>0")<=1,IF(SUM(D134:Y134)=0,0,(IF(SUM(D134:Y134)>0,IF(SUM(D134:Y134)<400,(1.2675*45967*SUM(D134:Y134)^(-0.4664)),(IF(SUM(D134:Y134)<2000,(39128*SUM(D134:Y134)^(-0.37661)),IF(SUM(D134:Y134)<5000,18893*SUM(D134:Y134)^(-0.28083),IF(SUM(D134:Y134)<100000,29680*SUM(D134:Y134)^(-0.24475),1773.1))))*100/115)*SUM(D134:Y134)*(IF(SUM(D105:Y105)>0,0.4334,0.5155)),0)*1.15*1.06*0.42)*(1+Genanskaffelsespriser!$D$389)/SUM(D134:Y134)),$A$73) -> 0 | AA134: =IF((D134*$Z134-(2009-D$3)/($C134+D135)*$Z134*D134)<0,0,(D134*$Z134-(2009-D$3)/($C134+D135)*$Z134*D134)) -> 0 | AB134: 0 | AC134: 0 | AD134: 0 | AE134: 0 | AF134: 0 | AG134: 0 | AH134: 0 | AI134: 0 | AJ134: 0 | AK134: 0 | AL134: 0 | AM134: 0 | AN134: 0 | AO134: 0 | AP134: 0 | AQ134: 0 | AR134: 0 | AS134: 0 | AT134: 0 | AU134: 0 | AV134: 0 | AW134: =+SUM(AA134:AV134) -> 0 | AX134: =VLOOKUP(D$3,Prisindeks!$A$1:$B$111,2,FALSE)/100*AA134 -> 0 | AY134: =VLOOKUP(E$3,Prisindeks!$A$1:$B$111,2,FALSE)/100*AB134 -> 0 | AZ134: =VLOOKUP(F$3,Prisindeks!$A$1:$B$111,2,FALSE)/100*AC134 -> 0 | BA134: =VLOOKUP(G$3,Prisindeks!$A$1:$B$111,2,FALSE)/100*AD134 -> 0 | BB134: =VLOOKUP(H$3,Prisindeks!$A$1:$B$111,2,FALSE)/100*AE134 -> 0 | BC134: =VLOOKUP(I$3,Prisindeks!$A$1:$B$111,2,FALSE)/100*AF134 -> 0 | BD134: =VLOOKUP(J$3,Prisindeks!$A$1:$B$111,2,FALSE)/100*AG134 -> 0 | BE134: =VLOOKUP(K$3,Prisindeks!$A$1:$B$111,2,FALSE)/100*AH134 -> 0 | BF134: =VLOOKUP(L$3,Prisindeks!$A$1:$B$111,2,FALSE)/100*AI134 -> 0 | BG134: =VLOOKUP(M$3,Prisindeks!$A$1:$B$111,2,FALSE)/100*AJ134 -> 0 | BH134: =VLOOKUP(N$3,Prisindeks!$A$1:$B$111,2,FALSE)/100*AK134 -> 0 | BI134: =VLOOKUP(O$3,Prisindeks!$A$1:$B$111,2,FALSE)/100*AL134 -> 0 | BJ134: =VLOOKUP(P$3,Prisindeks!$A$1:$B$111,2,FALSE)/100*AM134 -> 0 | BK134: =VLOOKUP(Q$3,Prisindeks!$A$1:$B$111,2,FALSE)/100*AN134 -> 0 | BL134: =VLOOKUP(R$3,Prisindeks!$A$1:$B$111,2,FALSE)/100*AO134 -> 0 | BM134: =VLOOKUP(S$3,Prisindeks!$A$1:$B$111,2,FALSE)/100*AP134 -> 0 | BN134: =VLOOKUP(T$3,Prisindeks!$A$1:$B$111,2,FALSE)/100*AQ134 -> 0 | BO134: =VLOOKUP(U$3,Prisindeks!$A$1:$B$111,2,FALSE)/100*AR134 -> 0 | BP134: =VLOOKUP(V$3,Prisindeks!$A$1:$B$111,2,FALSE)/100*AS134 -> 0 | BQ134: =VLOOKUP(W$3,Prisindeks!$A$1:$B$111,2,FALSE)/100*AT134 -> 0 | BR134: =VLOOKUP(X$3,Prisindeks!$A$1:$B$111,2,FALSE)/100*AU134 -> 0 | BS134: =VLOOKUP(Y$3,Prisindeks!$A$1:$B$111,2,FALSE)/100*AV134 -> 0 | BT134: =+SUM(AX134:BS134) -> 0 | BU134: 0 | BV134: 0 | BW134: 0 | BX134: 0 | BY134: 0 | BZ134: 0 | CA134: 0 | CB134: 0 | CC134: 0 | CD134: 0 | CE134: 0 | CF134: 0 | CG134: 0 | CH134: 0 | CI134: 0 | CJ134: 0 | CK134: 0 | CL134: 0 | CM134: 0 | CN134: 0 | CO134: 0 | CP134: 0 | CQ134: =+SUM(BU134:CP134) -> 0 | CR134: =SUM(D134:Y134) -> 0
A135: Levetidsforlængelse | B135: år | C135: - | D135: 0 | E135: 0 | F135: 0 | G135: 0 | H135: 0 | I135: 0 | J135: 0 | K135: 0 | L135: 0 | M135: 0 | N135: 0 | O135: 0 | P135: 0 | Q135: 0 | R135: 0 | S135: 0 | T135: 0 | U135: 0 | V135: 0 | W135: 0 | X135: 0 | Y135: 0
A136: =+Genanskaffelsespriser!$B$52 -> Slutdisponering, slam - højteknologisk (slamtørring og -forbrænding), Mek/EL | B136: PE | C136: =Genanskaffelsespriser!$E$52 -> 20 | D136: 0 | E136: 0 | F136: 0 | G136: 0 | H136: 0 | I136: 0 | J136: 0 | K136: 0 | L136: 0 | M136: 0 | N136: 0 | O136: 0 | P136: 0 | Q136: 0 | R136: 0 | S136: 0 | T136: 0 | U136: 0 | V136: 0 | W136: 0 | X136: 0 | Y136: 0 | Z136: =IF(COUNTIF(D136:Y136,"<>0")<=1,IF(SUM(D136:Y136)=0,0,(IF(SUM(D136:Y136)>0,IF(SUM(D136:Y136)<400,(1.2675*45967*SUM(D136:Y136)^(-0.4664)),(IF(SUM(D136:Y136)<2000,(39128*SUM(D136:Y136)^(-0.37661)),IF(SUM(D136:Y136)<5000,18893*SUM(D136:Y136)^(-0.28083),IF(SUM(D136:Y136)<100000,29680*SUM(D136:Y136)^(-0.24475),1773.1))))*100/115)*SUM(D136:Y136)*(IF(SUM(D107:Y107)>0,0.4334,0.5155)),0)*1.15*1.06*0.53)/SUM(D136:Y136)),$A$73) -> 0 | AA136: =IF((D136*$Z136-(2009-D$3)/$C136*$Z136*D136)<0,0,(D136*$Z136-(2009-D$3)/$C136*$Z136*D136)) -> 0 | AB136: 0 | AC136: 0 | AD136: 0 | AE136: 0 | AF136: 0 | AG136: 0 | AH136: 0 | AI136: 0 | AJ136: 0 | AK136: =IF((N136*$Z136-(2009-N$3)/$C136*$Z136*N136)<0,0,(N136*$Z136-(2009-N$3)/$C136*$Z136*N136)) -> 0 | AL136: 0 | AM136: 0 | AN136: 0 | AO136: 0 | AP136: 0 | AQ136: 0 | AR136: 0 | AS136: 0 | AT136: 0 | AU136: =IF((X136*$Z136-(2009-X$3)/$C136*$Z136*X136)<0,0,(X136*$Z136-(2009-X$3)/$C136*$Z136*X136)) -> 0 | AV136: =IF((Y136*$Z136-(2009-Y$3)/$C136*$Z136*Y136)<0,0,(Y136*$Z136-(2009-Y$3)/$C136*$Z136*Y136)) -> 0 | AW136: =+SUM(AA136:AV136) -> 0 | AX136: =VLOOKUP(D$3,Prisindeks!$A$1:$B$111,2,FALSE)/100*AA136 -> 0 | AY136: =VLOOKUP(E$3,Prisindeks!$A$1:$B$111,2,FALSE)/100*AB136 -> 0 | AZ136: =VLOOKUP(F$3,Prisindeks!$A$1:$B$111,2,FALSE)/100*AC136 -> 0 | BA136: =VLOOKUP(G$3,Prisindeks!$A$1:$B$111,2,FALSE)/100*AD136 -> 0 | BB136: =VLOOKUP(H$3,Prisindeks!$A$1:$B$111,2,FALSE)/100*AE136 -> 0 | BC136: =VLOOKUP(I$3,Prisindeks!$A$1:$B$111,2,FALSE)/100*AF136 -> 0 | BD136: =VLOOKUP(J$3,Prisindeks!$A$1:$B$111,2,FALSE)/100*AG136 -> 0 | BE136: =VLOOKUP(K$3,Prisindeks!$A$1:$B$111,2,FALSE)/100*AH136 -> 0 | BF136: =VLOOKUP(L$3,Prisindeks!$A$1:$B$111,2,FALSE)/100*AI136 -> 0 | BG136: =VLOOKUP(M$3,Prisindeks!$A$1:$B$111,2,FALSE)/100*AJ136 -> 0 | BH136: =VLOOKUP(N$3,Prisindeks!$A$1:$B$111,2,FALSE)/100*AK136 -> 0 | BI136: =VLOOKUP(O$3,Prisindeks!$A$1:$B$111,2,FALSE)/100*AL136 -> 0 | BJ136: =VLOOKUP(P$3,Prisindeks!$A$1:$B$111,2,FALSE)/100*AM136 -> 0 | BK136: =VLOOKUP(Q$3,Prisindeks!$A$1:$B$111,2,FALSE)/100*AN136 -> 0 | BL136: =VLOOKUP(R$3,Prisindeks!$A$1:$B$111,2,FALSE)/100*AO136 -> 0 | BM136: =VLOOKUP(S$3,Prisindeks!$A$1:$B$111,2,FALSE)/100*AP136 -> 0 | BN136: =VLOOKUP(T$3,Prisindeks!$A$1:$B$111,2,FALSE)/100*AQ136 -> 0 | BO136: =VLOOKUP(U$3,Prisindeks!$A$1:$B$111,2,FALSE)/100*AR136 -> 0 | BP136: =VLOOKUP(V$3,Prisindeks!$A$1:$B$111,2,FALSE)/100*AS136 -> 0 | BQ136: =VLOOKUP(W$3,Prisindeks!$A$1:$B$111,2,FALSE)/100*AT136 -> 0 | BR136: =VLOOKUP(X$3,Prisindeks!$A$1:$B$111,2,FALSE)/100*AU136 -> 0 | BS136: =VLOOKUP(Y$3,Prisindeks!$A$1:$B$111,2,FALSE)/100*AV136 -> 0 | BT136: =+SUM(AX136:BS136) -> 0 | BU136: =(AA136+AX136)/2 -> 0 | BV136: 0 | BW136: 0 | BX136: 0 | BY136: 0 | BZ136: 0 | CA136: 0 | CB136: 0 | CC136: 0 | CD136: 0 | CE136: =(AK136+BH136)/2 -> 0 | CF136: 0 | CG136: 0 | CH136: 0 | CI136: 0 | CJ136: 0 | CK136: 0 | CL136: 0 | CM136: 0 | CN136: 0 | CO136: =(AU136+BR136)/2 -> 0 | CP136: =(AV136+BS136)/2 -> 0 | CQ136: =+SUM(BU136:CP136) -> 0 | CR136: =SUM(D136:Y136) -> 0
A137: =+Genanskaffelsespriser!$B$53 -> Slutdisponering, slam - højteknologisk (slamtørring og -forbrænding), SRO | B137: PE | C137: =Genanskaffelsespriser!$E$53 -> 10 | D137: 0 | E137: 0 | F137: 0 | G137: 0 | H137: 0 | I137: 0 | J137: 0 | K137: 0 | L137: 0 | M137: 0 | N137: 0 | O137: 0 | P137: 0 | Q137: 0 | R137: 0 | S137: 0 | T137: 0 | U137: 0 | V137: 0 | W137: 0 | X137: 0 | Y137: 0 | Z137: =IF(COUNTIF(D137:Y137,"<>0")<=1,IF(SUM(D137:Y137)=0,0,(IF(SUM(D137:Y137)>0,IF(SUM(D137:Y137)<400,(1.2675*45967*SUM(D137:Y137)^(-0.4664)),(IF(SUM(D137:Y137)<2000,(39128*SUM(D137:Y137)^(-0.37661)),IF(SUM(D137:Y137)<5000,18893*SUM(D137:Y137)^(-0.28083),IF(SUM(D137:Y137)<100000,29680*SUM(D137:Y137)^(-0.24475),1773.1))))*100/115)*SUM(D137:Y137)*(IF(SUM(D108:Y108)>0,0.4334,0.5155)),0)*1.15*1.06*0.05)/SUM(D137:Y137)),$A$73) -> 0 | AA137: 0 | AB137: 0 | AC137: 0 | AD137: 0 | AE137: 0 | AF137: 0 | AG137: 0 | AH137: 0 | AI137: 0 | AJ137: 0 | AK137: 0 | AL137: 0 | AM137: 0 | AN137: 0 | AO137: 0 | AP137: 0 | AQ137: 0 | AR137: 0 | AS137: 0 | AT137: 0 | AU137: =IF((X137*$Z137-(2009-X$3)/$C137*$Z137*X137)<0,0,(X137*$Z137-(2009-X$3)/$C137*$Z137*X137)) -> 0 | AV137: =IF((Y137*$Z137-(2009-Y$3)/$C137*$Z137*Y137)<0,0,(Y137*$Z137-(2009-Y$3)/$C137*$Z137*Y137)) -> 0 | AW137: =+SUM(AA137:AV137) -> 0 | AX137: =VLOOKUP(D$3,Prisindeks!$A$1:$B$111,2,FALSE)/100*AA137 -> 0 | AY137: =VLOOKUP(E$3,Prisindeks!$A$1:$B$111,2,FALSE)/100*AB137 -> 0 | AZ137: =VLOOKUP(F$3,Prisindeks!$A$1:$B$111,2,FALSE)/100*AC137 -> 0 | BA137: =VLOOKUP(G$3,Prisindeks!$A$1:$B$111,2,FALSE)/100*AD137 -> 0 | BB137: =VLOOKUP(H$3,Prisindeks!$A$1:$B$111,2,FALSE)/100*AE137 -> 0 | BC137: =VLOOKUP(I$3,Prisindeks!$A$1:$B$111,2,FALSE)/100*AF137 -> 0 | BD137: =VLOOKUP(J$3,Prisindeks!$A$1:$B$111,2,FALSE)/100*AG137 -> 0 | BE137: =VLOOKUP(K$3,Prisindeks!$A$1:$B$111,2,FALSE)/100*AH137 -> 0 | BF137: =VLOOKUP(L$3,Prisindeks!$A$1:$B$111,2,FALSE)/100*AI137 -> 0 | BG137: =VLOOKUP(M$3,Prisindeks!$A$1:$B$111,2,FALSE)/100*AJ137 -> 0 | BH137: =VLOOKUP(N$3,Prisindeks!$A$1:$B$111,2,FALSE)/100*AK137 -> 0 | BI137: =VLOOKUP(O$3,Prisindeks!$A$1:$B$111,2,FALSE)/100*AL137 -> 0 | BJ137: =VLOOKUP(P$3,Prisindeks!$A$1:$B$111,2,FALSE)/100*AM137 -> 0 | BK137: =VLOOKUP(Q$3,Prisindeks!$A$1:$B$111,2,FALSE)/100*AN137 -> 0 | BL137: =VLOOKUP(R$3,Prisindeks!$A$1:$B$111,2,FALSE)/100*AO137 -> 0 | BM137: =VLOOKUP(S$3,Prisindeks!$A$1:$B$111,2,FALSE)/100*AP137 -> 0 | BN137: =VLOOKUP(T$3,Prisindeks!$A$1:$B$111,2,FALSE)/100*AQ137 -> 0 | BO137: =VLOOKUP(U$3,Prisindeks!$A$1:$B$111,2,FALSE)/100*AR137 -> 0 | BP137: =VLOOKUP(V$3,Prisindeks!$A$1:$B$111,2,FALSE)/100*AS137 -> 0 | BQ137: =VLOOKUP(W$3,Prisindeks!$A$1:$B$111,2,FALSE)/100*AT137 -> 0 | BR137: =VLOOKUP(X$3,Prisindeks!$A$1:$B$111,2,FALSE)/100*AU137 -> 0 | BS137: =VLOOKUP(Y$3,Prisindeks!$A$1:$B$111,2,FALSE)/100*AV137 -> 0 | BT137: =+SUM(AX137:BS137) -> 0 | BU137: 0 | BV137: 0 | BW137: 0 | BX137: 0 | BY137: 0 | BZ137: 0 | CA137: 0 | CB137: 0 | CC137: 0 | CD137: 0 | CE137: 0 | CF137: 0 | CG137: 0 | CH137: 0 | CI137: 0 | CJ137: 0 | CK137: 0 | CL137: 0 | CM137: 0 | CN137: 0 | CO137: =(AU137+BR137)/2 -> 0 | CP137: =(AV137+BS137)/2 -> 0 | CQ137: =+SUM(BU137:CP137) -> 0 | CR137: =SUM(D137:Y137) -> 0
A138: Renseanlæg 3 | AW138: =+SUM(AW139,AW142,AW167,AW192) -> 413117075.5 | BT138: =+SUM(BT139,BT142,BT167,BT192) -> 320239405.9 | CQ138: =+SUM(CQ139,CQ142,CQ167,CQ192) -> 366678240.7
A139: Mindre renseanlæg | AW139: =SUM(AW140:AW141) -> 0 | BT139: =SUM(BT140:BT141) -> 0 | CQ139: =SUM(CQ140:CQ141) -> 0
A140: =+Genanskaffelsespriser!$B$5 -> Mindre renseanlæg < 5.000 PE uden mulighed for opdeling | B140: PE | C140: =Genanskaffelsespriser!$E$5 -> 40 | D140: 0 | E140: 0 | F140: 0 | G140: 0 | H140: 0 | I140: 0 | J140: 0 | K140: 0 | L140: 0 | M140: 0 | N140: 0 | O140: 0 | P140: 0 | Q140: 0 | R140: 0 | S140: 0 | T140: 0 | U140: 0 | V140: 0 | W140: 0 | X140: 0 | Y140: 0 | Z140: =IF(COUNTIF(D140:Y140,"<>0")<=1,IF(SUM(D140:Y140)=0,0,(IF(SUM(D140:Y140)>0,IF(SUM(D140:Y140)<400,(1.2675*45967*SUM(D140:Y140)^(-0.4664)),(IF(SUM(D140:Y140)<2000,(39128*SUM(D140:Y140)^(-0.37661)),IF(SUM(D140:Y140)<5000,18893*SUM(D140:Y140)^(-0.28083),IF(SUM(D140:Y140)<100000,29680*SUM(D140:Y140)^(-0.24475),1773.1))))*100/115)*SUM(D140:Y140)*1,0)*1.15*1.06)*(1+Genanskaffelsespriser!$D$389)/SUM(D140:Y140)),$A$73) -> 0 | AA140: =IF((D140*$Z140-(2009-D$3)/($C140+D141)*$Z140*D140)<0,0,(D140*$Z140-(2009-D$3)/($C140+D141)*$Z140*D140)) -> 0 | AB140: 0 | AC140: 0 | AD140: 0 | AE140: 0 | AF140: 0 | AG140: 0 | AH140: 0 | AI140: 0 | AJ140: 0 | AK140: 0 | AL140: 0 | AM140: 0 | AN140: 0 | AO140: 0 | AP140: 0 | AQ140: 0 | AR140: 0 | AS140: 0 | AT140: 0 | AU140: 0 | AV140: 0 | AW140: =+SUM(AA140:AV140) -> 0 | AX140: =VLOOKUP(D$3,Prisindeks!$A$1:$B$111,2,FALSE)/100*AA140 -> 0 | AY140: =VLOOKUP(E$3,Prisindeks!$A$1:$B$111,2,FALSE)/100*AB140 -> 0 | AZ140: =VLOOKUP(F$3,Prisindeks!$A$1:$B$111,2,FALSE)/100*AC140 -> 0 | BA140: =VLOOKUP(G$3,Prisindeks!$A$1:$B$111,2,FALSE)/100*AD140 -> 0 | BB140: =VLOOKUP(H$3,Prisindeks!$A$1:$B$111,2,FALSE)/100*AE140 -> 0 | BC140: =VLOOKUP(I$3,Prisindeks!$A$1:$B$111,2,FALSE)/100*AF140 -> 0 | BD140: =VLOOKUP(J$3,Prisindeks!$A$1:$B$111,2,FALSE)/100*AG140 -> 0 | BE140: =VLOOKUP(K$3,Prisindeks!$A$1:$B$111,2,FALSE)/100*AH140 -> 0 | BF140: =VLOOKUP(L$3,Prisindeks!$A$1:$B$111,2,FALSE)/100*AI140 -> 0 | BG140: =VLOOKUP(M$3,Prisindeks!$A$1:$B$111,2,FALSE)/100*AJ140 -> 0 | BH140: =VLOOKUP(N$3,Prisindeks!$A$1:$B$111,2,FALSE)/100*AK140 -> 0 | BI140: =VLOOKUP(O$3,Prisindeks!$A$1:$B$111,2,FALSE)/100*AL140 -> 0 | BJ140: =VLOOKUP(P$3,Prisindeks!$A$1:$B$111,2,FALSE)/100*AM140 -> 0 | BK140: =VLOOKUP(Q$3,Prisindeks!$A$1:$B$111,2,FALSE)/100*AN140 -> 0 | BL140: =VLOOKUP(R$3,Prisindeks!$A$1:$B$111,2,FALSE)/100*AO140 -> 0 | BM140: =VLOOKUP(S$3,Prisindeks!$A$1:$B$111,2,FALSE)/100*AP140 -> 0 | BN140: =VLOOKUP(T$3,Prisindeks!$A$1:$B$111,2,FALSE)/100*AQ140 -> 0 | BO140: =VLOOKUP(U$3,Prisindeks!$A$1:$B$111,2,FALSE)/100*AR140 -> 0 | BP140: =VLOOKUP(V$3,Prisindeks!$A$1:$B$111,2,FALSE)/100*AS140 -> 0 | BQ140: =VLOOKUP(W$3,Prisindeks!$A$1:$B$111,2,FALSE)/100*AT140 -> 0 | BR140: =VLOOKUP(X$3,Prisindeks!$A$1:$B$111,2,FALSE)/100*AU140 -> 0 | BS140: =VLOOKUP(Y$3,Prisindeks!$A$1:$B$111,2,FALSE)/100*AV140 -> 0 | BT140: =+SUM(AX140:BS140) -> 0 | BU140: =(AA140+AX140)/2 -> 0 | BV140: 0 | BW140: 0 | BX140: 0 | BY140: 0 | BZ140: 0 | CA140: 0 | CB140: 0 | CC140: 0 | CD140: 0 | CE140: 0 | CF140: 0 | CG140: 0 | CH140: 0 | CI140: 0 | CJ140: 0 | CK140: 0 | CL140: 0 | CM140: 0 | CN140: 0 | CO140: 0 | CP140: 0 | CQ140: =+SUM(BU140:CP140) -> 0 | CR140: =SUM(D140:Y140) -> 0
A141: Levetidsforlængelse | B141: år | C141: - | D141: 0 | E141: 0 | F141: 0 | G141: 0 | H141: 0 | I141: 0 | J141: 0 | K141: 0 | L141: 0 | M141: 0 | N141: 0 | O141: 0 | P141: 0 | Q141: 0 | R141: 0 | S141: 0 | T141: 0 | U141: 0 | V141: 0 | W141: 0 | X141: 0 | Y141: 0
A142: Renseanlæg >= 5.000 PE, Vandbehandling | AW142: =SUM(AW143:AW166) -> 287007542.4 | BT142: =SUM(BT143:BT166) -> 218474718.3 | CQ142: =SUM(CQ143:CQ166) -> 252741130.4 | CR142: =SUM(D142:Y142) -> 0
